{"text_format":"1","workbook":"xlsx","n_sheets":11,"sheets":["Utilitaire","Accueil","Description","Détail des projets","GES","Indicateurs","Évaluation","Commentaires","Validation","Modalités de fin du PACC","Prochain Exercice-Commentaire"],"not_rendered":{"charts":0,"images":10,"macros":1,"external_links":0,"defined_names":480,"comments":2,"pivot_tables":0},"unopened":[],"bounds":{"document_bytes":16777216,"sheet_cells":100000,"rows_first":2000,"rows_last":500,"rows_between":2000,"halvings":0,"cell_chars":16384,"cell_head_chars":4096},"cells_cut":0,"cells_raw":0,"read":"whole","date_system":"1900"}

{"sheet":"Utilitaire","index":0,"n_rows":239,"n_cols":18,"rows_kept":239,"cut":false,"hidden":true,"merged":[[15,1,15,5],[15,8,15,9],[39,1,39,5]]}
[]
[]
[null,"Mot de passe:","!1320PACC","Fiche verrouillée:","Oui - diffusion en ligne"]
[null,"Fiche validée:","Oui","Fiche générée"]
[null,"GES attendu:",null,"Est-ce que le pop-up \"validation\" s'affiche:","Générée"]
[null,"Feuille accueil complètement remplie:","Oui","Exercice de suivi:","2022-03-31","Date de l'exercice:","2022-03-31"]
[null,"Statut action:",{"$f":"Accueil!D58","v":"en cours"},null,null,"Année Courante","2022-2023"]
[null,"Feuille Utilitaire visible:","Non","Titre des Onglets:","Plan d'action 2013-2020 sur les changements climatiques"]
[null,"Dernière ligne de la zone de défilement de l'onglet détail des projets:",393]
[null,"nombre d'indicateurs approuvés:",5]
[null,"Secteur:","Plan d'action 2013-2020 sur les changements climatiques"]
[null,"Numéro de séquence de l'action:",13.04,"Remplir la section Évaluation requis : ",{"$f":"IF(Utilitaire!C7=I21,\"Oui\",IF(C7=I23,\"Oui\",\"Non\"))","v":"Non"},"Première ligne masquée dans l'onglet Indicateurs : ",164]
[null,"Première ligne masquée dans l'onglet Description:",76,"Affiche onglet Évaluation:","Oui","Première ligne masquée dans l'onglet Évaluation:",51]
[]
[null,"Listes Déroulantes"]
[null,"Onglet \"Détail des projets\"",null,null,null,null,"Onglet \"Indicateurs\"","DRFM COF","Accueil"]
[null,"Région Administrative","Statut","Classification","Type d'émissions","Info GES","Type d'indicateur","Exercice de suivi","Statut de l'action","Programmes","Fiche verrouillée"]
[null,"99-toutes les régions","COVID-19 - Reporté ou prolongé","SU-Subvention","QC-Québec","Oui","Minimum à atteindre","2013-2014-1","non démarrée","Sans objet","Oui - partenaire"]
[null,"01-Bas-Saint-Laurent","COVID-19 - Suspendu","CF-Contrat fonctionnement","HQ-Hors-Québec","Non","Maximum à ne pas dépasser","2013-2014-2","en élaboration","Programme \"Faites de l'air!\"","Oui - diffusion en ligne"]
[null,"02-Saguenay- Lac-Saint-Jean","COVID-19 - Annulé","CI-Contrat immobilisation","ND-Non distingué",null,"Binaire","2014-2015-1","en cours","Programme Action-Climat Québec","Non - BGFV"]
[null,"03-Capitale-Nationale","AC-Actif","CP-Contrat service professionnel",null,null,null,"2014-2015-2","terminée","Programme Chauffez vert"]
[null,"04-Mauricie ","TE-Terminé","CT-Contrat service technique",null,null,null,"2015-2016-1","en suspens","Programme Climat municipalités - Phase 2"]
[null,"05-Estrie","AT-En attente","PI-Projet à l'interne",null,null,null,"2015-2016-2","Retirée du PACC","Programme d’aide gouvernementale à l’amélioration des services de transport en commun (PAGASTC )"]
[null,"06-Montréal","SU-Suspendu","AU-Autre",null,null,"Étape","2016-2017-1",null,"Programme d’aide gouvernementale au transport collectif des personnes (PAGTCP)"]
[null,"07-Outaouais","AN-Annulé",null,null,null,"Recherche","2016-2017-2",null,"Programme d’aide gouvernementale transitoire en matière de transport routier des personnes","Commentaires"]
[null,"08-Abitibi-Témiscamingue","AB-Abandonné",null,null,null,"Étude de cas et caractérisation des impacts des CC","2017-2018-1",null,"Programme d'aide à la réduction des émissions de gaz à effet de serre dans le transport routier des marchandises - ÉcoCamionnage","Accueil"]
[null,"09-Côte-Nord","Projet en lien avec le transport","Horizon temporel Potentiel GES",null,"Catégories","Surveillance et prévention","2017-2018-2",null,"Programme d'aide à la réhabilitation des terrains contaminés - ClimatSol-Plus - Volet 1","Description"]
[null,"10-Nord-du-Québec","Oui","À la fin du projet (suite au dernier versement)",null,"Agricole","Réalisation","2018-2019-1",null,"Programme d'aide à l'amélioration de l'efficacité du transport maritime, aérien et ferroviaire en matière de réduction des émissions de GES (PETMAF)","Détail des projets"]
[null,"11-Gaspésie-Iles-de-la-Madeleine","Non","Cinq ans après la commercialisation du produit",null,"Aménagement du territoire","Aide à la décision","2018-2019-2","Part de financement par le PACC","Programme d'aide au développement du transport collectif (PADTC)","GES"]
[null,"12-Chaudières-Appalaches",null,"Dix ans après la commercialisation du produit",null,"Bâtiment","Sensibilisation et formation","2019-2020-1","Variable","Programme d'aide aux nouvelles mobilités des personnes (NOMO)","Indicateurs"]
[null,"13-Laval",null,2030,null,"Biodiversité, écosystèmes et ressources naturelles","Cadre législatif","2019-2020-2",{"$f":"10 & \" %\"","v":"10 %"},"Programme d'aide financière au développement des transports actifs dans les périmètres urbains (TAPU)","Validation"]
[null,"14-Lanaudière",null,2040,null,"Industriel, commercial et institutionnel",null,"2020-2021-1",{"$f":"20 & \" %\"","v":"20 %"},"Programme d'aide financière pour la planification de milieux de vie durables","Tout - autres"]
[null,"15-Laurentides",null,2050,null,"Matières résiduelles",null,"2020-2021-2",{"$f":"30 & \" %\"","v":"30 %"},"Programme d'aide financière pour le compostage domestique et communautaire (ACDC)"]
[null,"16-Montérégie",null,null,null,"Reddition de comptes et partenariats",null,"2021-2022-1",{"$f":"40 & \" %\"","v":"40 %"},"Programme d'aide gouvernementale au transport collectif régional (PAGTCR)"]
[null,"17-Centre-du-Québec",null,null,null,"Santé et sécurité publique","Ajustements","2021-2022-2",{"$f":"50 & \" %\"","v":"50 %"},"Programme d'appui à la lutte contre les changements climatiques en agriculture (PALCCA)","Onglet Évaluation"]
[null,"Québec méridional",null,null,null,"Transports","Agriculture","2022-2023-1",{"$f":"60 & \" %\"","v":"60 %"},"Programme de biomasse forestière résiduelle","Type de document"]
[null,"À l'extérieur du Québec",null,null,null,"Autres","Aménagement du territoire","2022-2023-2",{"$f":"70 & \" %\"","v":"70 %"},"Programme de coopération climatique internationale (PCCI)","Cadre d'évaluation"]
[null,null,null,null,null,null,"Bâtiments et infrastructures","2023-2024-1",{"$f":"80 & \" %\"","v":"80 %"},"Programme de formation continue sur l'utilisation du bois dans la construction","Cadre de suivi d'évaluation préliminaire"]
[null,null,null,null,null,null,"Forêts","2023-2024-2",{"$f":"90 & \" %\"","v":"90 %"},"Programme de récupération et de valorisation des réfrigérateurs et congélateurs domestiques","Rapport d'évaluation"]
[null,"Onglet \"Description\"",null,null,null,null,"Industriel, commercial et institutionnel",null,{"$f":"100 & \" %\"","v":"100 %"},"Programme de soutien à la promotion de l'électrification des transports","Résultats"]
[null,"Clientèle","État d'avancement","Moyens","Finalité","COVID","Océan, fleuve ou cours d'eau",null,null,"Programme de soutien à la réalisation de projets de démonstration de taxis électriques"]
[null,"Citoyens","Nouvelle","Encadrement légal (politiques, stratégies, codes, réglementations, etc.)","Adaptation aux effets des changements climatiques","Aucun changement prévu","Politiques et gestion",null,null,"Programme de soutien à l'intégration de l'adaptation aux changements climatiques à la planification municipale (PIACC)","Type d'évaluation"]
[null,"Entreprises (grandes entreprises)","En cours","Innovation, recherche et développement","Réduction des émissions de gaz à effet de serre","Diminution des coûts prévus","Services à la population",null,null,"Programme de soutien au déploiement des autobus scolaires électriques au Québec","En cours d'action"]
[null,"Entreprises (petites ou moyennes entreprises)","Complétée","Réalisation (programmes et subventions favorisant l'exécution de solutions établies)","Réduction et adaptation","Augmentation des coûts prévus","Suivi de l'état de l'environnement",null,null,"Programme de soutien aux essais de fertilisation","Lorsque l'action est terminée"]
[null,"Établissements de recherche","Inactive","Sensibilisation, formation et promotion","Coordination","L'augmentation prévue du coûts des projets rend le budget 2013-2020 insuffisant pour garantir la réalisation de tous les projets entamés","Autres",null,null,"Programme de soutien aux municipalités dans la mise en place d'infrastructures de gestion durable des eaux de pluie à la source"]
[null,"Ministères et organismes gouvernementaux","Abandonnée",null,null,"moins d'un mois",null,null,null,"Programme de subventions à l’adaptation des taxis et des autocars interurbains pour le transport des personnes se déplaçant en fauteuil roulant"]
[null,"Municipalités et organismes municipaux",null,null,null,"de 1 à 6 mois",null,null,null,"Programme de traitement des matières organiques par biométhanisation et compostage (PTMOBC)","Recommandation"]
[null,"Organismes à but non lucratif",null,null,null,"de 7 à 12 mois",null,null,null,"Programme de vitrine technologique pour les bâtiments et les solutions innovantes en bois","Reconduire"]
[null,null,null,null,null,"plus de 12 mois",null,null,null,"Programme d'innovation en construction bois","Ne pas reconduire"]
[null,null,null,null,null,"Aucun changement","Risques",null,null,"Programme ÉcoPerformance","Voir commentaire ci-dessous"]
[null,null,null,null,null,"Retards prévus, mais les engagements seront tous pris avant le 31 décembre 2020","Biodiversité",null,null,"Programme Prime-Vert 2013-2018","Objectifs initiaux"]
[null,null,null,null,null,"Retards prévus et les engagements ne pourront pas tous être pris avant le 31 décembre 2020","Économie",null,null,"Programme Roulez vert","Oui"]
[null,null,null,null,null,"Les échéanciers pourront être devancés","Environnement",null,null,"Programme Technoclimat","Partiellement"]
[null,null,null,null,null,"Des cibles pourraient être atteintes avant les délais prévus","Ressources naturelles",null,null,"Programme visant à rendre les établissements d'enseignement écoresponsables","Non"]
[null,null,null,null,null,"Toutes les cibles devraient être atteintes dans les délais prévus","Santé et sécurité publique",null,null,"Programme visant la réduction des émissions de GES par le développement du transport intermodal (PREGTI)"]
[null,null,null,null,null,"Toutes les cibles devraient être atteintes avec certains retards","Services à la population",null,null,"Programme visant la réduction, la récupération et le recyclage des matières organiques du secteur des industries, commerces et institutions (ICI)"]
[]
[null,null,null,null,null,"Aucune cible ne pourra être atteinte",null,null,null,"Autre programme"]
[]
[]
[null,null,null,null,null,null,"Effets des changements climatiques"]
[null,null,null,null,null,null,"Dégradation d'écosystèmes"]
[null,null,null,null,null,null,"Dégradation du pergélisol"]
[null,null,null,null,null,null,"Intensification de l'érosion"]
[null,null,null,null,null,null,"Exacerbation des aléas naturels"]
[null,null,null,null,null,null,"Intensification des îlots de chaleur"]
[null,null,null,null,null,null,"Modifications des régimes hydriques, de vagues ou de glaces"]
[null,null,null,null,null,null,"Modifications des régimes de précipitations"]
[null,null,null,null,null,null,"Propagation de maladies ou d'espèces nuisibles"]
[null,null,null,null,null,null,"Qualité de l'air"]
[null,null,null,null,null,null,"Tous les effets"]
[null,null,null,null,null,null,"Autres"]
[]
[]
[]
[]
[]
[]
[]
[]
[]
[null,null,null,null,null,null,null,null,null,null,"Onglet de la fiche"]
[null,null,null,null,null,null,null,null,null,null,"Accueil"]
[null,null,null,null,null,null,null,null,null,null,"Administration"]
[null,null,null,null,null,null,null,null,null,null,"Description"]
[null,null,null,null,null,null,null,null,null,null,"Détail des projets"]
[null,null,null,null,null,null,null,null,null,null,"GES"]
[null,null,null,null,null,null,null,null,null,null,"Adaptation"]
[null,null,null,null,null,null,null,null,null,null,"Indicateurs"]
[null,null,null,null,null,null,null,null,null,null,"Commentaires"]
[]
[]
[]
[]
[]
[]
[]
[]
[]
[]
[]
[]
[]
[]
[]
[]
[]
[]
[]
[]
[]
[]
[]
[]
[]
[]
[]
[]
[]
[]
[]
[]
[]
[]
[]
[]
[]
[]
[]
[]
[]
[]
[]
[]
[]
[]
[]
[]
[]
[]
[]
[]
[]
[]
[]
[]
[]
[]
[]
[]
[]
[]
[]
[]
[]
[]
[]
[]
[]
[]
[]
[]
[]
[]
[]
[]
[]
[]
[]
[]
[]
[]
[]
[]
[]
[]
[]
[]
[]
[]
[]
[]
[]
[]
[]
[]
[]
[]
[]
[]
[]
[]
[]
[]
[]
[]
[]
[]
[]
[]
[]
[]
[]
[]
[]
[]
[]
[]
[]
[]
[]
[]
[]
[]
[]
[]
[]
[]
[]
[]
[]
[]
[]
[]
[]
[]
[null,"ONGLET INDICATEURS: Liste des statuts de l'action"]
[null,null,"2013-2014","2014-2015","2015-2016","2016-2017","2017-2018","2018-2019","2019-2020","2020-2021","2021-2022","2022-2023","2023-2024","2024-2025","2025-2026","2026-2027","2027-2028","2026-2029"]
[null,"Valeurs actuelles",{"$f":"IF(C228=$G$7,IF(Accueil!$D$58<>$C$239,Accueil!$D$58,IF(ISBLANK(C230),B230,C230)),C230)","v":"non démarrée"},{"$f":"IF(D228=$G$7,IF(Accueil!$D$58<>$C$239,Accueil!$D$58,IF(ISBLANK(D230),C230,D230)),D230)","v":"non démarrée"},{"$f":"IF(E228=$G$7,IF(Accueil!$D$58<>$C$239,Accueil!$D$58,IF(ISBLANK(E230),D230,E230)),E230)","v":"non démarrée"},{"$f":"IF(F228=$G$7,IF(Accueil!$D$58<>$C$239,Accueil!$D$58,IF(ISBLANK(F230),E230,F230)),F230)","v":"non démarrée"},{"$f":"IF(G228=$G$7,IF(Accueil!$D$58<>$C$239,Accueil!$D$58,IF(ISBLANK(G230),F230,G230)),G230)","v":"non démarrée"},{"$f":"IF(H228=$G$7,IF(Accueil!$D$58<>$C$239,Accueil!$D$58,IF(ISBLANK(H230),G230,H230)),H230)","v":"non démarrée"},{"$f":"IF(I228=$G$7,IF(Accueil!$D$58<>$C$239,Accueil!$D$58,IF(ISBLANK(I230),H230,I230)),I230)","v":"non démarrée"},{"$f":"IF(J228=$G$7,IF(Accueil!$D$58<>$C$239,Accueil!$D$58,IF(ISBLANK(J230),I230,J230)),J230)","v":"non démarrée"},{"$f":"IF(K228=$G$7,IF(Accueil!$D$58<>$C$239,Accueil!$D$58,IF(ISBLANK(K230),J230,K230)),K230)","v":"non démarrée"},{"$f":"IF(L228=$G$7,IF(Accueil!$D$58<>$C$239,Accueil!$D$58,IF(ISBLANK(L230),K230,L230)),L230)","v":"en cours"},{"$f":"IF(M228=$G$7,IF(Accueil!$D$58<>$C$239,Accueil!$D$58,IF(ISBLANK(M230),L230,M230)),M230)","v":0},{"$f":"IF(N228=$G$7,IF(Accueil!$D$58<>$C$239,Accueil!$D$58,IF(ISBLANK(N230),M230,N230)),N230)","v":0},{"$f":"IF(O228=$G$7,IF(Accueil!$D$58<>$C$239,Accueil!$D$58,IF(ISBLANK(O230),N230,O230)),O230)","v":0},{"$f":"IF(P228=$G$7,IF(Accueil!$D$58<>$C$239,Accueil!$D$58,IF(ISBLANK(P230),O230,P230)),P230)","v":0},{"$f":"IF(Q228=$G$7,IF(Accueil!$D$58<>$C$239,Accueil!$D$58,IF(ISBLANK(Q230),P230,Q230)),Q230)","v":0},{"$f":"IF(R228=$G$7,IF(Accueil!$D$58<>$C$239,Accueil!$D$58,IF(ISBLANK(R230),Q230,R230)),R230)","v":0}]
[null,"Valeurs précédentes","non démarrée","non démarrée","non démarrée","non démarrée","non démarrée","non démarrée","non démarrée","non démarrée","non démarrée"]
[]
[]
[null,"IdStatutAction","codeStatutAction","valeurStatutAction","rangStatut"]
[null,1,{"$f":"I18","v":"non démarrée"},0,1]
[null,2,{"$f":"I19","v":"en élaboration"},0,2]
[null,3,"en cours",0.5,3]
[null,4,"terminée",1,4]
[null,5,"en suspens",0,5]
[null,6,"Retirée du PACC",0,6]

{"sheet":"Accueil","index":1,"n_rows":85,"n_cols":11,"rows_kept":85,"cut":false,"hidden":false,"merged":[[84,1,84,12],[1,4,2,12],[67,1,67,2],[57,1,57,2],[31,1,31,9],[66,3,66,6],[66,8,66,9],[66,1,66,2],[65,3,65,6],[53,4,53,11],[53,1,53,2],[55,3,55,11],[64,3,64,6],[65,10,65,11],[64,10,64,11],[57,3,57,11],[66,10,66,11],[65,1,65,2],[65,8,65,9],[62,3,62,4],[64,1,64,2],[62,1,62,2],[58,3,58,11],[64,8,64,9],[58,1,58,2],[30,1,30,12],[55,1,55,2],[31,10,31,12],[51,1,51,2],[52,1,52,2],[54,4,54,11],[51,4,51,11],[52,4,52,11],[56,1,56,2],[56,3,56,10],[49,1,49,12],[4,1,5,12],[54,1,54,2],[29,1,29,12],[24,1,24,12],[22,1,22,12],[9,1,9,12],[26,1,26,12],[21,1,21,12],[16,1,16,12],[14,1,14,12],[15,1,15,12],[23,1,23,12],[25,1,25,12],[18,1,18,12],[20,1,20,11],[17,1,17,12],[69,0,71,0],[68,1,68,12],[71,10,71,11],[69,1,69,2],[71,8,71,9],[70,1,70,2],[71,1,71,2],[71,3,71,6],[69,10,69,11],[70,8,70,9],[69,3,69,6],[70,3,70,6],[69,8,69,9],[70,10,70,11],[13,1,13,2],[13,3,13,4],[28,1,28,12],[85,1,87,12],[72,1,72,2],[74,3,74,11],[74,1,74,2],[73,1,73,2],[76,11,76,12],[67,3,67,6],[73,3,73,11],[67,8,67,9],[67,10,67,11],[72,3,72,6],[72,8,72,9],[72,10,72,11]]}
[]
[null,null,null,null,"EXERCICE DE SUIVI DU PLAN D'ACTION 2013-2020 SUR LES CHANGEMENTS CLIMATIQUES"]
[]
[]
[]
[]
[]
[]
[]
[null,"Bienvenue dans votre fiche de suivi du FECC - Gestion des matières résiduelles"]
[]
[]
[]
[null,"Échéance de transmission :",null,"2022-06-14"]
[null,"Nouveautés pour l’exercice de suivi de mai 2020 "]
[null,"RAPPEL :"]
[null,"* Fin du PACC : Les conventions de subventions se rapportant aux engagements saisis à SAGIR sont maintenant signées."]
[null,"* Fin du PACC : Les projets réalisés à l'interne dans vos organisations doivent se terminer avant le 31 décembre 2022"]
[null,"* Fin du PACC : Vous devez compléter l'onglet Évaluation."]
[null,"Consignes générales :"]
[null,"→Les informations doivent correspondre à l'avancement de l'action en date du 31 mars 2022."]
[null,"→Assurez-vous de valider votre fiche (onglet Validation) avant de la transmettre à l’adresse suivante :  suivi.climatique@environnement.gouv.qc.ca"]
[null,"→Toute information confidentielle doit être saisie en bleu."]
[null,"→Conservez la fiche en format xlsm afin de pouvoir profiter des outils conviviaux."]
[null,"→La plupart des cellules contenant du texte sont limitées à 250 caractères."]
[]
[null,"→Copier-coller des informations à partir d’un document Word verrouille les cellules concernées. Pour pouvoir à nouveau écrire et modifier le  format de ces cellules, fermez et ouvrez à nouveau la fiche."]
[]
[null,"→Besoin d’assistance? Écrivez-nous à l’adresse suivante en précisant votre question et vos coordonnées : suivi.climatique@environnement.gouv.qc.ca"]
[]
[]
[null,null,null,null,null,null,null,null,null,null,"suivi.climatique@environnement.gouv.qc.ca"]
[]
[]
[]
[]
[]
[]
[]
[]
[]
[]
[]
[]
[]
[]
[]
[]
[]
[null,"Veuillez vérifier, corriger et compléter les informations ci-dessous :"]
[]
[null,"Priorité :",null,"13","Promouvoir le transport collectif et alternatif en améliorant l'offre, en développant les infrastructures et en facilitant les choix durables"]
[null,"Action :",null,"13.4","Programme d’aide financière au développement des transports actifs dans les périmètres urbains (TAPU) (FORT)"]
[null,"Sous-action :",null,13.4,"Programme d’aide financière au développement des transports actifs dans les périmètres urbains (TAPU) (FORT)"]
[null,"Libellé usuel :",null,"13.4","Programme d’aide financière au développement des transports actifs dans les périmètres urbains (TAPU) (FORT)"]
[null,"Programme :",null,"Programme d'aide financière au développement des transports actifs dans les périmètres urbains (TAPU)"]
[null,"Nom du programme :"]
[null,"Statut de l’action :",null,"en cours"]
[null,"Raison du statut de l’action :"]
[]
[]
[]
[null,"Informations en date du :",null,{"$f":"Utilitaire!G6","v":"2022-03-31"}]
[]
[null,"Ministère porteur :",null,"MTQ",null,null,null,null,"Direction responsable :",null,"Transport terrestre des personnes"]
[null,"Partenaires :",null,"S.O.",null,null,null,null,"Part de financement par le FECC :",null,"Variable"]
[null,"Budget 2013-2020 (M$) :",null,59,null,null,null,null,"Autres sources de financement :",null,"FORT (807)"]
[null,"Date de lancement de l’action :",null,"2013-10-15",null,null,null,null,"Date de fin de l’action :",null,"2023-03-31"]
[null,"Section réservée à l’usage exclusif du BECC (lignes 70 à 73 non publiées)"]
[null,"Chargé de projet :",null,"Roxanne Harton",null,null,null,null,"Tél. :",null,"418 646-0700 , poste 22971"]
[null,"Responsable ministériel :",null,"Raymond Jeudi",null,null,null,null,"Tél. :",null,"418 528-6416"]
[null,"Personne ressource pour le BECC :",null,"Isabelle Gattaz",null,null,null,null,"Tél. :",null,"(418) 646-0700 poste 23671"]
[null,"Estimation des sommes résiduelles au \n31 décembre 2020 ($) :",null,0,null,null,null,null,"Précisions sur le montant des sommes résiduelles :",null,"s"]
[null,"Téléphone pour informations :",null,"514 687-7227"]
[null,"Référence Web :",null,"https://www.transports.gouv.qc.ca/fr/aide-finan/municipalites/Pages/programme-developpement-transports-actifs.aspx"]
[]
[]
[]
[]
[]
[]
[]
[]
[]
[null,"Ministère des Transports"]

{"sheet":"Description","index":2,"n_rows":197,"n_cols":14,"rows_kept":197,"cut":false,"hidden":false,"merged":[[40,1,40,4],[40,5,40,8],[1,1,1,6],[18,1,18,2],[18,3,18,4],[18,5,18,14],[14,1,14,14],[15,1,15,2],[15,3,15,4],[15,5,15,14],[16,1,16,2],[16,3,16,4],[16,6,16,14],[17,1,17,2],[17,3,17,4],[17,6,17,14],[2,1,2,2],[3,2,3,6],[5,1,5,6],[1,8,1,9],[1,11,1,12],[1,13,1,14],[2,8,5,14],[4,1,4,2],[4,3,4,6],[53,2,53,6],[53,9,53,14],[41,1,41,14],[52,1,52,14],[53,7,53,8],[162,1,162,8],[162,9,162,11],[162,12,162,14],[158,1,158,8],[158,9,158,11],[158,12,158,14],[159,1,159,8],[159,9,159,11],[159,12,159,14],[156,1,156,8],[156,9,156,11],[156,12,156,14],[157,1,157,8],[157,9,157,11],[157,12,157,14],[154,1,154,8],[154,9,154,11],[154,12,154,14],[155,1,155,8],[163,1,163,8],[163,9,163,11],[163,12,163,14],[160,1,160,8],[160,9,160,11],[160,12,160,14],[161,1,161,8],[161,9,161,11],[161,12,161,14],[152,1,152,8],[152,9,152,11],[152,12,152,14],[153,1,153,8],[153,9,153,11],[153,12,153,14],[150,1,150,8],[150,9,150,11],[150,12,150,14],[151,1,151,8],[151,9,151,11],[151,12,151,14],[148,1,148,8],[148,9,148,11],[148,12,148,14],[149,1,149,8],[149,9,149,11],[149,12,149,14],[146,1,146,8],[146,9,146,11],[146,12,146,14],[147,1,147,8],[147,9,147,11],[147,12,147,14],[144,1,144,8],[144,9,144,11],[144,12,144,14],[145,1,145,8],[145,9,145,11],[145,12,145,14],[142,1,142,8],[142,9,142,11],[142,12,142,14],[143,1,143,8],[143,9,143,11],[143,12,143,14],[140,1,140,8],[140,9,140,11],[140,12,140,14],[141,1,141,8],[141,9,141,11],[141,12,141,14],[138,1,138,8],[138,9,138,11],[138,12,138,14],[139,1,139,8],[139,9,139,11],[139,12,139,14],[136,1,136,8],[136,9,136,11],[136,12,136,14],[137,1,137,8],[137,9,137,11],[137,12,137,14],[134,1,134,8],[134,9,134,11],[134,12,134,14],[135,1,135,8],[135,9,135,11],[135,12,135,14],[132,1,132,8],[132,9,132,11],[132,12,132,14],[133,1,133,8],[133,9,133,11],[133,12,133,14],[130,1,130,8],[130,9,130,11],[130,12,130,14],[131,1,131,8],[131,9,131,11],[131,12,131,14],[128,1,128,8],[128,9,128,11],[128,12,128,14],[129,1,129,8],[129,9,129,11],[129,12,129,14],[126,1,126,8],[126,9,126,11],[126,12,126,14],[127,1,127,8],[127,9,127,11],[127,12,127,14],[124,1,124,8],[124,9,124,11],[124,12,124,14],[125,1,125,8],[125,9,125,11],[125,12,125,14],[122,1,122,8],[122,9,122,11],[122,12,122,14],[123,1,123,8],[123,9,123,11],[123,12,123,14],[120,1,120,8],[120,9,120,11],[120,12,120,14],[121,1,121,8],[121,9,121,11],[121,12,121,14],[118,1,118,8],[118,9,118,11],[118,12,118,14],[119,1,119,8],[119,9,119,11],[119,12,119,14],[116,1,116,8],[116,9,116,11],[116,12,116,14],[117,1,117,8],[117,9,117,11],[117,12,117,14],[114,1,114,8],[114,9,114,11],[114,12,114,14],[115,1,115,8],[115,9,115,11],[115,12,115,14],[112,1,112,8],[112,9,112,11],[112,12,112,14],[113,1,113,8],[113,9,113,11],[113,12,113,14],[110,1,110,8],[110,9,110,11],[110,12,110,14],[111,1,111,8],[111,9,111,11],[111,12,111,14],[108,1,108,8],[108,9,108,11],[108,12,108,14],[109,1,109,8],[109,9,109,11],[109,12,109,14],[106,1,106,8],[106,9,106,11],[106,12,106,14],[107,1,107,8],[107,9,107,11],[107,12,107,14],[104,1,104,8],[104,9,104,11],[104,12,104,14],[105,1,105,8],[105,9,105,11],[105,12,105,14],[102,1,102,8],[102,9,102,11],[102,12,102,14],[103,1,103,8],[103,9,103,11],[103,12,103,14],[100,1,100,8],[100,9,100,11],[100,12,100,14],[101,1,101,8],[101,9,101,11],[101,12,101,14],[98,1,98,8],[98,9,98,11],[98,12,98,14],[99,1,99,8],[99,9,99,11],[99,12,99,14],[96,1,96,8],[96,9,96,11],[96,12,96,14],[97,1,97,8],[97,9,97,11],[97,12,97,14],[94,1,94,8],[94,9,94,11],[94,12,94,14],[95,1,95,8],[95,9,95,11],[95,12,95,14],[92,1,92,8],[92,9,92,11],[92,12,92,14],[93,1,93,8],[93,9,93,11],[93,12,93,14],[90,1,90,8],[90,9,90,11],[90,12,90,14],[91,1,91,8],[91,9,91,11],[91,12,91,14],[89,1,89,8],[89,9,89,11],[89,12,89,14],[86,1,86,8],[86,9,86,11],[86,12,86,14],[87,1,87,8],[87,9,87,11],[87,12,87,14],[85,1,85,8],[85,9,85,11],[85,12,85,14],[82,12,82,14],[83,1,83,8],[83,9,83,11],[83,12,83,14],[88,1,88,8],[88,9,88,11],[88,12,88,14],[81,1,81,8],[81,9,81,11],[81,12,81,14],[179,1,179,8],[179,9,179,11],[179,12,179,14],[176,1,176,8],[176,9,176,11],[176,12,176,14],[173,1,173,8],[173,9,173,11],[173,12,173,14],[174,1,174,8],[174,9,174,11],[174,12,174,14],[175,1,175,8],[175,9,175,11],[175,12,175,14],[171,1,171,8],[171,9,171,11],[171,12,171,14],[84,1,84,8],[84,9,84,11],[84,12,84,14],[180,1,180,8],[180,9,180,11],[180,12,180,14],[177,1,177,8],[177,9,177,11],[177,12,177,14],[178,1,178,8],[178,9,178,11],[178,12,178,14],[184,1,184,8],[184,9,184,11],[184,12,184,14],[181,1,181,8],[181,9,181,11],[181,12,181,14],[182,1,182,8],[182,9,182,11],[182,12,182,14],[183,1,183,8],[183,9,183,11],[183,12,183,14],[172,1,172,8],[172,9,172,11],[172,12,172,14],[169,1,169,8],[169,9,169,11],[169,12,169,14],[170,1,170,8],[170,9,170,11],[170,12,170,14],[167,1,167,8],[167,9,167,11],[167,12,167,14],[168,1,168,8],[168,9,168,11],[168,12,168,14],[165,1,165,8],[165,9,165,11],[165,12,165,14],[166,1,166,8],[166,9,166,11],[166,12,166,14],[164,1,164,8],[164,9,164,11],[164,12,164,14],[74,1,74,8],[74,9,74,11],[74,12,74,14],[75,1,75,8],[75,9,75,11],[75,12,75,14],[76,1,76,8],[76,9,76,11],[76,12,76,14],[77,1,77,8],[78,1,78,8],[78,9,78,11],[78,12,78,14],[79,1,79,8],[79,9,79,11],[79,12,79,14],[82,1,82,8],[82,9,82,11],[80,1,80,8],[80,9,80,11],[80,12,80,14],[70,1,70,8],[70,9,70,11],[70,12,70,14],[71,1,71,8],[71,9,71,11],[71,12,71,14],[73,1,73,8],[73,9,73,11],[73,12,73,14],[186,1,186,8],[187,1,187,8],[68,1,68,8],[68,9,68,11],[68,12,68,14],[69,1,69,8],[69,9,69,11],[69,12,69,14],[43,2,43,14],[46,2,46,14],[47,2,47,14],[48,2,48,14],[50,2,50,14],[67,1,67,8],[64,9,64,11],[65,9,65,11],[66,9,66,11],[63,12,63,14],[186,12,186,14],[187,12,187,14],[64,1,64,8],[65,1,65,8],[66,1,66,8],[72,1,72,8],[188,12,188,14],[63,9,63,11],[186,9,186,11],[187,9,187,11],[188,9,188,11],[67,12,67,14],[64,12,64,14],[65,12,65,14],[66,12,66,14],[77,9,77,11],[77,12,77,14],[67,9,67,11],[155,9,155,11],[155,12,155,14],[72,9,72,11],[72,12,72,14],[193,1,193,14],[49,2,49,14],[42,2,42,14],[44,1,45,1],[44,2,44,3],[44,4,44,5],[44,6,44,8],[44,9,44,11],[44,12,44,14],[45,2,45,3],[45,4,45,5],[45,6,45,8],[45,9,45,11],[45,12,45,14],[189,1,189,14],[188,1,188,8],[185,1,185,8],[185,9,185,11],[185,12,185,14],[61,1,61,14],[62,1,62,8],[62,9,62,11],[62,12,62,14],[63,1,63,8],[194,1,194,2],[201,1,201,2],[199,1,199,2],[198,1,198,2],[197,1,197,2],[196,1,196,2],[195,1,195,2],[196,13,196,14],[194,3,194,12],[194,13,194,14],[200,1,200,2],[200,3,200,12],[200,13,200,14],[201,3,201,12],[199,3,199,12],[198,3,198,12],[197,3,197,12],[196,3,196,12],[195,3,195,12],[201,13,201,14],[199,13,199,14],[198,13,198,14],[197,13,197,14],[195,13,195,14]]}
[]
[null,{"$f":"Utilitaire!E8","v":"Plan d'action 2013-2020 sur les changements climatiques"}]
[null,{"$f":"\"Action \" & Accueil!D58","v":"Action en cours"}]
[null,{"$f":"Accueil!D55","v":"13.4"},{"$f":"Accueil!E55","v":"Programme d’aide financière au développement des transports actifs dans les périmètres urbains (TAPU) (FORT)"}]
[null,"Ministère porteur :",null,{"$f":"Accueil!$D$65","v":"MTQ"}]
[null,"Description"]
[]
[]
[]
[]
[]
[]
[]
[]
[null,"Évaluation des effets de la COVID-19 sur la mise en œuvre de l'action"]
[null,"Résultats attendus : "]
[null,"Échéancier : "]
[null,"Sommes engagées \n(projets en cours) :"]
[null,"Autres : "]
[]
[]
[]
[]
[]
[]
[]
[]
[]
[]
[]
[]
[]
[]
[]
[]
[]
[]
[]
[]
[]
[null,"Informations en date du :",null,null,null,"2022-03-31"]
[null,"Informations générales"]
[null,"Description de l'action: ","Le programme Véloce II, volet 1 est terminé depuis le le 31 mars 2016. Il a été remplacé par le programme d'aide financière au développement des transports actifs dans les périmètres urbains (TAPU) qui est entré en vigueur le 27 février 2017 et a pris fin le 31 mars 2022. Ce programme propose des aides financières pour soutenir la réalisation de projets d'infrastructures cyclables et piétonnes présentés par les municipalités. Le programme prévoit une aide financière d'un maximum de 50 % des coûts des projets présentés."]
[null,"Objectif de l'action:","Les objectifs du programme sont :\n\n• soutenir l'effort municipal en vue d'un transfert modal vers les transports actifs;\n• développer des infrastructures favorisant les déplacements actifs, efficaces, sécuritaires et concurrentiels par rapport aux autres modes de transport en milieu urbain;\n• réduire les émissions de gaz à effet de serre causées par les déplacements des personnes.\n"]
[null,"Bénéficiaires : ","Municipalités et organismes municipaux",null,"Organismes à but non lucratif"]
[null,null,"Autres (précisez) : ",null,"Conseil d'arrondissement",null,"Les MRC (municipalités régionale de comté)",null,null,"Conseil d'arrondissement ou conseil d'agglomération"]
[null,"Critères d'admissibilité : ","Pour être admissible, le projet doit être entièrement localisé à l'intérieur d'un périmètre d'urbanisation défini conformément à la Loi sur l'aménagement et de développement ou au plan métropolitain, ou permettre de relier entre eux deux périmètres d'urbanisation de telle sorte que le projet constitue un lien direct favorisant les déplacements actifs à l'intérieur du territoire d'une même municipalité. "]
[null,"Processus de suivi de l'action :","Comme il s'agit d'un programme d'infrastructure, cette action peut être suivie par la constatation des travaux réalisés qui ont fait l'objet d'un engagement. Outre la constatation des travaux réalisés, la lettre d'engagement prévoit la possibilité, pour le Ministère, d'exiger des comptages pour constater le niveau d'utilisation de la nouvelle infrastructure mise en place par la municipalité."]
[null,"Résultats et co-bénéfices attendus :","Les résultats escomptés sont d'augmenter l'offre en transport actif, notamment en augmentant le nombre de kilomètres de voies cyclables et piétonnes reliant les principales destinations d'une municipalité et offrant des conditions de circulation agréables et sécuritaires pour les cyclistes. Pour chaque investissement en infrastructure de transport actif, les bénéfices sont directs puisque chaque déplacement actif est un déplacement n'émettant aucun gaz à effet de serre.\n\nLes résultats attendus sont la réalisation de 50 km de voies cyclables par année, de 10 projets d'apaisement de la circulation dans les corridors scolaires et de 8 aménagements cyclables ou polyvalent sur structures.\n"]
[null,"Résultats et co-bénéfices obtenus dans la dernière année :","2021-2022\n1. Longueur des voies cyclables et piétionnes financées: 50 KM\n2. Nombre de projets d'apaisement de la circulation dans les corridors scolaires financés: 33\n3. Nombre de structures financées: 6\n4. Pourcentage des adultes utilisant la bicyclette au moins une fois par semaine: non disponible pour le moment\n5. Pourcentage des cyclistes utilisant la bicyclette à des fins utilitaires:  non disponible pour le moment "]
[null,"Résultats et co-bénéfices obtenus depuis le lancement de l'action :","Depuis 2013-2014\n1. Longueur des voies cyclables et piétionnes financées: 336,44 KM\n2. Nombre de projets d'apaisement de la circulation dans les corridors scolaires financés: 124\n3. Nombre de structures financées: 34\n4. Pourcentage des adultes utilisant la bicyclette au moins une fois par semaine: non disponible pour le moment \n5. Pourcentage des cyclistes utilisant la bicyclette à des fins utilitaires:  non disponible pour le moment"]
[]
[null,"Classification"]
[null,"Finalité :","Réduction des émissions de gaz à effet de serre",null,null,null,null,"Moyen :",null,"Réalisation (programmes et subventions favorisant l'exécution de solutions établies)"]
[]
[]
[]
[]
[]
[]
[]
[null,"Mise en œuvre "]
[null,"Étapes (depuis le début de l'action)",null,null,null,null,null,null,null,"Échéancier",null,null,"État d'avancement"]
[1,"Mise en opération du Programme d'aide financière au développement des transports actifs dans les périmètres urbains (TAPU) (2017-2019)",null,null,null,null,null,null,null,"2017-04-10",null,null,"Complétée"]
[2,"Mise en opération du Programme d'aide financière au développement des transports actifs dans les périmètres urbains (TAPU) (2019-2023)",null,null,null,null,null,null,null,"2019-07-01",null,null,"En cours"]
[3]
[4]
[5]
[6]
[]
[8]
[9]
[]
[]
[]
[]
[]
[]
[]
[]
[]
[]
[]
[]
[]
[]
[]
[]
[]
[]
[]
[]
[]
[]
[]
[]
[]
[]
[]
[]
[]
[]
[]
[]
[]
[]
[]
[]
[]
[]
[]
[]
[]
[]
[]
[]
[]
[]
[]
[]
[]
[]
[]
[]
[]
[]
[]
[]
[]
[]
[]
[]
[]
[]
[]
[]
[]
[]
[]
[]
[]
[]
[]
[]
[]
[]
[]
[]
[]
[]
[]
[]
[]
[]
[]
[]
[]
[]
[]
[]
[]
[]
[]
[]
[]
[]
[]
[]
[]
[]
[]
[]
[]
[]
[]
[]
[]
[]
[]
[]
[]
[]
[]
[]
[]
[]
[]
[]
[]
[null,"Ajouter une ligne"]
[]
[]
[]
[null,"Plans, stratégies ou politiques incluant la mise en œuvre de cette action"]
[null,"Abréviation",null,"Nom complet",null,null,null,null,null,null,null,null,null,"Numéro de mesure"]
[null,"PMD 2030",null,"Plan de mobilité durable 2030 Cadre d'intervention en transport actif"]
[null,"PACC 2013-2020",null,"Plan d'action 2013-20250 sur les changements climatiques",null,null,null,null,null,null,null,null,null,"13.4"]

{"sheet":"Détail des projets","index":3,"n_rows":378,"n_cols":28,"rows_kept":378,"cut":false,"hidden":false,"merged":[[14,1,14,4],[21,1,21,6],[22,2,23,2],[22,5,23,5],[375,1,375,4],[22,4,23,4],[22,1,23,1],[22,3,23,3],[374,1,374,9],[22,6,23,6],[22,7,23,7],[22,26,23,26],[18,3,18,5],[18,6,18,8],[22,10,23,10],[377,1,377,4],[376,1,376,4],[21,14,21,25],[22,13,23,13],[22,12,23,12],[1,1,1,6],[1,8,1,10],[1,25,1,27],[2,8,5,27],[1,22,1,24],[3,2,3,6],[2,1,2,2],[5,1,5,6],[4,2,4,6],[22,9,23,9],[22,8,23,8],[22,27,23,27],[22,11,23,11]]}
[]
[null,{"$f":"Utilitaire!E8","v":"Plan d'action 2013-2020 sur les changements climatiques"}]
[null,{"$f":"\"Action \" & Accueil!D58","v":"Action en cours"}]
[null,{"$f":"Accueil!D55","v":"13.4"},{"$f":"Accueil!E55","v":"Programme d’aide financière au développement des transports actifs dans les périmètres urbains (TAPU) (FORT)"}]
[null,"Ministère porteur :",{"$f":"Accueil!$D$65","v":"MTQ"}]
[null,"Détails et prévisions des dépenses par projet"]
[]
[]
[]
[]
[]
[]
[]
[]
[]
[]
[]
[]
[null,null,null,"Informations en date du :",null,null,"2022-03-31"]
[]
[]
[null,"DÉTAILS DES PROJETS AUTORISÉS",null,null,null,null,null,null,null,null,null,null,null,null,"MONTANTS PROVENANT DU FECC ($)",null,null,null,null,null,null,null,null,null,null,null,{"$f":"MONTH(#REF!)","v":{"$error":"#REF!"}}]
["No","Nom du projet","Nom du requérant ou du bénéficiaire","Volet ou thématique","Catégorie","Nombre de projets","Région administrative","Municipalité","Statut","Classification du projet","Montant engagé ($)","Date de l'engagement","Date du dernier versement","Budget total du projet ($)","2013-2014","2014-2015","2015-2016","2016-2017","2017-2018","2018-2019","2019-2020","2020-2021","2021-2022","2022-2023","2023-2024","2024-2025","MONTANT DES DÉPENSES RÉELLES ($)","TOTAL DES DÉPENSES RÉELLES ET PRÉVUES ($)"]
[null,null,null,null,null,null,null,null,null,null,"(convention signée, contrat, lettre de confirmation du ministre ou de son représentant ou lettre d'octroi)",null,null,null,"Réel","Réel","Réel","Réel","Réel","Réel","Réel","Réel","Réel","Prévu","Prévu","Prévu"]
[1,"Paserelle Normandie","Ville de Longueuil","Transport actif TAPU 2017-2019","Transports",1,"16-Montérégie","Longueuil","AC-Actif","SU-Subvention",1000000,"2018-03-31","2018-03-31",13579000,null,null,null,null,1000000,null,null,null,null,null,null,null,{"$f":"SUM(O25:W25)","v":1000000},{"$f":"SUM(O25:Z25)","v":1000000}]
[2,"Piste de la rue Sicotte","Ville de Saint-Hyacinthe","Transport actif (volet 1)","Transports",1,"16-Montérégie","Saint-Hyacinthe","TE-Terminé","SU-Subvention",54230,"2018-03-31","2018-03-31",108460,null,null,null,null,54230,null,null,null,null,null,null,null,{"$f":"SUM(O26:W26)","v":54230},{"$f":"SUM(O26:Z26)","v":54230}]
[3,"Piste de la rue Laurier","Ville de Gatineau","Transport actif (volet 1)","Transports",1,"07-Outaouais","Gatineau","TE-Terminé","SU-Subvention",293378,"2018-03-31","2018-03-31",614386,null,null,null,null,288542,-4835.62,null,null,null,null,null,null,{"$f":"SUM(O27:W27)","v":283706.38},{"$f":"SUM(O27:Z27)","v":283706.38}]
[4,"Lien A-20 Saint-Rédempteur","Ville de Lévis","Transport actif (volet 1)","Transports",1,"12-Chaudières-Appalaches","Lévis","TE-Terminé","SU-Subvention",100000,"2018-03-31","2018-03-31",200000,null,null,null,null,50000,50000,null,null,null,null,null,null,{"$f":"SUM(O28:W28)","v":100000},{"$f":"SUM(O28:Z28)","v":100000}]
[5,"1317 Langelier","Ville de Montréal","Transport actif (volet 1)","Transports",1,"06-Montréal","Montréal","AC-Actif","SU-Subvention",300000,"2018-03-31","2018-03-31",1392286,null,null,null,null,300000,null,null,null,null,null,null,null,300000,300000]
[6,"3e Avenue","Ville de Québec","Transport actif (volet 1)","Transports",1,"03-Capitale-Nationale","Québec","TE-Terminé","SU-Subvention",46765,"2018-03-31","2018-03-31",303208.13,null,null,null,null,0,46765,null,0,null,null,null,null,46765,46765]
[7,"1508 Desjardins","Ville de Montréal","Transport actif (volet 1)","Transports",1,"06-Montréal","Montréal","AC-Actif","SU-Subvention",552170,"2018-03-31","2018-03-31",1192984,null,null,null,null,552170,null,null,null,null,null,null,null,552170,552170]
[8,"Arr. Plateau Mont-Royan (école Saint-Pierre-Claver)","Ville de Montréal","Transport actif (volet 1)","Transports",1,"06-Montréal","Montréal","AC-Actif","SU-Subvention",250000,"2018-03-31","2018-03-31",867077.03,null,null,null,null,250000,null,null,null,null,null,null,null,250000,250000]
[9,"École primaire","Municipalité de Boischatel","Transport actif (volet 1)","Transports",1,"03-Capitale-Nationale","Boischatel","TE-Terminé","SU-Subvention",32762,"2018-03-31","2018-03-31",65524,null,null,null,null,0,32762,null,0,null,null,null,null,32762,32762]
[10,"Piste bidirectionnelle asphaltée","Ville de Rouyn-Noranda","Transport actif (volet 1)","Transports",1,"08-Abitibi-Témiscamingue","Rouyn-Noranda","TE-Terminé","SU-Subvention",72500,"2018-03-31","2018-03-31",145000,null,null,null,null,72500,null,-21155,null,null,null,null,null,51345,51345]
[11,"Piste Jean-de-Brébeuf","Ville de Drummondville","Transport actif (volet 1)","Transports",1,"17-Centre-du-Québec","Drummondville","TE-Terminé","SU-Subvention",94400,"2018-03-31","2018-03-31",188800,null,null,null,null,94400,null,null,null,null,null,null,null,94400,94400]
[12,"Portion urbaine de la piste dans Beauceville","MRC de Robert-Cliche","Transport actif (volet 1)","Transports",1,"12-Chaudières-Appalaches","Beauceville","TE-Terminé","SU-Subvention",1000000,"2018-03-31","2018-03-31",2615764,null,null,null,null,500000,500000,null,null,282650,null,null,null,1282650,1282650]
[13,"0849 Cardinal","Ville de Montréal","Transport actif (volet 1)","Transports",1,"06-Montréal","Montréal","AC-Actif","SU-Subvention",1000000,"2018-03-31","2018-03-31",3269150,null,null,null,null,1000000,null,null,null,null,null,null,null,1000000,1000000]
[14,"Piste campus UQTR","Ville de Drummondville (piste campus UQTR)","Transport actif (volet 1)","Transports",1,"17-Centre-du-Québec","Drummondville","AC-Actif","SU-Subvention",41012.25,"2018-03-31","2018-03-31",82025,null,null,null,null,41012.25,null,null,null,null,null,null,null,41012.25,41012.25]
[15,"Supports à vélo","Ville de Québec (supports à vélo)","Transport actif (volet 1)","Transports",1,"03-Capitale-Nationale","Québec","TE-Terminé","SU-Subvention",11181.12,"2018-03-31","2018-03-31",24489.66,null,null,null,null,0,11181.12,null,0,null,null,null,null,11181.12,11181.12]
[16,"Sécurisatin des déplacements actifs dans le village","Municipalité de Saint-Thomas","Transport actif (volet 1)","Transports",1,"14-Lanaudière","Saint-Thomas","TE-Terminé","SU-Subvention",3361,"2018-03-31","2018-03-31",10649.72,null,null,null,null,3361,-558.46,null,null,null,null,null,null,2802.54,2802.54]
[17,"Rivière Aulneuse Saint-Nicolas","Ville de Lévis (rivière Aulneuse Saint-Nicolas)","Transport actif (volet 1)","Transports",1,"12-Chaudières-Appalaches","Lévis","AC-Actif","SU-Subvention",5000,"2018-03-31","2018-03-31",200000,null,null,null,null,2500,2500,null,null,null,null,null,null,5000,5000]
[18,"Apaisement de la circulation 6e Avenue et 9e Rue","Ville de La Pocatière","Transport actif (volet 1)","Transports",1,"01-Bas-Saint-Laurent","La Pocatière","TE-Terminé","SU-Subvention",140000,"2018-02-09","2018-03-31",297150,null,null,null,null,140000,null,null,null,null,null,null,null,140000,140000]
[19,"Ville de Gatineau","Ville de Gatineau","Transport actif (volet 1)","Transports",1,"07-Outaouais","Gatineau","TE-Terminé","SU-Subvention",180967,"2016-06-14","2016-06-14",361935,null,null,180967,-35162.17,null,null,null,null,null,null,null,null,145804.83000000002,{"$f":"SUM(O43:Z43)","v":145804.83000000002}]
[20,"Bande cyclable rue Principale","Municipalité de Saint-Amable","Transport actif (volet 1)","Transports",1,"16-Montérégie","Saint-Amable","TE-Terminé","SU-Subvention",22500,"2015-11-17","2015-12-01",45000,null,null,22500,null,null,null,null,null,null,null,null,null,22500,{"$f":"SUM(O44:Z44)","v":22500}]
[21,"Promenade rivière Saint-François","Ville de Drummondville","Transport actif (volet 1)","Transports",1,"17-Centre-du-Québec","Drummondville","TE-Terminé","SU-Subvention",1000000,"2015-11-12","2015-12-01",8318204,null,null,500000,null,0,500000,null,null,null,null,null,null,1000000,{"$f":"SUM(O45:Z45)","v":1000000}]
[22,"Avenue Legendre","Ville de Québec","Transport actif (volet 1)","Transports",1,"03-Capitale-Nationale","Québec","TE-Terminé","SU-Subvention",108378,"2015-10-21","2016-04-28",229243,null,null,108378,-21893.08,null,null,null,null,null,null,null,null,86484.92,{"$f":"SUM(O46:Z46)","v":86484.92}]
[23,"Rue Bourdages","Ville de Québec","Transport actif (volet 1)","Transports",1,"03-Capitale-Nationale","Québec","TE-Terminé","SU-Subvention",970000,"2015-10-21","2015-12-01",2743413,null,null,970000,null,null,null,null,null,null,null,null,null,970000,{"$f":"SUM(O47:Z47)","v":970000}]
[24,"Passerelle","Ville de Québec (rue Soumande)","Transport actif (volet 1)","Transports",1,"03-Capitale-Nationale","Québec","TE-Terminé","SU-Subvention",960000,"2015-10-21","2015-12-01",2346888,null,null,960000,null,null,null,null,null,null,null,null,null,960000,{"$f":"SUM(O48:Z48)","v":960000}]
[25,"Rotue 116 - Train de banlieue","Saint-Basile-le-Grand","Transport actif (volet 1)","Transports",1,"16-Montérégie","Saint-Basile-le-Grand","TE-Terminé","SU-Subvention",30000,"2015-09-08","2016-08-26",60000,null,null,15000,15000,null,null,null,null,null,null,null,null,30000,{"$f":"SUM(O49:Z49)","v":30000}]
[26,"Piste école secondaire/route 132","Ville de Montmagny","Transport actif (volet 1)","Transports",1,"01-Bas-Saint-Laurent","Montmagny","TE-Terminé","SU-Subvention",243875,"2015-09-04","2017-01-17",671490,null,null,204674.37,29793.24,null,null,null,null,null,null,null,null,234467.61,{"$f":"SUM(O50:Z50)","v":234467.61}]
[27,"Piste cyclable écoles primaire et secondaire","Municipalité de Saint-Rémi","Transport actif (volet 1)","Transports",1,"16-Montérégie","Saint-Rémi","TE-Terminé","SU-Subvention",50000,"2015-09-04","2016-11-17",100000,null,null,25000,25000,null,null,null,null,null,null,null,null,50000,{"$f":"SUM(O51:Z51)","v":50000}]
[28,"Lien Pincourt-Île-Perrot","Ville de Pincourt","Transport actif (volet 1)","Transports",1,"16-Montérégie","Pincourt","TE-Terminé","SU-Subvention",46916,"2015-09-04","2016-08-24",166626,null,null,46916,null,null,null,null,null,null,null,null,null,{"$f":"SUM(O52:W52)","v":46916},{"$f":"SUM(O52:Z52)","v":46916}]
[29,"Supports à vélo","Arrondissement Saint-Laurent","Transport actif (volet 1)","Transports",1,"06-Montréal","Montréal","TE-Terminé","SU-Subvention",35631,"2015-09-03","2015-10-01",75848,null,null,35631,null,null,null,null,null,null,null,null,null,{"$f":"SUM(O53:W53)","v":35631},{"$f":"SUM(O53:Z53)","v":35631}]
[30,"Piste cyclable en milieu urbain","Municipalité de Havre-Saint-Pierre","Transport actif (volet 1)","Transports",1,"09-Côte-Nord","Havre-Saint-Pierre","TE-Terminé","SU-Subvention",124108,"2015-09-03","2015-10-01",248217,null,null,124108,null,null,null,null,null,null,null,null,null,{"$f":"SUM(O54:W54)","v":124108},{"$f":"SUM(O54:Z54)","v":124108}]
[31,"Piste cyclable Rivière-au-Renard","Groupe Beau-Village Rivière-au-Renard","Transport actif (volet 1)","Transports",1,"11-Gaspésie-Iles-de-la-Madeleine","Rivière-au-Renard","TE-Terminé","SU-Subvention",23000,"2015-09-03","2017-03-16",50755,null,null,11500,11500,null,null,null,null,null,null,null,null,{"$f":"SUM(O55:W55)","v":23000},{"$f":"SUM(O55:Z55)","v":23000}]
[32,"Rue des Vétérans","Rimouski","Transport actif (volet 1)","Transports",1,"11-Gaspésie-Iles-de-la-Madeleine","Rimouski","TE-Terminé","SU-Subvention",25000,"2015-09-03","2017-01-13",50000,null,null,12500,8077.8,null,null,null,null,null,null,null,null,{"$f":"SUM(O56:W56)","v":20577.8},{"$f":"SUM(O56:Z56)","v":20577.8}]
[33,"Piste cyclable en milieu urbain","Ville de Richelieu","Transport actif (volet 1)","Transports",1,"16-Montérégie","Richelieu","TE-Terminé","SU-Subvention",24063,"2015-09-02","2017-01-24",314875,null,null,24063,null,null,null,null,null,null,null,null,null,{"$f":"SUM(O57:W57)","v":24063},{"$f":"SUM(O57:Z57)","v":24063}]
[34,"Piste cyclable en milieu urbain","Municipalité de Rigaud","Transport actif (volet 1)","Transports",1,"16-Montérégie","Rigaud","AN-Annulé","SU-Subvention",122898,"2015-09-01","2015-10-01",245797,null,null,61449,null,0,61449,null,null,null,null,null,null,{"$f":"SUM(O58:W58)","v":122898},{"$f":"SUM(O58:Z58)","v":122898}]
[35,"Rue Jacques-Cartier","Ville de Gatineau","Transport actif (volet 1)","Transports",1,"07-Outaouais","Gatineau","TE-Terminé","SU-Subvention",536428,"2015-08-20","2015-10-01",1702486,null,null,429143,null,107285,null,null,null,null,null,null,null,{"$f":"SUM(O59:W59)","v":536428},{"$f":"SUM(O59:Z59)","v":536428}]
[36,"#944 Ste-Croix","Ville de Montréal","Transport actif (volet 1)","Transports",1,"06-Montréal","Montréal","AC-Actif","SU-Subvention",198000,"2015-08-20","2015-10-01",928000,null,null,198000,null,null,null,null,null,null,null,null,null,{"$f":"SUM(O60:W60)","v":198000},{"$f":"SUM(O60:Z60)","v":198000}]
[37,"Corridor scolaire rues Réjean et Caron","Saint-Joseph-du-Lac","Transport actif (volet 1)","Transports",1,"15-Laurentides","Saint-Joseph-du-Lac","TE-Terminé","SU-Subvention",239838,"2015-08-20","2015-10-01",622460,null,null,239838,null,null,null,null,null,null,null,null,null,{"$f":"SUM(O61:W61)","v":239838},{"$f":"SUM(O61:Z61)","v":239838}]
[38,"École Saint-Jean-de-la-Lande","Arrondissement Rosemont-La Petite-Patrie","Transport actif (volet 1)","Transports",1,"06-Montréal","Montréal","AC-Actif","SU-Subvention",249823,"2015-08-20","2015-10-01",514646,null,null,124911.5,null,124911,null,null,null,null,null,null,null,{"$f":"SUM(O62:W62)","v":249822.5},{"$f":"SUM(O62:Z62)","v":249822.5}]
[39,"École Saint-Albert-Le-Grand","Arrondissement Rosemont-La Petite-Patrie","Transport actif (volet 1)","Transports",1,"06-Montréal","Montréal","AC-Actif","SU-Subvention",250000,"2015-08-20","2015-10-01",777040,null,null,125000,null,125000,null,null,null,null,null,null,null,{"$f":"SUM(O63:W63)","v":250000},{"$f":"SUM(O63:Z63)","v":250000}]
[40,"École Saint-Louis-de-Gonzague","Arrondissement Le Plateau-Mont-Royal","Transport actif (volet 1)","Transports",1,"06-Montréal","Montréal","AC-Actif","SU-Subvention",133677,"2015-08-20","2015-10-01",267355,null,null,66838.5,null,66839,null,null,null,null,null,null,null,{"$f":"SUM(O64:W64)","v":133677.5},{"$f":"SUM(O64:Z64)","v":133677.5}]
[41,"Prolongement Trans-Terrebonne","Ville de Terrebonne","Transport actif (volet 1)","Transports",1,"14-Lanaudière","Terrebonne","AC-Actif","SU-Subvention",920000,"2015-08-20","2019-12-31",6806700,null,null,754400,110400,0,460000,null,null,null,null,null,null,{"$f":"SUM(O65:W65)","v":1324800},{"$f":"SUM(O65:Z65)","v":1324800}]
[42,"#1211 De Marseille","Ville de Montréal","Transport actif (volet 1)","Transports",1,"06-Montréal","Montréal","AC-Actif","SU-Subvention",95000,"2015-08-20","2015-10-01",190000,null,null,47500,null,47500,null,null,null,null,null,null,null,{"$f":"SUM(O66:W66)","v":95000},{"$f":"SUM(O66:Z66)","v":95000}]
[43,"Pistes cyclables sur rue","Beauharnois","Transport actif (volet 1)","Transports",1,"16-Montérégie","Beauharnois","AC-Actif","SU-Subvention",253545,"2015-08-20","2015-10-01",1140000,null,null,253545,null,null,null,null,null,null,null,null,null,{"$f":"SUM(O67:W67)","v":253545},{"$f":"SUM(O67:Z67)","v":253545}]
[44,"École Lanaudière","Arrorndissement Le Plateau-Mont-Royal","Transport actif (volet 1)","Transports",1,"06-Montréal","Montréal","AC-Actif","SU-Subvention",126537,"2015-08-20","2015-10-01",253075,null,null,63268.5,null,63269,null,null,null,null,null,null,null,{"$f":"SUM(O68:W68)","v":126537.5},{"$f":"SUM(O68:Z68)","v":126537.5}]
[45,"#1313 Dudemaine","Ville de Montréal","Transport actif (volet 1)","Transports",1,"06-Montréal","Montréal","AC-Actif","SU-Subvention",88600,"2015-08-20","2015-10-01",177200,null,null,88600,null,null,null,null,null,null,null,null,null,{"$f":"SUM(O69:W69)","v":88600},{"$f":"SUM(O69:Z69)","v":88600}]
[46,"École Saint-Pierre-Claver","Arrondissement Le Plateau-Mont-Royal\n(École Saint-Pierre-Claver)","Transport actif (volet 1)","Transports",1,"06-Montréal","Montréal","AC-Actif","SU-Subvention",40787,"2015-08-20","2015-10-01",81574,null,null,20393.5,null,20394,null,null,null,null,null,null,null,{"$f":"SUM(O70:W70)","v":40787.5},{"$f":"SUM(O70:Z70)","v":40787.5}]
[47,"École Nesbit","Arrondissement Rosemont-La Petite-Patrie\n(École Nesbitt)","Transport actif (volet 1)","Transports",1,"06-Montréal","Montréal","AC-Actif","SU-Subvention",132247,"2015-08-20","2015-10-01",264494,null,null,66123.5,null,66124,null,null,null,null,null,null,null,{"$f":"SUM(O71:W71)","v":132247.5},{"$f":"SUM(O71:Z71)","v":132247.5}]
[48,"École Au-Pied-de-la-Montagne","Arrondissement Le Plateau-Mont-Royal\n(École Au Pied de la Montagne)","Transport actif (volet 1)","Transports",1,"06-Montréal","Montréal","AC-Actif","SU-Subvention",178163,"2015-08-20","2015-10-01",356327,null,null,178163,null,null,null,null,null,null,null,null,null,{"$f":"SUM(O72:W72)","v":178163},{"$f":"SUM(O72:Z72)","v":178163}]
[49,"Piste cyclable en milieu urbain","Ville de Waterville","Transport actif (volet 1)","Transports",1,"05-Estrie","Waterville","TE-Terminé","SU-Subvention",4000,"2015-08-20","2015-10-01",12000,null,null,4000,null,null,null,null,null,null,null,null,null,{"$f":"SUM(O73:W73)","v":4000},{"$f":"SUM(O73:Z73)","v":4000}]
[50,"Boulevard Chevrier","Ville de Brossard","Transport actif (volet 1)","Transports",1,"16-Montérégie","Brossard","TE-Terminé","SU-Subvention",84000,"2015-08-15","2015-10-01",168000,null,null,42000,null,55200,-55200,null,null,null,null,null,null,{"$f":"SUM(O74:W74)","v":42000},{"$f":"SUM(O74:Z74)","v":42000}]
[51,"Boulevard Jacques-Cartier","Ville de Longueuil","Transport actif (volet 1)","Transports",1,"16-Montérégie","Longueuil","TE-Terminé","SU-Subvention",94000,"2014-12-04","2014-12-30",294000,null,94000,null,null,null,null,null,null,null,null,null,null,{"$f":"SUM(O75:W75)","v":94000},{"$f":"SUM(O75:Z75)","v":94000}]
[52,"Sentier pour désenclavement","Ville de Lac-Mégantic","Transport actif (volet 1)","Transports",1,"05-Estrie","Lac-Mégantic","TE-Terminé","SU-Subvention",108021.5,"2014-12-04","2014-12-30",497743,null,76695.27,31326.240000000002,null,null,null,null,null,null,null,null,null,{"$f":"SUM(O76:W76)","v":108021.51000000001},{"$f":"SUM(O76:Z76)","v":108021.51000000001}]
[53,"12e Avenue","Ville de Shawinigan","Transport actif (volet 1)","Transports",1,"04-Mauricie ","Shawinigan","TE-Terminé","SU-Subvention",470000,"2014-11-24","2017-03-28",2900000,null,235000,null,235000,null,null,null,null,null,null,null,null,{"$f":"SUM(O77:W77)","v":470000},{"$f":"SUM(O77:Z77)","v":470000}]
[54,"Apaisement de la circulation, écoles Rose-des-Vents, St-Jean-Vianney, Ste-Anne et Madeleine-de-Verchères","Ville de Montréal - Rosemon Petite-Patrie","Transport actif (volet 1)","Transports",4,"06-Montréal","Montréal","AC-Actif","SU-Subvention",560235,"2014-11-24","2014-12-11",1354622,null,280117.5,103617.98,null,176500,null,null,null,null,null,null,null,{"$f":"SUM(O78:W78)","v":560235.48},{"$f":"SUM(O78:Z78)","v":560235.48}]
[55,"Notre-Dame-Est","Ville de Victoriaville","Transport actif (volet 1)","Transports",1,"17-Centre-du-Québec","Victoriaville","TE-Terminé","SU-Subvention",616360,"2014-11-24","2014-12-30",1232720,null,602724,null,null,null,-105921.96,null,-294544,null,null,null,null,{"$f":"SUM(O79:W79)","v":202258.03999999998},{"$f":"SUM(O79:Z79)","v":202258.03999999998}]
[56,"Stationnements vélo","Municipalité de St-Liboire","Transport actif (volet 1)","Transports",1,"16-Montérégie","Saint-Liboire","TE-Terminé","SU-Subvention",2931.07,"2014-11-24","2014-12-17",5860,null,1465,1028.24,null,0,null,null,null,null,null,null,null,{"$f":"SUM(O80:W80)","v":2493.2399999999998},{"$f":"SUM(O80:Z80)","v":2493.2399999999998}]
[57,"Lac-des-Sables","Sainte-Agathe-des-Monts","Transport actif (volet 1)","Transports",1,"15-Laurentides","Sainte-Agathe-des-Monts","TE-Terminé","SU-Subvention",225000,"2014-11-13","2016-02-17",1102465,null,112500,112500,-1935,null,null,null,null,null,null,null,null,{"$f":"SUM(O81:W81)","v":223065},{"$f":"SUM(O81:Z81)","v":223065}]
[58,"Piste dans le village","Municipalité de Petite-Rivière-Saint-François","Transport actif (volet 1)","Transports",1,"03-Capitale-Nationale","Petite-Rivière-Saint-François","TE-Terminé","SU-Subvention",209745,"2014-11-06","2014-12-26",444828,null,109873,null,null,0,null,null,83943,null,null,null,null,{"$f":"SUM(O82:W82)","v":193816},{"$f":"SUM(O82:Z82)","v":193816}]
[59,"Boulevard Laflèche","Ville de Baie-Comeau","Transport actif (volet 1)","Transports",1,"09-Côte-Nord","Baie-Comeau","AC-Actif","SU-Subvention",197000,"2014-10-21","2014-12-11",594000,null,98500,98500,null,null,null,null,null,null,null,null,null,{"$f":"SUM(O83:W83)","v":197000},{"$f":"SUM(O83:Z83)","v":197000}]
[60,"Vieux-Verchères","Ville de Verchères","Transport actif (volet 1)","Transports",1,"16-Montérégie","Verchères","TE-Terminé","SU-Subvention",216717,"2014-10-21","2016-10-19",433435,null,108358.5,null,108358.5,null,null,null,null,null,null,null,null,{"$f":"SUM(O84:W84)","v":216717},{"$f":"SUM(O84:Z84)","v":216717}]
[61,"Signalisation cyclable noyaux villageois.","MRC / CLD de l'Ile-d'Orléans","Transport actif (volet 1)","Transports",1,"03-Capitale-Nationale","MRC Île-d'Orléans","TE-Terminé","SU-Subvention",7773,"2014-10-21","2014-12-11",15545,null,3887,null,null,0,null,null,null,null,null,null,null,{"$f":"SUM(O85:W85)","v":3887},{"$f":"SUM(O85:Z85)","v":3887}]
[62,"Bandes cyclables secteur commercial et communautaire.","Cantons unis de Stoneham-et-Tewkesbury","Transport actif (volet 1)","Transports",1,"03-Capitale-Nationale","Stoneham-et-Tewkesbury","TE-Terminé","SU-Subvention",98400,"2014-10-15","2016-08-08",196800,null,49200,49200,null,null,null,null,null,null,null,null,null,{"$f":"SUM(O86:W86)","v":98400},{"$f":"SUM(O86:Z86)","v":98400}]
[63,"Feux de circulation, train de l'Est, projet Oka-Mont-St-Hilaire, Antenne Longue-Pointe et canal de l'Aqueduc.","Ville de Montréal","Transport actif (volet 1)","Transports",5,"06-Montréal","Montréal","AC-Actif","SU-Subvention",2553568,"2014-10-02","2014-12-11",5836816,null,1880784,172784,null,500000,null,null,null,null,null,null,null,{"$f":"SUM(O87:W87)","v":2553568},{"$f":"SUM(O87:Z87)","v":2553568}]
[64,"Rue Laurier","Montréal - Arrondissement Le Plateau-Mont-Royal)","Transport actif (volet 1)","Transports",1,"06-Montréal","Montréal","AC-Actif","SU-Subvention",635100,"2014-10-01","2014-12-14",1408160,null,381060,254040,null,null,null,null,null,null,null,null,null,{"$f":"SUM(O88:W88)","v":635100},{"$f":"SUM(O88:Z88)","v":635100}]
[65,"Apaisement de la circulation dans un corridor scolaire","Municipalité de Saint-Amable","Transport actif (volet 1)","Transports",1,"16-Montérégie","Saint-Amable","TE-Terminé","SU-Subvention",2465,"2014-09-26","2014-11-05",4930,null,2465,null,null,null,null,null,null,null,null,null,null,{"$f":"SUM(O89:W89)","v":2465},{"$f":"SUM(O89:Z89)","v":2465}]
[66,"Passerelle","Ville d'Alma","Transport actif (volet 1)","Transports",1,"02-Saguenay- Lac-Saint-Jean","Alma","TE-Terminé","SU-Subvention",1000000,"2014-03-31","2017-03-02",4000000,500000,null,null,500000,null,null,null,null,null,null,null,null,{"$f":"SUM(O90:W90)","v":1000000},{"$f":"SUM(O90:Z90)","v":1000000}]
[67,"Boulevard Sardaigne","Ville de Candiac","Transport actif (volet 1)","Transports",1,"16-Montérégie","Candiac","AC-Actif","SU-Subvention",84000,"2014-03-31","2014-04-22",168000,42000,null,null,null,0,42000,null,-42000,null,null,null,null,{"$f":"SUM(O91:W91)","v":42000},{"$f":"SUM(O91:Z91)","v":42000}]
[68,"Rue Jacques-Cartier","Ville de Gatineau","Transport actif (volet 1)","Transports",1,"07-Outaouais","Gatineau","TE-Terminé","SU-Subvention",402523,"2014-03-31","2014-04-22",805047,201261,120757.4,60377.45,null,20127.150000000001,null,null,null,null,null,null,null,{"$f":"SUM(O92:W92)","v":402523.00000000006},{"$f":"SUM(O92:Z92)","v":402523.00000000006}]
[69,"Connexion cyclable entre les quartiers","Ville de Coaticook","Transport actif (volet 1)","Transports",1,"05-Estrie","Coaticook","TE-Terminé","SU-Subvention",92494,"2014-03-31","2014-04-22",231234,46247,46247,-29291.3,null,null,null,null,null,null,null,null,null,{"$f":"SUM(O93:W93)","v":63202.7},{"$f":"SUM(O93:Z93)","v":63202.7}]
[70,"Boulevard Portland","Ville de Sherbrooke","Transport actif (volet 1)","Transports",1,"05-Estrie","Sherbrooke","TE-Terminé","SU-Subvention",973205,"2014-03-31","2014-04-22",1946410,486602,null,null,null,0,486603,null,null,null,null,null,null,{"$f":"SUM(O94:W94)","v":973205},{"$f":"SUM(O94:Z94)","v":973205}]
[71,"Apaisement de la circulation : École St-Arsène, St-Étienne et Ste-Bernadette-Soubirou","Ville de Montréal Rosemont École St-Arsène","Transport actif (volet 1)","Transports",3,"06-Montréal","Montréal","AC-Actif","SU-Subvention",164222,"2014-03-31","2014-04-22",679012,82111,null,543.4,null,0,81568,null,null,null,null,null,null,{"$f":"SUM(O95:W95)","v":164222.39999999999},{"$f":"SUM(O95:Z95)","v":164222.39999999999}]
[72,"Traverse du chemin de fer du CP à la hauteur de Saint-Laurent et Bellechasse.","Ville de Montréal Saint-Laurent Bellechasse","Transport actif (volet 1)","Transports",1,"06-Montréal","Montréal","AC-Actif","SU-Subvention",280900,"2014-03-31","2014-04-22",611800,140450,22472,117978,null,null,null,null,null,null,null,null,null,{"$f":"SUM(O96:W96)","v":280900},{"$f":"SUM(O96:Z96)","v":280900}]
[73,"Piste centre-ville Causapscal","MRC de la Matapédia","Transport actif (volet 1)","Transports",1,"11-Gaspésie-Iles-de-la-Madeleine","Causapscal","AN-Annulé","SU-Subvention",90496,"2018-08-30",null,207793,null,null,null,null,null,90496,null,-90496,null,null,null,null,{"$f":"SUM(O97:W97)","v":0},{"$f":"SUM(O97:Z97)","v":0}]
[74,"Piste cyclable centre du village","Saint-Marc-de-Figuery","Transport actif (volet 1)","Transports",1,"08-Abitibi-Témiscamingue","Saint-Marc-de-Figuery","TE-Terminé","SU-Subvention",3319,"2018-08-30","2019-06-26",10138,null,null,null,null,null,3319,null,null,null,null,null,null,{"$f":"SUM(O98:W98)","v":3319},{"$f":"SUM(O98:Z98)","v":3319}]
[75,"Piste du boulevard Montcalm Nord","Ville de Candiac","Transport actif (volet 1)","Transports",1,"16-Montérégie","Candiac","AC-Actif","SU-Subvention",375000,"2018-08-30","2019-03-31",750000,null,null,null,null,null,375000,null,null,null,null,null,null,{"$f":"SUM(O99:W99)","v":375000},{"$f":"SUM(O99:Z99)","v":375000}]
[76,"Piste et passerelle du parc des Saules","Ville de Québec","Transport actif (volet 1)","Transports",1,"03-Capitale-Nationale","Québec","AC-Actif","SU-Subvention",1000000,"2018-08-30","2019-03-31",3000000,null,null,null,null,null,1000000,null,null,null,null,null,null,{"$f":"SUM(O100:W100)","v":1000000},{"$f":"SUM(O100:Z100)","v":1000000}]
[77,"Piste du boulevard Taché, du Rapibus à Montcalm","Ville de Gatineau","Transport actif (volet 1)","Transports",1,"07-Outaouais","Gatineau","AC-Actif","SU-Subvention",146033,"2018-08-30","2019-03-31",341470,null,null,null,null,null,146033,null,-20363,null,null,null,null,{"$f":"SUM(O101:W101)","v":125670},{"$f":"SUM(O101:Z101)","v":125670}]
[78,"Lien cyclo-pédestre entre la route 116 et la piste du Grand-Tronc","Ville de Lévis","Transport actif (volet 1)","Transports",1,"12-Chaudières-Appalaches","Lévis","AC-Actif","SU-Subvention",85000,"2018-08-30","2019-03-31",170000,null,null,null,null,null,85000,null,null,null,null,null,null,{"$f":"SUM(O102:W102)","v":85000},{"$f":"SUM(O102:Z102)","v":85000}]
[79,"Bandes cyclables sur 21 segments dans la ville.","Ville de Laval","Transport actif (volet 1)","Transports",1,"13-Laval","Laval","AC-Actif","SU-Subvention",288924,"2018-08-30","2019-03-31",1391787,null,null,null,null,null,288924,null,null,null,null,null,null,{"$f":"SUM(O103:W103)","v":288924},{"$f":"SUM(O103:Z103)","v":288924}]
[80,"Piste cyclable sur la 12e Avenue","Ville de Sherbrooke","Transport actif (volet 1)","Transports",1,"05-Estrie","Sherbrooke","AC-Actif","SU-Subvention",570256,"2018-08-30","2019-03-31",2000000,null,null,null,null,null,570256,null,null,null,null,null,null,{"$f":"SUM(O104:W104)","v":570256},{"$f":"SUM(O104:Z104)","v":570256}]
[81,"2e phase du projet de voie cyclable de la 3e Avenue (projet 2017-2018)","Ville de Québec","Transport actif (volet 1)","Transports",1,"03-Capitale-Nationale","Québec","TE-Terminé","SU-Subvention",68770,"2018-08-30","2020-01-10",303208,null,null,null,null,null,68770,null,0,null,null,null,null,{"$f":"SUM(O105:W105)","v":68770},{"$f":"SUM(O105:Z105)","v":68770}]
[82,"Piste du boulevard Royal","Ville de Shawinigan","Transport actif (volet 1)","Transports",1,"04-Mauricie ","Shawinigan","AC-Actif","SU-Subvention",775000,"2018-08-30","2019-03-31",1550000,null,null,null,null,null,1115316,null,null,null,null,null,null,{"$f":"SUM(O106:W106)","v":1115316},{"$f":"SUM(O106:Z106)","v":1115316}]
[83,"Piste de la rue Franck-Carrel","Ville de Québec","Transport actif (volet 1)","Transports",1,"03-Capitale-Nationale","Québec","TE-Terminé","SU-Subvention",569989,"2018-08-30","2019-03-31",1139979,null,null,null,null,null,753332,null,null,null,null,null,null,{"$f":"SUM(O107:W107)","v":753332},{"$f":"SUM(O107:Z107)","v":753332}]
[84,"Lien entre une piste multifonctionnelle et la route 132","Ville de Bonaventure","Transport actif (volet 1)","Transports",1,"11-Gaspésie-Iles-de-la-Madeleine","Bonaventure","TE-Terminé","SU-Subvention",20724,"2018-08-30","2020-03-09",50066,null,null,null,null,null,20724,null,null,null,null,null,null,{"$f":"SUM(O108:W108)","v":20724},{"$f":"SUM(O108:Z108)","v":20724}]
[85,"Piste de la 3e Rue","Ville de Shawinigan","Transport actif (volet 1)","Transports",1,"04-Mauricie ","Shawinigan","AC-Actif","SU-Subvention",212075,"2018-08-30","2019-03-31",424150,null,null,null,null,null,212075,null,null,null,null,null,null,{"$f":"SUM(O109:W109)","v":212075},{"$f":"SUM(O109:Z109)","v":212075}]
[86,"Piste de la rue Garnier","Ville de Shawinigan","Transport actif (volet 1)","Transports",1,"04-Mauricie ","Shawinigan","AC-Actif","SU-Subvention",130225,"2018-08-30","2019-03-31",290000,null,null,null,null,null,130225,null,null,null,null,null,null,{"$f":"SUM(O110:W110)","v":130225},{"$f":"SUM(O110:Z110)","v":130225}]
[87,"Aménagement de corridors scolaires autour de deux écoles","Ville de Saint-Honoré","Transport actif (volet 1)","Transports",1,"02-Saguenay- Lac-Saint-Jean","Saint-Honoré","TE-Terminé","SU-Subvention",68250,"2018-08-30","2020-02-26",136500,null,null,null,null,null,68250,null,null,null,null,null,null,{"$f":"SUM(O111:W111)","v":68250},{"$f":"SUM(O111:Z111)","v":68250}]
[88,"Apaisement de la circulation à Simone-Monet","Ville de Montréal - Arr. CDN-NDG","Transport actif (volet 1)","Transports",1,"06-Montréal","Montréal","TE-Terminé","SU-Subvention",92,"2018-08-30","2019-03-31",444349,null,null,null,null,null,92,null,null,null,null,null,null,{"$f":"SUM(O112:W112)","v":92},{"$f":"SUM(O112:Z112)","v":92}]
[89,"Piste de la base de plein-air Sainte-Foy","Ville de Québec","Transport actif (volet 1)","Transports",1,"03-Capitale-Nationale","Québec","TE-Terminé","SU-Subvention",360174,"2018-08-30","2019-03-31",720379,null,null,null,null,null,360174,null,null,null,null,null,null,{"$f":"SUM(O113:W113)","v":360174},{"$f":"SUM(O113:Z113)","v":360174}]
[90,"Apaisement de la circulation à l'école Bedford","Ville de Montréal - Arr. CDN-NDG","Transport actif (volet 1)","Transports",1,"06-Montréal","Montréal","TE-Terminé","SU-Subvention",250000,"2018-08-30","2019-03-31",563649,null,null,null,null,null,250000,null,null,null,null,null,null,{"$f":"SUM(O114:W114)","v":250000},{"$f":"SUM(O114:Z114)","v":250000}]
[91,"Piste du boulevard Taché, de Ferme Moore à Saint-Dominique","Ville de Gatineau","Transport actif (volet 1)","Transports",1,"07-Outaouais","Gatineau","TE-Terminé","SU-Subvention",65988,"2018-08-30","2019-03-31",131977,null,null,null,null,null,65988,null,null,null,null,null,null,{"$f":"SUM(O115:W115)","v":65988},{"$f":"SUM(O115:Z115)","v":65988}]
[92,"Apaisement de la circulation à l'Académie Beth-Rivkah","Ville de Montréal - Arr. CDN-NDG","Transport actif (volet 1)","Transports",1,"06-Montréal","Montréal","TE-Terminé","SU-Subvention",205571,"2018-08-30","2019-03-31",411141,null,null,null,null,null,205571,null,null,null,null,null,null,{"$f":"SUM(O116:W116)","v":205571},{"$f":"SUM(O116:Z116)","v":205571}]
[93,"Apaisement de la circulation à l'école Des Nations","Ville de Montréal - Arr. CDN-NDG","Transport actif (volet 1)","Transports",1,"06-Montréal","Montréal","TE-Terminé","SU-Subvention",226093,"2018-08-30","2019-03-31",452186,null,null,null,null,null,226093,null,null,null,null,null,null,{"$f":"SUM(O117:W117)","v":226093},{"$f":"SUM(O117:Z117)","v":226093}]
[94,"Piste rues Hubert, Biermans et Chahoon","Ville de Shawinigan","Transport actif (volet 1)","Transports",1,"04-Mauricie ","Shawinigan","AC-Actif","SU-Subvention",1000000,"2018-08-30","2019-03-31",2000000,null,null,null,null,null,1000000,null,null,null,null,null,null,{"$f":"SUM(O118:W118)","v":1000000},{"$f":"SUM(O118:Z118)","v":1000000}]
[95,"Piste multifonctionnelle parallèle à la route 132","Ville de Carleton-sur-Mer","Transport actif (volet 1)","Transports",1,"11-Gaspésie-Iles-de-la-Madeleine","Carleton-sur-Mer","AC-Actif","SU-Subvention",35592,"2018-08-30","2019-03-31",71185,null,null,null,null,null,35592,null,null,null,null,null,null,{"$f":"SUM(O119:W119)","v":35592},{"$f":"SUM(O119:Z119)","v":35592}]
[96,"Piste reliant le village au secteur des Jardins de Saint-Rémi","Ville de Saint-Rémi","Transport actif (volet 1)","Transports",1,"16-Montérégie","Saint-Rémi","AC-Actif","SU-Subvention",160000,"2018-08-30","2019-03-31",320000,null,null,null,null,null,160000,null,null,null,null,null,null,{"$f":"SUM(O120:W120)","v":160000},{"$f":"SUM(O120:Z120)","v":160000}]
[97,"Apaisement de la circulation en milieu scolaire","Municipalité d'Henryville","Transport actif (volet 1)","Transports",1,"16-Montérégie","Henryville","TE-Terminé","SU-Subvention",19825,"2018-08-30","2020-04-20",45300,null,null,null,null,null,19825,null,null,null,null,null,null,{"$f":"SUM(O121:W121)","v":19825},{"$f":"SUM(O121:Z121)","v":19825}]
[98,"Piste cyclable en milieu urbain","Ville de Saint-Urbain-Premier","Transport actif (volet 1)","Transports",1,"16-Montérégie","Saint-Urbain-Premier","AC-Actif","SU-Subvention",56837,"2018-08-30","2019-03-31",202736,null,null,null,null,null,56837,null,-4781.33,null,null,null,null,{"$f":"SUM(O122:W122)","v":52055.67},{"$f":"SUM(O122:Z122)","v":52055.67}]
[99,"Piste cyclable dans une emprise d'H-Q à Sainte-Anne-de-Bellevue","Ville de Montréal","Transport actif (volet 1)","Transports",1,"06-Montréal","Montréal","AC-Actif","SU-Subvention",110506,"2018-08-30","2019-03-31",240944,null,null,null,null,null,110506,null,null,null,null,null,null,{"$f":"SUM(O123:W123)","v":110506},{"$f":"SUM(O123:Z123)","v":110506}]
[100,"Apaisement de la circulation près d'une école au centre du village","Municipalité de Notre-Dame-de-Laus","Transport actif (volet 1)","Transports",1,"15-Laurentides","Notre-Dame-du-Laus","TE-Terminé","SU-Subvention",9350,"2018-08-30","2020-05-15",22300,null,null,null,null,null,9350,null,-5386.72,null,null,null,null,{"$f":"SUM(O124:W124)","v":3963.2799999999997},{"$f":"SUM(O124:Z124)","v":3963.2799999999997}]
[101,"Abris 4 saisons pour vélo","Ville de Montréal - Arr. Plateau-Mont-Royal","Transport actif (volet 1)","Transports",1,"06-Montréal","Montréal","TE-Terminé","SU-Subvention",27000,"2018-08-30","2019-03-31",300000,null,null,null,null,null,27000,null,null,null,null,null,null,{"$f":"SUM(O125:W125)","v":27000},{"$f":"SUM(O125:Z125)","v":27000}]
[102,"Piste de la rue des Ruisseaux","Ville de Gatineau","Transport actif (volet 1)","Transports",1,"07-Outaouais","Gatineau","AC-Actif","SU-Subvention",246170,"2018-08-30","2019-03-31",598093,null,null,null,null,null,246170,null,null,null,null,null,null,{"$f":"SUM(O126:W126)","v":246170},{"$f":"SUM(O126:Z126)","v":246170}]
[103,"Apaisement de la circulation à l'école Les-Enfants-du-Monde","Ville de Montréal - Arr. CDN-NDG","Transport actif (volet 1)","Transports",1,"06-Montréal","Montréal","TE-Terminé","SU-Subvention",180914,"2018-08-30","2019-03-31",361828,null,null,null,null,null,180914,null,null,null,null,null,null,{"$f":"SUM(O127:W127)","v":180914},{"$f":"SUM(O127:Z127)","v":180914}]
[104,"Apaisement de la circulation à l'école Saint-Raymond","Ville de Montréal - Arr. CDN-NDG","Transport actif (volet 1)","Transports",1,"06-Montréal","Montréal","TE-Terminé","SU-Subvention",89653,"2018-08-30","2019-03-31",179305,null,null,null,null,null,89653,null,null,null,null,null,null,{"$f":"SUM(O128:W128)","v":89653},{"$f":"SUM(O128:Z128)","v":89653}]
[105,"Piste multifonctionnelle et voies cyclables des rues Demsey, Proudfoot, Principale et Romain.","Municipalité de Fort-Coulonge","Transport actif (volet 1)","Transports",1,"07-Outaouais","Fort-Coulonge","AC-Actif","SU-Subvention",51566,"2018-08-30","2019-03-31",103114,null,null,null,null,null,51566,null,null,null,null,null,null,{"$f":"SUM(O129:W129)","v":51566},{"$f":"SUM(O129:Z129)","v":51566}]
[106,"Sentier rue Westem","Ville de Waterloo","Transport actif (volet 1)","Transports",1,"16-Montérégie","Ville de Waterloo","TE-Terminé","SU-Subvention",147304,"2020-03-31","2020-04-22",294608,null,null,null,null,null,null,117843,null,10552,null,null,null,{"$f":"SUM(O130:W130)","v":128395},{"$f":"SUM(O130:Z130)","v":128395}]
[107,"Piste rue St-Hubert","Ville de Granby","Transport actif (volet 1)","Transports",1,"16-Montérégie","Ville de Granby","TE-Terminé","SU-Subvention",1379130,"2020-03-31","2020-04-22",2785000,null,null,null,null,null,null,1103304,null,275826,null,null,null,{"$f":"SUM(O131:W131)","v":1379130},{"$f":"SUM(O131:Z131)","v":1379130}]
[108,"Sentier polyvalent","Municipalité du Canton d'Orford","Transport actif (volet 1)","Transports",1,"05-Estrie","Municipalité du Canton d'Orford","AC-Actif","SU-Subvention",139682,"2020-03-31","2020-04-22",279364,null,null,null,null,null,null,111746,null,27936,null,null,null,{"$f":"SUM(O132:W132)","v":139682},{"$f":"SUM(O132:Z132)","v":139682}]
[109,"Piste cyclable bidirectionnelle","Ville de Bromont","Transport actif (volet 1)","Transports",1,"16-Montérégie","Ville de Bromont","AC-Actif","SU-Subvention",545350,"2020-03-31","2020-04-22",1200000,null,null,null,null,null,null,436280,null,109070,null,null,null,{"$f":"SUM(O133:W133)","v":545350},{"$f":"SUM(O133:Z133)","v":545350}]
[110,"Piste route 108","Municipalité de Lambton","Transport actif (volet 1)","Transports",1,"05-Estrie","Municipalité de Lambton","AC-Actif","SU-Subvention",120000,"2020-03-31","2020-04-22",249000,null,null,null,null,null,null,96000,null,24000,null,null,null,{"$f":"SUM(O134:W134)","v":120000},{"$f":"SUM(O134:Z134)","v":120000}]
[111,"Sentier Donnacona","Ville de Donnacona","Transport actif (volet 1)","Transports",1,"03-Capitale-Nationale","Ville de Donnacona","AC-Actif","SU-Subvention",250000,"2020-03-31","2020-04-22",500000,null,null,null,null,null,null,200000,null,50000,null,null,null,{"$f":"SUM(O135:W135)","v":250000},{"$f":"SUM(O135:Z135)","v":250000}]
[112,"Infra cyc. L-Beauport","Municipalité de Lac-Beauport","Transport actif (volet 1)","Transports",1,"03-Capitale-Nationale","Municipalité de Lac-Beauport","AC-Actif","SU-Subvention",95250,"2020-03-31","2020-04-22",217500,null,null,null,null,null,null,76200,null,19050,null,null,null,{"$f":"SUM(O136:W136)","v":95250},{"$f":"SUM(O136:Z136)","v":95250}]
[113,"Piste cyclo Québec","Ville de Québec","Transport actif (volet 1)","Transports",1,"03-Capitale-Nationale","Ville de Québec","TE-Terminé","SU-Subvention",172593,"2020-03-31","2020-04-22",345186,null,null,null,null,null,null,138074,null,30116,null,null,null,{"$f":"SUM(O137:W137)","v":168190},{"$f":"SUM(O137:Z137)","v":168190}]
[114,"Rang Montagne","Municipalité de Mont-Saint-Grégoire","Transport actif (volet 1)","Transports",1,"16-Montérégie","Municipalité de Mont-Saint-Grégoire","TE-Terminé","SU-Subvention",120375,"2020-03-31","2020-04-22",283500,null,null,null,null,null,null,96300,null,13705,null,null,null,{"$f":"SUM(O138:W138)","v":110005},{"$f":"SUM(O138:Z138)","v":110005}]
[115,"Rue Gilmore","Municipalité de Mont-Saint-Grégoire","Transport actif (volet 1)","Transports",1,"16-Montérégie","Municipalité de Mont-Saint-Grégoire","AC-Actif","SU-Subvention",27900,"2020-03-31","2020-04-22",56200,null,null,null,null,null,null,22320,null,5580,null,null,null,{"$f":"SUM(O139:W139)","v":27900},{"$f":"SUM(O139:Z139)","v":27900}]
[116,"Secteur Sud ville","Ville de Salaberry-de-Valleyfield","Transport actif (volet 1)","Transports",1,"16-Montérégie","Ville de Salaberry-de-Valleyfield","AC-Actif","SU-Subvention",761899,"2020-03-31","2020-04-22",2113881,null,null,null,null,null,null,609519,null,152380,null,null,null,{"$f":"SUM(O140:W140)","v":761899},{"$f":"SUM(O140:Z140)","v":761899}]
[117,"Boul. Casavant O.","Ville Saint-Hyacinthe","Transport actif (volet 1)","Transports",1,"16-Montérégie","Ville Saint-Hyacinthe","AC-Actif","SU-Subvention",280939,"2020-03-31","2020-04-22",561878,null,null,null,null,null,null,224751,null,56188,null,null,null,{"$f":"SUM(O141:W141)","v":280939},{"$f":"SUM(O141:Z141)","v":280939}]
[118,"Piste cyclable","Ville de Lachute","Transport actif (volet 1)","Transports",1,"15-Laurentides","Ville de Lachute","AC-Actif","SU-Subvention",337750,"2020-03-31","2020-04-22",675500,null,null,null,null,null,null,270200,null,67550,null,null,null,{"$f":"SUM(O142:W142)","v":337750},{"$f":"SUM(O142:Z142)","v":337750}]
[119,"Réseau cyclable","Ville de Carleton-sur-Mer","Transport actif (volet 1)","Transports",1,"11-Gaspésie-Iles-de-la-Madeleine","Ville de Carleton-sur-Mer","AC-Actif","SU-Subvention",32000,"2020-03-31","2020-04-22",64000,null,null,null,null,null,null,25600,null,6400,null,null,null,{"$f":"SUM(O143:W143)","v":32000},{"$f":"SUM(O143:Z143)","v":32000}]
[120,"P. Cyclable Riv. au Renard","Ville de Gaspé","Transport actif (volet 1)","Transports",1,"11-Gaspésie-Iles-de-la-Madeleine","Ville de Gaspé","AC-Actif","SU-Subvention",185238,"2020-03-31","2020-04-22",1179235,null,null,null,null,null,null,148190,null,37048,null,null,null,{"$f":"SUM(O144:W144)","v":185238},{"$f":"SUM(O144:Z144)","v":185238}]
[121,"Emprise ferr. ","Ville de Charlemagne","Transport actif (volet 1)","Transports",1,"15-Laurentides","Ville de Charlemagne","AC-Actif","SU-Subvention",230800,"2020-03-31","2020-04-22",461600,null,null,null,null,null,null,184640,null,46160,null,null,null,{"$f":"SUM(O145:W145)","v":230800},{"$f":"SUM(O145:Z145)","v":230800}]
[122,"Hector-Lanthier","Ville de Saint-Eustache","Transport actif (volet 1)","Transports",1,"15-Laurentides","Ville de Saint-Eustache","AC-Actif","SU-Subvention",271600,"2020-03-31","2020-04-22",543200,null,null,null,null,null,null,217280,null,54320,null,null,null,{"$f":"SUM(O146:W146)","v":271600},{"$f":"SUM(O146:Z146)","v":271600}]
[123,"Passerelle","Ville de L'Assomption","Transport actif (volet 1)","Transports",1,"15-Laurentides","Ville de L'Assomption","AC-Actif","SU-Subvention",1689000,"2020-03-31","2020-04-22",3378000,null,null,null,null,null,null,1351200,null,337800,null,null,null,{"$f":"SUM(O147:W147)","v":1689000},{"$f":"SUM(O147:Z147)","v":1689000}]
[124,"Arthur-Sauvé","Ville de Laval","Transport actif (volet 1)","Transports",1,"13-Laval","Ville de Laval","AC-Actif","SU-Subvention",26275,"2020-03-31","2020-04-22",52550,null,null,null,null,null,null,21020,null,5255,null,null,null,{"$f":"SUM(O148:W148)","v":26275},{"$f":"SUM(O148:Z148)","v":26275}]
[125,"Curé-Labelle","Ville de Laval","Transport actif (volet 1)","Transports",1,"13-Laval","Ville de Laval","AC-Actif","SU-Subvention",200513,"2020-03-31","2020-04-22",401026,null,null,null,null,null,null,160410,null,40103,null,null,null,{"$f":"SUM(O149:W149)","v":200513},{"$f":"SUM(O149:Z149)","v":200513}]
[126,"Parcours Écoles","Ville de Laval","Transport actif (volet 1)","Transports",1,"13-Laval","Ville de Laval","AC-Actif","SU-Subvention",888064,"2020-03-31","2020-04-22",1776131,null,null,null,null,null,null,710451,null,177613,null,null,null,{"$f":"SUM(O150:W150)","v":888064},{"$f":"SUM(O150:Z150)","v":888064}]
[127,"St-Martin O.","Ville de Laval","Transport actif (volet 1)","Transports",1,"13-Laval","Ville de Laval","AC-Actif","SU-Subvention",60000,"2020-03-31","2020-04-22",579475,null,null,null,null,null,null,48000,null,12000,null,null,null,{"$f":"SUM(O151:W151)","v":60000},{"$f":"SUM(O151:Z151)","v":60000}]
[128,"Inters. 132-204","Municipalité de Saint-Jean-Port-Joli","Transport actif (volet 1)","Transports",1,"12-Chaudières-Appalaches","Municipalité de Saint-Jean-Port-Joli","AC-Actif","SU-Subvention",41672,"2020-03-31","2020-04-22",74250,null,null,null,null,null,null,33338,6745,1589,null,null,null,{"$f":"SUM(O152:W152)","v":41672},{"$f":"SUM(O152:Z152)","v":41672}]
[129,"Piste boul. Taché","Ville de Montmagny","Transport actif (volet 1)","Transports",1,"12-Chaudières-Appalaches","Ville de Montmagny","AC-Actif","SU-Subvention",44420,"2020-03-31","2020-04-22",88840,null,null,null,null,null,null,35536,null,8884,null,null,null,{"$f":"SUM(O153:W153)","v":44420},{"$f":"SUM(O153:Z153)","v":44420}]
[130,"30e Rue et 1ere Avenue","Municipalité de la Paroisse de Notre-Dame-des-Pins","Transport actif (volet 1)","Transports",1,"12-Chaudières-Appalaches","Municipalité de la Paroisse de Notre-Dame-des-Pins","AC-Actif","SU-Subvention",299286,"2020-03-31","2020-04-22",598572,null,null,null,null,null,null,239429,null,59857,null,null,null,{"$f":"SUM(O154:W154)","v":299286},{"$f":"SUM(O154:Z154)","v":299286}]
[131,"Tunnel Exo","Ville de Vaudreuil-Dorion","Transport actif (volet 1)","Transports",1,"16-Montérégie","Ville de Vaudreuil-Dorion","AC-Actif","SU-Subvention",1744003,"2020-03-31","2020-04-22",3488007,null,null,null,null,null,null,1395202,null,348801,null,null,null,{"$f":"SUM(O155:W155)","v":1744003},{"$f":"SUM(O155:Z155)","v":1744003}]
[132,"Rue Ampère","Ville de Boucherville","Transport actif (volet 1)","Transports",1,"16-Montérégie","Ville de Boucherville","AC-Actif","SU-Subvention",655810,"2020-03-31","2020-04-22",1311619,null,null,null,null,null,null,524648,null,131162,null,null,null,{"$f":"SUM(O156:W156)","v":655810},{"$f":"SUM(O156:Z156)","v":655810}]
[133,"Avenue Fouquet","Ville de Candiac","Transport actif (volet 1)","Transports",1,"16-Montérégie","Ville de Candiac","AC-Actif","SU-Subvention",29000,"2020-03-31","2020-04-22",523136,null,null,null,null,null,null,23200,null,5800,null,null,null,{"$f":"SUM(O157:W157)","v":29000},{"$f":"SUM(O157:Z157)","v":29000}]
[134,"Piste cyclable","Ville de Chambly","Transport actif (volet 1)","Transports",1,"16-Montérégie","Ville de Chambly","AC-Actif","SU-Subvention",185120,"2020-03-31","2020-04-22",596084,null,null,null,null,null,null,148096,37024,null,null,null,null,{"$f":"SUM(O158:W158)","v":185120},{"$f":"SUM(O158:Z158)","v":185120}]
[135,"Avenue Mont-Bruno","Ville de Saint-Basile-le-Grand","Transport actif (volet 1)","Transports",1,"16-Montérégie","Ville de Saint-Basile-le-Grand","AC-Actif","SU-Subvention",99676,"2020-03-31","2020-04-22",199352,null,null,null,null,null,null,79741,null,19935,null,null,null,{"$f":"SUM(O159:W159)","v":99676},{"$f":"SUM(O159:Z159)","v":99676}]
[136,"A-Frappier Paris","Ville de Sainte-Julie","Transport actif (volet 1)","Transports",1,"16-Montérégie","Ville de Sainte-Julie","TE-Terminé","SU-Subvention",93500,"2020-03-31","2020-04-22",187000,null,null,null,null,null,null,74800,null,8466,null,null,null,{"$f":"SUM(O160:W160)","v":83266},{"$f":"SUM(O160:Z160)","v":83266}]
[137,"A-Frappier - A20","Ville de Sainte-Julie","Transport actif (volet 1)","Transports",1,"16-Montérégie","Ville de Sainte-Julie","TE-Terminé","SU-Subvention",122500,"2020-03-31","2020-04-22",245000,null,null,null,null,null,null,98000,null,24500,null,null,null,{"$f":"SUM(O161:W161)","v":122500},{"$f":"SUM(O161:Z161)","v":122500}]
[138,"Rue Borduas","Ville de Sainte-Julie","Transport actif (volet 1)","Transports",1,"16-Montérégie","Ville de Sainte-Julie","TE-Terminé","SU-Subvention",100000,"2020-03-31","2020-04-22",200000,null,null,null,null,null,null,80000,null,20000,null,null,null,{"$f":"SUM(O162:W162)","v":100000},{"$f":"SUM(O162:Z162)","v":100000}]
[139,"Rue Robert","Municipalité de Saint-Jean-Baptiste","Transport actif (volet 1)","Transports",1,"16-Montérégie","Municipalité de Saint-Jean-Baptiste","AC-Actif","SU-Subvention",90275,"2020-03-31","2020-04-22",180550,null,null,null,null,null,null,72220,null,null,null,null,null,{"$f":"SUM(O163:W163)","v":72220},{"$f":"SUM(O163:Z163)","v":72220}]
[140," Viaduc Chenaux","Ville de Vaudreuil-Dorion","Transport actif (volet 1)","Transports",1,"16-Montérégie","Ville de Vaudreuil-Dorion","AC-Actif","SU-Subvention",205647,"2020-03-31","2020-04-22",411294,null,null,null,null,null,null,164518,null,null,null,null,null,{"$f":"SUM(O164:W164)","v":164518},{"$f":"SUM(O164:Z164)","v":164518}]
[141,"Nénuphars","Ville de Vaudreuil-Dorion","Transport actif (volet 1)","Transports",1,"16-Montérégie","Ville de Vaudreuil-Dorion","AC-Actif","SU-Subvention",415500,"2020-03-31","2020-04-22",831000,null,null,null,null,null,null,332400,null,null,null,null,null,{"$f":"SUM(O165:W165)","v":332400},{"$f":"SUM(O165:Z165)","v":332400}]
[142,"RPP - St-Zotique","Ville de Montréal","Transport actif (volet 1)","Transports",1,"06-Montréal","Ville de Montréal","AC-Actif","SU-Subvention",25133,"2020-03-31","2020-04-22",47850,null,null,null,null,null,null,20106,null,null,null,null,null,{"$f":"SUM(O166:W166)","v":20106},{"$f":"SUM(O166:Z166)","v":20106}]
[143,"RPP - Station","Ville de Montréal","Transport actif (volet 1)","Transports",1,"06-Montréal","Ville de Montréal","AC-Actif","SU-Subvention",116116,"2020-03-31","2020-04-22",232232,null,null,null,null,null,null,92893,null,null,null,null,null,{"$f":"SUM(O167:W167)","v":92893},{"$f":"SUM(O167:Z167)","v":92893}]
[144,"RPP - Bellechasse","Ville de Montréal","Transport actif (volet 1)","Transports",1,"06-Montréal","Ville de Montréal","AC-Actif","SU-Subvention",130798,"2020-03-31","2020-04-22",385781,null,null,null,null,null,null,104638,null,null,null,null,null,{"$f":"SUM(O168:W168)","v":104638},{"$f":"SUM(O168:Z168)","v":104638}]
[145,"CDN - Yeshiva","Ville de Montréal","Transport actif (volet 1)","Transports",1,"06-Montréal","Ville de Montréal","AC-Actif","SU-Subvention",96571,"2020-03-31","2020-04-22",211515,null,null,null,null,null,null,77257,null,null,null,null,null,{"$f":"SUM(O169:W169)","v":77257},{"$f":"SUM(O169:Z169)","v":77257}]
[146,"CDN - Supports vélo","Ville de Montréal","Transport actif (volet 1)","Transports",1,"06-Montréal","Ville de Montréal","AC-Actif","SU-Subvention",67500,"2020-03-31","2020-04-22",67500,null,null,null,null,null,null,54000,null,null,null,null,null,{"$f":"SUM(O170:W170)","v":54000},{"$f":"SUM(O170:Z170)","v":54000}]
[147,"CDN - ND-des-Neiges","Ville de Montréal","Transport actif (volet 1)","Transports",1,"06-Montréal","Ville de Montréal","AC-Actif","SU-Subvention",33768,"2020-03-31","2020-04-22",71064,null,null,null,null,null,null,27014,null,null,null,null,null,{"$f":"SUM(O171:W171)","v":27014},{"$f":"SUM(O171:Z171)","v":27014}]
[148,"CDN - L-Teasdale","Ville de Montréal","Transport actif (volet 1)","Transports",1,"06-Montréal","Ville de Montréal","AC-Actif","SU-Subvention",49880,"2020-03-31","2020-04-22",110285,null,null,null,null,null,null,39904,null,null,null,null,null,{"$f":"SUM(O172:W172)","v":39904},{"$f":"SUM(O172:Z172)","v":39904}]
[149,"Piste H-Q","Ville de Trois-Rivières","Transport actif (volet 1)","Transports",1,"04-Mauricie ","Ville de Trois-Rivières","AC-Actif","SU-Subvention",614250,"2020-03-31","2020-04-22",1228500,null,null,null,null,null,null,491400,null,null,null,null,null,{"$f":"SUM(O173:W173)","v":491400},{"$f":"SUM(O173:Z173)","v":491400}]
[150,"Bellefeuille","Ville de Trois-Rivières","Transport actif (volet 1)","Transports",1,"04-Mauricie ","Ville de Trois-Rivières","TE-Terminé","SU-Subvention",304375,"2020-03-31","2020-04-22",1199000,null,null,null,null,null,null,243500,null,60875,null,null,null,{"$f":"SUM(O174:W174)","v":304375},{"$f":"SUM(O174:Z174)","v":304375}]
[151,"Rue Pelletier","Ville de Drummondville","Transport actif (volet 1)","Transports",1,"17-Centre-du-Québec","Ville de Drummondville","AC-Actif","SU-Subvention",100950,"2020-03-31","2020-04-22",201900,null,null,null,null,null,null,80760,null,null,null,null,null,{"$f":"SUM(O175:W175)","v":80760},{"$f":"SUM(O175:Z175)","v":80760}]
[152,"Grande-Allée","Ville de Drummondville","Transport actif (volet 1)","Transports",1,"17-Centre-du-Québec","Ville de Drummondville","AC-Actif","SU-Subvention",307624,"2020-03-31","2020-04-22",615248,null,null,null,null,null,null,246099,null,null,null,null,null,{"$f":"SUM(O176:W176)","v":246099},{"$f":"SUM(O176:Z176)","v":246099}]
[153,"Feux Évêché/Rivière","Ville de Rimouski","Transport actif (volet 1)","Transports",1,"01-Bas-Saint-Laurent","Ville de Rimouski","AC-Actif","SU-Subvention",26000,"2020-03-31","2020-04-22",52000,null,null,null,null,null,null,20800,null,null,null,null,null,{"$f":"SUM(O177:W177)","v":20800},{"$f":"SUM(O177:Z177)","v":20800}]
[154,"Feux Roul/St-J.-Bapt","Ville de Rimouski","Transport actif (volet 1)","Transports",1,"01-Bas-Saint-Laurent","Ville de Rimouski","AC-Actif","SU-Subvention",30300,"2020-03-31","2020-04-22",60600,null,null,null,null,null,null,24240,null,null,null,null,null,{"$f":"SUM(O178:W178)","v":24240},{"$f":"SUM(O178:Z178)","v":24240}]
[155,"Ferm. rue Ste-Marie","Ville de Rimouski","Transport actif (volet 1)","Transports",1,"01-Bas-Saint-Laurent","Ville de Rimouski","AC-Actif","SU-Subvention",12500,"2020-03-31","2020-04-22",25000,null,null,null,null,null,null,10000,null,null,null,null,null,{"$f":"SUM(O179:W179)","v":10000},{"$f":"SUM(O179:Z179)","v":10000}]
[156,"Amén. rue St-Pierre","Ville de Rimouski","Transport actif (volet 1)","Transports",1,"01-Bas-Saint-Laurent","Ville de Rimouski","AC-Actif","SU-Subvention",132750,"2020-03-31","2020-04-22",265500,null,null,null,null,null,null,106200,null,null,null,null,null,{"$f":"SUM(O180:W180)","v":106200},{"$f":"SUM(O180:Z180)","v":106200}]
[157,"P. bidirectionelle","Ville de Rimouski","Transport actif (volet 1)","Transports",1,"01-Bas-Saint-Laurent","Ville de Rimouski","AC-Actif","SU-Subvention",40500,"2020-03-31","2020-04-22",81000,null,null,null,null,null,null,32400,null,null,null,null,null,{"$f":"SUM(O181:W181)","v":32400},{"$f":"SUM(O181:Z181)","v":32400}]
[158,"CDN École Prep international","Ville de Montréal","Transport actif (volet 1)","Transports",1,"06-Montréal","Ville de Montréal","AC-Actif","SU-Subvention",55099,"2020-03-31","2020-04-22",110198,null,null,null,null,null,null,44079,null,null,null,null,null,{"$f":"SUM(O182:W182)","v":44079},{"$f":"SUM(O182:Z182)","v":44079}]
[159,"CND - Réam. École Iona","Ville de Montréal","Transport actif (volet 1)","Transports",1,"06-Montréal","Ville de Montréal","AC-Actif","SU-Subvention",250000,"2020-03-31","2020-04-22",877835,null,null,null,null,null,null,200000,null,null,null,null,null,{"$f":"SUM(O183:W183)","v":200000},{"$f":"SUM(O183:Z183)","v":200000}]
[160,"AHU E. Louisbourg","Ville de Montréal","Transport actif (volet 1)","Transports",1,"06-Montréal","Ville de Montréal","AC-Actif","SU-Subvention",94000,"2020-03-31","2020-04-22",188000,null,null,null,null,null,null,75200,null,null,null,null,null,{"$f":"SUM(O184:W184)","v":75200},{"$f":"SUM(O184:Z184)","v":75200}]
[161,"AHU - Laval/Roscelli","Ville de Montréal","Transport actif (volet 1)","Transports",1,"06-Montréal","Ville de Montréal","AC-Actif","SU-Subvention",243850,"2020-03-31","2020-04-22",487700,null,null,null,null,null,null,195080,null,null,null,null,null,{"$f":"SUM(O185:W185)","v":195080},{"$f":"SUM(O185:Z185)","v":195080}]
[162,"CDN - Pas de géant","Ville de Montréal","Transport actif (volet 1)","Transports",1,"06-Montréal","Ville de Montréal","AC-Actif","SU-Subvention",103425,"2020-03-31","2020-04-22",226580,null,null,null,null,null,null,82740,null,null,null,null,null,{"$f":"SUM(O186:W186)","v":82740},{"$f":"SUM(O186:Z186)","v":82740}]
[163,"CDN/A. Talmud Torah","Ville de Montréal","Transport actif (volet 1)","Transports",1,"06-Montréal","Ville de Montréal","AC-Actif","SU-Subvention",250000,"2020-03-31","2020-04-22",598496,null,null,null,null,null,null,200000,null,null,null,null,null,{"$f":"SUM(O187:W187)","v":200000},{"$f":"SUM(O187:Z187)","v":200000}]
[164,"CDN/5-Continents","Ville de Montréal","Transport actif (volet 1)","Transports",1,"06-Montréal","Ville de Montréal","AC-Actif","SU-Subvention",74365,"2020-03-31","2020-04-22",148730,null,null,null,null,null,null,59492,null,null,null,null,null,{"$f":"SUM(O188:W188)","v":59492},{"$f":"SUM(O188:Z188)","v":59492}]
[165,"AHU Caboto/Apôtre","Ville de Montréal","Transport actif (volet 1)","Transports",1,"06-Montréal","Ville de Montréal","AC-Actif","SU-Subvention",133000,"2020-03-31","2020-04-22",266600,null,null,null,null,null,null,106400,null,null,null,null,null,{"$f":"SUM(O189:W189)","v":106400},{"$f":"SUM(O189:Z189)","v":106400}]
[166,"AHU É. Visitation","Ville de Montréal","Transport actif (volet 1)","Transports",1,"06-Montréal","Ville de Montréal","AC-Actif","SU-Subvention",161500,"2020-03-31","2020-04-22",323000,null,null,null,null,null,null,129200,null,null,null,null,null,{"$f":"SUM(O190:W190)","v":129200},{"$f":"SUM(O190:Z190)","v":129200}]
[167,"CDN - Réam. Félix-L.","Ville de Montréal","Transport actif (volet 1)","Transports",1,"06-Montréal","Ville de Montréal","AC-Actif","SU-Subvention",140263,"2020-03-31","2020-04-22",280527,null,null,null,null,null,null,112210,null,null,null,null,null,{"$f":"SUM(O191:W191)","v":112210},{"$f":"SUM(O191:Z191)","v":112210}]
[168,"CDN - Réam. Enf.monde","Ville de Montréal","Transport actif (volet 1)","Transports",1,"06-Montréal","Ville de Montréal","AC-Actif","SU-Subvention",22138,"2020-03-31","2020-04-22",44277,null,null,null,null,null,null,17710,null,null,null,null,null,{"$f":"SUM(O192:W192)","v":17710},{"$f":"SUM(O192:Z192)","v":17710}]
[169,"MTN Jubinville","Ville de Montréal","Transport actif (volet 1)","Transports",1,"06-Montréal","Ville de Montréal","AC-Actif","SU-Subvention",250000,"2020-03-31","2020-04-22",911387,null,null,null,null,null,null,200000,null,null,null,null,null,{"$f":"SUM(O193:W193)","v":200000},{"$f":"SUM(O193:Z193)","v":200000}]
[170,"MTN Charleroi","Ville de Montréal","Transport actif (volet 1)","Transports",1,"06-Montréal","Ville de Montréal","AC-Actif","SU-Subvention",168874,"2020-03-31","2020-04-22",562912,null,null,null,null,null,null,135099,null,null,null,null,null,{"$f":"SUM(O194:W194)","v":135099},{"$f":"SUM(O194:Z194)","v":135099}]
[171,"MTN Support à vélo","Ville de Montréal","Transport actif (volet 1)","Transports",1,"06-Montréal","Ville de Montréal","AC-Actif","SU-Subvention",23925,"2020-03-31","2020-04-22",47850,null,null,null,null,null,null,19140,null,null,null,null,null,{"$f":"SUM(O195:W195)","v":19140},{"$f":"SUM(O195:Z195)","v":19140}]
[172,"VSM axe cyx. E.O.","Ville de Montréal","Transport actif (volet 1)","Transports",1,"06-Montréal","Ville de Montréal","AC-Actif","SU-Subvention",210534,"2020-03-31","2020-04-22",421128,null,null,null,null,null,null,168427,null,null,null,null,null,{"$f":"SUM(O196:W196)","v":168427},{"$f":"SUM(O196:Z196)","v":168427}]
[173,"CDN - É.Beth-R. - Trottoir","Ville de Montréal","Transport actif (volet 1)","Transports",1,"06-Montréal","Ville de Montréal","AC-Actif","SU-Subvention",127001,"2020-03-31","2020-04-22",278157,null,null,null,null,null,null,101601,null,null,null,null,null,{"$f":"SUM(O197:W197)","v":101601},{"$f":"SUM(O197:Z197)","v":101601}]
[174,"CDN - É. Ste-Catherine","Ville de Montréal","Transport actif (volet 1)","Transports",1,"06-Montréal","Ville de Montréal","AC-Actif","SU-Subvention",165093,"2020-03-31","2020-04-22",330186,null,null,null,null,null,null,132074,null,null,null,null,null,{"$f":"SUM(O198:W198)","v":132074},{"$f":"SUM(O198:Z198)","v":132074}]
[175,"CDN - É. St-Luc","Ville de Montréal","Transport actif (volet 1)","Transports",1,"06-Montréal","Ville de Montréal","AC-Actif","SU-Subvention",150905,"2020-03-31","2020-04-22",301810,null,null,null,null,null,null,120724,null,null,null,null,null,{"$f":"SUM(O199:W199)","v":120724},{"$f":"SUM(O199:Z199)","v":120724}]
[176,"10e Avenue","Ville d'Amos","Transport actif (volet 1)","Transports",1,"08-Abitibi-Témiscamingue","Ville d'Amos","AC-Actif","SU-Subvention",55000,"2020-03-31","2020-04-22",504646,null,null,null,null,null,null,44000,null,null,null,null,null,{"$f":"SUM(O200:W200)","v":44000},{"$f":"SUM(O200:Z200)","v":44000}]
[177,"Rue Marie-Victorin","Ville de Rouyn-Noranda","Transport actif (volet 1)","Transports",1,"08-Abitibi-Témiscamingue","Ville de Rouyn-Noranda","AC-Actif","SU-Subvention",195929,"2020-03-31","2020-04-22",391858,null,null,null,null,null,null,156743,null,null,null,null,null,{"$f":"SUM(O201:W201)","v":156743},{"$f":"SUM(O201:Z201)","v":156743}]
[178,"Rue de Métiers","Ville d'Amos","Transport actif (volet 1)","Transports",1,"08-Abitibi-Témiscamingue","Ville d'Amos","AC-Actif","SU-Subvention",241862,"2020-03-31","2020-04-22",557940,null,null,null,null,null,null,193490,null,null,null,null,null,{"$f":"SUM(O202:W202)","v":193490},{"$f":"SUM(O202:Z202)","v":193490}]
[179,"12e Avenue","Ville d'Amos","Transport actif (volet 1)","Transports",1,"08-Abitibi-Témiscamingue","Ville d'Amos","AC-Actif","SU-Subvention",70000,"2020-03-31","2020-04-22",575000,null,null,null,null,null,null,56000,null,null,null,null,null,{"$f":"SUM(O203:W203)","v":56000},{"$f":"SUM(O203:Z203)","v":56000}]
[180,"Rue Côté","Ville d'Alma","Transport actif (volet 1)","Transports",1,"02-Saguenay- Lac-Saint-Jean","Ville d'Alma","AC-Actif","SU-Subvention",71770,"2020-03-31","2020-04-22",143540,null,null,null,null,null,null,57416,null,null,null,null,null,{"$f":"SUM(O204:W204)","v":57416},{"$f":"SUM(O204:Z204)","v":57416}]
[181,"Rue Boivin","Ville d'Alma","Transport actif (volet 1)","Transports",1,"02-Saguenay- Lac-Saint-Jean","Ville d'Alma","AC-Actif","SU-Subvention",18727,"2020-03-31","2020-04-22",37455,null,null,null,null,null,null,14982,null,null,null,null,null,{"$f":"SUM(O205:W205)","v":14982},{"$f":"SUM(O205:Z205)","v":14982}]
[182,"Poly Jonquière","Ville de Saguenay","Transport actif (volet 1)","Transports",1,"02-Saguenay- Lac-Saint-Jean","Ville de Saguenay","TE-Terminé","SU-Subvention",183995,"2020-03-31","2020-04-22",663146,null,null,null,null,null,null,147196,null,36799,null,null,null,{"$f":"SUM(O206:W206)","v":183995},{"$f":"SUM(O206:Z206)","v":183995}]
[183,"Forteresse","Ville de Gatineau","Transport actif (volet 1)","Transports",1,"07-Outaouais","Ville de Gatineau","AC-Actif","SU-Subvention",157584,"2020-03-31","2020-04-22",315168,null,null,null,null,null,null,126067,null,null,null,null,null,{"$f":"SUM(O207:W207)","v":126067},{"$f":"SUM(O207:Z207)","v":126067}]
[184,"Eardley (F.Princip.)","Ville de Gatineau","Transport actif (volet 1)","Transports",1,"07-Outaouais","Ville de Gatineau","TE-Terminé","SU-Subvention",158965,"2020-03-31","2020-04-22",497258,null,null,null,null,null,null,127172,null,21825,null,null,null,{"$f":"SUM(O208:W208)","v":148997},{"$f":"SUM(O208:Z208)","v":148997}]
[185,"Rue Cannes","Ville de Gatineau","Transport actif (volet 1)","Transports",1,"07-Outaouais","Ville de Gatineau","TE-Terminé","SU-Subvention",133285,"2020-03-31","2020-04-22",266570,null,null,null,null,null,null,106628,null,26657,null,null,null,{"$f":"SUM(O209:W209)","v":133285},{"$f":"SUM(O209:Z209)","v":133285}]
[186,"Demande d'aide financière 2020 / Réseau aquatique Drummondville-d'un abri et de supports à vélos dans le complexe aquatique- Ville de Drummondville","Réseau aquatique Drummondville","Transport actif (volet 1)","Transports",1,"17-Centre-du-Québec","Réseau aquatique Drummondville","AC-Actif","SU-Subvention",7200,"2020-07-02","2021-12-31",100000,null,null,null,null,null,null,null,7200,null,null,null,null,{"$f":"SUM(O210:W210)","v":7200},{"$f":"SUM(O210:Z210)","v":7200}]
[187,"Demande d'aide financière  2020 / Le Groupe Beau-Village - d'un nouveau réseau cyclable - Ville de Gaspé","Groupe Beau Village de Rivière-au-Renard","Transport actif (volet 1)","Transports",1,"11-Gaspésie-Iles-de-la-Madeleine","Groupe Beau Village de Rivière-au-Renard","AC-Actif","SU-Subvention",317512,"2020-07-02","2021-12-31",1283696,null,null,null,null,null,null,null,317512,null,null,null,null,{"$f":"SUM(O211:W211)","v":317512},{"$f":"SUM(O211:Z211)","v":317512}]
[188,"Demande d'aide financière  2020 / d'un réseau de transports actif et collectif ","Ville de Paspébiac","Transport actif (volet 1)","Transports",1,"11-Gaspésie-Iles-de-la-Madeleine","Ville de Paspébiac","AC-Actif","SU-Subvention",383347,"2020-07-02","2021-12-31",2285055,null,null,null,null,null,null,null,383347,null,null,null,null,{"$f":"SUM(O212:W212)","v":383347},{"$f":"SUM(O212:Z212)","v":383347}]
[189,"Demande d'aide financière  2020 / d'une passerelle de seize mètres de long au-dessus du ruisseau Monier","Municipalité de Pointe-à-la-Croix","Transport actif (volet 1)","Transports",1,"11-Gaspésie-Iles-de-la-Madeleine","Municipalité de Pointe-à-la-Croix","AC-Actif","SU-Subvention",88189,"2020-07-02","2021-12-31",235472,null,null,null,null,null,null,null,88189,null,null,null,null,{"$f":"SUM(O213:W213)","v":88189},{"$f":"SUM(O213:Z213)","v":88189}]
[190,"d'un aménagement d'un lien cyclopédestre sur le viaduc de l'A-40 et la construction d'une passerelle cyclopédestre","Ville de Kirkland","Transport actif (volet 1)","Transports",1,"06-Montréal","Ville de Kirkland","AC-Actif","SU-Subvention",303056,"2020-07-02","2021-12-31",757640,null,null,null,null,null,null,null,303056,null,null,null,null,{"$f":"SUM(O214:W214)","v":303056},{"$f":"SUM(O214:Z214)","v":303056}]
[191,"Demande d'aide financière  2020 / Abris vélos à l'hôtel de ville","Ville de Rimouski","Transport actif (volet 1)","Transports",1,"01-Bas-Saint-Laurent","Ville de Rimouski","TE-Terminé","SU-Subvention",10800,"2020-07-02","2021-12-31",21600,null,null,null,null,null,null,null,10800,null,null,null,null,{"$f":"SUM(O215:W215)","v":10800},{"$f":"SUM(O215:Z215)","v":10800}]
[192,"Demande d'aide financière  2020 / Réaménagement de l'intersection Toussaint-Cartier avec la rue Saint-Pierre","Ville de Rimouski","Transport actif (volet 1)","Transports",1,"01-Bas-Saint-Laurent","Ville de Rimouski","TE-Terminé","SU-Subvention",19000,"2020-07-02","2021-12-31",38000,null,null,null,null,null,null,null,19000,null,null,null,null,{"$f":"SUM(O216:W216)","v":19000},{"$f":"SUM(O216:Z216)","v":19000}]
[193,"Demande d'aide financière  2020 / d'une passerelle au km 198 du parc linéaire le P'tit Train du Nord","MRC Antoine-Labelle","Transport actif (volet 1)","Transports",1,"15-Laurentides","MRC Antoine-Labelle","AC-Actif","SU-Subvention",1044000,"2020-07-02","2021-12-31",2610000,null,null,null,null,null,null,null,1044000,null,null,null,null,{"$f":"SUM(O217:W217)","v":1044000},{"$f":"SUM(O217:Z217)","v":1044000}]
[194,"Demande d'aide financière  2020 / d'un corridor piétonnier dans le rang 3 Ouest à partir de la rue de l'Église jusqu'à la rue Sainte-Hélène","Municipalité de Saint-Samuel","Transport actif (volet 1)","Transports",1,"17-Centre-du-Québec","Municipalité de Saint-Samuel","AC-Actif","SU-Subvention",16800,"2020-07-02","2021-12-31",42000,null,null,null,null,null,null,null,16800,null,null,null,null,{"$f":"SUM(O218:W218)","v":16800},{"$f":"SUM(O218:Z218)","v":16800}]
[195,"Demande d'aide financière  2020 / d'une piste cyclable via la route 117 et la rue Boileau","Ville de Mirabel","Transport actif (volet 1)","Transports",1,"15-Laurentides","Ville de Mirabel","TE-Terminé","SU-Subvention",906478,"2020-07-02","2021-12-31",2505000,null,null,null,null,null,null,null,906478,208716,null,null,null,{"$f":"SUM(O219:W219)","v":1115194},{"$f":"SUM(O219:Z219)","v":1115194}]
[196,"Demande d'aide financière  2020 / Bande cyclable bidirectionnelle en deux pistes cyclables unidirectionnelles entre les rues Prince-Rupert et Bergeron","Ville de Laval","Transport actif (volet 1)","Transports",1,"06-Montréal","Ville de Laval","AC-Actif","SU-Subvention",124280,"2020-07-02","2021-12-31",310700,null,null,null,null,null,null,null,124280,null,null,null,null,{"$f":"SUM(O220:W220)","v":124280},{"$f":"SUM(O220:Z220)","v":124280}]
[197,"Demande d'aide financière  2020 / Pistes cyclables unidirectionnelles sur l'avenue Ampère","Ville de Laval","Transport actif (volet 1)","Transports",1,"06-Montréal","Ville de Laval","AC-Actif","SU-Subvention",199120,"2020-07-02","2021-12-31",497800,null,null,null,null,null,null,null,199120,null,null,null,null,{"$f":"SUM(O221:W221)","v":199120},{"$f":"SUM(O221:Z221)","v":199120}]
[198,"Demande d'aide financière  2020 / Aménagement de bandes cyclables sur divers tronçons","Ville de Laval","Transport actif (volet 1)","Transports",1,"06-Montréal","Ville de Laval","AC-Actif","SU-Subvention",212701,"2020-07-02","2021-12-31",531751,null,null,null,null,null,null,null,212701,null,null,null,null,{"$f":"SUM(O222:W222)","v":212701},{"$f":"SUM(O222:Z222)","v":212701}]
[199,"Demande d'aide financière  2020 / Réalisation de mesures d'apaisement de la circulation à proximité de trois écoles primaires","Ville de Laval","Transport actif (volet 1)","Transports",1,"06-Montréal","Ville de Laval","AC-Actif","SU-Subvention",414490,"2020-07-02","2021-12-31",1124225,null,null,null,null,null,null,null,414490,null,null,null,null,{"$f":"SUM(O223:W223)","v":414490},{"$f":"SUM(O223:Z223)","v":414490}]
[200,"Demande d'aide financière  2020 / Aménagement et reconversion de bandes multifonctionelles sur divers tronçons","Ville de Laval","Transport actif (volet 1)","Transports",1,"06-Montréal","Ville de Laval","AC-Actif","SU-Subvention",507600,"2020-07-02","2021-12-31",1437122,null,null,null,null,null,null,null,507600,null,null,null,null,{"$f":"SUM(O224:W224)","v":507600},{"$f":"SUM(O224:Z224)","v":507600}]
[201,"Demande d'aide financière  2020 / Pistes multifonctionnelles sur divers tronçons ","Ville de Laval","Transport actif (volet 1)","Transports",1,"06-Montréal","Ville de Laval","AC-Actif","SU-Subvention",792628,"2020-07-02","2021-12-31",1981571,null,null,null,null,null,null,null,792628,null,null,null,null,{"$f":"SUM(O225:W225)","v":792628},{"$f":"SUM(O225:Z225)","v":792628}]
[202,"Demande d'aide financière  2020 / Mesures d'atténuations de la circulation de nouveaux corridors scolaires","Ville de Saint-Amable","Transport actif (volet 1)","Transports",1,"16-Montérégie","Ville de Saint-Amable","AC-Actif","SU-Subvention",19602,"2020-07-02","2021-12-31",49004,null,null,null,null,null,null,null,19602,null,null,null,null,{"$f":"SUM(O226:W226)","v":19602},{"$f":"SUM(O226:Z226)","v":19602}]
[203,"Demande d'aide financière  2020 / Piste cyclable utilisable par les piétons de 3 mètres par 300 mètres pour connecter une nouvelle école","Ville de saint-Amable","Transport actif (volet 1)","Transports",1,"16-Montérégie","Ville de saint-Amable","TE-Terminé","SU-Subvention",54166,"2020-07-02","2021-12-31",135416,null,null,null,null,null,null,null,54166,13542,null,null,null,{"$f":"SUM(O227:W227)","v":67708},{"$f":"SUM(O227:Z227)","v":67708}]
[204,"Demande d'aide financière  2020 / Sentier polyvalent dans le parc Jordi-Bonet","Ville de Sainte-Julie","Transport actif (volet 1)","Transports",1,"16-Montérégie","Ville de Sainte-Julie","TE-Terminé","SU-Subvention",55100,"2020-07-02","2021-12-31",131750,null,null,null,null,null,null,null,47147,null,null,null,null,{"$f":"SUM(O228:W228)","v":47147},{"$f":"SUM(O228:Z228)","v":47147}]
[205,"Demande d'aide financière  2020 / Piste multifonction entre le rang de la Vallée et le boulevard Armand-Frappier","Ville de Sainte-Julie","Transport actif (volet 1)","Transports",1,"16-Montérégie","Ville de Sainte-Julie","AC-Actif","SU-Subvention",300000,"2020-07-02","2021-12-31",750000,null,null,null,null,null,null,null,300000,null,null,null,null,{"$f":"SUM(O229:W229)","v":300000},{"$f":"SUM(O229:Z229)","v":300000}]
[206,"Demande d'aide financière  2020 / d'une piste multifonctionnelle dans l'emprise de la rue Jeannotte","Ville de Mont-Saint-Hilaire","Transport actif (volet 1)","Transports",1,"16-Montérégie","Ville de Mont-Saint-Hilaire","AC-Actif","SU-Subvention",92290,"2020-07-02","2021-12-31",230725,null,null,null,null,null,null,null,92290,null,null,null,null,{"$f":"SUM(O230:W230)","v":92290},{"$f":"SUM(O230:Z230)","v":92290}]
[207,"Demande d'aide financière  2020 / d'une piste cyclable devant l'école Jean-Leman","Ville de Candiac","Transport actif (volet 1)","Transports",1,"16-Montérégie","Ville de Candiac","AC-Actif","SU-Subvention",27909,"2020-07-02","2021-12-31",72928,null,null,null,null,null,null,null,27909,null,null,null,null,{"$f":"SUM(O231:W231)","v":27909},{"$f":"SUM(O231:Z231)","v":27909}]
[208,"Demande d'aide financière  2020 / Aménagement d'une bande cyclable sur la rue Main","Ville de Gatineau","Transport actif (volet 1)","Transports",1,"07-Outaouais","Ville de Gatineau","AC-Actif","SU-Subvention",61200,"2020-07-02","2021-12-31",373666,null,null,null,null,null,null,null,61200,null,null,null,null,{"$f":"SUM(O232:W232)","v":61200},{"$f":"SUM(O232:Z232)","v":61200}]
[209,"Demande d'aide financière  2020 / Aménagement d'une piste multifonctionnelle biderectionnelle du côté ouest du boulevard de la Cité des jeunes","Ville de Gatineau","Transport actif (volet 1)","Transports",1,"07-Outaouais","Ville de Gatineau","TE-Terminé","SU-Subvention",90082,"2020-07-02","2021-12-31",225207,null,null,null,null,null,null,null,90082,22521,null,null,null,{"$f":"SUM(O233:W233)","v":112603},{"$f":"SUM(O233:Z233)","v":112603}]
[210,"Demande d'aide financière  2020 / d'un sentier polyvalent incluant une passerelle en acier et bois sur la rue Allen","Ville de Gatineau","Transport actif (volet 1)","Transports",1,"07-Outaouais","Ville de Gatineau","TE-Terminé","SU-Subvention",227121,"2020-07-02","2021-12-31",567805,null,null,null,null,null,null,null,227121,56781,null,null,null,{"$f":"SUM(O234:W234)","v":283902},{"$f":"SUM(O234:Z234)","v":283902}]
[211,"Demande d'aide financière  2020 / Aménagement d'un lien cyclable sur trois rues menant vers l'école du Parc-de-la-Montagne","Ville de Gatineau","Transport actif (volet 1)","Transports",1,"07-Outaouais","Ville de Gatineau","TE-Terminé","SU-Subvention",262711,"2020-07-02","2021-12-31",800378,null,null,null,null,null,null,null,262711,65678,null,null,null,{"$f":"SUM(O235:W235)","v":328389},{"$f":"SUM(O235:Z235)","v":328389}]
[212,"Écriture à régulariser (A venir)",null,null,null,null,null,null,null,null,null,null,null,null,null,null,null,null,null,null,null,null,-5862066,null,null,null,{"$f":"SUM(O236:W236)","v":-5862066},{"$f":"SUM(O236:Z236)","v":-5862066}]
[213,null,null,null,null,null,null,null,null,null,null,null,null,null,null,null,null,null,null,null,null,null,null,null,null,null,{"$f":"SUM(O237:W237)","v":0},{"$f":"SUM(O237:Z237)","v":0}]
[214,null,null,null,null,null,null,null,null,null,null,null,null,null,null,null,null,null,null,null,null,null,null,null,null,null,{"$f":"SUM(O238:W238)","v":0},{"$f":"SUM(O238:Z238)","v":0}]
[215,"Demande d'aide financière  2020 / Aménagement de l'intersection du boulevard Henri-Bourassa avec les rues des Martinets et des Roses","Ville de Québec","Transport actif (volet 1)","Transports",1,"03-Capitale-Nationale","Ville de Québec","TE-Terminé","SU-Subvention",69484,"2020-07-02","2021-12-31",173170,null,null,null,null,null,null,null,69484,17371,null,null,null,{"$f":"SUM(O239:W239)","v":86855},{"$f":"SUM(O239:Z239)","v":86855}]
[216,"Demande d'aide financière  2020 / Piste cyclopiétonne aménagée sur le viaduc de l'avenue Chauveau permettant de franchir l'autoroute Henri-IV","Ville de Québec","Transport actif (volet 1)","Transports",1,"03-Capitale-Nationale","Ville de Québec","TE-Terminé","SU-Subvention",91200,"2020-07-02","2021-12-31",228000,null,null,null,null,null,null,null,68419,null,null,null,null,{"$f":"SUM(O240:W240)","v":68419},{"$f":"SUM(O240:Z240)","v":68419}]
[217,"Demande d'aide financière  2020 / Construction d'un trottoir sur le côté nord et est de la rue Buffon, entre l'avenue Benjamin-Sulte et le boulevard Chauveau Ouest","Ville de Québec","Transport actif (volet 1)","Transports",1,"03-Capitale-Nationale","Ville de Québec","AC-Actif","SU-Subvention",96913,"2020-07-02","2021-12-31",242828,null,null,null,null,null,null,null,96913,null,null,null,null,{"$f":"SUM(O241:W241)","v":96913},{"$f":"SUM(O241:Z241)","v":96913}]
[218,"Demande d'aide financière  2020 / Aménagement de bandes cyclables unidirectionnelles sur le chemin Sainte-Foy et l'avenue McCartney","Ville de Québec","Transport actif (volet 1)","Transports",1,"03-Capitale-Nationale","Ville de Québec","TE-Terminé","SU-Subvention",104000,"2020-07-02","2021-12-31",299958,null,null,null,null,null,null,null,104000,26000,null,null,null,{"$f":"SUM(O242:W242)","v":130000},{"$f":"SUM(O242:Z242)","v":130000}]
[219,"Demande d'aide financière  2020 / Construction d'avancées de trottoir et rétrécissement de la chaussée sur la rue Raoul-Jobin près de l'école primaire Saint-Malo","Ville de Québec","Transport actif (volet 1)","Transports",1,"03-Capitale-Nationale","Ville de Québec","AC-Actif","SU-Subvention",136702,"2020-07-02","2021-12-31",534265,null,null,null,null,null,null,null,136702,null,null,null,null,{"$f":"SUM(O243:W243)","v":136702},{"$f":"SUM(O243:Z243)","v":136702}]
[220,"Demande d'aide financière  2020 / Piste cyclopiétonne située dans l'emprise de la rue Armand-Viau entre la rue Jean-Marchand et le boulevard l'Ormière","Ville de Québec","Transport actif (volet 1)","Transports",1,"03-Capitale-Nationale","Ville de Québec","TE-Terminé","SU-Subvention",326400,"2020-07-02","2021-12-31",816000,null,null,null,null,null,null,null,326400,13493,null,null,null,{"$f":"SUM(O244:W244)","v":339893},{"$f":"SUM(O244:Z244)","v":339893}]
[221,"Demande d'aide financière  2020 / d'un projet de corridor scolaire près de l'école du Versant","Municipalité de Larouche","Transport actif (volet 1)","Transports",1,"02-Saguenay- Lac-Saint-Jean","Municipalité de Larouche","TE-Terminé","SU-Subvention",5166,"2020-07-02","2021-12-31",15666,null,null,null,null,null,null,null,5166,1262,null,null,null,{"$f":"SUM(O245:W245)","v":6428},{"$f":"SUM(O245:Z245)","v":6428}]
[222,"Demande d'aide financière  2020 / de mesures de modération de la circulation devant la future école des Explorateurs","Ville de Terrebonne","Transport actif (volet 1)","Transports",1,"06-Montréal","Ville de Terrebonne","TE-Terminé","SU-Subvention",77256,"2020-07-02","2021-12-31",193140,null,null,null,null,null,null,null,77256,19314,null,null,null,{"$f":"SUM(O246:W246)","v":96570},{"$f":"SUM(O246:Z246)","v":96570}]
[223,"Demande d'aide financière  2020 / RDP - sentier polyvalent pour créer un lien avec la gare (secteur gare Rivière-des-Prairies - Piste cyclable et sentier piétonnier)","Ville de Montréal","Transport actif (volet 1)","Transports",1,"06-Montréal","Ville de Montréal","AC-Actif","SU-Subvention",72000,"2020-07-02","2021-12-31",445000,null,null,null,null,null,null,null,72000,null,null,null,null,{"$f":"SUM(O247:W247)","v":72000},{"$f":"SUM(O247:Z247)","v":72000}]
[224,"Demande d'aide financière  2020 / STL - tronçon sécuritaire sur la rue Chameran entre les rues Deguire et Bleignier","Ville de Montréal","Transport actif (volet 1)","Transports",1,"06-Montréal","Ville de Montréal","AC-Actif","SU-Subvention",80605,"2020-07-02","2021-12-31",201152,null,null,null,null,null,null,null,80605,null,null,null,null,{"$f":"SUM(O248:W248)","v":80605},{"$f":"SUM(O248:Z248)","v":80605}]
[225,"Demande d'aide financière  2020 / RPP - 700 stationnements pour vélos dans les espaces publics","Ville de Montréal","Transport actif (volet 1)","Transports",1,"06-Montréal","Ville de Montréal","AC-Actif","SU-Subvention",108426,"2020-07-02","2021-12-31",267066,null,null,null,null,null,null,null,108426,null,null,null,null,{"$f":"SUM(O249:W249)","v":108426},{"$f":"SUM(O249:Z249)","v":108426}]
[226,"Demande d'aide financière  2020 / PMR - Saillies et fosses de plantation au coin de l'avenue du Mont-Royal et de la rue Cartier","Ville de Montréal","Transport actif (volet 1)","Transports",1,"06-Montréal","Ville de Montréal","AC-Actif","SU-Subvention",158982,"2020-07-02","2021-12-31",435265,null,null,null,null,null,null,null,158982,null,null,null,null,{"$f":"SUM(O250:W250)","v":158982},{"$f":"SUM(O250:Z250)","v":158982}]
[227,"Demande d'aide financière  2020 / PMR - Saillies et fosses de plantation au coin de l'avenue du Mont-Royal et des rues Garnier et Fabre","Ville de Montréal","Transport actif (volet 1)","Transports",1,"06-Montréal","Ville de Montréal","AC-Actif","SU-Subvention",200000,"2020-07-02","2021-12-31",715525,null,null,null,null,null,null,null,200000,null,null,null,null,{"$f":"SUM(O251:W251)","v":200000},{"$f":"SUM(O251:Z251)","v":200000}]
[228,"Demande d'aide financière  2020 / PMR - Sécurisation des traverses piétonnes aux Terrasses Roy ","Ville de Montréal","Transport actif (volet 1)","Transports",1,"06-Montréal","Ville de Montréal","AC-Actif","SU-Subvention",200000,"2020-07-02","2021-12-31",2171064,null,null,null,null,null,null,null,200000,null,null,null,null,{"$f":"SUM(O252:W252)","v":200000},{"$f":"SUM(O252:Z252)","v":200000}]
[229,"Demande d'aide financière  2020 / PMR - Sécurisation d'un tronçon de la rue Gauthier entre Papineau et Bordeaux","Ville de Montréal","Transport actif (volet 1)","Transports",1,"06-Montréal","Ville de Montréal","AC-Actif","SU-Subvention",200000,"2020-07-02","2021-12-31",1626468,null,null,null,null,null,null,null,200000,null,null,null,null,{"$f":"SUM(O253:W253)","v":200000},{"$f":"SUM(O253:Z253)","v":200000}]
[230,"Demande d'aide financière  2020 / SMV - passage à niveau afin de relier l'avenue Ogilvy et la rue De Castelnau","Ville de Montréal","Transport actif (volet 1)","Transports",1,"06-Montréal","Ville de Montréal","AC-Actif","SU-Subvention",276598,"2020-07-02","2021-12-31",691494,null,null,null,null,null,null,null,276598,null,null,null,null,{"$f":"SUM(O254:W254)","v":276598},{"$f":"SUM(O254:Z254)","v":276598}]
[231,"Demande d'aide financière  2020 / d'une bande cyclable de chaque côté de la rue du Centre","Municipalité de Longue-Pointe-de-Mingan","Transport actif (volet 1)","Transports",1,"09-Côte-Nord","Municipalité de Longue-Pointe-de-Mingan","AC-Actif","SU-Subvention",141746,"2020-07-02","2021-12-31",354364,null,null,null,null,null,null,null,141746,null,null,null,null,{"$f":"SUM(O255:W255)","v":141746},{"$f":"SUM(O255:Z255)","v":141746}]
[232,"Demande d'aide financière  2020 / d'une piste cyclable entre deux quartiers ","Municipalité de Saint-Boniface","Transport actif (volet 1)","Transports",1,"04-Mauricie ","Municipalité de Saint-Boniface","AC-Actif","SU-Subvention",168000,"2020-07-02","2021-12-31",420000,null,null,null,null,null,null,null,168000,null,null,null,null,{"$f":"SUM(O256:W256)","v":168000},{"$f":"SUM(O256:Z256)","v":168000}]
[233,"Demande d'aide financière  2020 / du projet de réaménagement de l'intersection Romulus","Ville de Victoriaville","Transport actif (volet 1)","Transports",1,"17-Centre-du-Québec","Ville de Victoriaville","TE-Terminé","SU-Subvention",106695,"2020-07-02","2021-12-31",312681,null,null,null,null,null,null,null,106695,745,null,null,null,{"$f":"SUM(O257:W257)","v":107440},{"$f":"SUM(O257:Z257)","v":107440}]
[234,"Demande d'aide financière  2020 / Supports à vélos à l'hôtel de ville","Ville de Trois-Rivières","Transport actif (volet 1)","Transports",1,"04-Mauricie ","Ville de Trois-Rivières","AC-Actif","SU-Subvention",5000,"2020-07-02","2021-12-31",13000,null,null,null,null,null,null,null,5000,null,null,null,null,{"$f":"SUM(O258:W258)","v":5000},{"$f":"SUM(O258:Z258)","v":5000}]
[235,"Demande d'aide financière  2020 / Supports à vélos à la bibliothèque","Ville de Trois-Rivières","Transport actif (volet 1)","Transports",1,"04-Mauricie ","Ville de Trois-Rivières","AC-Actif","SU-Subvention",8000,"2020-07-02","2021-12-31",25000,null,null,null,null,null,null,null,8000,null,null,null,null,{"$f":"SUM(O259:W259)","v":8000},{"$f":"SUM(O259:Z259)","v":8000}]
[236,"Demande d'aide financière  2020 / Réaménagement du carrefour de la rue Vachon et de l'autoroute 40 Est","Ville de Trois-Rivières","Transport actif (volet 1)","Transports",1,"04-Mauricie ","Ville de Trois-Rivières","AC-Actif","SU-Subvention",36000,"2020-07-02","2021-12-31",400000,null,null,null,null,null,null,null,36000,null,null,null,null,{"$f":"SUM(O260:W260)","v":36000},{"$f":"SUM(O260:Z260)","v":36000}]
[237,"Demande d'aide financière  2020 / Piste cyclable entre l'Amphithéâtre Cogeco et le fleuve Saint-Laurent","Ville de Trois-Rivières","Transport actif (volet 1)","Transports",1,"04-Mauricie ","Ville de Trois-Rivières","AC-Actif","SU-Subvention",37600,"2020-07-02","2021-12-31",94000,null,null,null,null,null,null,null,37600,null,null,null,null,{"$f":"SUM(O261:W261)","v":37600},{"$f":"SUM(O261:Z261)","v":37600}]
[238,"Demande d'aide financière  2020 / Mesures de modération de la circulation à l'intersection du boulevard Sainte-Marguerite et de la rue des Coopérants","Ville de Trois-Rivières","Transport actif (volet 1)","Transports",1,"04-Mauricie ","Ville de Trois-Rivières","AC-Actif","SU-Subvention",52400,"2020-07-02","2021-12-31",131000,null,null,null,null,null,null,null,52400,null,null,null,null,{"$f":"SUM(O262:W262)","v":52400},{"$f":"SUM(O262:Z262)","v":52400}]
[239,"Demande d'aide financière  2020 / Mesures de modération de la circulation à l'intersection du boulevard des Forges et de la rue Terrière","Ville de Trois-Rivières","Transport actif (volet 1)","Transports",1,"04-Mauricie ","Ville de Trois-Rivières","AC-Actif","SU-Subvention",66400,"2020-07-02","2021-12-31",166000,null,null,null,null,null,null,null,66400,null,null,null,null,{"$f":"SUM(O263:W263)","v":66400},{"$f":"SUM(O263:Z263)","v":66400}]
[240,"Demande d'aide financière  2020 / Bande cyclable avec trottoirs le long de la rue Violette, entre la rue Lajoie et Montcalm","Ville de Trois-Rivières","Transport actif (volet 1)","Transports",1,"04-Mauricie ","Ville de Trois-Rivières","AC-Actif","SU-Subvention",200000,"2020-07-02","2021-12-31",2000000,null,null,null,null,null,null,null,200000,null,null,null,null,{"$f":"SUM(O264:W264)","v":200000},{"$f":"SUM(O264:Z264)","v":200000}]
[241,"Demande d'aide financière  2020 / Réalignement et ajout d'un feu piétonnier à l'intersection Hôpital Cooke/Sainte-Marguerite","Ville de Trois-Rivières","Transport actif (volet 1)","Transports",1,"04-Mauricie ","Ville de Trois-Rivières","AC-Actif","SU-Subvention",304480,"2020-07-02","2021-12-31",2523000,null,null,null,null,null,null,null,304480,null,null,null,null,{"$f":"SUM(O265:W265)","v":304480},{"$f":"SUM(O265:Z265)","v":304480}]
[242,"Demande d'aide financière  2020 / de deux sections de pistes cyclables en site propre sur la rue du Roi-Georges","Ville de Saguenay","Transport actif (volet 1)","Transports",1,"02-Saguenay- Lac-Saint-Jean","Ville de Saguenay","TE-Terminé","SU-Subvention",97276,"2020-07-02","2021-12-31",243191,null,null,null,null,null,null,null,97276,14963,null,null,null,{"$f":"SUM(O266:W266)","v":112239},{"$f":"SUM(O266:Z266)","v":112239}]
[243,"Demande d'aide financière  2020 / d'un parcours scolaire allant de montée Laframbroise à l'école Granada","Ville de Rouyn-Noranda","Transport actif (volet 1)","Transports",1,"08-Abitibi-Témiscamingue","Ville de Rouyn-Noranda","AC-Actif","SU-Subvention",93812,"2020-07-02","2021-12-31",234530,null,null,null,null,null,null,null,93812,null,null,null,null,{"$f":"SUM(O267:W267)","v":93812},{"$f":"SUM(O267:Z267)","v":93812}]
[244,"Demande d'aide financière  2020 / d'un réseau multifonctionnel ","Ville de Témiscaming","Transport actif (volet 1)","Transports",1,"08-Abitibi-Témiscamingue","Ville de Témiscaming","AC-Actif","SU-Subvention",122400,"2020-07-02","2021-12-31",306000,null,null,null,null,null,null,null,122400,null,null,null,null,{"$f":"SUM(O268:W268)","v":122400},{"$f":"SUM(O268:Z268)","v":122400}]
[245,"Demande d'aide financière  2020 / d'un accotement revêtu le long des rues Valéri-Paquin et Francine ","Municipalité de Saint-Joseph-du-Lac","Transport actif (volet 1)","Transports",1,"15-Laurentides","Municipalité de Saint-Joseph-du-Lac","AC-Actif","SU-Subvention",44198,"2020-07-02","2021-12-31",115545,null,null,null,null,null,null,null,44198,null,null,null,null,{"$f":"SUM(O269:W269)","v":44198},{"$f":"SUM(O269:Z269)","v":44198}]
[246,"Demande d'aide financière  2020 / d'un lien cyclable bidirectionnel sur le pont Joffre","Ville de Sherbrooke","Transport actif (volet 1)","Transports",1,"05-Estrie","Ville de Sherbrooke","AC-Actif","SU-Subvention",130000,"2020-07-02","2021-12-31",1200000,null,null,null,null,null,null,null,130000,350000,null,null,null,{"$f":"SUM(O270:W270)","v":480000},{"$f":"SUM(O270:Z270)","v":480000}]
[247,"Demande d'aide financière  2020 / de plusieurs aménagements favorisant le transport actif sur la rue De Rigaud","Ville de Saint-Bruno-de-Montarville","Transport actif (volet 1)","Transports",1,"16-Montérégie","Ville de Saint-Bruno-de-Montarville","AC-Actif","SU-Subvention",149392,"2020-07-02","2021-12-31",3500000,null,null,null,null,null,null,null,149392,null,null,null,null,{"$f":"SUM(O271:W271)","v":149392},{"$f":"SUM(O271:Z271)","v":149392}]
[248,"Demande d'aide financière  2020 / de dos d'âne et supports à vélos devant les établissements scolaires ","Ville de Mont-Royal","Transport actif (volet 1)","Transports",1,"06-Montréal","Ville de Mont-Royal","AC-Actif","SU-Subvention",10867,"2020-07-02","2021-12-31",60000,null,null,null,null,null,null,null,10867,null,null,null,null,{"$f":"SUM(O272:W272)","v":10867},{"$f":"SUM(O272:Z272)","v":10867}]
[249,"Demande d'aide financière  2020 / d'une infrastructure de mobilité active entre le secteur de Joli-Bois et le centre de service du village ","Ville de Sainte-Marguerite-du-Lac-Masson","Transport actif (volet 1)","Transports",1,"15-Laurentides","Ville de Sainte-Marguerite-du-Lac-Masson","AC-Actif","SU-Subvention",406820,"2020-07-02","2021-12-31",1164369,null,null,null,null,null,null,null,406820,null,null,null,null,{"$f":"SUM(O273:W273)","v":406820},{"$f":"SUM(O273:Z273)","v":406820}]
[250,"Demande d'aide financière  2020 / d'un trottoir et d'un débarcadère pour autobus sur la rue Baillargeon ","Ville de Brossard","Transport actif (volet 1)","Transports",1,"16-Montérégie","Ville de Brossard","AC-Actif","SU-Subvention",47625,"2020-07-02","2021-12-31",124462,null,null,null,null,null,null,null,47625,null,null,null,null,{"$f":"SUM(O274:W274)","v":47625},{"$f":"SUM(O274:Z274)","v":47625}]
[251,"Aménagement d'une piste cyclable séparé sur le chemin de la Rivière","Ville de Sainte-Agathe-des-Monts","Transport actif \n(2 ième appel de projet)","Transports",1,"15-Laurentides","Ville de Sainte-Agathe-des-Monts","AC-Actif","SU-Subvention",600000,"2021-02-04","2021-12-31",null,null,null,null,null,null,null,null,480000,null,null,null,null,{"$f":"SUM(O275:W275)","v":480000},{"$f":"SUM(O275:Z275)","v":480000}]
[252,"Aménagement d'une piste cyclable bidirectionnelle en bordure de la chaussée","Municipalité de Saint-Placide","Transport actif \n(2 ième appel de projet)","Transports",1,"15-Laurentides","Municipalité de Saint-Placide","AC-Actif","SU-Subvention",378602,"2021-02-04","2021-12-31",null,null,null,null,null,null,null,null,302882,302882,null,null,null,{"$f":"SUM(O276:W276)","v":605764},{"$f":"SUM(O276:Z276)","v":605764}]
[253,"Réaménagement de la rue Lapierre entre Pascal et Maurice-Duplessis ","Arrondissement de Montréal-Nord","Transport actif \n(2 ième appel de projet)","Transports",1,"06-Montréal","Arrondissement de Montréal-Nord","AC-Actif","SU-Subvention",250000,"2021-02-04","2021-12-31",null,null,null,null,null,null,null,null,200000,null,null,null,null,{"$f":"SUM(O277:W277)","v":200000},{"$f":"SUM(O277:Z277)","v":200000}]
[254,"Construction d'une passerelle reliant le quartier St-Luc et le centre-ville ","Ville de Rivière-du-Loup","Transport actif \n(2 ième appel de projet)","Transports",1,"01-Bas-Saint-Laurent","Ville de Rivière-du-Loup","AC-Actif","SU-Subvention",508927,"2021-02-04","2021-12-31",null,null,null,null,null,null,null,null,407142,null,null,null,null,{"$f":"SUM(O278:W278)","v":407142},{"$f":"SUM(O278:Z278)","v":407142}]
[255,"Construction d'une piste cyclable dans l'emprise de la 9e Rue Sud ","Ville de Thetford Mines","Transport actif \n(2 ième appel de projet)","Transports",1,"12-Chaudières-Appalaches","Ville de Thetford Mines","AC-Actif","SU-Subvention",49763,"2021-02-04","2021-12-31",null,null,null,null,null,null,null,null,39810,null,null,null,null,{"$f":"SUM(O279:W279)","v":39810},{"$f":"SUM(O279:Z279)","v":39810}]
[256,null,null,null,null,null,null,null,null,null,null,null,null,null,null,null,null,null,null,null,null,null,null,null,null,null,{"$f":"SUM(O280:W280)","v":0},{"$f":"SUM(O280:Z280)","v":0}]
[257,"Construction d'un corridor de déplacement sécuritaire à usage polyvalent","Municipalité de L'Isle-Verte","Transport actif \n(2 ième appel de projet)","Transports",1,"01-Bas-Saint-Laurent","Municipalité de L'Isle-Verte","AC-Actif","SU-Subvention",406301,"2021-02-04","2021-12-31",null,null,null,null,null,null,null,null,325041,null,null,null,null,{"$f":"SUM(O281:W281)","v":325041},{"$f":"SUM(O281:Z281)","v":325041}]
[258,"Construction d'aménagements cyclables sur la route 138 ","Ville de Baie-St-Paul","Transport actif \n(2 ième appel de projet)","Transports",1,"03-Capitale-Nationale","Ville de Baie-St-Paul","AC-Actif","SU-Subvention",993125,"2021-02-04","2021-12-31",null,null,null,null,null,null,null,null,794500,null,null,null,null,{"$f":"SUM(O282:W282)","v":794500},{"$f":"SUM(O282:Z282)","v":794500}]
[259,"Aménagement d'une piste partagée sur le boulevard Raymond-Mailloux","Ville de Baie-St-Paul","Transport actif \n(2 ième appel de projet)","Transports",1,"03-Capitale-Nationale","Ville de Baie-St-Paul","AC-Actif","SU-Subvention",11500,"2021-02-04","2021-12-31",null,null,null,null,null,null,null,null,9200,null,null,null,null,{"$f":"SUM(O283:W283)","v":9200},{"$f":"SUM(O283:Z283)","v":9200}]
[260,"Mesures d'aménagement de la circulation près de deux établissements scolaires","Ville de Lac-Brome","Transport actif \n(2 ième appel de projet)","Transports",1,"16-Montérégie","Ville de Lac-Brome","AC-Actif","SU-Subvention",16542,"2021-02-04","2021-12-31",null,null,null,null,null,null,null,null,13234,null,null,null,null,{"$f":"SUM(O284:W284)","v":13234},{"$f":"SUM(O284:Z284)","v":13234}]
[261,"Prolongement de la piste cyclable de la rue Notre-Dame jusqu'à Bonaventure\n","Ville de Repentigny","Transport actif \n(2 ième appel de projet)","Transports",1,"14-Lanaudière","Ville de Repentigny","AC-Actif","SU-Subvention",200000,"2021-02-04","2021-12-31",null,null,null,null,null,null,null,null,160000,null,null,null,null,{"$f":"SUM(O285:W285)","v":160000},{"$f":"SUM(O285:Z285)","v":160000}]
[262,"Aménagement d'une accessibilité universelle sur la rue des Métiers, de l'Avenue des Forestiers jusqu'à l'Avenue du Parc","Ville d'Amos","Transport actif \n(2 ième appel de projet)","Transports",1,"08-Abitibi-Témiscamingue","Ville d'Amos","AC-Actif","SU-Subvention",76093,"2021-02-04","2021-12-31",null,null,null,null,null,null,null,null,60874,null,null,null,null,{"$f":"SUM(O286:W286)","v":60874},{"$f":"SUM(O286:Z286)","v":60874}]
[263,"Construction d'une piste cyclable sur la 4e Avenue Ouest","Ville d'Amos","Transport actif \n(2 ième appel de projet)","Transports",1,"08-Abitibi-Témiscamingue","Ville d'Amos","AC-Actif","SU-Subvention",33848,"2021-02-04","2021-12-31",null,null,null,null,null,null,null,null,27078,null,null,null,null,{"$f":"SUM(O287:W287)","v":27078},{"$f":"SUM(O287:Z287)","v":27078}]
[264,"Aménagement d'une piste multifonctionnelle sur la rue de la Montagne","Ville de Saint-Basile-le-Grand","Transport actif \n(2 ième appel de projet)","Transports",1,"16-Montérégie","Ville de Saint-Basile-le-Grand","AC-Actif","SU-Subvention",122113,"2021-02-04","2021-12-31",null,null,null,null,null,null,null,null,97690,null,null,null,null,{"$f":"SUM(O288:W288)","v":97690},{"$f":"SUM(O288:Z288)","v":97690}]
[265,null,null,null,null,null,null,null,null,null,null,null,null,null,null,null,null,null,null,null,null,null,null,null,null,null,{"$f":"SUM(O289:W289)","v":0},{"$f":"SUM(O289:Z289)","v":0}]
[266,"Projet d'aménagement d'une piste cyclable et d'un trottoir du côté nord du Boulevard Taché","Ville de Montmagny","Transport actif \n(2 ième appel de projet)","Transports",1,"12-Chaudières-Appalaches","Ville de Montmagny","AC-Actif","SU-Subvention",62600,"2021-02-04","2021-12-31",null,null,null,null,null,null,null,null,50080,8884,null,null,null,{"$f":"SUM(O290:W290)","v":58964},{"$f":"SUM(O290:Z290)","v":58964}]
[267,"Prolongement d'une piste cyclable dans l'emprise de la rue Bernières","Ville de Lévis","Transport actif \n(2 ième appel de projet)","Transports",1,"12-Chaudières-Appalaches","Ville de Lévis","AC-Actif","SU-Subvention",328000,"2021-02-04","2021-12-31",null,null,null,null,null,null,null,null,262400,null,null,null,null,{"$f":"SUM(O291:W291)","v":262400},{"$f":"SUM(O291:Z291)","v":262400}]
[268,"Mise en place d'une piste bidirectionnelle sur la 6e Avenue","Ville de Richmond","Transport actif \n(2 ième appel de projet)","Transports",1,"05-Estrie","Ville de Richmond","AC-Actif","SU-Subvention",31055,"2021-02-04","2021-12-31",null,null,null,null,null,null,null,null,24844,null,null,null,null,{"$f":"SUM(O292:W292)","v":24844},{"$f":"SUM(O292:Z292)","v":24844}]
[269,"Construction d'une bande cyclable bidirectionnelle entre la 6e rue et la 1re rue dans le secteur de Port-Alfred","Ville de Saguenay","Transport actif \n(2 ième appel de projet)","Transports",1,"02-Saguenay- Lac-Saint-Jean","Ville de Saguenay","AC-Actif","SU-Subvention",45819,"2021-02-04","2021-12-31",null,null,null,null,null,null,null,null,36655,null,null,null,null,{"$f":"SUM(O293:W293)","v":36655},{"$f":"SUM(O293:Z293)","v":36655}]
[270,null,null,null,null,null,null,null,null,null,null,null,null,null,null,null,null,null,null,null,null,null,null,null,null,null,{"$f":"SUM(O294:W294)","v":0},{"$f":"SUM(O294:Z294)","v":0}]
[271,null,null,null,null,null,null,null,null,null,null,null,null,null,null,null,null,null,null,null,null,null,null,null,null,null,{"$f":"SUM(O295:W295)","v":0},{"$f":"SUM(O295:Z295)","v":0}]
[272,null,null,null,null,null,null,null,null,null,null,null,null,null,null,null,null,null,null,null,null,null,null,null,null,null,{"$f":"SUM(O296:W296)","v":0},{"$f":"SUM(O296:Z296)","v":0}]
[273,null,null,null,null,null,null,null,null,null,null,null,null,null,null,null,null,null,null,null,null,null,null,null,null,null,{"$f":"SUM(O297:W297)","v":0},{"$f":"SUM(O297:Z297)","v":0}]
[274,null,null,null,null,null,null,null,null,null,null,null,null,null,null,null,null,null,null,null,null,null,null,null,null,null,{"$f":"SUM(O298:W298)","v":0},{"$f":"SUM(O298:Z298)","v":0}]
[275,null,null,null,null,null,null,null,null,null,null,null,null,null,null,null,null,null,null,null,null,null,null,null,null,null,{"$f":"SUM(O299:W299)","v":0},{"$f":"SUM(O299:Z299)","v":0}]
[276,null,null,null,null,null,null,null,null,null,null,null,null,null,null,null,null,null,null,null,null,null,null,null,null,null,{"$f":"SUM(O300:W300)","v":0},{"$f":"SUM(O300:Z300)","v":0}]
[277,null,null,null,null,null,null,null,null,null,null,null,null,null,null,null,null,null,null,null,null,null,null,null,null,null,{"$f":"SUM(O301:W301)","v":0},{"$f":"SUM(O301:Z301)","v":0}]
[278,null,null,null,null,null,null,null,null,null,null,null,null,null,null,null,null,null,null,null,null,null,null,null,null,null,{"$f":"SUM(O302:W302)","v":0},{"$f":"SUM(O302:Z302)","v":0}]
[279,null,null,null,null,null,null,null,null,null,null,null,null,null,null,null,null,null,null,null,null,null,null,null,null,null,{"$f":"SUM(O303:W303)","v":0},{"$f":"SUM(O303:Z303)","v":0}]
[280,null,null,null,null,null,null,null,null,null,null,null,null,null,null,null,null,null,null,null,null,null,null,null,null,null,{"$f":"SUM(O304:W304)","v":0},{"$f":"SUM(O304:Z304)","v":0}]
[281,null,null,null,null,null,null,null,null,null,null,null,null,null,null,null,null,null,null,null,null,null,null,null,null,null,{"$f":"SUM(O305:W305)","v":0},{"$f":"SUM(O305:Z305)","v":0}]
[282,null,null,null,null,null,null,null,null,null,null,null,null,null,null,null,null,null,null,null,null,null,null,null,null,null,{"$f":"SUM(O306:W306)","v":0},{"$f":"SUM(O306:Z306)","v":0}]
[283,null,null,null,null,null,null,null,null,null,null,null,null,null,null,null,null,null,null,null,null,null,null,null,null,null,{"$f":"SUM(O307:W307)","v":0},{"$f":"SUM(O307:Z307)","v":0}]
[284,null,null,null,null,null,null,null,null,null,null,null,null,null,null,null,null,null,null,null,null,null,null,null,null,null,{"$f":"SUM(O308:W308)","v":0},{"$f":"SUM(O308:Z308)","v":0}]
[285,null,null,null,null,null,null,null,null,null,null,null,null,null,null,null,null,null,null,null,null,null,null,null,null,null,{"$f":"SUM(O309:W309)","v":0},{"$f":"SUM(O309:Z309)","v":0}]
[286,null,null,null,null,null,null,null,null,null,null,null,null,null,null,null,null,null,null,null,null,null,null,null,null,null,{"$f":"SUM(O310:W310)","v":0},{"$f":"SUM(O310:Z310)","v":0}]
[287,null,null,null,null,null,null,null,null,null,null,null,null,null,null,null,null,null,null,null,null,null,null,null,null,null,{"$f":"SUM(O311:W311)","v":0},{"$f":"SUM(O311:Z311)","v":0}]
[288,null,null,null,null,null,null,null,null,null,null,null,null,null,null,null,null,null,null,null,null,null,null,null,null,null,{"$f":"SUM(O312:W312)","v":0},{"$f":"SUM(O312:Z312)","v":0}]
[289,null,null,null,null,null,null,null,null,null,null,null,null,null,null,null,null,null,null,null,null,null,null,null,null,null,{"$f":"SUM(O313:W313)","v":0},{"$f":"SUM(O313:Z313)","v":0}]
[290,null,null,null,null,null,null,null,null,null,null,null,null,null,null,null,null,null,null,null,null,null,null,null,null,null,{"$f":"SUM(O314:W314)","v":0},{"$f":"SUM(O314:Z314)","v":0}]
[291,null,null,null,null,null,null,null,null,null,null,null,null,null,null,null,null,null,null,null,null,null,null,null,null,null,{"$f":"SUM(O315:W315)","v":0},{"$f":"SUM(O315:Z315)","v":0}]
[292,null,null,null,null,null,null,null,null,null,null,null,null,null,null,null,null,null,null,null,null,null,null,null,null,null,{"$f":"SUM(O316:W316)","v":0},{"$f":"SUM(O316:Z316)","v":0}]
[293,null,null,null,null,null,null,null,null,null,null,null,null,null,null,null,null,null,null,null,null,null,null,null,null,null,{"$f":"SUM(O317:W317)","v":0},{"$f":"SUM(O317:Z317)","v":0}]
[294,null,null,null,null,null,null,null,null,null,null,null,null,null,null,null,null,null,null,null,null,null,null,null,null,null,{"$f":"SUM(O318:W318)","v":0},{"$f":"SUM(O318:Z318)","v":0}]
[295,null,null,null,null,null,null,null,null,null,null,null,null,null,null,null,null,null,null,null,null,null,null,null,null,null,{"$f":"SUM(O319:W319)","v":0},{"$f":"SUM(O319:Z319)","v":0}]
[296,null,null,null,null,null,null,null,null,null,null,null,null,null,null,null,null,null,null,null,null,null,null,null,null,null,{"$f":"SUM(O320:W320)","v":0},{"$f":"SUM(O320:Z320)","v":0}]
[297,null,null,null,null,null,null,null,null,null,null,null,null,null,null,null,null,null,null,null,null,null,null,null,null,null,{"$f":"SUM(O321:W321)","v":0},{"$f":"SUM(O321:Z321)","v":0}]
[298,null,null,null,null,null,null,null,null,null,null,null,null,null,null,null,null,null,null,null,null,null,null,null,null,null,{"$f":"SUM(O322:W322)","v":0},{"$f":"SUM(O322:Z322)","v":0}]
[299,null,null,null,null,null,null,null,null,null,null,null,null,null,null,null,null,null,null,null,null,null,null,null,null,null,{"$f":"SUM(O323:W323)","v":0},{"$f":"SUM(O323:Z323)","v":0}]
[300,null,null,null,null,null,null,null,null,null,null,null,null,null,null,null,null,null,null,null,null,null,null,null,null,null,{"$f":"SUM(O324:W324)","v":0},{"$f":"SUM(O324:Z324)","v":0}]
[301,null,null,null,null,null,null,null,null,null,null,null,null,null,null,null,null,null,null,null,null,null,null,null,null,null,{"$f":"SUM(O325:W325)","v":0},{"$f":"SUM(O325:Z325)","v":0}]
[302,null,null,null,null,null,null,null,null,null,null,null,null,null,null,null,null,null,null,null,null,null,null,null,null,null,{"$f":"SUM(O326:W326)","v":0},{"$f":"SUM(O326:Z326)","v":0}]
[303,null,null,null,null,null,null,null,null,null,null,null,null,null,null,null,null,null,null,null,null,null,null,null,null,null,{"$f":"SUM(O327:W327)","v":0},{"$f":"SUM(O327:Z327)","v":0}]
[304,null,null,null,null,null,null,null,null,null,null,null,null,null,null,null,null,null,null,null,null,null,null,null,null,null,{"$f":"SUM(O328:W328)","v":0},{"$f":"SUM(O328:Z328)","v":0}]
[305,null,null,null,null,null,null,null,null,null,null,null,null,null,null,null,null,null,null,null,null,null,null,null,null,null,{"$f":"SUM(O329:W329)","v":0},{"$f":"SUM(O329:Z329)","v":0}]
[306,null,null,null,null,null,null,null,null,null,null,null,null,null,null,null,null,null,null,null,null,null,null,null,null,null,{"$f":"SUM(O330:W330)","v":0},{"$f":"SUM(O330:Z330)","v":0}]
[307,null,null,null,null,null,null,null,null,null,null,null,null,null,null,null,null,null,null,null,null,null,null,null,null,null,{"$f":"SUM(O331:W331)","v":0},{"$f":"SUM(O331:Z331)","v":0}]
[308,null,null,null,null,null,null,null,null,null,null,null,null,null,null,null,null,null,null,null,null,null,null,null,null,null,{"$f":"SUM(O332:W332)","v":0},{"$f":"SUM(O332:Z332)","v":0}]
[309,null,null,null,null,null,null,null,null,null,null,null,null,null,null,null,null,null,null,null,null,null,null,null,null,null,{"$f":"SUM(O333:W333)","v":0},{"$f":"SUM(O333:Z333)","v":0}]
[310,null,null,null,null,null,null,null,null,null,null,null,null,null,null,null,null,null,null,null,null,null,null,null,null,null,{"$f":"SUM(O334:W334)","v":0},{"$f":"SUM(O334:Z334)","v":0}]
[311,null,null,null,null,null,null,null,null,null,null,null,null,null,null,null,null,null,null,null,null,null,null,null,null,null,{"$f":"SUM(O335:W335)","v":0},{"$f":"SUM(O335:Z335)","v":0}]
[312,null,null,null,null,null,null,null,null,null,null,null,null,null,null,null,null,null,null,null,null,null,null,null,null,null,{"$f":"SUM(O336:W336)","v":0},{"$f":"SUM(O336:Z336)","v":0}]
[313,null,null,null,null,null,null,null,null,null,null,null,null,null,null,null,null,null,null,null,null,null,null,null,null,null,{"$f":"SUM(O337:W337)","v":0},{"$f":"SUM(O337:Z337)","v":0}]
[314,null,null,null,null,null,null,null,null,null,null,null,null,null,null,null,null,null,null,null,null,null,null,null,null,null,{"$f":"SUM(O338:W338)","v":0},{"$f":"SUM(O338:Z338)","v":0}]
[315,null,null,null,null,null,null,null,null,null,null,null,null,null,null,null,null,null,null,null,null,null,null,null,null,null,{"$f":"SUM(O339:W339)","v":0},{"$f":"SUM(O339:Z339)","v":0}]
[316,null,null,null,null,null,null,null,null,null,null,null,null,null,null,null,null,null,null,null,null,null,null,null,null,null,{"$f":"SUM(O340:W340)","v":0},{"$f":"SUM(O340:Z340)","v":0}]
[317,null,null,null,null,null,null,null,null,null,null,null,null,null,null,null,null,null,null,null,null,null,null,null,null,null,{"$f":"SUM(O341:W341)","v":0},{"$f":"SUM(O341:Z341)","v":0}]
[318,null,null,null,null,null,null,null,null,null,null,null,null,null,null,null,null,null,null,null,null,null,null,null,null,null,{"$f":"SUM(O342:W342)","v":0},{"$f":"SUM(O342:Z342)","v":0}]
[319,null,null,null,null,null,null,null,null,null,null,null,null,null,null,null,null,null,null,null,null,null,null,null,null,null,{"$f":"SUM(O343:W343)","v":0},{"$f":"SUM(O343:Z343)","v":0}]
[320,null,null,null,null,null,null,null,null,null,null,null,null,null,null,null,null,null,null,null,null,null,null,null,null,null,{"$f":"SUM(O344:W344)","v":0},{"$f":"SUM(O344:Z344)","v":0}]
[321,null,null,null,null,null,null,null,null,null,null,null,null,null,null,null,null,null,null,null,null,null,null,null,null,null,{"$f":"SUM(O345:W345)","v":0},{"$f":"SUM(O345:Z345)","v":0}]
[322,null,null,null,null,null,null,null,null,null,null,null,null,null,null,null,null,null,null,null,null,null,null,null,null,null,{"$f":"SUM(O346:W346)","v":0},{"$f":"SUM(O346:Z346)","v":0}]
[323,null,null,null,null,null,null,null,null,null,null,null,null,null,null,null,null,null,null,null,null,null,null,null,null,null,{"$f":"SUM(O347:W347)","v":0},{"$f":"SUM(O347:Z347)","v":0}]
[324,null,null,null,null,null,null,null,null,null,null,null,null,null,null,null,null,null,null,null,null,null,null,null,null,null,{"$f":"SUM(O348:W348)","v":0},{"$f":"SUM(O348:Z348)","v":0}]
[325,null,null,null,null,null,null,null,null,null,null,null,null,null,null,null,null,null,null,null,null,null,null,null,null,null,{"$f":"SUM(O349:W349)","v":0},{"$f":"SUM(O349:Z349)","v":0}]
[326,null,null,null,null,null,null,null,null,null,null,null,null,null,null,null,null,null,null,null,null,null,null,null,null,null,{"$f":"SUM(O350:W350)","v":0},{"$f":"SUM(O350:Z350)","v":0}]
[327,null,null,null,null,null,null,null,null,null,null,null,null,null,null,null,null,null,null,null,null,null,null,null,null,null,{"$f":"SUM(O351:W351)","v":0},{"$f":"SUM(O351:Z351)","v":0}]
[328,null,null,null,null,null,null,null,null,null,null,null,null,null,null,null,null,null,null,null,null,null,null,null,null,null,{"$f":"SUM(O352:W352)","v":0},{"$f":"SUM(O352:Z352)","v":0}]
[329,null,null,null,null,null,null,null,null,null,null,null,null,null,null,null,null,null,null,null,null,null,null,null,null,null,{"$f":"SUM(O353:W353)","v":0},{"$f":"SUM(O353:Z353)","v":0}]
[330,null,null,null,null,null,null,null,null,null,null,null,null,null,null,null,null,null,null,null,null,null,null,null,null,null,{"$f":"SUM(O354:W354)","v":0},{"$f":"SUM(O354:Z354)","v":0}]
[331,null,null,null,null,null,null,null,null,null,null,null,null,null,null,null,null,null,null,null,null,null,null,null,null,null,{"$f":"SUM(O355:W355)","v":0},{"$f":"SUM(O355:Z355)","v":0}]
[332,null,null,null,null,null,null,null,null,null,null,null,null,null,null,null,null,null,null,null,null,null,null,null,null,null,{"$f":"SUM(O356:W356)","v":0},{"$f":"SUM(O356:Z356)","v":0}]
[333,null,null,null,null,null,null,null,null,null,null,null,null,null,null,null,null,null,null,null,null,null,null,null,null,null,{"$f":"SUM(O357:W357)","v":0},{"$f":"SUM(O357:Z357)","v":0}]
[334,null,null,null,null,null,null,null,null,null,null,null,null,null,null,null,null,null,null,null,null,null,null,null,null,null,{"$f":"SUM(O358:W358)","v":0},{"$f":"SUM(O358:Z358)","v":0}]
[335,null,null,null,null,null,null,null,null,null,null,null,null,null,null,null,null,null,null,null,null,null,null,null,null,null,{"$f":"SUM(O359:W359)","v":0},{"$f":"SUM(O359:Z359)","v":0}]
[336,null,null,null,null,null,null,null,null,null,null,null,null,null,null,null,null,null,null,null,null,null,null,null,null,null,{"$f":"SUM(O360:W360)","v":0},{"$f":"SUM(O360:Z360)","v":0}]
[337,null,null,null,null,null,null,null,null,null,null,null,null,null,null,null,null,null,null,null,null,null,null,null,null,null,{"$f":"SUM(O361:W361)","v":0},{"$f":"SUM(O361:Z361)","v":0}]
[338,null,null,null,null,null,null,null,null,null,null,null,null,null,null,null,null,null,null,null,null,null,null,null,null,null,{"$f":"SUM(O362:W362)","v":0},{"$f":"SUM(O362:Z362)","v":0}]
[339,null,null,null,null,null,null,null,null,null,null,null,null,null,null,null,null,null,null,null,null,null,null,null,null,null,{"$f":"SUM(O363:W363)","v":0},{"$f":"SUM(O363:Z363)","v":0}]
[340,null,null,null,null,null,null,null,null,null,null,null,null,null,null,null,null,null,null,null,null,null,null,null,null,null,{"$f":"SUM(O364:W364)","v":0},{"$f":"SUM(O364:Z364)","v":0}]
[341,null,null,null,null,null,null,null,null,null,null,null,null,null,null,null,null,null,null,null,null,null,null,null,null,null,{"$f":"SUM(O365:W365)","v":0},{"$f":"SUM(O365:Z365)","v":0}]
[342,null,null,null,null,null,null,null,null,null,null,null,null,null,null,null,null,null,null,null,null,null,null,null,null,null,{"$f":"SUM(O366:W366)","v":0},{"$f":"SUM(O366:Z366)","v":0}]
[343,null,null,null,null,null,null,null,null,null,null,null,null,null,null,null,null,null,null,null,null,null,null,null,null,null,{"$f":"SUM(O367:W367)","v":0},{"$f":"SUM(O367:Z367)","v":0}]
[344,null,null,null,null,null,null,null,null,null,null,null,null,null,null,null,null,null,null,null,null,null,null,null,null,null,{"$f":"SUM(O368:W368)","v":0},{"$f":"SUM(O368:Z368)","v":0}]
[345,null,null,null,null,null,null,null,null,null,null,null,null,null,null,null,null,null,null,null,null,null,null,null,null,null,{"$f":"SUM(O369:W369)","v":0},{"$f":"SUM(O369:Z369)","v":0}]
[346,null,null,null,null,null,null,null,null,null,null,null,null,null,null,null,null,null,null,null,null,null,null,null,null,null,{"$f":"SUM(O370:W370)","v":0},{"$f":"SUM(O370:Z370)","v":0}]
[347,null,null,null,null,null,null,null,null,null,null,null,null,null,null,null,null,null,null,null,null,null,null,null,null,null,{"$f":"SUM(O371:W371)","v":0},{"$f":"SUM(O371:Z371)","v":0}]
[348,null,null,null,null,null,null,null,null,null,null,null,null,null,null,null,null,null,null,null,null,null,null,null,null,null,{"$f":"SUM(O372:W372)","v":0},{"$f":"SUM(O372:Z372)","v":0}]
[349,null,null,null,null,null,null,null,null,null,null,null,null,null,null,null,null,null,null,null,null,null,null,null,null,null,{"$f":"SUM(O373:W373)","v":0},{"$f":"SUM(O373:Z373)","v":0}]
[350,null,null,null,null,null,null,null,null,null,null,null,null,null,null,null,null,null,null,null,null,null,null,null,null,null,{"$f":"SUM(O374:W374)","v":0},{"$f":"SUM(O374:Z374)","v":0}]
[null,"TOTAL DES DÉPENSES DE PROJET ($)",null,null,null,null,null,null,null,null,{"$f":"SUM(K25:K374)","v":62161079.939999998},null,null,{"$f":"SUM(N25:N374)","v":182828786.54000002},1498671,4226105.67,6977014.8800000018,984139.29,5721864.4000000004,10131363.08,14449382,13900661.949999999,-2123462,0,0,0,55765740.269999996,55765740.269999996]
[null,"Écriture à régulariser (A venir)",null,null,null,null,null,null,null,null,null,null,null,null,{"$f":"SUMIF($J$25:$J37,\"CF-Contrat fonctionnement\",O25:O37)+SUMIF($J$25:$J37,\"CP-Contrat service professionnel\",O25:O37)+SUMIF($J$25:$J37,\"CT-Contrat service technique\",O25:O37)","v":0},{"$f":"SUMIF($J$25:$J37,\"CF-Contrat fonctionnement\",P25:P37)+SUMIF($J$25:$J37,\"CP-Contrat service professionnel\",P25:P37)+SUMIF($J$25:$J37,\"CT-Contrat service technique\",P25:P37)","v":0},{"$f":"SUMIF($J$25:$J37,\"CF-Contrat fonctionnement\",Q25:Q37)+SUMIF($J$25:$J37,\"CP-Contrat service professionnel\",Q25:Q37)+SUMIF($J$25:$J37,\"CT-Contrat service technique\",Q25:Q37)","v":0},{"$f":"SUMIF($J$25:$J37,\"CF-Contrat fonctionnement\",R25:R37)+SUMIF($J$25:$J37,\"CP-Contrat service professionnel\",R25:R37)+SUMIF($J$25:$J37,\"CT-Contrat service technique\",R25:R37)","v":0},{"$f":"SUMIF($J$25:$J37,\"CF-Contrat fonctionnement\",S25:S37)+SUMIF($J$25:$J37,\"CP-Contrat service professionnel\",S25:S37)+SUMIF($J$25:$J37,\"CT-Contrat service technique\",S25:S37)","v":0},{"$f":"SUMIF($J$25:$J37,\"CF-Contrat fonctionnement\",T25:T37)+SUMIF($J$25:$J37,\"CP-Contrat service professionnel\",T25:T37)+SUMIF($J$25:$J37,\"CT-Contrat service technique\",T25:T37)","v":0},{"$f":"SUMIF($J$25:$J37,\"CF-Contrat fonctionnement\",U25:U37)+SUMIF($J$25:$J37,\"CP-Contrat service professionnel\",U25:U37)+SUMIF($J$25:$J37,\"CT-Contrat service technique\",U25:U37)","v":0},-600000,{"$f":"SUMIF($J$25:$J37,\"CF-Contrat fonctionnement\",W25:W37)+SUMIF($J$25:$J37,\"CP-Contrat service professionnel\",W25:W37)+SUMIF($J$25:$J37,\"CT-Contrat service technique\",W25:W37)","v":0},{"$f":"SUMIF($J$25:$J37,\"CF-Contrat fonctionnement\",X25:X37)+SUMIF($J$25:$J37,\"CP-Contrat service professionnel\",X25:X37)+SUMIF($J$25:$J37,\"CT-Contrat service technique\",X25:X37)","v":0},{"$f":"SUMIF($J$25:$J37,\"CF-Contrat fonctionnement\",Y25:Y37)+SUMIF($J$25:$J37,\"CP-Contrat service professionnel\",Y25:Y37)+SUMIF($J$25:$J37,\"CT-Contrat service technique\",Y25:Y37)","v":0},null,{"$f":"SUMIF($J$25:$J37,\"CF-Contrat fonctionnement\",AA25:AA37)+SUMIF($J$25:$J37,\"CP-Contrat service professionnel\",AA25:AA37)+SUMIF($J$25:$J37,\"CT-Contrat service technique\",AA25:AA37)","v":0},{"$f":"SUMIF($J$25:$J37,\"CF-Contrat fonctionnement\",AB25:AB37)+SUMIF($J$25:$J37,\"CP-Contrat service professionnel\",AB25:AB37)+SUMIF($J$25:$J37,\"CT-Contrat service technique\",AB25:AB37)","v":0}]
[null,"TOTAL CONTRATS IMMOBILISATION ($)",null,null,null,null,null,null,null,null,{"$f":"SUMIF(J25:J37,\"CI-Contrat immobilisation\",K25:K37)","v":0},null,null,null,{"$f":"SUMIF($J$25:$J37,\"CI-Contrat immobilisation\",O25:O37)","v":0},{"$f":"SUMIF($J$25:$J37,\"CI-Contrat immobilisation\",P25:P37)","v":0},{"$f":"SUMIF($J$25:$J37,\"CI-Contrat immobilisation\",Q25:Q37)","v":0},{"$f":"SUMIF($J$25:$J37,\"CI-Contrat immobilisation\",R25:R37)","v":0},{"$f":"SUMIF($J$25:$J37,\"CI-Contrat immobilisation\",S25:S37)","v":0},{"$f":"SUMIF($J$25:$J37,\"CI-Contrat immobilisation\",T25:T37)","v":0},{"$f":"SUMIF($J$25:$J37,\"CI-Contrat immobilisation\",U25:U37)","v":0},{"$f":"SUMIF($J$25:$J37,\"CI-Contrat immobilisation\",V25:V37)","v":0},{"$f":"SUMIF($J$25:$J37,\"CI-Contrat immobilisation\",W25:W37)","v":0},{"$f":"SUMIF($J$25:$J37,\"CI-Contrat immobilisation\",X25:X37)","v":0},{"$f":"SUMIF($J$25:$J37,\"CI-Contrat immobilisation\",Y25:Y37)","v":0},null,{"$f":"SUMIF($J$25:$J37,\"CI-Contrat immobilisation\",AA25:AA37)","v":0},{"$f":"SUMIF($J$25:$J37,\"CI-Contrat immobilisation\",AB25:AB37)","v":0}]
[null,"TOTAL DES SUBVENTIONS ($)",null,null,null,null,null,null,null,null,{"$f":"SUMIF(J25:J37,\"SU-Subvention\",K25:K37)","v":4796205},null,null,null,{"$f":"SUMIF($J$25:$J377,\"SU-Subvention\",O25:O27)","v":1498671},{"$f":"SUMIF($J$25:$J377,\"SU-Subvention\",P25:P27)","v":4226105.67},{"$f":"SUMIF($J$25:$J377,\"SU-Subvention\",Q25:Q27)","v":6977014.8800000018},{"$f":"SUMIF($J$25:$J377,\"SU-Subvention\",R25:R27)","v":984139.29},{"$f":"SUMIF($J$25:$J377,\"SU-Subvention\",S25:S27)","v":5721864.4000000004},{"$f":"SUMIF($J$25:$J377,\"SU-Subvention\",T25:T27)","v":10131363.08},{"$f":"SUMIF($J$25:$J377,\"SU-Subvention\",U25:U27)","v":14449382},{"$f":"SUMIF($J$25:$J377,\"SU-Subvention\",V25:V27)","v":13900661.949999999},{"$f":"SUMIF($J$25:$J377,\"SU-Subvention\",W25:W27)","v":3738604},{"$f":"SUMIF($J$25:$J377,\"SU-Subvention\",X25:X27)","v":0},{"$f":"SUMIF($J$25:$J377,\"SU-Subvention\",Y25:Y27)","v":0},null,{"$f":"SUMIF($J$25:$J377,\"SU-Subvention\",AA25:AA27)","v":61627806.269999996},{"$f":"SUMIF($J$25:$J377,\"SU-Subvention\",AB25:AB27)","v":61627806.269999996}]

{"sheet":"GES","index":4,"n_rows":375,"n_cols":39,"rows_kept":375,"cut":false,"hidden":true,"merged":[[21,5,21,6],[21,7,21,37],[22,29,22,30],[22,31,22,32],[22,33,22,34],[22,35,22,36],[22,37,22,38],[22,27,22,28],[22,21,22,22],[22,23,22,24],[22,25,22,26],[22,8,23,8],[22,6,23,6],[22,9,23,9],[22,11,22,12],[22,13,22,14],[22,1,23,1],[22,2,23,2],[22,3,23,3],[22,19,22,20],[374,1,374,4],[22,4,23,4],[22,15,22,16],[22,17,22,18],[19,14,19,16],[1,14,1,16],[1,1,1,6],[2,1,2,2],[3,2,3,6],[1,11,1,13],[2,8,5,16],[4,2,4,6],[19,8,19,13],[19,1,19,5],[5,1,5,6],[1,8,1,10]]}
[]
[null,{"$f":"Utilitaire!E8","v":"Plan d'action 2013-2020 sur les changements climatiques"},null,null,null,null,null,null,"Conseils de rédaction : ",null,null,"Informations en date du :",null,null,{"$f":"Utilitaire!G6","v":"2022-03-31"}]
[null,{"$f":"\"Action \" & Accueil!D58","v":"Action en cours"},null,null,null,null,null,null," - Répondez aux questions et commentaires s'il y a lieu.\n\n- Des précisions sur les contenus attendus sont disponibles en commentaires dans les cellules titres.\n\n- Pensez à remplir les cases G20 et P20.\n\n- Les projets inscrits sont ceux définis dans l'onglet « Détail des projets ».\n\n- Pensez à inscrire le coût par tonne de la colonne H, même si seul un potentiel de réduction est inclus pour cette action."]
[null,{"$f":"Accueil!D55","v":"13.4"},{"$f":"Accueil!E55","v":"Programme d’aide financière au développement des transports actifs dans les périmètres urbains (TAPU) (FORT)"}]
[null,"Ministère porteur :",{"$f":"Accueil!$D$65","v":"MTQ"}]
[null,"GES"]
[]
[]
[]
[]
[]
[]
[]
[]
[]
[]
[]
[]
[]
[null,"Potentiel de réduction des GES évalué lors de la sélection des projets de cette action : ",null,null,null,null,"Non",null,"Réductions réelles quantifiables des émissions de GES attendues pour cette action :   ",null,null,null,null,null,"Non"]
[]
[null,null,null,null,null,"ÉVALUATION DU POTENTIEL DE RÉDUCTION ET D'ÉVITEMENT D'ÉMISSIONS DE GES À TERME.",null,"DÉTAIL DES ÉMISSIONS DE GES RÉDUITES OU ÉVITÉES  (en tonnes éq. CO2)"]
[null,"Nom du projet","Nom du requérant ou du bénéficiaire","Région administrative","Montant engagé ($)","Potentiel de réduction des GES sur une base annuelle","Horizon temporel pour la réalisation du potentiel","Coût/tonne estimé","Type d'émission","Émissions rapportées dans l'inventaire","Durée du projet","Émissions",null,"Vérifiées",null,"2013-2014",null,"2014-2015",null,"2015-2016",null,"2016-2017",null,"2017-2018",null,"2018-2019",null,"2019-2020",null,"2020-2021",null,"2021-2022",null,"2022-2023",null,"2023-2024",null,"2024-2025"]
[null,null,null,null,null,"(tonnes éq. CO2)",null,"$\n------------ \ntonne éq. CO2",null,null,"(années)","Réduites","Évitées","Tierce partie","M/O","Vérifié","Non vérifié","Vérifié","Non vérifié","Vérifié","Non vérifié","Vérifié","Non vérifié","Vérifié","Non vérifié","Vérifié","Non vérifié","Vérifié","Non vérifié","Vérifié","Non vérifié","Vérifié","Non vérifié","Vérifié","Non vérifié","Vérifié","Non vérifié","Vérifié","Non vérifié"]
[null,{"$f":"IF(LEN('Détail des projets'!B25)=0,\"\",'Détail des projets'!B25)","v":"Paserelle Normandie"},{"$f":"'Détail des projets'!C25","v":"Ville de Longueuil"},{"$f":"IF(LEN('Détail des projets'!G25)=0,\"\",'Détail des projets'!G25)","v":"16-Montérégie"},{"$f":"IF(LEN('Détail des projets'!K25)=0,\"\",'Détail des projets'!K25)","v":1000000}]
[null,{"$f":"IF(LEN('Détail des projets'!B26)=0,\"\",'Détail des projets'!B26)","v":"Piste de la rue Sicotte"},{"$f":"IF(LEN('Détail des projets'!C26)=0,\"\",'Détail des projets'!C26)","v":"Ville de Saint-Hyacinthe"},{"$f":"IF(LEN('Détail des projets'!G26)=0,\"\",'Détail des projets'!G26)","v":"16-Montérégie"},{"$f":"IF(LEN('Détail des projets'!K26)=0,\"\",'Détail des projets'!K26)","v":54230}]
[null,{"$f":"IF(LEN('Détail des projets'!B27)=0,\"\",'Détail des projets'!B27)","v":"Piste de la rue Laurier"},{"$f":"IF(LEN('Détail des projets'!C27)=0,\"\",'Détail des projets'!C27)","v":"Ville de Gatineau"},{"$f":"IF(LEN('Détail des projets'!G27)=0,\"\",'Détail des projets'!G27)","v":"07-Outaouais"},{"$f":"IF(LEN('Détail des projets'!K27)=0,\"\",'Détail des projets'!K27)","v":293378}]
[null,{"$f":"IF(LEN('Détail des projets'!B28)=0,\"\",'Détail des projets'!B28)","v":"Lien A-20 Saint-Rédempteur"},{"$f":"IF(LEN('Détail des projets'!C28)=0,\"\",'Détail des projets'!C28)","v":"Ville de Lévis"},{"$f":"IF(LEN('Détail des projets'!G28)=0,\"\",'Détail des projets'!G28)","v":"12-Chaudières-Appalaches"},{"$f":"IF(LEN('Détail des projets'!K28)=0,\"\",'Détail des projets'!K28)","v":100000}]
[null,{"$f":"IF(LEN('Détail des projets'!B29)=0,\"\",'Détail des projets'!B29)","v":"1317 Langelier"},{"$f":"IF(LEN('Détail des projets'!C29)=0,\"\",'Détail des projets'!C29)","v":"Ville de Montréal"},{"$f":"IF(LEN('Détail des projets'!G29)=0,\"\",'Détail des projets'!G29)","v":"06-Montréal"},{"$f":"IF(LEN('Détail des projets'!K29)=0,\"\",'Détail des projets'!K29)","v":300000}]
[null,{"$f":"IF(LEN('Détail des projets'!B30)=0,\"\",'Détail des projets'!B30)","v":"3e Avenue"},{"$f":"IF(LEN('Détail des projets'!C30)=0,\"\",'Détail des projets'!C30)","v":"Ville de Québec"},{"$f":"IF(LEN('Détail des projets'!G30)=0,\"\",'Détail des projets'!G30)","v":"03-Capitale-Nationale"},{"$f":"IF(LEN('Détail des projets'!K30)=0,\"\",'Détail des projets'!K30)","v":46765}]
[null,{"$f":"IF(LEN('Détail des projets'!B31)=0,\"\",'Détail des projets'!B31)","v":"1508 Desjardins"},{"$f":"IF(LEN('Détail des projets'!C31)=0,\"\",'Détail des projets'!C31)","v":"Ville de Montréal"},{"$f":"IF(LEN('Détail des projets'!G31)=0,\"\",'Détail des projets'!G31)","v":"06-Montréal"},{"$f":"IF(LEN('Détail des projets'!K31)=0,\"\",'Détail des projets'!K31)","v":552170}]
[null,{"$f":"IF(LEN('Détail des projets'!B32)=0,\"\",'Détail des projets'!B32)","v":"Arr. Plateau Mont-Royan (école Saint-Pierre-Claver)"},{"$f":"IF(LEN('Détail des projets'!C32)=0,\"\",'Détail des projets'!C32)","v":"Ville de Montréal"},{"$f":"IF(LEN('Détail des projets'!G32)=0,\"\",'Détail des projets'!G32)","v":"06-Montréal"},{"$f":"IF(LEN('Détail des projets'!K32)=0,\"\",'Détail des projets'!K32)","v":250000}]
[null,{"$f":"IF(LEN('Détail des projets'!B33)=0,\"\",'Détail des projets'!B33)","v":"École primaire"},{"$f":"IF(LEN('Détail des projets'!C33)=0,\"\",'Détail des projets'!C33)","v":"Municipalité de Boischatel"},{"$f":"IF(LEN('Détail des projets'!G33)=0,\"\",'Détail des projets'!G33)","v":"03-Capitale-Nationale"},{"$f":"IF(LEN('Détail des projets'!K33)=0,\"\",'Détail des projets'!K33)","v":32762}]
[null,{"$f":"IF(LEN('Détail des projets'!B34)=0,\"\",'Détail des projets'!B34)","v":"Piste bidirectionnelle asphaltée"},{"$f":"IF(LEN('Détail des projets'!C34)=0,\"\",'Détail des projets'!C34)","v":"Ville de Rouyn-Noranda"},{"$f":"IF(LEN('Détail des projets'!G34)=0,\"\",'Détail des projets'!G34)","v":"08-Abitibi-Témiscamingue"},{"$f":"IF(LEN('Détail des projets'!K34)=0,\"\",'Détail des projets'!K34)","v":72500}]
[null,{"$f":"IF(LEN('Détail des projets'!B35)=0,\"\",'Détail des projets'!B35)","v":"Piste Jean-de-Brébeuf"},{"$f":"IF(LEN('Détail des projets'!C35)=0,\"\",'Détail des projets'!C35)","v":"Ville de Drummondville"},{"$f":"IF(LEN('Détail des projets'!G35)=0,\"\",'Détail des projets'!G35)","v":"17-Centre-du-Québec"},{"$f":"IF(LEN('Détail des projets'!K35)=0,\"\",'Détail des projets'!K35)","v":94400}]
[null,{"$f":"IF(LEN('Détail des projets'!B36)=0,\"\",'Détail des projets'!B36)","v":"Portion urbaine de la piste dans Beauceville"},{"$f":"IF(LEN('Détail des projets'!C36)=0,\"\",'Détail des projets'!C36)","v":"MRC de Robert-Cliche"},{"$f":"IF(LEN('Détail des projets'!G36)=0,\"\",'Détail des projets'!G36)","v":"12-Chaudières-Appalaches"},{"$f":"IF(LEN('Détail des projets'!K36)=0,\"\",'Détail des projets'!K36)","v":1000000}]
[null,{"$f":"IF(LEN('Détail des projets'!B37)=0,\"\",'Détail des projets'!B37)","v":"0849 Cardinal"},{"$f":"IF(LEN('Détail des projets'!C37)=0,\"\",'Détail des projets'!C37)","v":"Ville de Montréal"},{"$f":"IF(LEN('Détail des projets'!G37)=0,\"\",'Détail des projets'!G37)","v":"06-Montréal"},{"$f":"IF(LEN('Détail des projets'!K37)=0,\"\",'Détail des projets'!K37)","v":1000000}]
[null,{"$f":"IF(LEN('Détail des projets'!B38)=0,\"\",'Détail des projets'!B38)","v":"Piste campus UQTR"},{"$f":"IF(LEN('Détail des projets'!C38)=0,\"\",'Détail des projets'!C38)","v":"Ville de Drummondville (piste campus UQTR)"},{"$f":"IF(LEN('Détail des projets'!G38)=0,\"\",'Détail des projets'!G38)","v":"17-Centre-du-Québec"},{"$f":"IF(LEN('Détail des projets'!K38)=0,\"\",'Détail des projets'!K38)","v":41012.25}]
[null,{"$f":"IF(LEN('Détail des projets'!B39)=0,\"\",'Détail des projets'!B39)","v":"Supports à vélo"},{"$f":"IF(LEN('Détail des projets'!C39)=0,\"\",'Détail des projets'!C39)","v":"Ville de Québec (supports à vélo)"},{"$f":"IF(LEN('Détail des projets'!G39)=0,\"\",'Détail des projets'!G39)","v":"03-Capitale-Nationale"},{"$f":"IF(LEN('Détail des projets'!K39)=0,\"\",'Détail des projets'!K39)","v":11181.12}]
[null,{"$f":"IF(LEN('Détail des projets'!B40)=0,\"\",'Détail des projets'!B40)","v":"Sécurisatin des déplacements actifs dans le village"},{"$f":"IF(LEN('Détail des projets'!C40)=0,\"\",'Détail des projets'!C40)","v":"Municipalité de Saint-Thomas"},{"$f":"IF(LEN('Détail des projets'!G40)=0,\"\",'Détail des projets'!G40)","v":"14-Lanaudière"},{"$f":"IF(LEN('Détail des projets'!K40)=0,\"\",'Détail des projets'!K40)","v":3361}]
[null,{"$f":"IF(LEN('Détail des projets'!B41)=0,\"\",'Détail des projets'!B41)","v":"Rivière Aulneuse Saint-Nicolas"},{"$f":"IF(LEN('Détail des projets'!C41)=0,\"\",'Détail des projets'!C41)","v":"Ville de Lévis (rivière Aulneuse Saint-Nicolas)"},{"$f":"IF(LEN('Détail des projets'!G41)=0,\"\",'Détail des projets'!G41)","v":"12-Chaudières-Appalaches"},{"$f":"IF(LEN('Détail des projets'!K41)=0,\"\",'Détail des projets'!K41)","v":5000}]
[null,{"$f":"IF(LEN('Détail des projets'!B42)=0,\"\",'Détail des projets'!B42)","v":"Apaisement de la circulation 6e Avenue et 9e Rue"},{"$f":"IF(LEN('Détail des projets'!C42)=0,\"\",'Détail des projets'!C42)","v":"Ville de La Pocatière"},{"$f":"IF(LEN('Détail des projets'!G42)=0,\"\",'Détail des projets'!G42)","v":"01-Bas-Saint-Laurent"},{"$f":"IF(LEN('Détail des projets'!K42)=0,\"\",'Détail des projets'!K42)","v":140000}]
[null,{"$f":"IF(LEN('Détail des projets'!B43)=0,\"\",'Détail des projets'!B43)","v":"Ville de Gatineau"},{"$f":"IF(LEN('Détail des projets'!C43)=0,\"\",'Détail des projets'!C43)","v":"Ville de Gatineau"},{"$f":"IF(LEN('Détail des projets'!G43)=0,\"\",'Détail des projets'!G43)","v":"07-Outaouais"},{"$f":"IF(LEN('Détail des projets'!K43)=0,\"\",'Détail des projets'!K43)","v":180967}]
[null,{"$f":"IF(LEN('Détail des projets'!B44)=0,\"\",'Détail des projets'!B44)","v":"Bande cyclable rue Principale"},{"$f":"IF(LEN('Détail des projets'!C44)=0,\"\",'Détail des projets'!C44)","v":"Municipalité de Saint-Amable"},{"$f":"IF(LEN('Détail des projets'!G44)=0,\"\",'Détail des projets'!G44)","v":"16-Montérégie"},{"$f":"IF(LEN('Détail des projets'!K44)=0,\"\",'Détail des projets'!K44)","v":22500}]
[null,{"$f":"IF(LEN('Détail des projets'!B45)=0,\"\",'Détail des projets'!B45)","v":"Promenade rivière Saint-François"},{"$f":"IF(LEN('Détail des projets'!C45)=0,\"\",'Détail des projets'!C45)","v":"Ville de Drummondville"},{"$f":"IF(LEN('Détail des projets'!G45)=0,\"\",'Détail des projets'!G45)","v":"17-Centre-du-Québec"},{"$f":"IF(LEN('Détail des projets'!K45)=0,\"\",'Détail des projets'!K45)","v":1000000}]
[null,{"$f":"IF(LEN('Détail des projets'!B46)=0,\"\",'Détail des projets'!B46)","v":"Avenue Legendre"},{"$f":"IF(LEN('Détail des projets'!C46)=0,\"\",'Détail des projets'!C46)","v":"Ville de Québec"},{"$f":"IF(LEN('Détail des projets'!G46)=0,\"\",'Détail des projets'!G46)","v":"03-Capitale-Nationale"},{"$f":"IF(LEN('Détail des projets'!K46)=0,\"\",'Détail des projets'!K46)","v":108378}]
[null,{"$f":"IF(LEN('Détail des projets'!B47)=0,\"\",'Détail des projets'!B47)","v":"Rue Bourdages"},{"$f":"IF(LEN('Détail des projets'!C47)=0,\"\",'Détail des projets'!C47)","v":"Ville de Québec"},{"$f":"IF(LEN('Détail des projets'!G47)=0,\"\",'Détail des projets'!G47)","v":"03-Capitale-Nationale"},{"$f":"IF(LEN('Détail des projets'!K47)=0,\"\",'Détail des projets'!K47)","v":970000}]
[null,{"$f":"IF(LEN('Détail des projets'!B48)=0,\"\",'Détail des projets'!B48)","v":"Passerelle"},{"$f":"IF(LEN('Détail des projets'!C48)=0,\"\",'Détail des projets'!C48)","v":"Ville de Québec (rue Soumande)"},{"$f":"IF(LEN('Détail des projets'!G48)=0,\"\",'Détail des projets'!G48)","v":"03-Capitale-Nationale"},{"$f":"IF(LEN('Détail des projets'!K48)=0,\"\",'Détail des projets'!K48)","v":960000}]
[null,{"$f":"IF(LEN('Détail des projets'!B49)=0,\"\",'Détail des projets'!B49)","v":"Rotue 116 - Train de banlieue"},{"$f":"IF(LEN('Détail des projets'!C49)=0,\"\",'Détail des projets'!C49)","v":"Saint-Basile-le-Grand"},{"$f":"IF(LEN('Détail des projets'!G49)=0,\"\",'Détail des projets'!G49)","v":"16-Montérégie"},{"$f":"IF(LEN('Détail des projets'!K49)=0,\"\",'Détail des projets'!K49)","v":30000}]
[null,{"$f":"IF(LEN('Détail des projets'!B50)=0,\"\",'Détail des projets'!B50)","v":"Piste école secondaire/route 132"},{"$f":"IF(LEN('Détail des projets'!C50)=0,\"\",'Détail des projets'!C50)","v":"Ville de Montmagny"},{"$f":"IF(LEN('Détail des projets'!G50)=0,\"\",'Détail des projets'!G50)","v":"01-Bas-Saint-Laurent"},{"$f":"IF(LEN('Détail des projets'!K50)=0,\"\",'Détail des projets'!K50)","v":243875}]
[null,{"$f":"IF(LEN('Détail des projets'!B51)=0,\"\",'Détail des projets'!B51)","v":"Piste cyclable écoles primaire et secondaire"},{"$f":"IF(LEN('Détail des projets'!C51)=0,\"\",'Détail des projets'!C51)","v":"Municipalité de Saint-Rémi"},{"$f":"IF(LEN('Détail des projets'!G51)=0,\"\",'Détail des projets'!G51)","v":"16-Montérégie"},{"$f":"IF(LEN('Détail des projets'!K51)=0,\"\",'Détail des projets'!K51)","v":50000}]
[null,{"$f":"IF(LEN('Détail des projets'!B52)=0,\"\",'Détail des projets'!B52)","v":"Lien Pincourt-Île-Perrot"},{"$f":"IF(LEN('Détail des projets'!C52)=0,\"\",'Détail des projets'!C52)","v":"Ville de Pincourt"},{"$f":"IF(LEN('Détail des projets'!G52)=0,\"\",'Détail des projets'!G52)","v":"16-Montérégie"},{"$f":"IF(LEN('Détail des projets'!K52)=0,\"\",'Détail des projets'!K52)","v":46916}]
[null,{"$f":"IF(LEN('Détail des projets'!B53)=0,\"\",'Détail des projets'!B53)","v":"Supports à vélo"},{"$f":"IF(LEN('Détail des projets'!C53)=0,\"\",'Détail des projets'!C53)","v":"Arrondissement Saint-Laurent"},{"$f":"IF(LEN('Détail des projets'!G53)=0,\"\",'Détail des projets'!G53)","v":"06-Montréal"},{"$f":"IF(LEN('Détail des projets'!K53)=0,\"\",'Détail des projets'!K53)","v":35631}]
[null,{"$f":"IF(LEN('Détail des projets'!B54)=0,\"\",'Détail des projets'!B54)","v":"Piste cyclable en milieu urbain"},{"$f":"IF(LEN('Détail des projets'!C54)=0,\"\",'Détail des projets'!C54)","v":"Municipalité de Havre-Saint-Pierre"},{"$f":"IF(LEN('Détail des projets'!G54)=0,\"\",'Détail des projets'!G54)","v":"09-Côte-Nord"},{"$f":"IF(LEN('Détail des projets'!K54)=0,\"\",'Détail des projets'!K54)","v":124108}]
[null,{"$f":"IF(LEN('Détail des projets'!B55)=0,\"\",'Détail des projets'!B55)","v":"Piste cyclable Rivière-au-Renard"},{"$f":"IF(LEN('Détail des projets'!C55)=0,\"\",'Détail des projets'!C55)","v":"Groupe Beau-Village Rivière-au-Renard"},{"$f":"IF(LEN('Détail des projets'!G55)=0,\"\",'Détail des projets'!G55)","v":"11-Gaspésie-Iles-de-la-Madeleine"},{"$f":"IF(LEN('Détail des projets'!K55)=0,\"\",'Détail des projets'!K55)","v":23000}]
[null,{"$f":"IF(LEN('Détail des projets'!B56)=0,\"\",'Détail des projets'!B56)","v":"Rue des Vétérans"},{"$f":"IF(LEN('Détail des projets'!C56)=0,\"\",'Détail des projets'!C56)","v":"Rimouski"},{"$f":"IF(LEN('Détail des projets'!G56)=0,\"\",'Détail des projets'!G56)","v":"11-Gaspésie-Iles-de-la-Madeleine"},{"$f":"IF(LEN('Détail des projets'!K56)=0,\"\",'Détail des projets'!K56)","v":25000}]
[null,{"$f":"IF(LEN('Détail des projets'!B57)=0,\"\",'Détail des projets'!B57)","v":"Piste cyclable en milieu urbain"},{"$f":"IF(LEN('Détail des projets'!C57)=0,\"\",'Détail des projets'!C57)","v":"Ville de Richelieu"}]
[null,{"$f":"IF(LEN('Détail des projets'!B58)=0,\"\",'Détail des projets'!B58)","v":"Piste cyclable en milieu urbain"},{"$f":"IF(LEN('Détail des projets'!C58)=0,\"\",'Détail des projets'!C58)","v":"Municipalité de Rigaud"},{"$f":"IF(LEN('Détail des projets'!G58)=0,\"\",'Détail des projets'!G58)","v":"16-Montérégie"},{"$f":"IF(LEN('Détail des projets'!K58)=0,\"\",'Détail des projets'!K58)","v":122898}]
[null,{"$f":"IF(LEN('Détail des projets'!B59)=0,\"\",'Détail des projets'!B59)","v":"Rue Jacques-Cartier"},{"$f":"IF(LEN('Détail des projets'!C59)=0,\"\",'Détail des projets'!C59)","v":"Ville de Gatineau"},{"$f":"IF(LEN('Détail des projets'!G59)=0,\"\",'Détail des projets'!G59)","v":"07-Outaouais"},{"$f":"IF(LEN('Détail des projets'!K59)=0,\"\",'Détail des projets'!K59)","v":536428}]
[null,{"$f":"IF(LEN('Détail des projets'!B60)=0,\"\",'Détail des projets'!B60)","v":"#944 Ste-Croix"},{"$f":"IF(LEN('Détail des projets'!C60)=0,\"\",'Détail des projets'!C60)","v":"Ville de Montréal"},{"$f":"IF(LEN('Détail des projets'!G60)=0,\"\",'Détail des projets'!G60)","v":"06-Montréal"},{"$f":"IF(LEN('Détail des projets'!K60)=0,\"\",'Détail des projets'!K60)","v":198000}]
[null,{"$f":"IF(LEN('Détail des projets'!B61)=0,\"\",'Détail des projets'!B61)","v":"Corridor scolaire rues Réjean et Caron"},{"$f":"IF(LEN('Détail des projets'!C61)=0,\"\",'Détail des projets'!C61)","v":"Saint-Joseph-du-Lac"},{"$f":"IF(LEN('Détail des projets'!G61)=0,\"\",'Détail des projets'!G61)","v":"15-Laurentides"},{"$f":"IF(LEN('Détail des projets'!K61)=0,\"\",'Détail des projets'!K61)","v":239838}]
[null,{"$f":"IF(LEN('Détail des projets'!B62)=0,\"\",'Détail des projets'!B62)","v":"École Saint-Jean-de-la-Lande"},{"$f":"IF(LEN('Détail des projets'!C62)=0,\"\",'Détail des projets'!C62)","v":"Arrondissement Rosemont-La Petite-Patrie"},{"$f":"IF(LEN('Détail des projets'!G62)=0,\"\",'Détail des projets'!G62)","v":"06-Montréal"},{"$f":"IF(LEN('Détail des projets'!K62)=0,\"\",'Détail des projets'!K62)","v":249823}]
[null,{"$f":"IF(LEN('Détail des projets'!B63)=0,\"\",'Détail des projets'!B63)","v":"École Saint-Albert-Le-Grand"},{"$f":"IF(LEN('Détail des projets'!C63)=0,\"\",'Détail des projets'!C63)","v":"Arrondissement Rosemont-La Petite-Patrie"},{"$f":"IF(LEN('Détail des projets'!G63)=0,\"\",'Détail des projets'!G63)","v":"06-Montréal"},{"$f":"IF(LEN('Détail des projets'!K63)=0,\"\",'Détail des projets'!K63)","v":250000}]
[null,{"$f":"IF(LEN('Détail des projets'!B64)=0,\"\",'Détail des projets'!B64)","v":"École Saint-Louis-de-Gonzague"},{"$f":"IF(LEN('Détail des projets'!C64)=0,\"\",'Détail des projets'!C64)","v":"Arrondissement Le Plateau-Mont-Royal"},{"$f":"IF(LEN('Détail des projets'!G64)=0,\"\",'Détail des projets'!G64)","v":"06-Montréal"},{"$f":"IF(LEN('Détail des projets'!K64)=0,\"\",'Détail des projets'!K64)","v":133677}]
[null,{"$f":"IF(LEN('Détail des projets'!B65)=0,\"\",'Détail des projets'!B65)","v":"Prolongement Trans-Terrebonne"},{"$f":"IF(LEN('Détail des projets'!C65)=0,\"\",'Détail des projets'!C65)","v":"Ville de Terrebonne"},{"$f":"IF(LEN('Détail des projets'!G65)=0,\"\",'Détail des projets'!G65)","v":"14-Lanaudière"},{"$f":"IF(LEN('Détail des projets'!K65)=0,\"\",'Détail des projets'!K65)","v":920000}]
[null,{"$f":"IF(LEN('Détail des projets'!B66)=0,\"\",'Détail des projets'!B66)","v":"#1211 De Marseille"},{"$f":"IF(LEN('Détail des projets'!C66)=0,\"\",'Détail des projets'!C66)","v":"Ville de Montréal"},{"$f":"IF(LEN('Détail des projets'!G66)=0,\"\",'Détail des projets'!G66)","v":"06-Montréal"},{"$f":"IF(LEN('Détail des projets'!K66)=0,\"\",'Détail des projets'!K66)","v":95000}]
[null,{"$f":"IF(LEN('Détail des projets'!B67)=0,\"\",'Détail des projets'!B67)","v":"Pistes cyclables sur rue"},{"$f":"IF(LEN('Détail des projets'!C67)=0,\"\",'Détail des projets'!C67)","v":"Beauharnois"},{"$f":"IF(LEN('Détail des projets'!G67)=0,\"\",'Détail des projets'!G67)","v":"16-Montérégie"},{"$f":"IF(LEN('Détail des projets'!K67)=0,\"\",'Détail des projets'!K67)","v":253545}]
[null,{"$f":"IF(LEN('Détail des projets'!B68)=0,\"\",'Détail des projets'!B68)","v":"École Lanaudière"},{"$f":"IF(LEN('Détail des projets'!C68)=0,\"\",'Détail des projets'!C68)","v":"Arrorndissement Le Plateau-Mont-Royal"},{"$f":"IF(LEN('Détail des projets'!G68)=0,\"\",'Détail des projets'!G68)","v":"06-Montréal"},{"$f":"IF(LEN('Détail des projets'!K68)=0,\"\",'Détail des projets'!K68)","v":126537}]
[null,{"$f":"IF(LEN('Détail des projets'!B69)=0,\"\",'Détail des projets'!B69)","v":"#1313 Dudemaine"},{"$f":"IF(LEN('Détail des projets'!C69)=0,\"\",'Détail des projets'!C69)","v":"Ville de Montréal"},{"$f":"IF(LEN('Détail des projets'!G69)=0,\"\",'Détail des projets'!G69)","v":"06-Montréal"},{"$f":"IF(LEN('Détail des projets'!K69)=0,\"\",'Détail des projets'!K69)","v":88600}]
[null,{"$f":"IF(LEN('Détail des projets'!B70)=0,\"\",'Détail des projets'!B70)","v":"École Saint-Pierre-Claver"},{"$f":"IF(LEN('Détail des projets'!C70)=0,\"\",'Détail des projets'!C70)","v":"Arrondissement Le Plateau-Mont-Royal\n(École Saint-Pierre-Claver)"},{"$f":"IF(LEN('Détail des projets'!G70)=0,\"\",'Détail des projets'!G70)","v":"06-Montréal"},{"$f":"IF(LEN('Détail des projets'!K70)=0,\"\",'Détail des projets'!K70)","v":40787}]
[null,{"$f":"IF(LEN('Détail des projets'!B71)=0,\"\",'Détail des projets'!B71)","v":"École Nesbit"},{"$f":"IF(LEN('Détail des projets'!C71)=0,\"\",'Détail des projets'!C71)","v":"Arrondissement Rosemont-La Petite-Patrie\n(École Nesbitt)"},{"$f":"IF(LEN('Détail des projets'!G71)=0,\"\",'Détail des projets'!G71)","v":"06-Montréal"},{"$f":"IF(LEN('Détail des projets'!K71)=0,\"\",'Détail des projets'!K71)","v":132247}]
[null,{"$f":"IF(LEN('Détail des projets'!B72)=0,\"\",'Détail des projets'!B72)","v":"École Au-Pied-de-la-Montagne"},{"$f":"IF(LEN('Détail des projets'!C72)=0,\"\",'Détail des projets'!C72)","v":"Arrondissement Le Plateau-Mont-Royal\n(École Au Pied de la Montagne)"},{"$f":"IF(LEN('Détail des projets'!G72)=0,\"\",'Détail des projets'!G72)","v":"06-Montréal"},{"$f":"IF(LEN('Détail des projets'!K72)=0,\"\",'Détail des projets'!K72)","v":178163}]
[null,{"$f":"IF(LEN('Détail des projets'!B73)=0,\"\",'Détail des projets'!B73)","v":"Piste cyclable en milieu urbain"},{"$f":"IF(LEN('Détail des projets'!C73)=0,\"\",'Détail des projets'!C73)","v":"Ville de Waterville"},{"$f":"IF(LEN('Détail des projets'!G73)=0,\"\",'Détail des projets'!G73)","v":"05-Estrie"},{"$f":"IF(LEN('Détail des projets'!K73)=0,\"\",'Détail des projets'!K73)","v":4000}]
[null,{"$f":"IF(LEN('Détail des projets'!B74)=0,\"\",'Détail des projets'!B74)","v":"Boulevard Chevrier"},{"$f":"IF(LEN('Détail des projets'!C74)=0,\"\",'Détail des projets'!C74)","v":"Ville de Brossard"},{"$f":"IF(LEN('Détail des projets'!G74)=0,\"\",'Détail des projets'!G74)","v":"16-Montérégie"},{"$f":"IF(LEN('Détail des projets'!K74)=0,\"\",'Détail des projets'!K74)","v":84000}]
[null,{"$f":"IF(LEN('Détail des projets'!B75)=0,\"\",'Détail des projets'!B75)","v":"Boulevard Jacques-Cartier"},{"$f":"IF(LEN('Détail des projets'!C75)=0,\"\",'Détail des projets'!C75)","v":"Ville de Longueuil"},{"$f":"IF(LEN('Détail des projets'!G75)=0,\"\",'Détail des projets'!G75)","v":"16-Montérégie"},{"$f":"IF(LEN('Détail des projets'!K75)=0,\"\",'Détail des projets'!K75)","v":94000}]
[null,{"$f":"IF(LEN('Détail des projets'!B76)=0,\"\",'Détail des projets'!B76)","v":"Sentier pour désenclavement"},{"$f":"IF(LEN('Détail des projets'!C76)=0,\"\",'Détail des projets'!C76)","v":"Ville de Lac-Mégantic"},{"$f":"IF(LEN('Détail des projets'!G76)=0,\"\",'Détail des projets'!G76)","v":"05-Estrie"},{"$f":"IF(LEN('Détail des projets'!K76)=0,\"\",'Détail des projets'!K76)","v":108021.5}]
[null,{"$f":"IF(LEN('Détail des projets'!B77)=0,\"\",'Détail des projets'!B77)","v":"12e Avenue"},{"$f":"IF(LEN('Détail des projets'!C77)=0,\"\",'Détail des projets'!C77)","v":"Ville de Shawinigan"},{"$f":"IF(LEN('Détail des projets'!G77)=0,\"\",'Détail des projets'!G77)","v":"04-Mauricie "},{"$f":"IF(LEN('Détail des projets'!K77)=0,\"\",'Détail des projets'!K77)","v":470000}]
[null,{"$f":"IF(LEN('Détail des projets'!B78)=0,\"\",'Détail des projets'!B78)","v":"Apaisement de la circulation, écoles Rose-des-Vents, St-Jean-Vianney, Ste-Anne et Madeleine-de-Verchères"},{"$f":"IF(LEN('Détail des projets'!C78)=0,\"\",'Détail des projets'!C78)","v":"Ville de Montréal - Rosemon Petite-Patrie"},{"$f":"IF(LEN('Détail des projets'!G78)=0,\"\",'Détail des projets'!G78)","v":"06-Montréal"},{"$f":"IF(LEN('Détail des projets'!K78)=0,\"\",'Détail des projets'!K78)","v":560235}]
[null,{"$f":"IF(LEN('Détail des projets'!B79)=0,\"\",'Détail des projets'!B79)","v":"Notre-Dame-Est"},{"$f":"IF(LEN('Détail des projets'!C79)=0,\"\",'Détail des projets'!C79)","v":"Ville de Victoriaville"},{"$f":"IF(LEN('Détail des projets'!G79)=0,\"\",'Détail des projets'!G79)","v":"17-Centre-du-Québec"},{"$f":"IF(LEN('Détail des projets'!K79)=0,\"\",'Détail des projets'!K79)","v":616360}]
[null,{"$f":"IF(LEN('Détail des projets'!B80)=0,\"\",'Détail des projets'!B80)","v":"Stationnements vélo"},{"$f":"IF(LEN('Détail des projets'!C80)=0,\"\",'Détail des projets'!C80)","v":"Municipalité de St-Liboire"},{"$f":"IF(LEN('Détail des projets'!G80)=0,\"\",'Détail des projets'!G80)","v":"16-Montérégie"},{"$f":"IF(LEN('Détail des projets'!K80)=0,\"\",'Détail des projets'!K80)","v":2931.07}]
[null,{"$f":"IF(LEN('Détail des projets'!B81)=0,\"\",'Détail des projets'!B81)","v":"Lac-des-Sables"},{"$f":"IF(LEN('Détail des projets'!C81)=0,\"\",'Détail des projets'!C81)","v":"Sainte-Agathe-des-Monts"},{"$f":"IF(LEN('Détail des projets'!G81)=0,\"\",'Détail des projets'!G81)","v":"15-Laurentides"},{"$f":"IF(LEN('Détail des projets'!K81)=0,\"\",'Détail des projets'!K81)","v":225000}]
[null,{"$f":"IF(LEN('Détail des projets'!B82)=0,\"\",'Détail des projets'!B82)","v":"Piste dans le village"},{"$f":"IF(LEN('Détail des projets'!C82)=0,\"\",'Détail des projets'!C82)","v":"Municipalité de Petite-Rivière-Saint-François"},{"$f":"IF(LEN('Détail des projets'!G82)=0,\"\",'Détail des projets'!G82)","v":"03-Capitale-Nationale"},{"$f":"IF(LEN('Détail des projets'!K82)=0,\"\",'Détail des projets'!K82)","v":209745}]
[null,{"$f":"IF(LEN('Détail des projets'!B83)=0,\"\",'Détail des projets'!B83)","v":"Boulevard Laflèche"},{"$f":"IF(LEN('Détail des projets'!C83)=0,\"\",'Détail des projets'!C83)","v":"Ville de Baie-Comeau"},{"$f":"IF(LEN('Détail des projets'!G83)=0,\"\",'Détail des projets'!G83)","v":"09-Côte-Nord"},{"$f":"IF(LEN('Détail des projets'!K83)=0,\"\",'Détail des projets'!K83)","v":197000}]
[null,{"$f":"IF(LEN('Détail des projets'!B84)=0,\"\",'Détail des projets'!B84)","v":"Vieux-Verchères"},{"$f":"IF(LEN('Détail des projets'!C84)=0,\"\",'Détail des projets'!C84)","v":"Ville de Verchères"},{"$f":"IF(LEN('Détail des projets'!G84)=0,\"\",'Détail des projets'!G84)","v":"16-Montérégie"},{"$f":"IF(LEN('Détail des projets'!K84)=0,\"\",'Détail des projets'!K84)","v":216717}]
[null,{"$f":"IF(LEN('Détail des projets'!B85)=0,\"\",'Détail des projets'!B85)","v":"Signalisation cyclable noyaux villageois."},{"$f":"IF(LEN('Détail des projets'!C85)=0,\"\",'Détail des projets'!C85)","v":"MRC / CLD de l'Ile-d'Orléans"},{"$f":"IF(LEN('Détail des projets'!G85)=0,\"\",'Détail des projets'!G85)","v":"03-Capitale-Nationale"},{"$f":"IF(LEN('Détail des projets'!K85)=0,\"\",'Détail des projets'!K85)","v":7773}]
[null,{"$f":"IF(LEN('Détail des projets'!B86)=0,\"\",'Détail des projets'!B86)","v":"Bandes cyclables secteur commercial et communautaire."},{"$f":"IF(LEN('Détail des projets'!C86)=0,\"\",'Détail des projets'!C86)","v":"Cantons unis de Stoneham-et-Tewkesbury"},{"$f":"IF(LEN('Détail des projets'!G86)=0,\"\",'Détail des projets'!G86)","v":"03-Capitale-Nationale"},{"$f":"IF(LEN('Détail des projets'!K86)=0,\"\",'Détail des projets'!K86)","v":98400}]
[null,{"$f":"IF(LEN('Détail des projets'!B87)=0,\"\",'Détail des projets'!B87)","v":"Feux de circulation, train de l'Est, projet Oka-Mont-St-Hilaire, Antenne Longue-Pointe et canal de l'Aqueduc."},{"$f":"IF(LEN('Détail des projets'!C87)=0,\"\",'Détail des projets'!C87)","v":"Ville de Montréal"},{"$f":"IF(LEN('Détail des projets'!G87)=0,\"\",'Détail des projets'!G87)","v":"06-Montréal"},{"$f":"IF(LEN('Détail des projets'!K87)=0,\"\",'Détail des projets'!K87)","v":2553568}]
[null,{"$f":"IF(LEN('Détail des projets'!B88)=0,\"\",'Détail des projets'!B88)","v":"Rue Laurier"},{"$f":"IF(LEN('Détail des projets'!C88)=0,\"\",'Détail des projets'!C88)","v":"Montréal - Arrondissement Le Plateau-Mont-Royal)"},{"$f":"IF(LEN('Détail des projets'!G88)=0,\"\",'Détail des projets'!G88)","v":"06-Montréal"},{"$f":"IF(LEN('Détail des projets'!K88)=0,\"\",'Détail des projets'!K88)","v":635100}]
[null,{"$f":"IF(LEN('Détail des projets'!B89)=0,\"\",'Détail des projets'!B89)","v":"Apaisement de la circulation dans un corridor scolaire"},{"$f":"IF(LEN('Détail des projets'!C89)=0,\"\",'Détail des projets'!C89)","v":"Municipalité de Saint-Amable"},{"$f":"IF(LEN('Détail des projets'!G89)=0,\"\",'Détail des projets'!G89)","v":"16-Montérégie"},{"$f":"IF(LEN('Détail des projets'!K89)=0,\"\",'Détail des projets'!K89)","v":2465}]
[null,{"$f":"IF(LEN('Détail des projets'!B90)=0,\"\",'Détail des projets'!B90)","v":"Passerelle"},{"$f":"IF(LEN('Détail des projets'!C90)=0,\"\",'Détail des projets'!C90)","v":"Ville d'Alma"},{"$f":"IF(LEN('Détail des projets'!G90)=0,\"\",'Détail des projets'!G90)","v":"02-Saguenay- Lac-Saint-Jean"},{"$f":"IF(LEN('Détail des projets'!K90)=0,\"\",'Détail des projets'!K90)","v":1000000}]
[null,{"$f":"IF(LEN('Détail des projets'!B91)=0,\"\",'Détail des projets'!B91)","v":"Boulevard Sardaigne"},{"$f":"IF(LEN('Détail des projets'!C91)=0,\"\",'Détail des projets'!C91)","v":"Ville de Candiac"},{"$f":"IF(LEN('Détail des projets'!G91)=0,\"\",'Détail des projets'!G91)","v":"16-Montérégie"},{"$f":"IF(LEN('Détail des projets'!K91)=0,\"\",'Détail des projets'!K91)","v":84000}]
[null,{"$f":"IF(LEN('Détail des projets'!B92)=0,\"\",'Détail des projets'!B92)","v":"Rue Jacques-Cartier"},{"$f":"IF(LEN('Détail des projets'!C92)=0,\"\",'Détail des projets'!C92)","v":"Ville de Gatineau"},{"$f":"IF(LEN('Détail des projets'!G92)=0,\"\",'Détail des projets'!G92)","v":"07-Outaouais"},{"$f":"IF(LEN('Détail des projets'!K92)=0,\"\",'Détail des projets'!K92)","v":402523}]
[null,{"$f":"IF(LEN('Détail des projets'!B93)=0,\"\",'Détail des projets'!B93)","v":"Connexion cyclable entre les quartiers"},{"$f":"IF(LEN('Détail des projets'!C93)=0,\"\",'Détail des projets'!C93)","v":"Ville de Coaticook"},{"$f":"IF(LEN('Détail des projets'!G93)=0,\"\",'Détail des projets'!G93)","v":"05-Estrie"},{"$f":"IF(LEN('Détail des projets'!K93)=0,\"\",'Détail des projets'!K93)","v":92494}]
[null,{"$f":"IF(LEN('Détail des projets'!B94)=0,\"\",'Détail des projets'!B94)","v":"Boulevard Portland"},{"$f":"IF(LEN('Détail des projets'!C94)=0,\"\",'Détail des projets'!C94)","v":"Ville de Sherbrooke"},{"$f":"IF(LEN('Détail des projets'!G94)=0,\"\",'Détail des projets'!G94)","v":"05-Estrie"},{"$f":"IF(LEN('Détail des projets'!K94)=0,\"\",'Détail des projets'!K94)","v":973205}]
[null,{"$f":"IF(LEN('Détail des projets'!B95)=0,\"\",'Détail des projets'!B95)","v":"Apaisement de la circulation : École St-Arsène, St-Étienne et Ste-Bernadette-Soubirou"},{"$f":"IF(LEN('Détail des projets'!C95)=0,\"\",'Détail des projets'!C95)","v":"Ville de Montréal Rosemont École St-Arsène"},{"$f":"IF(LEN('Détail des projets'!G95)=0,\"\",'Détail des projets'!G95)","v":"06-Montréal"},{"$f":"IF(LEN('Détail des projets'!K95)=0,\"\",'Détail des projets'!K95)","v":164222}]
[null,{"$f":"IF(LEN('Détail des projets'!B96)=0,\"\",'Détail des projets'!B96)","v":"Traverse du chemin de fer du CP à la hauteur de Saint-Laurent et Bellechasse."},{"$f":"IF(LEN('Détail des projets'!C96)=0,\"\",'Détail des projets'!C96)","v":"Ville de Montréal Saint-Laurent Bellechasse"},{"$f":"IF(LEN('Détail des projets'!G96)=0,\"\",'Détail des projets'!G96)","v":"06-Montréal"},{"$f":"IF(LEN('Détail des projets'!K96)=0,\"\",'Détail des projets'!K96)","v":280900}]
[null,{"$f":"IF(LEN('Détail des projets'!B97)=0,\"\",'Détail des projets'!B97)","v":"Piste centre-ville Causapscal"},{"$f":"IF(LEN('Détail des projets'!C97)=0,\"\",'Détail des projets'!C97)","v":"MRC de la Matapédia"},{"$f":"IF(LEN('Détail des projets'!G97)=0,\"\",'Détail des projets'!G97)","v":"11-Gaspésie-Iles-de-la-Madeleine"},{"$f":"IF(LEN('Détail des projets'!K97)=0,\"\",'Détail des projets'!K97)","v":90496}]
[null,{"$f":"IF(LEN('Détail des projets'!B98)=0,\"\",'Détail des projets'!B98)","v":"Piste cyclable centre du village"},{"$f":"IF(LEN('Détail des projets'!C98)=0,\"\",'Détail des projets'!C98)","v":"Saint-Marc-de-Figuery"},{"$f":"IF(LEN('Détail des projets'!G98)=0,\"\",'Détail des projets'!G98)","v":"08-Abitibi-Témiscamingue"},{"$f":"IF(LEN('Détail des projets'!K98)=0,\"\",'Détail des projets'!K98)","v":3319}]
[null,{"$f":"IF(LEN('Détail des projets'!B99)=0,\"\",'Détail des projets'!B99)","v":"Piste du boulevard Montcalm Nord"},{"$f":"IF(LEN('Détail des projets'!C99)=0,\"\",'Détail des projets'!C99)","v":"Ville de Candiac"},{"$f":"IF(LEN('Détail des projets'!G99)=0,\"\",'Détail des projets'!G99)","v":"16-Montérégie"},{"$f":"IF(LEN('Détail des projets'!K99)=0,\"\",'Détail des projets'!K99)","v":375000}]
[null,{"$f":"IF(LEN('Détail des projets'!B100)=0,\"\",'Détail des projets'!B100)","v":"Piste et passerelle du parc des Saules"},{"$f":"IF(LEN('Détail des projets'!C100)=0,\"\",'Détail des projets'!C100)","v":"Ville de Québec"},{"$f":"IF(LEN('Détail des projets'!G100)=0,\"\",'Détail des projets'!G100)","v":"03-Capitale-Nationale"},{"$f":"IF(LEN('Détail des projets'!K100)=0,\"\",'Détail des projets'!K100)","v":1000000}]
[null,{"$f":"IF(LEN('Détail des projets'!B101)=0,\"\",'Détail des projets'!B101)","v":"Piste du boulevard Taché, du Rapibus à Montcalm"},{"$f":"IF(LEN('Détail des projets'!C101)=0,\"\",'Détail des projets'!C101)","v":"Ville de Gatineau"},{"$f":"IF(LEN('Détail des projets'!G101)=0,\"\",'Détail des projets'!G101)","v":"07-Outaouais"},{"$f":"IF(LEN('Détail des projets'!K101)=0,\"\",'Détail des projets'!K101)","v":146033}]
[null,{"$f":"IF(LEN('Détail des projets'!B102)=0,\"\",'Détail des projets'!B102)","v":"Lien cyclo-pédestre entre la route 116 et la piste du Grand-Tronc"},{"$f":"IF(LEN('Détail des projets'!C102)=0,\"\",'Détail des projets'!C102)","v":"Ville de Lévis"},{"$f":"IF(LEN('Détail des projets'!G102)=0,\"\",'Détail des projets'!G102)","v":"12-Chaudières-Appalaches"},{"$f":"IF(LEN('Détail des projets'!K102)=0,\"\",'Détail des projets'!K102)","v":85000}]
[null,{"$f":"IF(LEN('Détail des projets'!B103)=0,\"\",'Détail des projets'!B103)","v":"Bandes cyclables sur 21 segments dans la ville."},{"$f":"IF(LEN('Détail des projets'!C103)=0,\"\",'Détail des projets'!C103)","v":"Ville de Laval"},{"$f":"IF(LEN('Détail des projets'!G103)=0,\"\",'Détail des projets'!G103)","v":"13-Laval"},{"$f":"IF(LEN('Détail des projets'!K103)=0,\"\",'Détail des projets'!K103)","v":288924}]
[null,{"$f":"IF(LEN('Détail des projets'!B104)=0,\"\",'Détail des projets'!B104)","v":"Piste cyclable sur la 12e Avenue"},{"$f":"IF(LEN('Détail des projets'!C104)=0,\"\",'Détail des projets'!C104)","v":"Ville de Sherbrooke"},{"$f":"IF(LEN('Détail des projets'!G104)=0,\"\",'Détail des projets'!G104)","v":"05-Estrie"},{"$f":"IF(LEN('Détail des projets'!K104)=0,\"\",'Détail des projets'!K104)","v":570256}]
[null,{"$f":"IF(LEN('Détail des projets'!B105)=0,\"\",'Détail des projets'!B105)","v":"2e phase du projet de voie cyclable de la 3e Avenue (projet 2017-2018)"},{"$f":"IF(LEN('Détail des projets'!C105)=0,\"\",'Détail des projets'!C105)","v":"Ville de Québec"},{"$f":"IF(LEN('Détail des projets'!G105)=0,\"\",'Détail des projets'!G105)","v":"03-Capitale-Nationale"},{"$f":"IF(LEN('Détail des projets'!K105)=0,\"\",'Détail des projets'!K105)","v":68770}]
[null,{"$f":"IF(LEN('Détail des projets'!B106)=0,\"\",'Détail des projets'!B106)","v":"Piste du boulevard Royal"},{"$f":"IF(LEN('Détail des projets'!C106)=0,\"\",'Détail des projets'!C106)","v":"Ville de Shawinigan"},{"$f":"IF(LEN('Détail des projets'!G106)=0,\"\",'Détail des projets'!G106)","v":"04-Mauricie "},{"$f":"IF(LEN('Détail des projets'!K106)=0,\"\",'Détail des projets'!K106)","v":775000}]
[null,{"$f":"IF(LEN('Détail des projets'!B107)=0,\"\",'Détail des projets'!B107)","v":"Piste de la rue Franck-Carrel"},{"$f":"IF(LEN('Détail des projets'!C107)=0,\"\",'Détail des projets'!C107)","v":"Ville de Québec"},{"$f":"IF(LEN('Détail des projets'!G107)=0,\"\",'Détail des projets'!G107)","v":"03-Capitale-Nationale"},{"$f":"IF(LEN('Détail des projets'!K107)=0,\"\",'Détail des projets'!K107)","v":569989}]
[null,{"$f":"IF(LEN('Détail des projets'!B108)=0,\"\",'Détail des projets'!B108)","v":"Lien entre une piste multifonctionnelle et la route 132"},{"$f":"IF(LEN('Détail des projets'!C108)=0,\"\",'Détail des projets'!C108)","v":"Ville de Bonaventure"},{"$f":"IF(LEN('Détail des projets'!G108)=0,\"\",'Détail des projets'!G108)","v":"11-Gaspésie-Iles-de-la-Madeleine"},{"$f":"IF(LEN('Détail des projets'!K108)=0,\"\",'Détail des projets'!K108)","v":20724}]
[null,{"$f":"IF(LEN('Détail des projets'!B109)=0,\"\",'Détail des projets'!B109)","v":"Piste de la 3e Rue"},{"$f":"IF(LEN('Détail des projets'!C109)=0,\"\",'Détail des projets'!C109)","v":"Ville de Shawinigan"},{"$f":"IF(LEN('Détail des projets'!G109)=0,\"\",'Détail des projets'!G109)","v":"04-Mauricie "},{"$f":"IF(LEN('Détail des projets'!K109)=0,\"\",'Détail des projets'!K109)","v":212075}]
[null,{"$f":"IF(LEN('Détail des projets'!B110)=0,\"\",'Détail des projets'!B110)","v":"Piste de la rue Garnier"},{"$f":"IF(LEN('Détail des projets'!C110)=0,\"\",'Détail des projets'!C110)","v":"Ville de Shawinigan"},{"$f":"IF(LEN('Détail des projets'!G110)=0,\"\",'Détail des projets'!G110)","v":"04-Mauricie "},{"$f":"IF(LEN('Détail des projets'!K110)=0,\"\",'Détail des projets'!K110)","v":130225}]
[null,{"$f":"IF(LEN('Détail des projets'!B111)=0,\"\",'Détail des projets'!B111)","v":"Aménagement de corridors scolaires autour de deux écoles"},{"$f":"IF(LEN('Détail des projets'!C111)=0,\"\",'Détail des projets'!C111)","v":"Ville de Saint-Honoré"},{"$f":"IF(LEN('Détail des projets'!G111)=0,\"\",'Détail des projets'!G111)","v":"02-Saguenay- Lac-Saint-Jean"},{"$f":"IF(LEN('Détail des projets'!K111)=0,\"\",'Détail des projets'!K111)","v":68250}]
[null,{"$f":"IF(LEN('Détail des projets'!B112)=0,\"\",'Détail des projets'!B112)","v":"Apaisement de la circulation à Simone-Monet"},{"$f":"IF(LEN('Détail des projets'!C112)=0,\"\",'Détail des projets'!C112)","v":"Ville de Montréal - Arr. CDN-NDG"},{"$f":"IF(LEN('Détail des projets'!G112)=0,\"\",'Détail des projets'!G112)","v":"06-Montréal"},{"$f":"IF(LEN('Détail des projets'!K112)=0,\"\",'Détail des projets'!K112)","v":92}]
[null,{"$f":"IF(LEN('Détail des projets'!B113)=0,\"\",'Détail des projets'!B113)","v":"Piste de la base de plein-air Sainte-Foy"},{"$f":"IF(LEN('Détail des projets'!C113)=0,\"\",'Détail des projets'!C113)","v":"Ville de Québec"},{"$f":"IF(LEN('Détail des projets'!G113)=0,\"\",'Détail des projets'!G113)","v":"03-Capitale-Nationale"},{"$f":"IF(LEN('Détail des projets'!K113)=0,\"\",'Détail des projets'!K113)","v":360174}]
[null,{"$f":"IF(LEN('Détail des projets'!B114)=0,\"\",'Détail des projets'!B114)","v":"Apaisement de la circulation à l'école Bedford"},{"$f":"IF(LEN('Détail des projets'!C114)=0,\"\",'Détail des projets'!C114)","v":"Ville de Montréal - Arr. CDN-NDG"},{"$f":"IF(LEN('Détail des projets'!G114)=0,\"\",'Détail des projets'!G114)","v":"06-Montréal"},{"$f":"IF(LEN('Détail des projets'!K114)=0,\"\",'Détail des projets'!K114)","v":250000}]
[null,{"$f":"IF(LEN('Détail des projets'!B115)=0,\"\",'Détail des projets'!B115)","v":"Piste du boulevard Taché, de Ferme Moore à Saint-Dominique"},{"$f":"IF(LEN('Détail des projets'!C115)=0,\"\",'Détail des projets'!C115)","v":"Ville de Gatineau"},{"$f":"IF(LEN('Détail des projets'!G115)=0,\"\",'Détail des projets'!G115)","v":"07-Outaouais"},{"$f":"IF(LEN('Détail des projets'!K115)=0,\"\",'Détail des projets'!K115)","v":65988}]
[null,{"$f":"IF(LEN('Détail des projets'!B116)=0,\"\",'Détail des projets'!B116)","v":"Apaisement de la circulation à l'Académie Beth-Rivkah"},{"$f":"IF(LEN('Détail des projets'!C116)=0,\"\",'Détail des projets'!C116)","v":"Ville de Montréal - Arr. CDN-NDG"},{"$f":"IF(LEN('Détail des projets'!G116)=0,\"\",'Détail des projets'!G116)","v":"06-Montréal"},{"$f":"IF(LEN('Détail des projets'!K116)=0,\"\",'Détail des projets'!K116)","v":205571}]
[null,{"$f":"IF(LEN('Détail des projets'!B117)=0,\"\",'Détail des projets'!B117)","v":"Apaisement de la circulation à l'école Des Nations"},{"$f":"IF(LEN('Détail des projets'!C117)=0,\"\",'Détail des projets'!C117)","v":"Ville de Montréal - Arr. CDN-NDG"},{"$f":"IF(LEN('Détail des projets'!G117)=0,\"\",'Détail des projets'!G117)","v":"06-Montréal"},{"$f":"IF(LEN('Détail des projets'!K117)=0,\"\",'Détail des projets'!K117)","v":226093}]
[null,{"$f":"IF(LEN('Détail des projets'!B118)=0,\"\",'Détail des projets'!B118)","v":"Piste rues Hubert, Biermans et Chahoon"},{"$f":"IF(LEN('Détail des projets'!C118)=0,\"\",'Détail des projets'!C118)","v":"Ville de Shawinigan"},{"$f":"IF(LEN('Détail des projets'!G118)=0,\"\",'Détail des projets'!G118)","v":"04-Mauricie "},{"$f":"IF(LEN('Détail des projets'!K118)=0,\"\",'Détail des projets'!K118)","v":1000000}]
[null,{"$f":"IF(LEN('Détail des projets'!B119)=0,\"\",'Détail des projets'!B119)","v":"Piste multifonctionnelle parallèle à la route 132"},{"$f":"IF(LEN('Détail des projets'!C119)=0,\"\",'Détail des projets'!C119)","v":"Ville de Carleton-sur-Mer"},{"$f":"IF(LEN('Détail des projets'!G119)=0,\"\",'Détail des projets'!G119)","v":"11-Gaspésie-Iles-de-la-Madeleine"},{"$f":"IF(LEN('Détail des projets'!K119)=0,\"\",'Détail des projets'!K119)","v":35592}]
[null,{"$f":"IF(LEN('Détail des projets'!B120)=0,\"\",'Détail des projets'!B120)","v":"Piste reliant le village au secteur des Jardins de Saint-Rémi"},{"$f":"IF(LEN('Détail des projets'!C120)=0,\"\",'Détail des projets'!C120)","v":"Ville de Saint-Rémi"},{"$f":"IF(LEN('Détail des projets'!G120)=0,\"\",'Détail des projets'!G120)","v":"16-Montérégie"},{"$f":"IF(LEN('Détail des projets'!K120)=0,\"\",'Détail des projets'!K120)","v":160000}]
[null,{"$f":"IF(LEN('Détail des projets'!B121)=0,\"\",'Détail des projets'!B121)","v":"Apaisement de la circulation en milieu scolaire"},{"$f":"IF(LEN('Détail des projets'!C121)=0,\"\",'Détail des projets'!C121)","v":"Municipalité d'Henryville"},{"$f":"IF(LEN('Détail des projets'!G121)=0,\"\",'Détail des projets'!G121)","v":"16-Montérégie"},{"$f":"IF(LEN('Détail des projets'!K121)=0,\"\",'Détail des projets'!K121)","v":19825}]
[null,{"$f":"IF(LEN('Détail des projets'!B122)=0,\"\",'Détail des projets'!B122)","v":"Piste cyclable en milieu urbain"},{"$f":"IF(LEN('Détail des projets'!C122)=0,\"\",'Détail des projets'!C122)","v":"Ville de Saint-Urbain-Premier"},{"$f":"IF(LEN('Détail des projets'!G122)=0,\"\",'Détail des projets'!G122)","v":"16-Montérégie"},{"$f":"IF(LEN('Détail des projets'!K122)=0,\"\",'Détail des projets'!K122)","v":56837}]
[null,{"$f":"IF(LEN('Détail des projets'!B123)=0,\"\",'Détail des projets'!B123)","v":"Piste cyclable dans une emprise d'H-Q à Sainte-Anne-de-Bellevue"},{"$f":"IF(LEN('Détail des projets'!C123)=0,\"\",'Détail des projets'!C123)","v":"Ville de Montréal"},{"$f":"IF(LEN('Détail des projets'!G123)=0,\"\",'Détail des projets'!G123)","v":"06-Montréal"},{"$f":"IF(LEN('Détail des projets'!K123)=0,\"\",'Détail des projets'!K123)","v":110506}]
[null,{"$f":"IF(LEN('Détail des projets'!B124)=0,\"\",'Détail des projets'!B124)","v":"Apaisement de la circulation près d'une école au centre du village"},{"$f":"IF(LEN('Détail des projets'!C124)=0,\"\",'Détail des projets'!C124)","v":"Municipalité de Notre-Dame-de-Laus"},{"$f":"IF(LEN('Détail des projets'!G124)=0,\"\",'Détail des projets'!G124)","v":"15-Laurentides"},{"$f":"IF(LEN('Détail des projets'!K124)=0,\"\",'Détail des projets'!K124)","v":9350}]
[null,{"$f":"IF(LEN('Détail des projets'!B125)=0,\"\",'Détail des projets'!B125)","v":"Abris 4 saisons pour vélo"},{"$f":"IF(LEN('Détail des projets'!C125)=0,\"\",'Détail des projets'!C125)","v":"Ville de Montréal - Arr. Plateau-Mont-Royal"},{"$f":"IF(LEN('Détail des projets'!G125)=0,\"\",'Détail des projets'!G125)","v":"06-Montréal"},{"$f":"IF(LEN('Détail des projets'!K125)=0,\"\",'Détail des projets'!K125)","v":27000}]
[null,{"$f":"IF(LEN('Détail des projets'!B126)=0,\"\",'Détail des projets'!B126)","v":"Piste de la rue des Ruisseaux"},{"$f":"IF(LEN('Détail des projets'!C126)=0,\"\",'Détail des projets'!C126)","v":"Ville de Gatineau"},{"$f":"IF(LEN('Détail des projets'!G126)=0,\"\",'Détail des projets'!G126)","v":"07-Outaouais"},{"$f":"IF(LEN('Détail des projets'!K126)=0,\"\",'Détail des projets'!K126)","v":246170}]
[null,{"$f":"IF(LEN('Détail des projets'!B127)=0,\"\",'Détail des projets'!B127)","v":"Apaisement de la circulation à l'école Les-Enfants-du-Monde"},{"$f":"IF(LEN('Détail des projets'!C127)=0,\"\",'Détail des projets'!C127)","v":"Ville de Montréal - Arr. CDN-NDG"},{"$f":"IF(LEN('Détail des projets'!G127)=0,\"\",'Détail des projets'!G127)","v":"06-Montréal"},{"$f":"IF(LEN('Détail des projets'!K127)=0,\"\",'Détail des projets'!K127)","v":180914}]
[null,{"$f":"IF(LEN('Détail des projets'!B128)=0,\"\",'Détail des projets'!B128)","v":"Apaisement de la circulation à l'école Saint-Raymond"},{"$f":"IF(LEN('Détail des projets'!C128)=0,\"\",'Détail des projets'!C128)","v":"Ville de Montréal - Arr. CDN-NDG"},{"$f":"IF(LEN('Détail des projets'!G128)=0,\"\",'Détail des projets'!G128)","v":"06-Montréal"},{"$f":"IF(LEN('Détail des projets'!K128)=0,\"\",'Détail des projets'!K128)","v":89653}]
[null,{"$f":"IF(LEN('Détail des projets'!B129)=0,\"\",'Détail des projets'!B129)","v":"Piste multifonctionnelle et voies cyclables des rues Demsey, Proudfoot, Principale et Romain."},{"$f":"IF(LEN('Détail des projets'!C129)=0,\"\",'Détail des projets'!C129)","v":"Municipalité de Fort-Coulonge"},{"$f":"IF(LEN('Détail des projets'!G129)=0,\"\",'Détail des projets'!G129)","v":"07-Outaouais"},{"$f":"IF(LEN('Détail des projets'!K129)=0,\"\",'Détail des projets'!K129)","v":51566}]
[null,{"$f":"IF(LEN('Détail des projets'!B130)=0,\"\",'Détail des projets'!B130)","v":"Sentier rue Westem"},{"$f":"IF(LEN('Détail des projets'!C130)=0,\"\",'Détail des projets'!C130)","v":"Ville de Waterloo"},{"$f":"IF(LEN('Détail des projets'!G130)=0,\"\",'Détail des projets'!G130)","v":"16-Montérégie"},{"$f":"IF(LEN('Détail des projets'!K130)=0,\"\",'Détail des projets'!K130)","v":147304}]
[null,{"$f":"IF(LEN('Détail des projets'!B131)=0,\"\",'Détail des projets'!B131)","v":"Piste rue St-Hubert"},{"$f":"IF(LEN('Détail des projets'!C131)=0,\"\",'Détail des projets'!C131)","v":"Ville de Granby"},{"$f":"IF(LEN('Détail des projets'!G131)=0,\"\",'Détail des projets'!G131)","v":"16-Montérégie"},{"$f":"IF(LEN('Détail des projets'!K131)=0,\"\",'Détail des projets'!K131)","v":1379130}]
[null,{"$f":"IF(LEN('Détail des projets'!B132)=0,\"\",'Détail des projets'!B132)","v":"Sentier polyvalent"},{"$f":"IF(LEN('Détail des projets'!C132)=0,\"\",'Détail des projets'!C132)","v":"Municipalité du Canton d'Orford"},{"$f":"IF(LEN('Détail des projets'!G132)=0,\"\",'Détail des projets'!G132)","v":"05-Estrie"},{"$f":"IF(LEN('Détail des projets'!K132)=0,\"\",'Détail des projets'!K132)","v":139682}]
[null,{"$f":"IF(LEN('Détail des projets'!B133)=0,\"\",'Détail des projets'!B133)","v":"Piste cyclable bidirectionnelle"},{"$f":"IF(LEN('Détail des projets'!C133)=0,\"\",'Détail des projets'!C133)","v":"Ville de Bromont"},{"$f":"IF(LEN('Détail des projets'!G133)=0,\"\",'Détail des projets'!G133)","v":"16-Montérégie"},{"$f":"IF(LEN('Détail des projets'!K133)=0,\"\",'Détail des projets'!K133)","v":545350}]
[null,{"$f":"IF(LEN('Détail des projets'!B134)=0,\"\",'Détail des projets'!B134)","v":"Piste route 108"},{"$f":"IF(LEN('Détail des projets'!C134)=0,\"\",'Détail des projets'!C134)","v":"Municipalité de Lambton"},{"$f":"IF(LEN('Détail des projets'!G134)=0,\"\",'Détail des projets'!G134)","v":"05-Estrie"},{"$f":"IF(LEN('Détail des projets'!K134)=0,\"\",'Détail des projets'!K134)","v":120000}]
[null,{"$f":"IF(LEN('Détail des projets'!B135)=0,\"\",'Détail des projets'!B135)","v":"Sentier Donnacona"},{"$f":"IF(LEN('Détail des projets'!C135)=0,\"\",'Détail des projets'!C135)","v":"Ville de Donnacona"},{"$f":"IF(LEN('Détail des projets'!G135)=0,\"\",'Détail des projets'!G135)","v":"03-Capitale-Nationale"},{"$f":"IF(LEN('Détail des projets'!K135)=0,\"\",'Détail des projets'!K135)","v":250000}]
[null,{"$f":"IF(LEN('Détail des projets'!B136)=0,\"\",'Détail des projets'!B136)","v":"Infra cyc. L-Beauport"},{"$f":"IF(LEN('Détail des projets'!C136)=0,\"\",'Détail des projets'!C136)","v":"Municipalité de Lac-Beauport"},{"$f":"IF(LEN('Détail des projets'!G136)=0,\"\",'Détail des projets'!G136)","v":"03-Capitale-Nationale"},{"$f":"IF(LEN('Détail des projets'!K136)=0,\"\",'Détail des projets'!K136)","v":95250}]
[null,{"$f":"IF(LEN('Détail des projets'!B137)=0,\"\",'Détail des projets'!B137)","v":"Piste cyclo Québec"},{"$f":"IF(LEN('Détail des projets'!C137)=0,\"\",'Détail des projets'!C137)","v":"Ville de Québec"},{"$f":"IF(LEN('Détail des projets'!G137)=0,\"\",'Détail des projets'!G137)","v":"03-Capitale-Nationale"},{"$f":"IF(LEN('Détail des projets'!K137)=0,\"\",'Détail des projets'!K137)","v":172593}]
[null,{"$f":"IF(LEN('Détail des projets'!B138)=0,\"\",'Détail des projets'!B138)","v":"Rang Montagne"},{"$f":"IF(LEN('Détail des projets'!C138)=0,\"\",'Détail des projets'!C138)","v":"Municipalité de Mont-Saint-Grégoire"},{"$f":"IF(LEN('Détail des projets'!G138)=0,\"\",'Détail des projets'!G138)","v":"16-Montérégie"},{"$f":"IF(LEN('Détail des projets'!K138)=0,\"\",'Détail des projets'!K138)","v":120375}]
[null,{"$f":"IF(LEN('Détail des projets'!B139)=0,\"\",'Détail des projets'!B139)","v":"Rue Gilmore"},{"$f":"IF(LEN('Détail des projets'!C139)=0,\"\",'Détail des projets'!C139)","v":"Municipalité de Mont-Saint-Grégoire"},{"$f":"IF(LEN('Détail des projets'!G139)=0,\"\",'Détail des projets'!G139)","v":"16-Montérégie"},{"$f":"IF(LEN('Détail des projets'!K139)=0,\"\",'Détail des projets'!K139)","v":27900}]
[null,{"$f":"IF(LEN('Détail des projets'!B140)=0,\"\",'Détail des projets'!B140)","v":"Secteur Sud ville"},{"$f":"IF(LEN('Détail des projets'!C140)=0,\"\",'Détail des projets'!C140)","v":"Ville de Salaberry-de-Valleyfield"},{"$f":"IF(LEN('Détail des projets'!G140)=0,\"\",'Détail des projets'!G140)","v":"16-Montérégie"},{"$f":"IF(LEN('Détail des projets'!K140)=0,\"\",'Détail des projets'!K140)","v":761899}]
[null,{"$f":"IF(LEN('Détail des projets'!B141)=0,\"\",'Détail des projets'!B141)","v":"Boul. Casavant O."},{"$f":"IF(LEN('Détail des projets'!C141)=0,\"\",'Détail des projets'!C141)","v":"Ville Saint-Hyacinthe"},{"$f":"IF(LEN('Détail des projets'!G141)=0,\"\",'Détail des projets'!G141)","v":"16-Montérégie"},{"$f":"IF(LEN('Détail des projets'!K141)=0,\"\",'Détail des projets'!K141)","v":280939}]
[null,{"$f":"IF(LEN('Détail des projets'!B142)=0,\"\",'Détail des projets'!B142)","v":"Piste cyclable"},{"$f":"IF(LEN('Détail des projets'!C142)=0,\"\",'Détail des projets'!C142)","v":"Ville de Lachute"},{"$f":"IF(LEN('Détail des projets'!G142)=0,\"\",'Détail des projets'!G142)","v":"15-Laurentides"},{"$f":"IF(LEN('Détail des projets'!K142)=0,\"\",'Détail des projets'!K142)","v":337750}]
[null,{"$f":"IF(LEN('Détail des projets'!B143)=0,\"\",'Détail des projets'!B143)","v":"Réseau cyclable"},{"$f":"IF(LEN('Détail des projets'!C143)=0,\"\",'Détail des projets'!C143)","v":"Ville de Carleton-sur-Mer"},{"$f":"IF(LEN('Détail des projets'!G143)=0,\"\",'Détail des projets'!G143)","v":"11-Gaspésie-Iles-de-la-Madeleine"},{"$f":"IF(LEN('Détail des projets'!K143)=0,\"\",'Détail des projets'!K143)","v":32000}]
[null,{"$f":"IF(LEN('Détail des projets'!B144)=0,\"\",'Détail des projets'!B144)","v":"P. Cyclable Riv. au Renard"},{"$f":"IF(LEN('Détail des projets'!C144)=0,\"\",'Détail des projets'!C144)","v":"Ville de Gaspé"},{"$f":"IF(LEN('Détail des projets'!G144)=0,\"\",'Détail des projets'!G144)","v":"11-Gaspésie-Iles-de-la-Madeleine"},{"$f":"IF(LEN('Détail des projets'!K144)=0,\"\",'Détail des projets'!K144)","v":185238}]
[null,{"$f":"IF(LEN('Détail des projets'!B145)=0,\"\",'Détail des projets'!B145)","v":"Emprise ferr. "},{"$f":"IF(LEN('Détail des projets'!C145)=0,\"\",'Détail des projets'!C145)","v":"Ville de Charlemagne"},{"$f":"IF(LEN('Détail des projets'!G145)=0,\"\",'Détail des projets'!G145)","v":"15-Laurentides"},{"$f":"IF(LEN('Détail des projets'!K145)=0,\"\",'Détail des projets'!K145)","v":230800}]
[null,{"$f":"IF(LEN('Détail des projets'!B146)=0,\"\",'Détail des projets'!B146)","v":"Hector-Lanthier"},{"$f":"IF(LEN('Détail des projets'!C146)=0,\"\",'Détail des projets'!C146)","v":"Ville de Saint-Eustache"},{"$f":"IF(LEN('Détail des projets'!G146)=0,\"\",'Détail des projets'!G146)","v":"15-Laurentides"},{"$f":"IF(LEN('Détail des projets'!K146)=0,\"\",'Détail des projets'!K146)","v":271600}]
[null,{"$f":"IF(LEN('Détail des projets'!B147)=0,\"\",'Détail des projets'!B147)","v":"Passerelle"},{"$f":"IF(LEN('Détail des projets'!C147)=0,\"\",'Détail des projets'!C147)","v":"Ville de L'Assomption"},{"$f":"IF(LEN('Détail des projets'!G147)=0,\"\",'Détail des projets'!G147)","v":"15-Laurentides"},{"$f":"IF(LEN('Détail des projets'!K147)=0,\"\",'Détail des projets'!K147)","v":1689000}]
[null,{"$f":"IF(LEN('Détail des projets'!B148)=0,\"\",'Détail des projets'!B148)","v":"Arthur-Sauvé"},{"$f":"IF(LEN('Détail des projets'!C148)=0,\"\",'Détail des projets'!C148)","v":"Ville de Laval"},{"$f":"IF(LEN('Détail des projets'!G148)=0,\"\",'Détail des projets'!G148)","v":"13-Laval"},{"$f":"IF(LEN('Détail des projets'!K148)=0,\"\",'Détail des projets'!K148)","v":26275}]
[null,{"$f":"IF(LEN('Détail des projets'!B149)=0,\"\",'Détail des projets'!B149)","v":"Curé-Labelle"},{"$f":"IF(LEN('Détail des projets'!C149)=0,\"\",'Détail des projets'!C149)","v":"Ville de Laval"},{"$f":"IF(LEN('Détail des projets'!G149)=0,\"\",'Détail des projets'!G149)","v":"13-Laval"},{"$f":"IF(LEN('Détail des projets'!K149)=0,\"\",'Détail des projets'!K149)","v":200513}]
[null,{"$f":"IF(LEN('Détail des projets'!B150)=0,\"\",'Détail des projets'!B150)","v":"Parcours Écoles"},{"$f":"IF(LEN('Détail des projets'!C150)=0,\"\",'Détail des projets'!C150)","v":"Ville de Laval"},{"$f":"IF(LEN('Détail des projets'!G150)=0,\"\",'Détail des projets'!G150)","v":"13-Laval"},{"$f":"IF(LEN('Détail des projets'!K150)=0,\"\",'Détail des projets'!K150)","v":888064}]
[null,{"$f":"IF(LEN('Détail des projets'!B151)=0,\"\",'Détail des projets'!B151)","v":"St-Martin O."},{"$f":"IF(LEN('Détail des projets'!C151)=0,\"\",'Détail des projets'!C151)","v":"Ville de Laval"},{"$f":"IF(LEN('Détail des projets'!G151)=0,\"\",'Détail des projets'!G151)","v":"13-Laval"},{"$f":"IF(LEN('Détail des projets'!K151)=0,\"\",'Détail des projets'!K151)","v":60000}]
[null,{"$f":"IF(LEN('Détail des projets'!B152)=0,\"\",'Détail des projets'!B152)","v":"Inters. 132-204"},{"$f":"IF(LEN('Détail des projets'!C152)=0,\"\",'Détail des projets'!C152)","v":"Municipalité de Saint-Jean-Port-Joli"},{"$f":"IF(LEN('Détail des projets'!G152)=0,\"\",'Détail des projets'!G152)","v":"12-Chaudières-Appalaches"},{"$f":"IF(LEN('Détail des projets'!K152)=0,\"\",'Détail des projets'!K152)","v":41672}]
[null,{"$f":"IF(LEN('Détail des projets'!B153)=0,\"\",'Détail des projets'!B153)","v":"Piste boul. Taché"},{"$f":"IF(LEN('Détail des projets'!C153)=0,\"\",'Détail des projets'!C153)","v":"Ville de Montmagny"},{"$f":"IF(LEN('Détail des projets'!G153)=0,\"\",'Détail des projets'!G153)","v":"12-Chaudières-Appalaches"},{"$f":"IF(LEN('Détail des projets'!K153)=0,\"\",'Détail des projets'!K153)","v":44420}]
[null,{"$f":"IF(LEN('Détail des projets'!B154)=0,\"\",'Détail des projets'!B154)","v":"30e Rue et 1ere Avenue"},{"$f":"IF(LEN('Détail des projets'!C154)=0,\"\",'Détail des projets'!C154)","v":"Municipalité de la Paroisse de Notre-Dame-des-Pins"},{"$f":"IF(LEN('Détail des projets'!G154)=0,\"\",'Détail des projets'!G154)","v":"12-Chaudières-Appalaches"},{"$f":"IF(LEN('Détail des projets'!K154)=0,\"\",'Détail des projets'!K154)","v":299286}]
[null,{"$f":"IF(LEN('Détail des projets'!B155)=0,\"\",'Détail des projets'!B155)","v":"Tunnel Exo"},{"$f":"IF(LEN('Détail des projets'!C155)=0,\"\",'Détail des projets'!C155)","v":"Ville de Vaudreuil-Dorion"},{"$f":"IF(LEN('Détail des projets'!G155)=0,\"\",'Détail des projets'!G155)","v":"16-Montérégie"},{"$f":"IF(LEN('Détail des projets'!K155)=0,\"\",'Détail des projets'!K155)","v":1744003}]
[null,{"$f":"IF(LEN('Détail des projets'!B156)=0,\"\",'Détail des projets'!B156)","v":"Rue Ampère"},{"$f":"IF(LEN('Détail des projets'!C156)=0,\"\",'Détail des projets'!C156)","v":"Ville de Boucherville"},{"$f":"IF(LEN('Détail des projets'!G156)=0,\"\",'Détail des projets'!G156)","v":"16-Montérégie"},{"$f":"IF(LEN('Détail des projets'!K156)=0,\"\",'Détail des projets'!K156)","v":655810}]
[null,{"$f":"IF(LEN('Détail des projets'!B157)=0,\"\",'Détail des projets'!B157)","v":"Avenue Fouquet"},{"$f":"IF(LEN('Détail des projets'!C157)=0,\"\",'Détail des projets'!C157)","v":"Ville de Candiac"},{"$f":"IF(LEN('Détail des projets'!G157)=0,\"\",'Détail des projets'!G157)","v":"16-Montérégie"},{"$f":"IF(LEN('Détail des projets'!K157)=0,\"\",'Détail des projets'!K157)","v":29000}]
[null,{"$f":"IF(LEN('Détail des projets'!B158)=0,\"\",'Détail des projets'!B158)","v":"Piste cyclable"},{"$f":"IF(LEN('Détail des projets'!C158)=0,\"\",'Détail des projets'!C158)","v":"Ville de Chambly"},{"$f":"IF(LEN('Détail des projets'!G158)=0,\"\",'Détail des projets'!G158)","v":"16-Montérégie"},{"$f":"IF(LEN('Détail des projets'!K158)=0,\"\",'Détail des projets'!K158)","v":185120}]
[null,{"$f":"IF(LEN('Détail des projets'!B159)=0,\"\",'Détail des projets'!B159)","v":"Avenue Mont-Bruno"},{"$f":"IF(LEN('Détail des projets'!C159)=0,\"\",'Détail des projets'!C159)","v":"Ville de Saint-Basile-le-Grand"},{"$f":"IF(LEN('Détail des projets'!G159)=0,\"\",'Détail des projets'!G159)","v":"16-Montérégie"},{"$f":"IF(LEN('Détail des projets'!K159)=0,\"\",'Détail des projets'!K159)","v":99676}]
[null,{"$f":"IF(LEN('Détail des projets'!B160)=0,\"\",'Détail des projets'!B160)","v":"A-Frappier Paris"},{"$f":"IF(LEN('Détail des projets'!C160)=0,\"\",'Détail des projets'!C160)","v":"Ville de Sainte-Julie"},{"$f":"IF(LEN('Détail des projets'!G160)=0,\"\",'Détail des projets'!G160)","v":"16-Montérégie"},{"$f":"IF(LEN('Détail des projets'!K160)=0,\"\",'Détail des projets'!K160)","v":93500}]
[null,{"$f":"IF(LEN('Détail des projets'!B161)=0,\"\",'Détail des projets'!B161)","v":"A-Frappier - A20"},{"$f":"IF(LEN('Détail des projets'!C161)=0,\"\",'Détail des projets'!C161)","v":"Ville de Sainte-Julie"},{"$f":"IF(LEN('Détail des projets'!G161)=0,\"\",'Détail des projets'!G161)","v":"16-Montérégie"},{"$f":"IF(LEN('Détail des projets'!K161)=0,\"\",'Détail des projets'!K161)","v":122500}]
[null,{"$f":"IF(LEN('Détail des projets'!B162)=0,\"\",'Détail des projets'!B162)","v":"Rue Borduas"},{"$f":"IF(LEN('Détail des projets'!C162)=0,\"\",'Détail des projets'!C162)","v":"Ville de Sainte-Julie"},{"$f":"IF(LEN('Détail des projets'!G162)=0,\"\",'Détail des projets'!G162)","v":"16-Montérégie"},{"$f":"IF(LEN('Détail des projets'!K162)=0,\"\",'Détail des projets'!K162)","v":100000}]
[null,{"$f":"IF(LEN('Détail des projets'!B163)=0,\"\",'Détail des projets'!B163)","v":"Rue Robert"},{"$f":"IF(LEN('Détail des projets'!C163)=0,\"\",'Détail des projets'!C163)","v":"Municipalité de Saint-Jean-Baptiste"},{"$f":"IF(LEN('Détail des projets'!G163)=0,\"\",'Détail des projets'!G163)","v":"16-Montérégie"},{"$f":"IF(LEN('Détail des projets'!K163)=0,\"\",'Détail des projets'!K163)","v":90275}]
[null,{"$f":"IF(LEN('Détail des projets'!B164)=0,\"\",'Détail des projets'!B164)","v":" Viaduc Chenaux"},{"$f":"IF(LEN('Détail des projets'!C164)=0,\"\",'Détail des projets'!C164)","v":"Ville de Vaudreuil-Dorion"},{"$f":"IF(LEN('Détail des projets'!G164)=0,\"\",'Détail des projets'!G164)","v":"16-Montérégie"},{"$f":"IF(LEN('Détail des projets'!K164)=0,\"\",'Détail des projets'!K164)","v":205647}]
[null,{"$f":"IF(LEN('Détail des projets'!B165)=0,\"\",'Détail des projets'!B165)","v":"Nénuphars"},{"$f":"IF(LEN('Détail des projets'!C165)=0,\"\",'Détail des projets'!C165)","v":"Ville de Vaudreuil-Dorion"},{"$f":"IF(LEN('Détail des projets'!G165)=0,\"\",'Détail des projets'!G165)","v":"16-Montérégie"},{"$f":"IF(LEN('Détail des projets'!K165)=0,\"\",'Détail des projets'!K165)","v":415500}]
[null,{"$f":"IF(LEN('Détail des projets'!B166)=0,\"\",'Détail des projets'!B166)","v":"RPP - St-Zotique"},{"$f":"IF(LEN('Détail des projets'!C166)=0,\"\",'Détail des projets'!C166)","v":"Ville de Montréal"},{"$f":"IF(LEN('Détail des projets'!G166)=0,\"\",'Détail des projets'!G166)","v":"06-Montréal"},{"$f":"IF(LEN('Détail des projets'!K166)=0,\"\",'Détail des projets'!K166)","v":25133}]
[null,{"$f":"IF(LEN('Détail des projets'!B167)=0,\"\",'Détail des projets'!B167)","v":"RPP - Station"},{"$f":"IF(LEN('Détail des projets'!C167)=0,\"\",'Détail des projets'!C167)","v":"Ville de Montréal"},{"$f":"IF(LEN('Détail des projets'!G167)=0,\"\",'Détail des projets'!G167)","v":"06-Montréal"},{"$f":"IF(LEN('Détail des projets'!K167)=0,\"\",'Détail des projets'!K167)","v":116116}]
[null,{"$f":"IF(LEN('Détail des projets'!B168)=0,\"\",'Détail des projets'!B168)","v":"RPP - Bellechasse"},{"$f":"IF(LEN('Détail des projets'!C168)=0,\"\",'Détail des projets'!C168)","v":"Ville de Montréal"},{"$f":"IF(LEN('Détail des projets'!G168)=0,\"\",'Détail des projets'!G168)","v":"06-Montréal"},{"$f":"IF(LEN('Détail des projets'!K168)=0,\"\",'Détail des projets'!K168)","v":130798}]
[null,{"$f":"IF(LEN('Détail des projets'!B169)=0,\"\",'Détail des projets'!B169)","v":"CDN - Yeshiva"},{"$f":"IF(LEN('Détail des projets'!C169)=0,\"\",'Détail des projets'!C169)","v":"Ville de Montréal"},{"$f":"IF(LEN('Détail des projets'!G169)=0,\"\",'Détail des projets'!G169)","v":"06-Montréal"},{"$f":"IF(LEN('Détail des projets'!K169)=0,\"\",'Détail des projets'!K169)","v":96571}]
[null,{"$f":"IF(LEN('Détail des projets'!B170)=0,\"\",'Détail des projets'!B170)","v":"CDN - Supports vélo"},{"$f":"IF(LEN('Détail des projets'!C170)=0,\"\",'Détail des projets'!C170)","v":"Ville de Montréal"},{"$f":"IF(LEN('Détail des projets'!G170)=0,\"\",'Détail des projets'!G170)","v":"06-Montréal"},{"$f":"IF(LEN('Détail des projets'!K170)=0,\"\",'Détail des projets'!K170)","v":67500}]
[null,{"$f":"IF(LEN('Détail des projets'!B171)=0,\"\",'Détail des projets'!B171)","v":"CDN - ND-des-Neiges"},{"$f":"IF(LEN('Détail des projets'!C171)=0,\"\",'Détail des projets'!C171)","v":"Ville de Montréal"},{"$f":"IF(LEN('Détail des projets'!G171)=0,\"\",'Détail des projets'!G171)","v":"06-Montréal"},{"$f":"IF(LEN('Détail des projets'!K171)=0,\"\",'Détail des projets'!K171)","v":33768}]
[null,{"$f":"IF(LEN('Détail des projets'!B172)=0,\"\",'Détail des projets'!B172)","v":"CDN - L-Teasdale"},{"$f":"IF(LEN('Détail des projets'!C172)=0,\"\",'Détail des projets'!C172)","v":"Ville de Montréal"},{"$f":"IF(LEN('Détail des projets'!G172)=0,\"\",'Détail des projets'!G172)","v":"06-Montréal"},{"$f":"IF(LEN('Détail des projets'!K172)=0,\"\",'Détail des projets'!K172)","v":49880}]
[null,{"$f":"IF(LEN('Détail des projets'!B173)=0,\"\",'Détail des projets'!B173)","v":"Piste H-Q"},{"$f":"IF(LEN('Détail des projets'!C173)=0,\"\",'Détail des projets'!C173)","v":"Ville de Trois-Rivières"},{"$f":"IF(LEN('Détail des projets'!G173)=0,\"\",'Détail des projets'!G173)","v":"04-Mauricie "},{"$f":"IF(LEN('Détail des projets'!K173)=0,\"\",'Détail des projets'!K173)","v":614250}]
[null,{"$f":"IF(LEN('Détail des projets'!B174)=0,\"\",'Détail des projets'!B174)","v":"Bellefeuille"},{"$f":"IF(LEN('Détail des projets'!C174)=0,\"\",'Détail des projets'!C174)","v":"Ville de Trois-Rivières"},{"$f":"IF(LEN('Détail des projets'!G174)=0,\"\",'Détail des projets'!G174)","v":"04-Mauricie "},{"$f":"IF(LEN('Détail des projets'!K174)=0,\"\",'Détail des projets'!K174)","v":304375}]
[null,{"$f":"IF(LEN('Détail des projets'!B175)=0,\"\",'Détail des projets'!B175)","v":"Rue Pelletier"},{"$f":"IF(LEN('Détail des projets'!C175)=0,\"\",'Détail des projets'!C175)","v":"Ville de Drummondville"},{"$f":"IF(LEN('Détail des projets'!G175)=0,\"\",'Détail des projets'!G175)","v":"17-Centre-du-Québec"},{"$f":"IF(LEN('Détail des projets'!K175)=0,\"\",'Détail des projets'!K175)","v":100950}]
[null,{"$f":"IF(LEN('Détail des projets'!B176)=0,\"\",'Détail des projets'!B176)","v":"Grande-Allée"},{"$f":"IF(LEN('Détail des projets'!C176)=0,\"\",'Détail des projets'!C176)","v":"Ville de Drummondville"},{"$f":"IF(LEN('Détail des projets'!G176)=0,\"\",'Détail des projets'!G176)","v":"17-Centre-du-Québec"},{"$f":"IF(LEN('Détail des projets'!K176)=0,\"\",'Détail des projets'!K176)","v":307624}]
[null,{"$f":"IF(LEN('Détail des projets'!B177)=0,\"\",'Détail des projets'!B177)","v":"Feux Évêché/Rivière"},{"$f":"IF(LEN('Détail des projets'!C177)=0,\"\",'Détail des projets'!C177)","v":"Ville de Rimouski"},{"$f":"IF(LEN('Détail des projets'!G177)=0,\"\",'Détail des projets'!G177)","v":"01-Bas-Saint-Laurent"},{"$f":"IF(LEN('Détail des projets'!K177)=0,\"\",'Détail des projets'!K177)","v":26000}]
[null,{"$f":"IF(LEN('Détail des projets'!B178)=0,\"\",'Détail des projets'!B178)","v":"Feux Roul/St-J.-Bapt"},{"$f":"IF(LEN('Détail des projets'!C178)=0,\"\",'Détail des projets'!C178)","v":"Ville de Rimouski"},{"$f":"IF(LEN('Détail des projets'!G178)=0,\"\",'Détail des projets'!G178)","v":"01-Bas-Saint-Laurent"},{"$f":"IF(LEN('Détail des projets'!K178)=0,\"\",'Détail des projets'!K178)","v":30300}]
[null,{"$f":"IF(LEN('Détail des projets'!B179)=0,\"\",'Détail des projets'!B179)","v":"Ferm. rue Ste-Marie"},{"$f":"IF(LEN('Détail des projets'!C179)=0,\"\",'Détail des projets'!C179)","v":"Ville de Rimouski"},{"$f":"IF(LEN('Détail des projets'!G179)=0,\"\",'Détail des projets'!G179)","v":"01-Bas-Saint-Laurent"},{"$f":"IF(LEN('Détail des projets'!K179)=0,\"\",'Détail des projets'!K179)","v":12500}]
[null,{"$f":"IF(LEN('Détail des projets'!B180)=0,\"\",'Détail des projets'!B180)","v":"Amén. rue St-Pierre"},{"$f":"IF(LEN('Détail des projets'!C180)=0,\"\",'Détail des projets'!C180)","v":"Ville de Rimouski"},{"$f":"IF(LEN('Détail des projets'!G180)=0,\"\",'Détail des projets'!G180)","v":"01-Bas-Saint-Laurent"},{"$f":"IF(LEN('Détail des projets'!K180)=0,\"\",'Détail des projets'!K180)","v":132750}]
[null,{"$f":"IF(LEN('Détail des projets'!B181)=0,\"\",'Détail des projets'!B181)","v":"P. bidirectionelle"},{"$f":"IF(LEN('Détail des projets'!C181)=0,\"\",'Détail des projets'!C181)","v":"Ville de Rimouski"},{"$f":"IF(LEN('Détail des projets'!G181)=0,\"\",'Détail des projets'!G181)","v":"01-Bas-Saint-Laurent"},{"$f":"IF(LEN('Détail des projets'!K181)=0,\"\",'Détail des projets'!K181)","v":40500}]
[null,{"$f":"IF(LEN('Détail des projets'!B182)=0,\"\",'Détail des projets'!B182)","v":"CDN École Prep international"},{"$f":"IF(LEN('Détail des projets'!C182)=0,\"\",'Détail des projets'!C182)","v":"Ville de Montréal"},{"$f":"IF(LEN('Détail des projets'!G182)=0,\"\",'Détail des projets'!G182)","v":"06-Montréal"},{"$f":"IF(LEN('Détail des projets'!K182)=0,\"\",'Détail des projets'!K182)","v":55099}]
[null,{"$f":"IF(LEN('Détail des projets'!B183)=0,\"\",'Détail des projets'!B183)","v":"CND - Réam. École Iona"},{"$f":"IF(LEN('Détail des projets'!C183)=0,\"\",'Détail des projets'!C183)","v":"Ville de Montréal"},{"$f":"IF(LEN('Détail des projets'!G183)=0,\"\",'Détail des projets'!G183)","v":"06-Montréal"},{"$f":"IF(LEN('Détail des projets'!K183)=0,\"\",'Détail des projets'!K183)","v":250000}]
[null,{"$f":"IF(LEN('Détail des projets'!B184)=0,\"\",'Détail des projets'!B184)","v":"AHU E. Louisbourg"},{"$f":"IF(LEN('Détail des projets'!C184)=0,\"\",'Détail des projets'!C184)","v":"Ville de Montréal"},{"$f":"IF(LEN('Détail des projets'!G184)=0,\"\",'Détail des projets'!G184)","v":"06-Montréal"},{"$f":"IF(LEN('Détail des projets'!K184)=0,\"\",'Détail des projets'!K184)","v":94000}]
[null,{"$f":"IF(LEN('Détail des projets'!B185)=0,\"\",'Détail des projets'!B185)","v":"AHU - Laval/Roscelli"},{"$f":"IF(LEN('Détail des projets'!C185)=0,\"\",'Détail des projets'!C185)","v":"Ville de Montréal"},{"$f":"IF(LEN('Détail des projets'!G185)=0,\"\",'Détail des projets'!G185)","v":"06-Montréal"},{"$f":"IF(LEN('Détail des projets'!K185)=0,\"\",'Détail des projets'!K185)","v":243850}]
[null,{"$f":"IF(LEN('Détail des projets'!B186)=0,\"\",'Détail des projets'!B186)","v":"CDN - Pas de géant"},{"$f":"IF(LEN('Détail des projets'!C186)=0,\"\",'Détail des projets'!C186)","v":"Ville de Montréal"},{"$f":"IF(LEN('Détail des projets'!G186)=0,\"\",'Détail des projets'!G186)","v":"06-Montréal"},{"$f":"IF(LEN('Détail des projets'!K186)=0,\"\",'Détail des projets'!K186)","v":103425}]
[null,{"$f":"IF(LEN('Détail des projets'!B187)=0,\"\",'Détail des projets'!B187)","v":"CDN/A. Talmud Torah"},{"$f":"IF(LEN('Détail des projets'!C187)=0,\"\",'Détail des projets'!C187)","v":"Ville de Montréal"},{"$f":"IF(LEN('Détail des projets'!G187)=0,\"\",'Détail des projets'!G187)","v":"06-Montréal"},{"$f":"IF(LEN('Détail des projets'!K187)=0,\"\",'Détail des projets'!K187)","v":250000}]
[null,{"$f":"IF(LEN('Détail des projets'!B188)=0,\"\",'Détail des projets'!B188)","v":"CDN/5-Continents"},{"$f":"IF(LEN('Détail des projets'!C188)=0,\"\",'Détail des projets'!C188)","v":"Ville de Montréal"},{"$f":"IF(LEN('Détail des projets'!G188)=0,\"\",'Détail des projets'!G188)","v":"06-Montréal"},{"$f":"IF(LEN('Détail des projets'!K188)=0,\"\",'Détail des projets'!K188)","v":74365}]
[null,{"$f":"IF(LEN('Détail des projets'!B189)=0,\"\",'Détail des projets'!B189)","v":"AHU Caboto/Apôtre"},{"$f":"IF(LEN('Détail des projets'!C189)=0,\"\",'Détail des projets'!C189)","v":"Ville de Montréal"},{"$f":"IF(LEN('Détail des projets'!G189)=0,\"\",'Détail des projets'!G189)","v":"06-Montréal"},{"$f":"IF(LEN('Détail des projets'!K189)=0,\"\",'Détail des projets'!K189)","v":133000}]
[null,{"$f":"IF(LEN('Détail des projets'!B190)=0,\"\",'Détail des projets'!B190)","v":"AHU É. Visitation"},{"$f":"IF(LEN('Détail des projets'!C190)=0,\"\",'Détail des projets'!C190)","v":"Ville de Montréal"},{"$f":"IF(LEN('Détail des projets'!G190)=0,\"\",'Détail des projets'!G190)","v":"06-Montréal"},{"$f":"IF(LEN('Détail des projets'!K190)=0,\"\",'Détail des projets'!K190)","v":161500}]
[null,{"$f":"IF(LEN('Détail des projets'!B191)=0,\"\",'Détail des projets'!B191)","v":"CDN - Réam. Félix-L."},{"$f":"IF(LEN('Détail des projets'!C191)=0,\"\",'Détail des projets'!C191)","v":"Ville de Montréal"},{"$f":"IF(LEN('Détail des projets'!G191)=0,\"\",'Détail des projets'!G191)","v":"06-Montréal"},{"$f":"IF(LEN('Détail des projets'!K191)=0,\"\",'Détail des projets'!K191)","v":140263}]
[null,{"$f":"IF(LEN('Détail des projets'!B192)=0,\"\",'Détail des projets'!B192)","v":"CDN - Réam. Enf.monde"},{"$f":"IF(LEN('Détail des projets'!C192)=0,\"\",'Détail des projets'!C192)","v":"Ville de Montréal"},{"$f":"IF(LEN('Détail des projets'!G192)=0,\"\",'Détail des projets'!G192)","v":"06-Montréal"},{"$f":"IF(LEN('Détail des projets'!K192)=0,\"\",'Détail des projets'!K192)","v":22138}]
[null,{"$f":"IF(LEN('Détail des projets'!B193)=0,\"\",'Détail des projets'!B193)","v":"MTN Jubinville"},{"$f":"IF(LEN('Détail des projets'!C193)=0,\"\",'Détail des projets'!C193)","v":"Ville de Montréal"},{"$f":"IF(LEN('Détail des projets'!G193)=0,\"\",'Détail des projets'!G193)","v":"06-Montréal"},{"$f":"IF(LEN('Détail des projets'!K193)=0,\"\",'Détail des projets'!K193)","v":250000}]
[null,{"$f":"IF(LEN('Détail des projets'!B194)=0,\"\",'Détail des projets'!B194)","v":"MTN Charleroi"},{"$f":"IF(LEN('Détail des projets'!C194)=0,\"\",'Détail des projets'!C194)","v":"Ville de Montréal"},{"$f":"IF(LEN('Détail des projets'!G194)=0,\"\",'Détail des projets'!G194)","v":"06-Montréal"},{"$f":"IF(LEN('Détail des projets'!K194)=0,\"\",'Détail des projets'!K194)","v":168874}]
[null,{"$f":"IF(LEN('Détail des projets'!B195)=0,\"\",'Détail des projets'!B195)","v":"MTN Support à vélo"},{"$f":"IF(LEN('Détail des projets'!C195)=0,\"\",'Détail des projets'!C195)","v":"Ville de Montréal"},{"$f":"IF(LEN('Détail des projets'!G195)=0,\"\",'Détail des projets'!G195)","v":"06-Montréal"},{"$f":"IF(LEN('Détail des projets'!K195)=0,\"\",'Détail des projets'!K195)","v":23925}]
[null,{"$f":"IF(LEN('Détail des projets'!B196)=0,\"\",'Détail des projets'!B196)","v":"VSM axe cyx. E.O."},{"$f":"IF(LEN('Détail des projets'!C196)=0,\"\",'Détail des projets'!C196)","v":"Ville de Montréal"},{"$f":"IF(LEN('Détail des projets'!G196)=0,\"\",'Détail des projets'!G196)","v":"06-Montréal"},{"$f":"IF(LEN('Détail des projets'!K196)=0,\"\",'Détail des projets'!K196)","v":210534}]
[null,{"$f":"IF(LEN('Détail des projets'!B197)=0,\"\",'Détail des projets'!B197)","v":"CDN - É.Beth-R. - Trottoir"},{"$f":"IF(LEN('Détail des projets'!C197)=0,\"\",'Détail des projets'!C197)","v":"Ville de Montréal"},{"$f":"IF(LEN('Détail des projets'!G197)=0,\"\",'Détail des projets'!G197)","v":"06-Montréal"},{"$f":"IF(LEN('Détail des projets'!K197)=0,\"\",'Détail des projets'!K197)","v":127001}]
[null,{"$f":"IF(LEN('Détail des projets'!B198)=0,\"\",'Détail des projets'!B198)","v":"CDN - É. Ste-Catherine"},{"$f":"IF(LEN('Détail des projets'!C198)=0,\"\",'Détail des projets'!C198)","v":"Ville de Montréal"},{"$f":"IF(LEN('Détail des projets'!G198)=0,\"\",'Détail des projets'!G198)","v":"06-Montréal"},{"$f":"IF(LEN('Détail des projets'!K198)=0,\"\",'Détail des projets'!K198)","v":165093}]
[null,{"$f":"IF(LEN('Détail des projets'!B199)=0,\"\",'Détail des projets'!B199)","v":"CDN - É. St-Luc"},{"$f":"IF(LEN('Détail des projets'!C199)=0,\"\",'Détail des projets'!C199)","v":"Ville de Montréal"},{"$f":"IF(LEN('Détail des projets'!G199)=0,\"\",'Détail des projets'!G199)","v":"06-Montréal"},{"$f":"IF(LEN('Détail des projets'!K199)=0,\"\",'Détail des projets'!K199)","v":150905}]
[null,{"$f":"IF(LEN('Détail des projets'!B200)=0,\"\",'Détail des projets'!B200)","v":"10e Avenue"},{"$f":"IF(LEN('Détail des projets'!C200)=0,\"\",'Détail des projets'!C200)","v":"Ville d'Amos"},{"$f":"IF(LEN('Détail des projets'!G200)=0,\"\",'Détail des projets'!G200)","v":"08-Abitibi-Témiscamingue"},{"$f":"IF(LEN('Détail des projets'!K200)=0,\"\",'Détail des projets'!K200)","v":55000}]
[null,{"$f":"IF(LEN('Détail des projets'!B201)=0,\"\",'Détail des projets'!B201)","v":"Rue Marie-Victorin"},{"$f":"IF(LEN('Détail des projets'!C201)=0,\"\",'Détail des projets'!C201)","v":"Ville de Rouyn-Noranda"},{"$f":"IF(LEN('Détail des projets'!G201)=0,\"\",'Détail des projets'!G201)","v":"08-Abitibi-Témiscamingue"},{"$f":"IF(LEN('Détail des projets'!K201)=0,\"\",'Détail des projets'!K201)","v":195929}]
[null,{"$f":"IF(LEN('Détail des projets'!B202)=0,\"\",'Détail des projets'!B202)","v":"Rue de Métiers"},{"$f":"IF(LEN('Détail des projets'!C202)=0,\"\",'Détail des projets'!C202)","v":"Ville d'Amos"},{"$f":"IF(LEN('Détail des projets'!G202)=0,\"\",'Détail des projets'!G202)","v":"08-Abitibi-Témiscamingue"},{"$f":"IF(LEN('Détail des projets'!K202)=0,\"\",'Détail des projets'!K202)","v":241862}]
[null,{"$f":"IF(LEN('Détail des projets'!B203)=0,\"\",'Détail des projets'!B203)","v":"12e Avenue"},{"$f":"IF(LEN('Détail des projets'!C203)=0,\"\",'Détail des projets'!C203)","v":"Ville d'Amos"},{"$f":"IF(LEN('Détail des projets'!G203)=0,\"\",'Détail des projets'!G203)","v":"08-Abitibi-Témiscamingue"},{"$f":"IF(LEN('Détail des projets'!K203)=0,\"\",'Détail des projets'!K203)","v":70000}]
[null,{"$f":"IF(LEN('Détail des projets'!B204)=0,\"\",'Détail des projets'!B204)","v":"Rue Côté"},{"$f":"IF(LEN('Détail des projets'!C204)=0,\"\",'Détail des projets'!C204)","v":"Ville d'Alma"},{"$f":"IF(LEN('Détail des projets'!G204)=0,\"\",'Détail des projets'!G204)","v":"02-Saguenay- Lac-Saint-Jean"},{"$f":"IF(LEN('Détail des projets'!K204)=0,\"\",'Détail des projets'!K204)","v":71770}]
[null,{"$f":"IF(LEN('Détail des projets'!B205)=0,\"\",'Détail des projets'!B205)","v":"Rue Boivin"},{"$f":"IF(LEN('Détail des projets'!C205)=0,\"\",'Détail des projets'!C205)","v":"Ville d'Alma"},{"$f":"IF(LEN('Détail des projets'!G205)=0,\"\",'Détail des projets'!G205)","v":"02-Saguenay- Lac-Saint-Jean"},{"$f":"IF(LEN('Détail des projets'!K205)=0,\"\",'Détail des projets'!K205)","v":18727}]
[null,{"$f":"IF(LEN('Détail des projets'!B206)=0,\"\",'Détail des projets'!B206)","v":"Poly Jonquière"},{"$f":"IF(LEN('Détail des projets'!C206)=0,\"\",'Détail des projets'!C206)","v":"Ville de Saguenay"},{"$f":"IF(LEN('Détail des projets'!G206)=0,\"\",'Détail des projets'!G206)","v":"02-Saguenay- Lac-Saint-Jean"},{"$f":"IF(LEN('Détail des projets'!K206)=0,\"\",'Détail des projets'!K206)","v":183995}]
[null,{"$f":"IF(LEN('Détail des projets'!B207)=0,\"\",'Détail des projets'!B207)","v":"Forteresse"},{"$f":"IF(LEN('Détail des projets'!C207)=0,\"\",'Détail des projets'!C207)","v":"Ville de Gatineau"},{"$f":"IF(LEN('Détail des projets'!G207)=0,\"\",'Détail des projets'!G207)","v":"07-Outaouais"},{"$f":"IF(LEN('Détail des projets'!K207)=0,\"\",'Détail des projets'!K207)","v":157584}]
[null,{"$f":"IF(LEN('Détail des projets'!B208)=0,\"\",'Détail des projets'!B208)","v":"Eardley (F.Princip.)"},{"$f":"IF(LEN('Détail des projets'!C208)=0,\"\",'Détail des projets'!C208)","v":"Ville de Gatineau"},{"$f":"IF(LEN('Détail des projets'!G208)=0,\"\",'Détail des projets'!G208)","v":"07-Outaouais"},{"$f":"IF(LEN('Détail des projets'!K208)=0,\"\",'Détail des projets'!K208)","v":158965}]
[null,{"$f":"IF(LEN('Détail des projets'!B209)=0,\"\",'Détail des projets'!B209)","v":"Rue Cannes"},{"$f":"IF(LEN('Détail des projets'!C209)=0,\"\",'Détail des projets'!C209)","v":"Ville de Gatineau"},{"$f":"IF(LEN('Détail des projets'!G209)=0,\"\",'Détail des projets'!G209)","v":"07-Outaouais"},{"$f":"IF(LEN('Détail des projets'!K209)=0,\"\",'Détail des projets'!K209)","v":133285}]
[null,{"$f":"IF(LEN('Détail des projets'!B210)=0,\"\",'Détail des projets'!B210)","v":"Demande d'aide financière 2020 / Réseau aquatique Drummondville-d'un abri et de supports à vélos dans le complexe aquatique- Ville de Drummondville"},{"$f":"IF(LEN('Détail des projets'!C210)=0,\"\",'Détail des projets'!C210)","v":"Réseau aquatique Drummondville"},{"$f":"IF(LEN('Détail des projets'!G210)=0,\"\",'Détail des projets'!G210)","v":"17-Centre-du-Québec"},{"$f":"IF(LEN('Détail des projets'!K210)=0,\"\",'Détail des projets'!K210)","v":7200}]
[null,{"$f":"IF(LEN('Détail des projets'!B211)=0,\"\",'Détail des projets'!B211)","v":"Demande d'aide financière  2020 / Le Groupe Beau-Village - d'un nouveau réseau cyclable - Ville de Gaspé"},{"$f":"IF(LEN('Détail des projets'!C211)=0,\"\",'Détail des projets'!C211)","v":"Groupe Beau Village de Rivière-au-Renard"},{"$f":"IF(LEN('Détail des projets'!G211)=0,\"\",'Détail des projets'!G211)","v":"11-Gaspésie-Iles-de-la-Madeleine"},{"$f":"IF(LEN('Détail des projets'!K211)=0,\"\",'Détail des projets'!K211)","v":317512}]
[null,{"$f":"IF(LEN('Détail des projets'!B212)=0,\"\",'Détail des projets'!B212)","v":"Demande d'aide financière  2020 / d'un réseau de transports actif et collectif "},{"$f":"IF(LEN('Détail des projets'!C212)=0,\"\",'Détail des projets'!C212)","v":"Ville de Paspébiac"},{"$f":"IF(LEN('Détail des projets'!G212)=0,\"\",'Détail des projets'!G212)","v":"11-Gaspésie-Iles-de-la-Madeleine"},{"$f":"IF(LEN('Détail des projets'!K212)=0,\"\",'Détail des projets'!K212)","v":383347}]
[null,{"$f":"IF(LEN('Détail des projets'!B213)=0,\"\",'Détail des projets'!B213)","v":"Demande d'aide financière  2020 / d'une passerelle de seize mètres de long au-dessus du ruisseau Monier"},{"$f":"IF(LEN('Détail des projets'!C213)=0,\"\",'Détail des projets'!C213)","v":"Municipalité de Pointe-à-la-Croix"},{"$f":"IF(LEN('Détail des projets'!G213)=0,\"\",'Détail des projets'!G213)","v":"11-Gaspésie-Iles-de-la-Madeleine"},{"$f":"IF(LEN('Détail des projets'!K213)=0,\"\",'Détail des projets'!K213)","v":88189}]
[null,{"$f":"IF(LEN('Détail des projets'!B214)=0,\"\",'Détail des projets'!B214)","v":"d'un aménagement d'un lien cyclopédestre sur le viaduc de l'A-40 et la construction d'une passerelle cyclopédestre"},{"$f":"IF(LEN('Détail des projets'!C214)=0,\"\",'Détail des projets'!C214)","v":"Ville de Kirkland"},{"$f":"IF(LEN('Détail des projets'!G214)=0,\"\",'Détail des projets'!G214)","v":"06-Montréal"},{"$f":"IF(LEN('Détail des projets'!K214)=0,\"\",'Détail des projets'!K214)","v":303056}]
[null,{"$f":"IF(LEN('Détail des projets'!B215)=0,\"\",'Détail des projets'!B215)","v":"Demande d'aide financière  2020 / Abris vélos à l'hôtel de ville"},{"$f":"IF(LEN('Détail des projets'!C215)=0,\"\",'Détail des projets'!C215)","v":"Ville de Rimouski"},{"$f":"IF(LEN('Détail des projets'!G215)=0,\"\",'Détail des projets'!G215)","v":"01-Bas-Saint-Laurent"},{"$f":"IF(LEN('Détail des projets'!K215)=0,\"\",'Détail des projets'!K215)","v":10800}]
[null,{"$f":"IF(LEN('Détail des projets'!B216)=0,\"\",'Détail des projets'!B216)","v":"Demande d'aide financière  2020 / Réaménagement de l'intersection Toussaint-Cartier avec la rue Saint-Pierre"},{"$f":"IF(LEN('Détail des projets'!C216)=0,\"\",'Détail des projets'!C216)","v":"Ville de Rimouski"},{"$f":"IF(LEN('Détail des projets'!G216)=0,\"\",'Détail des projets'!G216)","v":"01-Bas-Saint-Laurent"},{"$f":"IF(LEN('Détail des projets'!K216)=0,\"\",'Détail des projets'!K216)","v":19000}]
[null,{"$f":"IF(LEN('Détail des projets'!B217)=0,\"\",'Détail des projets'!B217)","v":"Demande d'aide financière  2020 / d'une passerelle au km 198 du parc linéaire le P'tit Train du Nord"},{"$f":"IF(LEN('Détail des projets'!C217)=0,\"\",'Détail des projets'!C217)","v":"MRC Antoine-Labelle"},{"$f":"IF(LEN('Détail des projets'!G217)=0,\"\",'Détail des projets'!G217)","v":"15-Laurentides"},{"$f":"IF(LEN('Détail des projets'!K217)=0,\"\",'Détail des projets'!K217)","v":1044000}]
[null,{"$f":"IF(LEN('Détail des projets'!B218)=0,\"\",'Détail des projets'!B218)","v":"Demande d'aide financière  2020 / d'un corridor piétonnier dans le rang 3 Ouest à partir de la rue de l'Église jusqu'à la rue Sainte-Hélène"},{"$f":"IF(LEN('Détail des projets'!C218)=0,\"\",'Détail des projets'!C218)","v":"Municipalité de Saint-Samuel"},{"$f":"IF(LEN('Détail des projets'!G218)=0,\"\",'Détail des projets'!G218)","v":"17-Centre-du-Québec"},{"$f":"IF(LEN('Détail des projets'!K218)=0,\"\",'Détail des projets'!K218)","v":16800}]
[null,{"$f":"IF(LEN('Détail des projets'!B219)=0,\"\",'Détail des projets'!B219)","v":"Demande d'aide financière  2020 / d'une piste cyclable via la route 117 et la rue Boileau"},{"$f":"IF(LEN('Détail des projets'!C219)=0,\"\",'Détail des projets'!C219)","v":"Ville de Mirabel"},{"$f":"IF(LEN('Détail des projets'!G219)=0,\"\",'Détail des projets'!G219)","v":"15-Laurentides"},{"$f":"IF(LEN('Détail des projets'!K219)=0,\"\",'Détail des projets'!K219)","v":906478}]
[null,{"$f":"IF(LEN('Détail des projets'!B220)=0,\"\",'Détail des projets'!B220)","v":"Demande d'aide financière  2020 / Bande cyclable bidirectionnelle en deux pistes cyclables unidirectionnelles entre les rues Prince-Rupert et Bergeron"},{"$f":"IF(LEN('Détail des projets'!C220)=0,\"\",'Détail des projets'!C220)","v":"Ville de Laval"},{"$f":"IF(LEN('Détail des projets'!G220)=0,\"\",'Détail des projets'!G220)","v":"06-Montréal"},{"$f":"IF(LEN('Détail des projets'!K220)=0,\"\",'Détail des projets'!K220)","v":124280}]
[null,{"$f":"IF(LEN('Détail des projets'!B221)=0,\"\",'Détail des projets'!B221)","v":"Demande d'aide financière  2020 / Pistes cyclables unidirectionnelles sur l'avenue Ampère"},{"$f":"IF(LEN('Détail des projets'!C221)=0,\"\",'Détail des projets'!C221)","v":"Ville de Laval"},{"$f":"IF(LEN('Détail des projets'!G221)=0,\"\",'Détail des projets'!G221)","v":"06-Montréal"},{"$f":"IF(LEN('Détail des projets'!K221)=0,\"\",'Détail des projets'!K221)","v":199120}]
[null,{"$f":"IF(LEN('Détail des projets'!B222)=0,\"\",'Détail des projets'!B222)","v":"Demande d'aide financière  2020 / Aménagement de bandes cyclables sur divers tronçons"},{"$f":"IF(LEN('Détail des projets'!C222)=0,\"\",'Détail des projets'!C222)","v":"Ville de Laval"},{"$f":"IF(LEN('Détail des projets'!G222)=0,\"\",'Détail des projets'!G222)","v":"06-Montréal"},{"$f":"IF(LEN('Détail des projets'!K222)=0,\"\",'Détail des projets'!K222)","v":212701}]
[null,{"$f":"IF(LEN('Détail des projets'!B223)=0,\"\",'Détail des projets'!B223)","v":"Demande d'aide financière  2020 / Réalisation de mesures d'apaisement de la circulation à proximité de trois écoles primaires"},{"$f":"IF(LEN('Détail des projets'!C223)=0,\"\",'Détail des projets'!C223)","v":"Ville de Laval"},{"$f":"IF(LEN('Détail des projets'!G223)=0,\"\",'Détail des projets'!G223)","v":"06-Montréal"},{"$f":"IF(LEN('Détail des projets'!K223)=0,\"\",'Détail des projets'!K223)","v":414490}]
[null,{"$f":"IF(LEN('Détail des projets'!B224)=0,\"\",'Détail des projets'!B224)","v":"Demande d'aide financière  2020 / Aménagement et reconversion de bandes multifonctionelles sur divers tronçons"},{"$f":"IF(LEN('Détail des projets'!C224)=0,\"\",'Détail des projets'!C224)","v":"Ville de Laval"},{"$f":"IF(LEN('Détail des projets'!G224)=0,\"\",'Détail des projets'!G224)","v":"06-Montréal"},{"$f":"IF(LEN('Détail des projets'!K224)=0,\"\",'Détail des projets'!K224)","v":507600}]
[null,{"$f":"IF(LEN('Détail des projets'!B225)=0,\"\",'Détail des projets'!B225)","v":"Demande d'aide financière  2020 / Pistes multifonctionnelles sur divers tronçons "},{"$f":"IF(LEN('Détail des projets'!C225)=0,\"\",'Détail des projets'!C225)","v":"Ville de Laval"},{"$f":"IF(LEN('Détail des projets'!G225)=0,\"\",'Détail des projets'!G225)","v":"06-Montréal"},{"$f":"IF(LEN('Détail des projets'!K225)=0,\"\",'Détail des projets'!K225)","v":792628}]
[null,{"$f":"IF(LEN('Détail des projets'!B226)=0,\"\",'Détail des projets'!B226)","v":"Demande d'aide financière  2020 / Mesures d'atténuations de la circulation de nouveaux corridors scolaires"},{"$f":"IF(LEN('Détail des projets'!C226)=0,\"\",'Détail des projets'!C226)","v":"Ville de Saint-Amable"},{"$f":"IF(LEN('Détail des projets'!G226)=0,\"\",'Détail des projets'!G226)","v":"16-Montérégie"},{"$f":"IF(LEN('Détail des projets'!K226)=0,\"\",'Détail des projets'!K226)","v":19602}]
[null,{"$f":"IF(LEN('Détail des projets'!B227)=0,\"\",'Détail des projets'!B227)","v":"Demande d'aide financière  2020 / Piste cyclable utilisable par les piétons de 3 mètres par 300 mètres pour connecter une nouvelle école"},{"$f":"IF(LEN('Détail des projets'!C227)=0,\"\",'Détail des projets'!C227)","v":"Ville de saint-Amable"},{"$f":"IF(LEN('Détail des projets'!G227)=0,\"\",'Détail des projets'!G227)","v":"16-Montérégie"},{"$f":"IF(LEN('Détail des projets'!K227)=0,\"\",'Détail des projets'!K227)","v":54166}]
[null,{"$f":"IF(LEN('Détail des projets'!B228)=0,\"\",'Détail des projets'!B228)","v":"Demande d'aide financière  2020 / Sentier polyvalent dans le parc Jordi-Bonet"},{"$f":"IF(LEN('Détail des projets'!C228)=0,\"\",'Détail des projets'!C228)","v":"Ville de Sainte-Julie"},{"$f":"IF(LEN('Détail des projets'!G228)=0,\"\",'Détail des projets'!G228)","v":"16-Montérégie"},{"$f":"IF(LEN('Détail des projets'!K228)=0,\"\",'Détail des projets'!K228)","v":55100}]
[null,{"$f":"IF(LEN('Détail des projets'!B229)=0,\"\",'Détail des projets'!B229)","v":"Demande d'aide financière  2020 / Piste multifonction entre le rang de la Vallée et le boulevard Armand-Frappier"},{"$f":"IF(LEN('Détail des projets'!C229)=0,\"\",'Détail des projets'!C229)","v":"Ville de Sainte-Julie"},{"$f":"IF(LEN('Détail des projets'!G229)=0,\"\",'Détail des projets'!G229)","v":"16-Montérégie"},{"$f":"IF(LEN('Détail des projets'!K229)=0,\"\",'Détail des projets'!K229)","v":300000}]
[null,{"$f":"IF(LEN('Détail des projets'!B230)=0,\"\",'Détail des projets'!B230)","v":"Demande d'aide financière  2020 / d'une piste multifonctionnelle dans l'emprise de la rue Jeannotte"},{"$f":"IF(LEN('Détail des projets'!C230)=0,\"\",'Détail des projets'!C230)","v":"Ville de Mont-Saint-Hilaire"},{"$f":"IF(LEN('Détail des projets'!G230)=0,\"\",'Détail des projets'!G230)","v":"16-Montérégie"},{"$f":"IF(LEN('Détail des projets'!K230)=0,\"\",'Détail des projets'!K230)","v":92290}]
[null,{"$f":"IF(LEN('Détail des projets'!B231)=0,\"\",'Détail des projets'!B231)","v":"Demande d'aide financière  2020 / d'une piste cyclable devant l'école Jean-Leman"},{"$f":"IF(LEN('Détail des projets'!C231)=0,\"\",'Détail des projets'!C231)","v":"Ville de Candiac"},{"$f":"IF(LEN('Détail des projets'!G231)=0,\"\",'Détail des projets'!G231)","v":"16-Montérégie"},{"$f":"IF(LEN('Détail des projets'!K231)=0,\"\",'Détail des projets'!K231)","v":27909}]
[null,{"$f":"IF(LEN('Détail des projets'!B232)=0,\"\",'Détail des projets'!B232)","v":"Demande d'aide financière  2020 / Aménagement d'une bande cyclable sur la rue Main"},{"$f":"IF(LEN('Détail des projets'!C232)=0,\"\",'Détail des projets'!C232)","v":"Ville de Gatineau"},{"$f":"IF(LEN('Détail des projets'!G232)=0,\"\",'Détail des projets'!G232)","v":"07-Outaouais"},{"$f":"IF(LEN('Détail des projets'!K232)=0,\"\",'Détail des projets'!K232)","v":61200}]
[null,{"$f":"IF(LEN('Détail des projets'!B233)=0,\"\",'Détail des projets'!B233)","v":"Demande d'aide financière  2020 / Aménagement d'une piste multifonctionnelle biderectionnelle du côté ouest du boulevard de la Cité des jeunes"},{"$f":"IF(LEN('Détail des projets'!C233)=0,\"\",'Détail des projets'!C233)","v":"Ville de Gatineau"},{"$f":"IF(LEN('Détail des projets'!G233)=0,\"\",'Détail des projets'!G233)","v":"07-Outaouais"},{"$f":"IF(LEN('Détail des projets'!K233)=0,\"\",'Détail des projets'!K233)","v":90082}]
[null,{"$f":"IF(LEN('Détail des projets'!B234)=0,\"\",'Détail des projets'!B234)","v":"Demande d'aide financière  2020 / d'un sentier polyvalent incluant une passerelle en acier et bois sur la rue Allen"},{"$f":"IF(LEN('Détail des projets'!C234)=0,\"\",'Détail des projets'!C234)","v":"Ville de Gatineau"},{"$f":"IF(LEN('Détail des projets'!G234)=0,\"\",'Détail des projets'!G234)","v":"07-Outaouais"},{"$f":"IF(LEN('Détail des projets'!K234)=0,\"\",'Détail des projets'!K234)","v":227121}]
[null,{"$f":"IF(LEN('Détail des projets'!B235)=0,\"\",'Détail des projets'!B235)","v":"Demande d'aide financière  2020 / Aménagement d'un lien cyclable sur trois rues menant vers l'école du Parc-de-la-Montagne"},{"$f":"IF(LEN('Détail des projets'!C235)=0,\"\",'Détail des projets'!C235)","v":"Ville de Gatineau"},{"$f":"IF(LEN('Détail des projets'!G235)=0,\"\",'Détail des projets'!G235)","v":"07-Outaouais"},{"$f":"IF(LEN('Détail des projets'!K235)=0,\"\",'Détail des projets'!K235)","v":262711}]
[null,{"$f":"IF(LEN('Détail des projets'!B236)=0,\"\",'Détail des projets'!B236)","v":"Écriture à régulariser (A venir)"},{"$f":"IF(LEN('Détail des projets'!C236)=0,\"\",'Détail des projets'!C236)","v":""},{"$f":"IF(LEN('Détail des projets'!G236)=0,\"\",'Détail des projets'!G236)","v":""},{"$f":"IF(LEN('Détail des projets'!K236)=0,\"\",'Détail des projets'!K236)","v":""}]
[null,{"$f":"IF(LEN('Détail des projets'!B237)=0,\"\",'Détail des projets'!B237)","v":""},{"$f":"IF(LEN('Détail des projets'!C237)=0,\"\",'Détail des projets'!C237)","v":""},{"$f":"IF(LEN('Détail des projets'!G237)=0,\"\",'Détail des projets'!G237)","v":""},{"$f":"IF(LEN('Détail des projets'!K237)=0,\"\",'Détail des projets'!K237)","v":""}]
[null,{"$f":"IF(LEN('Détail des projets'!B238)=0,\"\",'Détail des projets'!B238)","v":""},{"$f":"IF(LEN('Détail des projets'!C238)=0,\"\",'Détail des projets'!C238)","v":""},{"$f":"IF(LEN('Détail des projets'!G238)=0,\"\",'Détail des projets'!G238)","v":""},{"$f":"IF(LEN('Détail des projets'!K238)=0,\"\",'Détail des projets'!K238)","v":""}]
[null,{"$f":"IF(LEN('Détail des projets'!B239)=0,\"\",'Détail des projets'!B239)","v":"Demande d'aide financière  2020 / Aménagement de l'intersection du boulevard Henri-Bourassa avec les rues des Martinets et des Roses"},{"$f":"IF(LEN('Détail des projets'!C239)=0,\"\",'Détail des projets'!C239)","v":"Ville de Québec"},{"$f":"IF(LEN('Détail des projets'!G239)=0,\"\",'Détail des projets'!G239)","v":"03-Capitale-Nationale"},{"$f":"IF(LEN('Détail des projets'!K239)=0,\"\",'Détail des projets'!K239)","v":69484}]
[null,{"$f":"IF(LEN('Détail des projets'!B240)=0,\"\",'Détail des projets'!B240)","v":"Demande d'aide financière  2020 / Piste cyclopiétonne aménagée sur le viaduc de l'avenue Chauveau permettant de franchir l'autoroute Henri-IV"},{"$f":"IF(LEN('Détail des projets'!C240)=0,\"\",'Détail des projets'!C240)","v":"Ville de Québec"},{"$f":"IF(LEN('Détail des projets'!G240)=0,\"\",'Détail des projets'!G240)","v":"03-Capitale-Nationale"},{"$f":"IF(LEN('Détail des projets'!K240)=0,\"\",'Détail des projets'!K240)","v":91200}]
[null,{"$f":"IF(LEN('Détail des projets'!B241)=0,\"\",'Détail des projets'!B241)","v":"Demande d'aide financière  2020 / Construction d'un trottoir sur le côté nord et est de la rue Buffon, entre l'avenue Benjamin-Sulte et le boulevard Chauveau Ouest"},{"$f":"IF(LEN('Détail des projets'!C241)=0,\"\",'Détail des projets'!C241)","v":"Ville de Québec"},{"$f":"IF(LEN('Détail des projets'!G241)=0,\"\",'Détail des projets'!G241)","v":"03-Capitale-Nationale"},{"$f":"IF(LEN('Détail des projets'!K241)=0,\"\",'Détail des projets'!K241)","v":96913}]
[null,{"$f":"IF(LEN('Détail des projets'!B242)=0,\"\",'Détail des projets'!B242)","v":"Demande d'aide financière  2020 / Aménagement de bandes cyclables unidirectionnelles sur le chemin Sainte-Foy et l'avenue McCartney"},{"$f":"IF(LEN('Détail des projets'!C242)=0,\"\",'Détail des projets'!C242)","v":"Ville de Québec"},{"$f":"IF(LEN('Détail des projets'!G242)=0,\"\",'Détail des projets'!G242)","v":"03-Capitale-Nationale"},{"$f":"IF(LEN('Détail des projets'!K242)=0,\"\",'Détail des projets'!K242)","v":104000}]
[null,{"$f":"IF(LEN('Détail des projets'!B243)=0,\"\",'Détail des projets'!B243)","v":"Demande d'aide financière  2020 / Construction d'avancées de trottoir et rétrécissement de la chaussée sur la rue Raoul-Jobin près de l'école primaire Saint-Malo"},{"$f":"IF(LEN('Détail des projets'!C243)=0,\"\",'Détail des projets'!C243)","v":"Ville de Québec"},{"$f":"IF(LEN('Détail des projets'!G243)=0,\"\",'Détail des projets'!G243)","v":"03-Capitale-Nationale"},{"$f":"IF(LEN('Détail des projets'!K243)=0,\"\",'Détail des projets'!K243)","v":136702}]
[null,{"$f":"IF(LEN('Détail des projets'!B244)=0,\"\",'Détail des projets'!B244)","v":"Demande d'aide financière  2020 / Piste cyclopiétonne située dans l'emprise de la rue Armand-Viau entre la rue Jean-Marchand et le boulevard l'Ormière"},{"$f":"IF(LEN('Détail des projets'!C244)=0,\"\",'Détail des projets'!C244)","v":"Ville de Québec"},{"$f":"IF(LEN('Détail des projets'!G244)=0,\"\",'Détail des projets'!G244)","v":"03-Capitale-Nationale"},{"$f":"IF(LEN('Détail des projets'!K244)=0,\"\",'Détail des projets'!K244)","v":326400}]
[null,{"$f":"IF(LEN('Détail des projets'!B245)=0,\"\",'Détail des projets'!B245)","v":"Demande d'aide financière  2020 / d'un projet de corridor scolaire près de l'école du Versant"},{"$f":"IF(LEN('Détail des projets'!C245)=0,\"\",'Détail des projets'!C245)","v":"Municipalité de Larouche"},{"$f":"IF(LEN('Détail des projets'!G245)=0,\"\",'Détail des projets'!G245)","v":"02-Saguenay- Lac-Saint-Jean"},{"$f":"IF(LEN('Détail des projets'!K245)=0,\"\",'Détail des projets'!K245)","v":5166}]
[null,{"$f":"IF(LEN('Détail des projets'!B246)=0,\"\",'Détail des projets'!B246)","v":"Demande d'aide financière  2020 / de mesures de modération de la circulation devant la future école des Explorateurs"},{"$f":"IF(LEN('Détail des projets'!C246)=0,\"\",'Détail des projets'!C246)","v":"Ville de Terrebonne"},{"$f":"IF(LEN('Détail des projets'!G246)=0,\"\",'Détail des projets'!G246)","v":"06-Montréal"},{"$f":"IF(LEN('Détail des projets'!K246)=0,\"\",'Détail des projets'!K246)","v":77256}]
[null,{"$f":"IF(LEN('Détail des projets'!B247)=0,\"\",'Détail des projets'!B247)","v":"Demande d'aide financière  2020 / RDP - sentier polyvalent pour créer un lien avec la gare (secteur gare Rivière-des-Prairies - Piste cyclable et sentier piétonnier)"},{"$f":"IF(LEN('Détail des projets'!C247)=0,\"\",'Détail des projets'!C247)","v":"Ville de Montréal"},{"$f":"IF(LEN('Détail des projets'!G247)=0,\"\",'Détail des projets'!G247)","v":"06-Montréal"},{"$f":"IF(LEN('Détail des projets'!K247)=0,\"\",'Détail des projets'!K247)","v":72000}]
[null,{"$f":"IF(LEN('Détail des projets'!B248)=0,\"\",'Détail des projets'!B248)","v":"Demande d'aide financière  2020 / STL - tronçon sécuritaire sur la rue Chameran entre les rues Deguire et Bleignier"},{"$f":"IF(LEN('Détail des projets'!C248)=0,\"\",'Détail des projets'!C248)","v":"Ville de Montréal"},{"$f":"IF(LEN('Détail des projets'!G248)=0,\"\",'Détail des projets'!G248)","v":"06-Montréal"},{"$f":"IF(LEN('Détail des projets'!K248)=0,\"\",'Détail des projets'!K248)","v":80605}]
[null,{"$f":"IF(LEN('Détail des projets'!B249)=0,\"\",'Détail des projets'!B249)","v":"Demande d'aide financière  2020 / RPP - 700 stationnements pour vélos dans les espaces publics"},{"$f":"IF(LEN('Détail des projets'!C249)=0,\"\",'Détail des projets'!C249)","v":"Ville de Montréal"},{"$f":"IF(LEN('Détail des projets'!G249)=0,\"\",'Détail des projets'!G249)","v":"06-Montréal"},{"$f":"IF(LEN('Détail des projets'!K249)=0,\"\",'Détail des projets'!K249)","v":108426}]
[null,{"$f":"IF(LEN('Détail des projets'!B250)=0,\"\",'Détail des projets'!B250)","v":"Demande d'aide financière  2020 / PMR - Saillies et fosses de plantation au coin de l'avenue du Mont-Royal et de la rue Cartier"},{"$f":"IF(LEN('Détail des projets'!C250)=0,\"\",'Détail des projets'!C250)","v":"Ville de Montréal"},{"$f":"IF(LEN('Détail des projets'!G250)=0,\"\",'Détail des projets'!G250)","v":"06-Montréal"},{"$f":"IF(LEN('Détail des projets'!K250)=0,\"\",'Détail des projets'!K250)","v":158982}]
[null,{"$f":"IF(LEN('Détail des projets'!B251)=0,\"\",'Détail des projets'!B251)","v":"Demande d'aide financière  2020 / PMR - Saillies et fosses de plantation au coin de l'avenue du Mont-Royal et des rues Garnier et Fabre"},{"$f":"IF(LEN('Détail des projets'!C251)=0,\"\",'Détail des projets'!C251)","v":"Ville de Montréal"},{"$f":"IF(LEN('Détail des projets'!G251)=0,\"\",'Détail des projets'!G251)","v":"06-Montréal"},{"$f":"IF(LEN('Détail des projets'!K251)=0,\"\",'Détail des projets'!K251)","v":200000}]
[null,{"$f":"IF(LEN('Détail des projets'!B252)=0,\"\",'Détail des projets'!B252)","v":"Demande d'aide financière  2020 / PMR - Sécurisation des traverses piétonnes aux Terrasses Roy "},{"$f":"IF(LEN('Détail des projets'!C252)=0,\"\",'Détail des projets'!C252)","v":"Ville de Montréal"},{"$f":"IF(LEN('Détail des projets'!G252)=0,\"\",'Détail des projets'!G252)","v":"06-Montréal"},{"$f":"IF(LEN('Détail des projets'!K252)=0,\"\",'Détail des projets'!K252)","v":200000}]
[null,{"$f":"IF(LEN('Détail des projets'!B253)=0,\"\",'Détail des projets'!B253)","v":"Demande d'aide financière  2020 / PMR - Sécurisation d'un tronçon de la rue Gauthier entre Papineau et Bordeaux"},{"$f":"IF(LEN('Détail des projets'!C253)=0,\"\",'Détail des projets'!C253)","v":"Ville de Montréal"},{"$f":"IF(LEN('Détail des projets'!G253)=0,\"\",'Détail des projets'!G253)","v":"06-Montréal"},{"$f":"IF(LEN('Détail des projets'!K253)=0,\"\",'Détail des projets'!K253)","v":200000}]
[null,{"$f":"IF(LEN('Détail des projets'!B254)=0,\"\",'Détail des projets'!B254)","v":"Demande d'aide financière  2020 / SMV - passage à niveau afin de relier l'avenue Ogilvy et la rue De Castelnau"},{"$f":"IF(LEN('Détail des projets'!C254)=0,\"\",'Détail des projets'!C254)","v":"Ville de Montréal"},{"$f":"IF(LEN('Détail des projets'!G254)=0,\"\",'Détail des projets'!G254)","v":"06-Montréal"},{"$f":"IF(LEN('Détail des projets'!K254)=0,\"\",'Détail des projets'!K254)","v":276598}]
[null,{"$f":"IF(LEN('Détail des projets'!B255)=0,\"\",'Détail des projets'!B255)","v":"Demande d'aide financière  2020 / d'une bande cyclable de chaque côté de la rue du Centre"},{"$f":"IF(LEN('Détail des projets'!C255)=0,\"\",'Détail des projets'!C255)","v":"Municipalité de Longue-Pointe-de-Mingan"},{"$f":"IF(LEN('Détail des projets'!G255)=0,\"\",'Détail des projets'!G255)","v":"09-Côte-Nord"},{"$f":"IF(LEN('Détail des projets'!K255)=0,\"\",'Détail des projets'!K255)","v":141746}]
[null,{"$f":"IF(LEN('Détail des projets'!B256)=0,\"\",'Détail des projets'!B256)","v":"Demande d'aide financière  2020 / d'une piste cyclable entre deux quartiers "},{"$f":"IF(LEN('Détail des projets'!C256)=0,\"\",'Détail des projets'!C256)","v":"Municipalité de Saint-Boniface"},{"$f":"IF(LEN('Détail des projets'!G256)=0,\"\",'Détail des projets'!G256)","v":"04-Mauricie "},{"$f":"IF(LEN('Détail des projets'!K256)=0,\"\",'Détail des projets'!K256)","v":168000}]
[null,{"$f":"IF(LEN('Détail des projets'!B257)=0,\"\",'Détail des projets'!B257)","v":"Demande d'aide financière  2020 / du projet de réaménagement de l'intersection Romulus"},{"$f":"IF(LEN('Détail des projets'!C257)=0,\"\",'Détail des projets'!C257)","v":"Ville de Victoriaville"},{"$f":"IF(LEN('Détail des projets'!G257)=0,\"\",'Détail des projets'!G257)","v":"17-Centre-du-Québec"},{"$f":"IF(LEN('Détail des projets'!K257)=0,\"\",'Détail des projets'!K257)","v":106695}]
[null,{"$f":"IF(LEN('Détail des projets'!B258)=0,\"\",'Détail des projets'!B258)","v":"Demande d'aide financière  2020 / Supports à vélos à l'hôtel de ville"},{"$f":"IF(LEN('Détail des projets'!C258)=0,\"\",'Détail des projets'!C258)","v":"Ville de Trois-Rivières"},{"$f":"IF(LEN('Détail des projets'!G258)=0,\"\",'Détail des projets'!G258)","v":"04-Mauricie "},{"$f":"IF(LEN('Détail des projets'!K258)=0,\"\",'Détail des projets'!K258)","v":5000}]
[null,{"$f":"IF(LEN('Détail des projets'!B259)=0,\"\",'Détail des projets'!B259)","v":"Demande d'aide financière  2020 / Supports à vélos à la bibliothèque"},{"$f":"IF(LEN('Détail des projets'!C259)=0,\"\",'Détail des projets'!C259)","v":"Ville de Trois-Rivières"},{"$f":"IF(LEN('Détail des projets'!G259)=0,\"\",'Détail des projets'!G259)","v":"04-Mauricie "},{"$f":"IF(LEN('Détail des projets'!K259)=0,\"\",'Détail des projets'!K259)","v":8000}]
[null,{"$f":"IF(LEN('Détail des projets'!B260)=0,\"\",'Détail des projets'!B260)","v":"Demande d'aide financière  2020 / Réaménagement du carrefour de la rue Vachon et de l'autoroute 40 Est"},{"$f":"IF(LEN('Détail des projets'!C260)=0,\"\",'Détail des projets'!C260)","v":"Ville de Trois-Rivières"},{"$f":"IF(LEN('Détail des projets'!G260)=0,\"\",'Détail des projets'!G260)","v":"04-Mauricie "},{"$f":"IF(LEN('Détail des projets'!K260)=0,\"\",'Détail des projets'!K260)","v":36000}]
[null,{"$f":"IF(LEN('Détail des projets'!B261)=0,\"\",'Détail des projets'!B261)","v":"Demande d'aide financière  2020 / Piste cyclable entre l'Amphithéâtre Cogeco et le fleuve Saint-Laurent"},{"$f":"IF(LEN('Détail des projets'!C261)=0,\"\",'Détail des projets'!C261)","v":"Ville de Trois-Rivières"},{"$f":"IF(LEN('Détail des projets'!G261)=0,\"\",'Détail des projets'!G261)","v":"04-Mauricie "},{"$f":"IF(LEN('Détail des projets'!K261)=0,\"\",'Détail des projets'!K261)","v":37600}]
[null,{"$f":"IF(LEN('Détail des projets'!B262)=0,\"\",'Détail des projets'!B262)","v":"Demande d'aide financière  2020 / Mesures de modération de la circulation à l'intersection du boulevard Sainte-Marguerite et de la rue des Coopérants"},{"$f":"IF(LEN('Détail des projets'!C262)=0,\"\",'Détail des projets'!C262)","v":"Ville de Trois-Rivières"},{"$f":"IF(LEN('Détail des projets'!G262)=0,\"\",'Détail des projets'!G262)","v":"04-Mauricie "},{"$f":"IF(LEN('Détail des projets'!K262)=0,\"\",'Détail des projets'!K262)","v":52400}]
[null,{"$f":"IF(LEN('Détail des projets'!B263)=0,\"\",'Détail des projets'!B263)","v":"Demande d'aide financière  2020 / Mesures de modération de la circulation à l'intersection du boulevard des Forges et de la rue Terrière"},{"$f":"IF(LEN('Détail des projets'!C263)=0,\"\",'Détail des projets'!C263)","v":"Ville de Trois-Rivières"},{"$f":"IF(LEN('Détail des projets'!G263)=0,\"\",'Détail des projets'!G263)","v":"04-Mauricie "},{"$f":"IF(LEN('Détail des projets'!K263)=0,\"\",'Détail des projets'!K263)","v":66400}]
[null,{"$f":"IF(LEN('Détail des projets'!B264)=0,\"\",'Détail des projets'!B264)","v":"Demande d'aide financière  2020 / Bande cyclable avec trottoirs le long de la rue Violette, entre la rue Lajoie et Montcalm"},{"$f":"IF(LEN('Détail des projets'!C264)=0,\"\",'Détail des projets'!C264)","v":"Ville de Trois-Rivières"},{"$f":"IF(LEN('Détail des projets'!G264)=0,\"\",'Détail des projets'!G264)","v":"04-Mauricie "},{"$f":"IF(LEN('Détail des projets'!K264)=0,\"\",'Détail des projets'!K264)","v":200000}]
[null,{"$f":"IF(LEN('Détail des projets'!B265)=0,\"\",'Détail des projets'!B265)","v":"Demande d'aide financière  2020 / Réalignement et ajout d'un feu piétonnier à l'intersection Hôpital Cooke/Sainte-Marguerite"},{"$f":"IF(LEN('Détail des projets'!C265)=0,\"\",'Détail des projets'!C265)","v":"Ville de Trois-Rivières"},{"$f":"IF(LEN('Détail des projets'!G265)=0,\"\",'Détail des projets'!G265)","v":"04-Mauricie "},{"$f":"IF(LEN('Détail des projets'!K265)=0,\"\",'Détail des projets'!K265)","v":304480}]
[null,{"$f":"IF(LEN('Détail des projets'!B266)=0,\"\",'Détail des projets'!B266)","v":"Demande d'aide financière  2020 / de deux sections de pistes cyclables en site propre sur la rue du Roi-Georges"},{"$f":"IF(LEN('Détail des projets'!C266)=0,\"\",'Détail des projets'!C266)","v":"Ville de Saguenay"},{"$f":"IF(LEN('Détail des projets'!G266)=0,\"\",'Détail des projets'!G266)","v":"02-Saguenay- Lac-Saint-Jean"},{"$f":"IF(LEN('Détail des projets'!K266)=0,\"\",'Détail des projets'!K266)","v":97276}]
[null,{"$f":"IF(LEN('Détail des projets'!B267)=0,\"\",'Détail des projets'!B267)","v":"Demande d'aide financière  2020 / d'un parcours scolaire allant de montée Laframbroise à l'école Granada"},{"$f":"IF(LEN('Détail des projets'!C267)=0,\"\",'Détail des projets'!C267)","v":"Ville de Rouyn-Noranda"},{"$f":"IF(LEN('Détail des projets'!G267)=0,\"\",'Détail des projets'!G267)","v":"08-Abitibi-Témiscamingue"},{"$f":"IF(LEN('Détail des projets'!K267)=0,\"\",'Détail des projets'!K267)","v":93812}]
[null,{"$f":"IF(LEN('Détail des projets'!B268)=0,\"\",'Détail des projets'!B268)","v":"Demande d'aide financière  2020 / d'un réseau multifonctionnel "},{"$f":"IF(LEN('Détail des projets'!C268)=0,\"\",'Détail des projets'!C268)","v":"Ville de Témiscaming"},{"$f":"IF(LEN('Détail des projets'!G268)=0,\"\",'Détail des projets'!G268)","v":"08-Abitibi-Témiscamingue"},{"$f":"IF(LEN('Détail des projets'!K268)=0,\"\",'Détail des projets'!K268)","v":122400}]
[null,{"$f":"IF(LEN('Détail des projets'!B269)=0,\"\",'Détail des projets'!B269)","v":"Demande d'aide financière  2020 / d'un accotement revêtu le long des rues Valéri-Paquin et Francine "},{"$f":"IF(LEN('Détail des projets'!C269)=0,\"\",'Détail des projets'!C269)","v":"Municipalité de Saint-Joseph-du-Lac"},{"$f":"IF(LEN('Détail des projets'!G269)=0,\"\",'Détail des projets'!G269)","v":"15-Laurentides"},{"$f":"IF(LEN('Détail des projets'!K269)=0,\"\",'Détail des projets'!K269)","v":44198}]
[null,{"$f":"IF(LEN('Détail des projets'!B270)=0,\"\",'Détail des projets'!B270)","v":"Demande d'aide financière  2020 / d'un lien cyclable bidirectionnel sur le pont Joffre"},{"$f":"IF(LEN('Détail des projets'!C270)=0,\"\",'Détail des projets'!C270)","v":"Ville de Sherbrooke"},{"$f":"IF(LEN('Détail des projets'!G270)=0,\"\",'Détail des projets'!G270)","v":"05-Estrie"},{"$f":"IF(LEN('Détail des projets'!K270)=0,\"\",'Détail des projets'!K270)","v":130000}]
[null,{"$f":"IF(LEN('Détail des projets'!B271)=0,\"\",'Détail des projets'!B271)","v":"Demande d'aide financière  2020 / de plusieurs aménagements favorisant le transport actif sur la rue De Rigaud"},{"$f":"IF(LEN('Détail des projets'!C271)=0,\"\",'Détail des projets'!C271)","v":"Ville de Saint-Bruno-de-Montarville"},{"$f":"IF(LEN('Détail des projets'!G271)=0,\"\",'Détail des projets'!G271)","v":"16-Montérégie"},{"$f":"IF(LEN('Détail des projets'!K271)=0,\"\",'Détail des projets'!K271)","v":149392}]
[null,{"$f":"IF(LEN('Détail des projets'!B272)=0,\"\",'Détail des projets'!B272)","v":"Demande d'aide financière  2020 / de dos d'âne et supports à vélos devant les établissements scolaires "},{"$f":"IF(LEN('Détail des projets'!C272)=0,\"\",'Détail des projets'!C272)","v":"Ville de Mont-Royal"},{"$f":"IF(LEN('Détail des projets'!G272)=0,\"\",'Détail des projets'!G272)","v":"06-Montréal"},{"$f":"IF(LEN('Détail des projets'!K272)=0,\"\",'Détail des projets'!K272)","v":10867}]
[null,{"$f":"IF(LEN('Détail des projets'!B273)=0,\"\",'Détail des projets'!B273)","v":"Demande d'aide financière  2020 / d'une infrastructure de mobilité active entre le secteur de Joli-Bois et le centre de service du village "},{"$f":"IF(LEN('Détail des projets'!C273)=0,\"\",'Détail des projets'!C273)","v":"Ville de Sainte-Marguerite-du-Lac-Masson"},{"$f":"IF(LEN('Détail des projets'!G273)=0,\"\",'Détail des projets'!G273)","v":"15-Laurentides"},{"$f":"IF(LEN('Détail des projets'!K273)=0,\"\",'Détail des projets'!K273)","v":406820}]
[null,{"$f":"IF(LEN('Détail des projets'!B274)=0,\"\",'Détail des projets'!B274)","v":"Demande d'aide financière  2020 / d'un trottoir et d'un débarcadère pour autobus sur la rue Baillargeon "},{"$f":"IF(LEN('Détail des projets'!C274)=0,\"\",'Détail des projets'!C274)","v":"Ville de Brossard"},{"$f":"IF(LEN('Détail des projets'!G274)=0,\"\",'Détail des projets'!G274)","v":"16-Montérégie"},{"$f":"IF(LEN('Détail des projets'!K274)=0,\"\",'Détail des projets'!K274)","v":47625}]
[null,{"$f":"IF(LEN('Détail des projets'!B275)=0,\"\",'Détail des projets'!B275)","v":"Aménagement d'une piste cyclable séparé sur le chemin de la Rivière"},{"$f":"IF(LEN('Détail des projets'!C275)=0,\"\",'Détail des projets'!C275)","v":"Ville de Sainte-Agathe-des-Monts"},{"$f":"IF(LEN('Détail des projets'!G275)=0,\"\",'Détail des projets'!G275)","v":"15-Laurentides"},{"$f":"IF(LEN('Détail des projets'!K275)=0,\"\",'Détail des projets'!K275)","v":600000}]
[null,{"$f":"IF(LEN('Détail des projets'!B276)=0,\"\",'Détail des projets'!B276)","v":"Aménagement d'une piste cyclable bidirectionnelle en bordure de la chaussée"},{"$f":"IF(LEN('Détail des projets'!C276)=0,\"\",'Détail des projets'!C276)","v":"Municipalité de Saint-Placide"},{"$f":"IF(LEN('Détail des projets'!G276)=0,\"\",'Détail des projets'!G276)","v":"15-Laurentides"},{"$f":"IF(LEN('Détail des projets'!K276)=0,\"\",'Détail des projets'!K276)","v":378602}]
[null,{"$f":"IF(LEN('Détail des projets'!B277)=0,\"\",'Détail des projets'!B277)","v":"Réaménagement de la rue Lapierre entre Pascal et Maurice-Duplessis "},{"$f":"IF(LEN('Détail des projets'!C277)=0,\"\",'Détail des projets'!C277)","v":"Arrondissement de Montréal-Nord"},{"$f":"IF(LEN('Détail des projets'!G277)=0,\"\",'Détail des projets'!G277)","v":"06-Montréal"},{"$f":"IF(LEN('Détail des projets'!K277)=0,\"\",'Détail des projets'!K277)","v":250000}]
[null,{"$f":"IF(LEN('Détail des projets'!B278)=0,\"\",'Détail des projets'!B278)","v":"Construction d'une passerelle reliant le quartier St-Luc et le centre-ville "},{"$f":"IF(LEN('Détail des projets'!C278)=0,\"\",'Détail des projets'!C278)","v":"Ville de Rivière-du-Loup"},{"$f":"IF(LEN('Détail des projets'!G278)=0,\"\",'Détail des projets'!G278)","v":"01-Bas-Saint-Laurent"},{"$f":"IF(LEN('Détail des projets'!K278)=0,\"\",'Détail des projets'!K278)","v":508927}]
[null,{"$f":"IF(LEN('Détail des projets'!B279)=0,\"\",'Détail des projets'!B279)","v":"Construction d'une piste cyclable dans l'emprise de la 9e Rue Sud "},{"$f":"IF(LEN('Détail des projets'!C279)=0,\"\",'Détail des projets'!C279)","v":"Ville de Thetford Mines"},{"$f":"IF(LEN('Détail des projets'!G279)=0,\"\",'Détail des projets'!G279)","v":"12-Chaudières-Appalaches"},{"$f":"IF(LEN('Détail des projets'!K279)=0,\"\",'Détail des projets'!K279)","v":49763}]
[null,{"$f":"IF(LEN('Détail des projets'!B280)=0,\"\",'Détail des projets'!B280)","v":""},{"$f":"IF(LEN('Détail des projets'!C280)=0,\"\",'Détail des projets'!C280)","v":""},{"$f":"IF(LEN('Détail des projets'!G280)=0,\"\",'Détail des projets'!G280)","v":""},{"$f":"IF(LEN('Détail des projets'!K280)=0,\"\",'Détail des projets'!K280)","v":""}]
[null,{"$f":"IF(LEN('Détail des projets'!B281)=0,\"\",'Détail des projets'!B281)","v":"Construction d'un corridor de déplacement sécuritaire à usage polyvalent"},{"$f":"IF(LEN('Détail des projets'!C281)=0,\"\",'Détail des projets'!C281)","v":"Municipalité de L'Isle-Verte"},{"$f":"IF(LEN('Détail des projets'!G281)=0,\"\",'Détail des projets'!G281)","v":"01-Bas-Saint-Laurent"},{"$f":"IF(LEN('Détail des projets'!K281)=0,\"\",'Détail des projets'!K281)","v":406301}]
[null,{"$f":"IF(LEN('Détail des projets'!B282)=0,\"\",'Détail des projets'!B282)","v":"Construction d'aménagements cyclables sur la route 138 "},{"$f":"IF(LEN('Détail des projets'!C282)=0,\"\",'Détail des projets'!C282)","v":"Ville de Baie-St-Paul"},{"$f":"IF(LEN('Détail des projets'!G282)=0,\"\",'Détail des projets'!G282)","v":"03-Capitale-Nationale"},{"$f":"IF(LEN('Détail des projets'!K282)=0,\"\",'Détail des projets'!K282)","v":993125}]
[null,{"$f":"IF(LEN('Détail des projets'!B283)=0,\"\",'Détail des projets'!B283)","v":"Aménagement d'une piste partagée sur le boulevard Raymond-Mailloux"},{"$f":"IF(LEN('Détail des projets'!C283)=0,\"\",'Détail des projets'!C283)","v":"Ville de Baie-St-Paul"},{"$f":"IF(LEN('Détail des projets'!G283)=0,\"\",'Détail des projets'!G283)","v":"03-Capitale-Nationale"},{"$f":"IF(LEN('Détail des projets'!K283)=0,\"\",'Détail des projets'!K283)","v":11500}]
[null,{"$f":"IF(LEN('Détail des projets'!B284)=0,\"\",'Détail des projets'!B284)","v":"Mesures d'aménagement de la circulation près de deux établissements scolaires"},{"$f":"IF(LEN('Détail des projets'!C284)=0,\"\",'Détail des projets'!C284)","v":"Ville de Lac-Brome"},{"$f":"IF(LEN('Détail des projets'!G284)=0,\"\",'Détail des projets'!G284)","v":"16-Montérégie"},{"$f":"IF(LEN('Détail des projets'!K284)=0,\"\",'Détail des projets'!K284)","v":16542}]
[null,{"$f":"IF(LEN('Détail des projets'!B285)=0,\"\",'Détail des projets'!B285)","v":"Prolongement de la piste cyclable de la rue Notre-Dame jusqu'à Bonaventure\n"},{"$f":"IF(LEN('Détail des projets'!C285)=0,\"\",'Détail des projets'!C285)","v":"Ville de Repentigny"},{"$f":"IF(LEN('Détail des projets'!G285)=0,\"\",'Détail des projets'!G285)","v":"14-Lanaudière"},{"$f":"IF(LEN('Détail des projets'!K285)=0,\"\",'Détail des projets'!K285)","v":200000}]
[null,{"$f":"IF(LEN('Détail des projets'!B286)=0,\"\",'Détail des projets'!B286)","v":"Aménagement d'une accessibilité universelle sur la rue des Métiers, de l'Avenue des Forestiers jusqu'à l'Avenue du Parc"},{"$f":"IF(LEN('Détail des projets'!C286)=0,\"\",'Détail des projets'!C286)","v":"Ville d'Amos"},{"$f":"IF(LEN('Détail des projets'!G286)=0,\"\",'Détail des projets'!G286)","v":"08-Abitibi-Témiscamingue"},{"$f":"IF(LEN('Détail des projets'!K286)=0,\"\",'Détail des projets'!K286)","v":76093}]
[null,{"$f":"IF(LEN('Détail des projets'!B287)=0,\"\",'Détail des projets'!B287)","v":"Construction d'une piste cyclable sur la 4e Avenue Ouest"},{"$f":"IF(LEN('Détail des projets'!C287)=0,\"\",'Détail des projets'!C287)","v":"Ville d'Amos"},{"$f":"IF(LEN('Détail des projets'!G287)=0,\"\",'Détail des projets'!G287)","v":"08-Abitibi-Témiscamingue"},{"$f":"IF(LEN('Détail des projets'!K287)=0,\"\",'Détail des projets'!K287)","v":33848}]
[null,{"$f":"IF(LEN('Détail des projets'!B288)=0,\"\",'Détail des projets'!B288)","v":"Aménagement d'une piste multifonctionnelle sur la rue de la Montagne"},{"$f":"IF(LEN('Détail des projets'!C288)=0,\"\",'Détail des projets'!C288)","v":"Ville de Saint-Basile-le-Grand"},{"$f":"IF(LEN('Détail des projets'!G288)=0,\"\",'Détail des projets'!G288)","v":"16-Montérégie"},{"$f":"IF(LEN('Détail des projets'!K288)=0,\"\",'Détail des projets'!K288)","v":122113}]
[null,{"$f":"IF(LEN('Détail des projets'!B289)=0,\"\",'Détail des projets'!B289)","v":""},{"$f":"IF(LEN('Détail des projets'!C289)=0,\"\",'Détail des projets'!C289)","v":""},{"$f":"IF(LEN('Détail des projets'!G289)=0,\"\",'Détail des projets'!G289)","v":""},{"$f":"IF(LEN('Détail des projets'!K289)=0,\"\",'Détail des projets'!K289)","v":""}]
[null,{"$f":"IF(LEN('Détail des projets'!B290)=0,\"\",'Détail des projets'!B290)","v":"Projet d'aménagement d'une piste cyclable et d'un trottoir du côté nord du Boulevard Taché"},{"$f":"IF(LEN('Détail des projets'!C290)=0,\"\",'Détail des projets'!C290)","v":"Ville de Montmagny"},{"$f":"IF(LEN('Détail des projets'!G290)=0,\"\",'Détail des projets'!G290)","v":"12-Chaudières-Appalaches"},{"$f":"IF(LEN('Détail des projets'!K290)=0,\"\",'Détail des projets'!K290)","v":62600}]
[null,{"$f":"IF(LEN('Détail des projets'!B291)=0,\"\",'Détail des projets'!B291)","v":"Prolongement d'une piste cyclable dans l'emprise de la rue Bernières"},{"$f":"IF(LEN('Détail des projets'!C291)=0,\"\",'Détail des projets'!C291)","v":"Ville de Lévis"},{"$f":"IF(LEN('Détail des projets'!G291)=0,\"\",'Détail des projets'!G291)","v":"12-Chaudières-Appalaches"},{"$f":"IF(LEN('Détail des projets'!K291)=0,\"\",'Détail des projets'!K291)","v":328000}]
[null,{"$f":"IF(LEN('Détail des projets'!B292)=0,\"\",'Détail des projets'!B292)","v":"Mise en place d'une piste bidirectionnelle sur la 6e Avenue"},{"$f":"IF(LEN('Détail des projets'!C292)=0,\"\",'Détail des projets'!C292)","v":"Ville de Richmond"},{"$f":"IF(LEN('Détail des projets'!G292)=0,\"\",'Détail des projets'!G292)","v":"05-Estrie"},{"$f":"IF(LEN('Détail des projets'!K292)=0,\"\",'Détail des projets'!K292)","v":31055}]
[null,{"$f":"IF(LEN('Détail des projets'!B293)=0,\"\",'Détail des projets'!B293)","v":"Construction d'une bande cyclable bidirectionnelle entre la 6e rue et la 1re rue dans le secteur de Port-Alfred"},{"$f":"IF(LEN('Détail des projets'!C293)=0,\"\",'Détail des projets'!C293)","v":"Ville de Saguenay"},{"$f":"IF(LEN('Détail des projets'!G293)=0,\"\",'Détail des projets'!G293)","v":"02-Saguenay- Lac-Saint-Jean"},{"$f":"IF(LEN('Détail des projets'!K293)=0,\"\",'Détail des projets'!K293)","v":45819}]
[null,{"$f":"IF(LEN('Détail des projets'!B294)=0,\"\",'Détail des projets'!B294)","v":""},{"$f":"IF(LEN('Détail des projets'!C294)=0,\"\",'Détail des projets'!C294)","v":""},{"$f":"IF(LEN('Détail des projets'!G294)=0,\"\",'Détail des projets'!G294)","v":""},{"$f":"IF(LEN('Détail des projets'!K294)=0,\"\",'Détail des projets'!K294)","v":""}]
[null,{"$f":"IF(LEN('Détail des projets'!B295)=0,\"\",'Détail des projets'!B295)","v":""},{"$f":"IF(LEN('Détail des projets'!C295)=0,\"\",'Détail des projets'!C295)","v":""},{"$f":"IF(LEN('Détail des projets'!G295)=0,\"\",'Détail des projets'!G295)","v":""},{"$f":"IF(LEN('Détail des projets'!K295)=0,\"\",'Détail des projets'!K295)","v":""}]
[null,{"$f":"IF(LEN('Détail des projets'!B296)=0,\"\",'Détail des projets'!B296)","v":""},{"$f":"IF(LEN('Détail des projets'!C296)=0,\"\",'Détail des projets'!C296)","v":""},{"$f":"IF(LEN('Détail des projets'!G296)=0,\"\",'Détail des projets'!G296)","v":""},{"$f":"IF(LEN('Détail des projets'!K296)=0,\"\",'Détail des projets'!K296)","v":""}]
[null,{"$f":"IF(LEN('Détail des projets'!B297)=0,\"\",'Détail des projets'!B297)","v":""},{"$f":"IF(LEN('Détail des projets'!C297)=0,\"\",'Détail des projets'!C297)","v":""},{"$f":"IF(LEN('Détail des projets'!G297)=0,\"\",'Détail des projets'!G297)","v":""},{"$f":"IF(LEN('Détail des projets'!K297)=0,\"\",'Détail des projets'!K297)","v":""}]
[null,{"$f":"IF(LEN('Détail des projets'!B298)=0,\"\",'Détail des projets'!B298)","v":""},{"$f":"IF(LEN('Détail des projets'!C298)=0,\"\",'Détail des projets'!C298)","v":""},{"$f":"IF(LEN('Détail des projets'!G298)=0,\"\",'Détail des projets'!G298)","v":""},{"$f":"IF(LEN('Détail des projets'!K298)=0,\"\",'Détail des projets'!K298)","v":""}]
[null,{"$f":"IF(LEN('Détail des projets'!B299)=0,\"\",'Détail des projets'!B299)","v":""},{"$f":"IF(LEN('Détail des projets'!C299)=0,\"\",'Détail des projets'!C299)","v":""},{"$f":"IF(LEN('Détail des projets'!G299)=0,\"\",'Détail des projets'!G299)","v":""},{"$f":"IF(LEN('Détail des projets'!K299)=0,\"\",'Détail des projets'!K299)","v":""}]
[null,{"$f":"IF(LEN('Détail des projets'!B300)=0,\"\",'Détail des projets'!B300)","v":""},{"$f":"IF(LEN('Détail des projets'!C300)=0,\"\",'Détail des projets'!C300)","v":""},{"$f":"IF(LEN('Détail des projets'!G300)=0,\"\",'Détail des projets'!G300)","v":""},{"$f":"IF(LEN('Détail des projets'!K300)=0,\"\",'Détail des projets'!K300)","v":""}]
[null,{"$f":"IF(LEN('Détail des projets'!B301)=0,\"\",'Détail des projets'!B301)","v":""},{"$f":"IF(LEN('Détail des projets'!C301)=0,\"\",'Détail des projets'!C301)","v":""},{"$f":"IF(LEN('Détail des projets'!G301)=0,\"\",'Détail des projets'!G301)","v":""},{"$f":"IF(LEN('Détail des projets'!K301)=0,\"\",'Détail des projets'!K301)","v":""}]
[null,{"$f":"IF(LEN('Détail des projets'!B302)=0,\"\",'Détail des projets'!B302)","v":""},{"$f":"IF(LEN('Détail des projets'!C302)=0,\"\",'Détail des projets'!C302)","v":""},{"$f":"IF(LEN('Détail des projets'!G302)=0,\"\",'Détail des projets'!G302)","v":""},{"$f":"IF(LEN('Détail des projets'!K302)=0,\"\",'Détail des projets'!K302)","v":""}]
[null,{"$f":"IF(LEN('Détail des projets'!B303)=0,\"\",'Détail des projets'!B303)","v":""},{"$f":"IF(LEN('Détail des projets'!C303)=0,\"\",'Détail des projets'!C303)","v":""},{"$f":"IF(LEN('Détail des projets'!G303)=0,\"\",'Détail des projets'!G303)","v":""},{"$f":"IF(LEN('Détail des projets'!K303)=0,\"\",'Détail des projets'!K303)","v":""}]
[null,{"$f":"IF(LEN('Détail des projets'!B304)=0,\"\",'Détail des projets'!B304)","v":""},{"$f":"IF(LEN('Détail des projets'!C304)=0,\"\",'Détail des projets'!C304)","v":""},{"$f":"IF(LEN('Détail des projets'!G304)=0,\"\",'Détail des projets'!G304)","v":""},{"$f":"IF(LEN('Détail des projets'!K304)=0,\"\",'Détail des projets'!K304)","v":""}]
[null,{"$f":"IF(LEN('Détail des projets'!B305)=0,\"\",'Détail des projets'!B305)","v":""},{"$f":"IF(LEN('Détail des projets'!C305)=0,\"\",'Détail des projets'!C305)","v":""},{"$f":"IF(LEN('Détail des projets'!G305)=0,\"\",'Détail des projets'!G305)","v":""},{"$f":"IF(LEN('Détail des projets'!K305)=0,\"\",'Détail des projets'!K305)","v":""}]
[null,{"$f":"IF(LEN('Détail des projets'!B306)=0,\"\",'Détail des projets'!B306)","v":""},{"$f":"IF(LEN('Détail des projets'!C306)=0,\"\",'Détail des projets'!C306)","v":""},{"$f":"IF(LEN('Détail des projets'!G306)=0,\"\",'Détail des projets'!G306)","v":""},{"$f":"IF(LEN('Détail des projets'!K306)=0,\"\",'Détail des projets'!K306)","v":""}]
[null,{"$f":"IF(LEN('Détail des projets'!B307)=0,\"\",'Détail des projets'!B307)","v":""},{"$f":"IF(LEN('Détail des projets'!C307)=0,\"\",'Détail des projets'!C307)","v":""},{"$f":"IF(LEN('Détail des projets'!G307)=0,\"\",'Détail des projets'!G307)","v":""},{"$f":"IF(LEN('Détail des projets'!K307)=0,\"\",'Détail des projets'!K307)","v":""}]
[null,{"$f":"IF(LEN('Détail des projets'!B308)=0,\"\",'Détail des projets'!B308)","v":""},{"$f":"IF(LEN('Détail des projets'!C308)=0,\"\",'Détail des projets'!C308)","v":""},{"$f":"IF(LEN('Détail des projets'!G308)=0,\"\",'Détail des projets'!G308)","v":""},{"$f":"IF(LEN('Détail des projets'!K308)=0,\"\",'Détail des projets'!K308)","v":""}]
[null,{"$f":"IF(LEN('Détail des projets'!B309)=0,\"\",'Détail des projets'!B309)","v":""},{"$f":"IF(LEN('Détail des projets'!C309)=0,\"\",'Détail des projets'!C309)","v":""},{"$f":"IF(LEN('Détail des projets'!G309)=0,\"\",'Détail des projets'!G309)","v":""},{"$f":"IF(LEN('Détail des projets'!K309)=0,\"\",'Détail des projets'!K309)","v":""}]
[null,{"$f":"IF(LEN('Détail des projets'!B310)=0,\"\",'Détail des projets'!B310)","v":""},{"$f":"IF(LEN('Détail des projets'!C310)=0,\"\",'Détail des projets'!C310)","v":""},{"$f":"IF(LEN('Détail des projets'!G310)=0,\"\",'Détail des projets'!G310)","v":""},{"$f":"IF(LEN('Détail des projets'!K310)=0,\"\",'Détail des projets'!K310)","v":""}]
[null,{"$f":"IF(LEN('Détail des projets'!B311)=0,\"\",'Détail des projets'!B311)","v":""},{"$f":"IF(LEN('Détail des projets'!C311)=0,\"\",'Détail des projets'!C311)","v":""},{"$f":"IF(LEN('Détail des projets'!G311)=0,\"\",'Détail des projets'!G311)","v":""},{"$f":"IF(LEN('Détail des projets'!K311)=0,\"\",'Détail des projets'!K311)","v":""}]
[null,{"$f":"IF(LEN('Détail des projets'!B312)=0,\"\",'Détail des projets'!B312)","v":""},{"$f":"IF(LEN('Détail des projets'!C312)=0,\"\",'Détail des projets'!C312)","v":""},{"$f":"IF(LEN('Détail des projets'!G312)=0,\"\",'Détail des projets'!G312)","v":""},{"$f":"IF(LEN('Détail des projets'!K312)=0,\"\",'Détail des projets'!K312)","v":""}]
[null,{"$f":"IF(LEN('Détail des projets'!B313)=0,\"\",'Détail des projets'!B313)","v":""},{"$f":"IF(LEN('Détail des projets'!C313)=0,\"\",'Détail des projets'!C313)","v":""},{"$f":"IF(LEN('Détail des projets'!G313)=0,\"\",'Détail des projets'!G313)","v":""},{"$f":"IF(LEN('Détail des projets'!K313)=0,\"\",'Détail des projets'!K313)","v":""}]
[null,{"$f":"IF(LEN('Détail des projets'!B314)=0,\"\",'Détail des projets'!B314)","v":""},{"$f":"IF(LEN('Détail des projets'!C314)=0,\"\",'Détail des projets'!C314)","v":""},{"$f":"IF(LEN('Détail des projets'!G314)=0,\"\",'Détail des projets'!G314)","v":""},{"$f":"IF(LEN('Détail des projets'!K314)=0,\"\",'Détail des projets'!K314)","v":""}]
[null,{"$f":"IF(LEN('Détail des projets'!B315)=0,\"\",'Détail des projets'!B315)","v":""},{"$f":"IF(LEN('Détail des projets'!C315)=0,\"\",'Détail des projets'!C315)","v":""},{"$f":"IF(LEN('Détail des projets'!G315)=0,\"\",'Détail des projets'!G315)","v":""},{"$f":"IF(LEN('Détail des projets'!K315)=0,\"\",'Détail des projets'!K315)","v":""}]
[null,{"$f":"IF(LEN('Détail des projets'!B316)=0,\"\",'Détail des projets'!B316)","v":""},{"$f":"IF(LEN('Détail des projets'!C316)=0,\"\",'Détail des projets'!C316)","v":""},{"$f":"IF(LEN('Détail des projets'!G316)=0,\"\",'Détail des projets'!G316)","v":""},{"$f":"IF(LEN('Détail des projets'!K316)=0,\"\",'Détail des projets'!K316)","v":""}]
[null,{"$f":"IF(LEN('Détail des projets'!B317)=0,\"\",'Détail des projets'!B317)","v":""},{"$f":"IF(LEN('Détail des projets'!C317)=0,\"\",'Détail des projets'!C317)","v":""},{"$f":"IF(LEN('Détail des projets'!G317)=0,\"\",'Détail des projets'!G317)","v":""},{"$f":"IF(LEN('Détail des projets'!K317)=0,\"\",'Détail des projets'!K317)","v":""}]
[null,{"$f":"IF(LEN('Détail des projets'!B318)=0,\"\",'Détail des projets'!B318)","v":""},{"$f":"IF(LEN('Détail des projets'!C318)=0,\"\",'Détail des projets'!C318)","v":""},{"$f":"IF(LEN('Détail des projets'!G318)=0,\"\",'Détail des projets'!G318)","v":""},{"$f":"IF(LEN('Détail des projets'!K318)=0,\"\",'Détail des projets'!K318)","v":""}]
[null,{"$f":"IF(LEN('Détail des projets'!B319)=0,\"\",'Détail des projets'!B319)","v":""},{"$f":"IF(LEN('Détail des projets'!C319)=0,\"\",'Détail des projets'!C319)","v":""},{"$f":"IF(LEN('Détail des projets'!G319)=0,\"\",'Détail des projets'!G319)","v":""},{"$f":"IF(LEN('Détail des projets'!K319)=0,\"\",'Détail des projets'!K319)","v":""}]
[null,{"$f":"IF(LEN('Détail des projets'!B320)=0,\"\",'Détail des projets'!B320)","v":""},{"$f":"IF(LEN('Détail des projets'!C320)=0,\"\",'Détail des projets'!C320)","v":""},{"$f":"IF(LEN('Détail des projets'!G320)=0,\"\",'Détail des projets'!G320)","v":""},{"$f":"IF(LEN('Détail des projets'!K320)=0,\"\",'Détail des projets'!K320)","v":""}]
[null,{"$f":"IF(LEN('Détail des projets'!B321)=0,\"\",'Détail des projets'!B321)","v":""},{"$f":"IF(LEN('Détail des projets'!C321)=0,\"\",'Détail des projets'!C321)","v":""},{"$f":"IF(LEN('Détail des projets'!G321)=0,\"\",'Détail des projets'!G321)","v":""},{"$f":"IF(LEN('Détail des projets'!K321)=0,\"\",'Détail des projets'!K321)","v":""}]
[null,{"$f":"IF(LEN('Détail des projets'!B322)=0,\"\",'Détail des projets'!B322)","v":""},{"$f":"IF(LEN('Détail des projets'!C322)=0,\"\",'Détail des projets'!C322)","v":""},{"$f":"IF(LEN('Détail des projets'!G322)=0,\"\",'Détail des projets'!G322)","v":""},{"$f":"IF(LEN('Détail des projets'!K322)=0,\"\",'Détail des projets'!K322)","v":""}]
[null,{"$f":"IF(LEN('Détail des projets'!B323)=0,\"\",'Détail des projets'!B323)","v":""},{"$f":"IF(LEN('Détail des projets'!C323)=0,\"\",'Détail des projets'!C323)","v":""},{"$f":"IF(LEN('Détail des projets'!G323)=0,\"\",'Détail des projets'!G323)","v":""},{"$f":"IF(LEN('Détail des projets'!K323)=0,\"\",'Détail des projets'!K323)","v":""}]
[null,{"$f":"IF(LEN('Détail des projets'!B324)=0,\"\",'Détail des projets'!B324)","v":""},{"$f":"IF(LEN('Détail des projets'!C324)=0,\"\",'Détail des projets'!C324)","v":""},{"$f":"IF(LEN('Détail des projets'!G324)=0,\"\",'Détail des projets'!G324)","v":""},{"$f":"IF(LEN('Détail des projets'!K324)=0,\"\",'Détail des projets'!K324)","v":""}]
[null,{"$f":"IF(LEN('Détail des projets'!B325)=0,\"\",'Détail des projets'!B325)","v":""},{"$f":"IF(LEN('Détail des projets'!C325)=0,\"\",'Détail des projets'!C325)","v":""},{"$f":"IF(LEN('Détail des projets'!G325)=0,\"\",'Détail des projets'!G325)","v":""},{"$f":"IF(LEN('Détail des projets'!K325)=0,\"\",'Détail des projets'!K325)","v":""}]
[null,{"$f":"IF(LEN('Détail des projets'!B326)=0,\"\",'Détail des projets'!B326)","v":""},{"$f":"IF(LEN('Détail des projets'!C326)=0,\"\",'Détail des projets'!C326)","v":""},{"$f":"IF(LEN('Détail des projets'!G326)=0,\"\",'Détail des projets'!G326)","v":""},{"$f":"IF(LEN('Détail des projets'!K326)=0,\"\",'Détail des projets'!K326)","v":""}]
[null,{"$f":"IF(LEN('Détail des projets'!B327)=0,\"\",'Détail des projets'!B327)","v":""},{"$f":"IF(LEN('Détail des projets'!C327)=0,\"\",'Détail des projets'!C327)","v":""},{"$f":"IF(LEN('Détail des projets'!G327)=0,\"\",'Détail des projets'!G327)","v":""},{"$f":"IF(LEN('Détail des projets'!K327)=0,\"\",'Détail des projets'!K327)","v":""}]
[null,{"$f":"IF(LEN('Détail des projets'!B328)=0,\"\",'Détail des projets'!B328)","v":""},{"$f":"IF(LEN('Détail des projets'!C328)=0,\"\",'Détail des projets'!C328)","v":""},{"$f":"IF(LEN('Détail des projets'!G328)=0,\"\",'Détail des projets'!G328)","v":""},{"$f":"IF(LEN('Détail des projets'!K328)=0,\"\",'Détail des projets'!K328)","v":""}]
[null,{"$f":"IF(LEN('Détail des projets'!B329)=0,\"\",'Détail des projets'!B329)","v":""},{"$f":"IF(LEN('Détail des projets'!C329)=0,\"\",'Détail des projets'!C329)","v":""},{"$f":"IF(LEN('Détail des projets'!G329)=0,\"\",'Détail des projets'!G329)","v":""},{"$f":"IF(LEN('Détail des projets'!K329)=0,\"\",'Détail des projets'!K329)","v":""}]
[null,{"$f":"IF(LEN('Détail des projets'!B330)=0,\"\",'Détail des projets'!B330)","v":""},{"$f":"IF(LEN('Détail des projets'!C330)=0,\"\",'Détail des projets'!C330)","v":""},{"$f":"IF(LEN('Détail des projets'!G330)=0,\"\",'Détail des projets'!G330)","v":""},{"$f":"IF(LEN('Détail des projets'!K330)=0,\"\",'Détail des projets'!K330)","v":""}]
[null,{"$f":"IF(LEN('Détail des projets'!B331)=0,\"\",'Détail des projets'!B331)","v":""},{"$f":"IF(LEN('Détail des projets'!C331)=0,\"\",'Détail des projets'!C331)","v":""},{"$f":"IF(LEN('Détail des projets'!G331)=0,\"\",'Détail des projets'!G331)","v":""},{"$f":"IF(LEN('Détail des projets'!K331)=0,\"\",'Détail des projets'!K331)","v":""}]
[null,{"$f":"IF(LEN('Détail des projets'!B332)=0,\"\",'Détail des projets'!B332)","v":""},{"$f":"IF(LEN('Détail des projets'!C332)=0,\"\",'Détail des projets'!C332)","v":""},{"$f":"IF(LEN('Détail des projets'!G332)=0,\"\",'Détail des projets'!G332)","v":""},{"$f":"IF(LEN('Détail des projets'!K332)=0,\"\",'Détail des projets'!K332)","v":""}]
[null,{"$f":"IF(LEN('Détail des projets'!B333)=0,\"\",'Détail des projets'!B333)","v":""},{"$f":"IF(LEN('Détail des projets'!C333)=0,\"\",'Détail des projets'!C333)","v":""},{"$f":"IF(LEN('Détail des projets'!G333)=0,\"\",'Détail des projets'!G333)","v":""},{"$f":"IF(LEN('Détail des projets'!K333)=0,\"\",'Détail des projets'!K333)","v":""}]
[null,{"$f":"IF(LEN('Détail des projets'!B334)=0,\"\",'Détail des projets'!B334)","v":""},{"$f":"IF(LEN('Détail des projets'!C334)=0,\"\",'Détail des projets'!C334)","v":""},{"$f":"IF(LEN('Détail des projets'!G334)=0,\"\",'Détail des projets'!G334)","v":""},{"$f":"IF(LEN('Détail des projets'!K334)=0,\"\",'Détail des projets'!K334)","v":""}]
[null,{"$f":"IF(LEN('Détail des projets'!B335)=0,\"\",'Détail des projets'!B335)","v":""},{"$f":"IF(LEN('Détail des projets'!C335)=0,\"\",'Détail des projets'!C335)","v":""},{"$f":"IF(LEN('Détail des projets'!G335)=0,\"\",'Détail des projets'!G335)","v":""},{"$f":"IF(LEN('Détail des projets'!K335)=0,\"\",'Détail des projets'!K335)","v":""}]
[null,{"$f":"IF(LEN('Détail des projets'!B336)=0,\"\",'Détail des projets'!B336)","v":""},{"$f":"IF(LEN('Détail des projets'!C336)=0,\"\",'Détail des projets'!C336)","v":""},{"$f":"IF(LEN('Détail des projets'!G336)=0,\"\",'Détail des projets'!G336)","v":""},{"$f":"IF(LEN('Détail des projets'!K336)=0,\"\",'Détail des projets'!K336)","v":""}]
[null,{"$f":"IF(LEN('Détail des projets'!B337)=0,\"\",'Détail des projets'!B337)","v":""},{"$f":"IF(LEN('Détail des projets'!C337)=0,\"\",'Détail des projets'!C337)","v":""},{"$f":"IF(LEN('Détail des projets'!G337)=0,\"\",'Détail des projets'!G337)","v":""},{"$f":"IF(LEN('Détail des projets'!K337)=0,\"\",'Détail des projets'!K337)","v":""}]
[null,{"$f":"IF(LEN('Détail des projets'!B338)=0,\"\",'Détail des projets'!B338)","v":""},{"$f":"IF(LEN('Détail des projets'!C338)=0,\"\",'Détail des projets'!C338)","v":""},{"$f":"IF(LEN('Détail des projets'!G338)=0,\"\",'Détail des projets'!G338)","v":""},{"$f":"IF(LEN('Détail des projets'!K338)=0,\"\",'Détail des projets'!K338)","v":""}]
[null,{"$f":"IF(LEN('Détail des projets'!B339)=0,\"\",'Détail des projets'!B339)","v":""},{"$f":"IF(LEN('Détail des projets'!C339)=0,\"\",'Détail des projets'!C339)","v":""},{"$f":"IF(LEN('Détail des projets'!G339)=0,\"\",'Détail des projets'!G339)","v":""},{"$f":"IF(LEN('Détail des projets'!K339)=0,\"\",'Détail des projets'!K339)","v":""}]
[null,{"$f":"IF(LEN('Détail des projets'!B340)=0,\"\",'Détail des projets'!B340)","v":""},{"$f":"IF(LEN('Détail des projets'!C340)=0,\"\",'Détail des projets'!C340)","v":""},{"$f":"IF(LEN('Détail des projets'!G340)=0,\"\",'Détail des projets'!G340)","v":""},{"$f":"IF(LEN('Détail des projets'!K340)=0,\"\",'Détail des projets'!K340)","v":""}]
[null,{"$f":"IF(LEN('Détail des projets'!B341)=0,\"\",'Détail des projets'!B341)","v":""},{"$f":"IF(LEN('Détail des projets'!C341)=0,\"\",'Détail des projets'!C341)","v":""},{"$f":"IF(LEN('Détail des projets'!G341)=0,\"\",'Détail des projets'!G341)","v":""},{"$f":"IF(LEN('Détail des projets'!K341)=0,\"\",'Détail des projets'!K341)","v":""}]
[null,{"$f":"IF(LEN('Détail des projets'!B342)=0,\"\",'Détail des projets'!B342)","v":""},{"$f":"IF(LEN('Détail des projets'!C342)=0,\"\",'Détail des projets'!C342)","v":""},{"$f":"IF(LEN('Détail des projets'!G342)=0,\"\",'Détail des projets'!G342)","v":""},{"$f":"IF(LEN('Détail des projets'!K342)=0,\"\",'Détail des projets'!K342)","v":""}]
[null,{"$f":"IF(LEN('Détail des projets'!B343)=0,\"\",'Détail des projets'!B343)","v":""},{"$f":"IF(LEN('Détail des projets'!C343)=0,\"\",'Détail des projets'!C343)","v":""},{"$f":"IF(LEN('Détail des projets'!G343)=0,\"\",'Détail des projets'!G343)","v":""},{"$f":"IF(LEN('Détail des projets'!K343)=0,\"\",'Détail des projets'!K343)","v":""}]
[null,{"$f":"IF(LEN('Détail des projets'!B344)=0,\"\",'Détail des projets'!B344)","v":""},{"$f":"IF(LEN('Détail des projets'!C344)=0,\"\",'Détail des projets'!C344)","v":""},{"$f":"IF(LEN('Détail des projets'!G344)=0,\"\",'Détail des projets'!G344)","v":""},{"$f":"IF(LEN('Détail des projets'!K344)=0,\"\",'Détail des projets'!K344)","v":""}]
[null,{"$f":"IF(LEN('Détail des projets'!B345)=0,\"\",'Détail des projets'!B345)","v":""},{"$f":"IF(LEN('Détail des projets'!C345)=0,\"\",'Détail des projets'!C345)","v":""},{"$f":"IF(LEN('Détail des projets'!G345)=0,\"\",'Détail des projets'!G345)","v":""},{"$f":"IF(LEN('Détail des projets'!K345)=0,\"\",'Détail des projets'!K345)","v":""}]
[null,{"$f":"IF(LEN('Détail des projets'!B346)=0,\"\",'Détail des projets'!B346)","v":""},{"$f":"IF(LEN('Détail des projets'!C346)=0,\"\",'Détail des projets'!C346)","v":""},{"$f":"IF(LEN('Détail des projets'!G346)=0,\"\",'Détail des projets'!G346)","v":""},{"$f":"IF(LEN('Détail des projets'!K346)=0,\"\",'Détail des projets'!K346)","v":""}]
[null,{"$f":"IF(LEN('Détail des projets'!B347)=0,\"\",'Détail des projets'!B347)","v":""},{"$f":"IF(LEN('Détail des projets'!C347)=0,\"\",'Détail des projets'!C347)","v":""},{"$f":"IF(LEN('Détail des projets'!G347)=0,\"\",'Détail des projets'!G347)","v":""},{"$f":"IF(LEN('Détail des projets'!K347)=0,\"\",'Détail des projets'!K347)","v":""}]
[null,{"$f":"IF(LEN('Détail des projets'!B348)=0,\"\",'Détail des projets'!B348)","v":""},{"$f":"IF(LEN('Détail des projets'!C348)=0,\"\",'Détail des projets'!C348)","v":""},{"$f":"IF(LEN('Détail des projets'!G348)=0,\"\",'Détail des projets'!G348)","v":""},{"$f":"IF(LEN('Détail des projets'!K348)=0,\"\",'Détail des projets'!K348)","v":""}]
[null,{"$f":"IF(LEN('Détail des projets'!B349)=0,\"\",'Détail des projets'!B349)","v":""},{"$f":"IF(LEN('Détail des projets'!C349)=0,\"\",'Détail des projets'!C349)","v":""},{"$f":"IF(LEN('Détail des projets'!G349)=0,\"\",'Détail des projets'!G349)","v":""},{"$f":"IF(LEN('Détail des projets'!K349)=0,\"\",'Détail des projets'!K349)","v":""}]
[null,{"$f":"IF(LEN('Détail des projets'!B350)=0,\"\",'Détail des projets'!B350)","v":""},{"$f":"IF(LEN('Détail des projets'!C350)=0,\"\",'Détail des projets'!C350)","v":""},{"$f":"IF(LEN('Détail des projets'!G350)=0,\"\",'Détail des projets'!G350)","v":""},{"$f":"IF(LEN('Détail des projets'!K350)=0,\"\",'Détail des projets'!K350)","v":""}]
[null,{"$f":"IF(LEN('Détail des projets'!B351)=0,\"\",'Détail des projets'!B351)","v":""},{"$f":"IF(LEN('Détail des projets'!C351)=0,\"\",'Détail des projets'!C351)","v":""},{"$f":"IF(LEN('Détail des projets'!G351)=0,\"\",'Détail des projets'!G351)","v":""},{"$f":"IF(LEN('Détail des projets'!K351)=0,\"\",'Détail des projets'!K351)","v":""}]
[null,{"$f":"IF(LEN('Détail des projets'!B352)=0,\"\",'Détail des projets'!B352)","v":""},{"$f":"IF(LEN('Détail des projets'!C352)=0,\"\",'Détail des projets'!C352)","v":""},{"$f":"IF(LEN('Détail des projets'!G352)=0,\"\",'Détail des projets'!G352)","v":""},{"$f":"IF(LEN('Détail des projets'!K352)=0,\"\",'Détail des projets'!K352)","v":""}]
[null,{"$f":"IF(LEN('Détail des projets'!B353)=0,\"\",'Détail des projets'!B353)","v":""},{"$f":"IF(LEN('Détail des projets'!C353)=0,\"\",'Détail des projets'!C353)","v":""},{"$f":"IF(LEN('Détail des projets'!G353)=0,\"\",'Détail des projets'!G353)","v":""},{"$f":"IF(LEN('Détail des projets'!K353)=0,\"\",'Détail des projets'!K353)","v":""}]
[null,{"$f":"IF(LEN('Détail des projets'!B354)=0,\"\",'Détail des projets'!B354)","v":""},{"$f":"IF(LEN('Détail des projets'!C354)=0,\"\",'Détail des projets'!C354)","v":""},{"$f":"IF(LEN('Détail des projets'!G354)=0,\"\",'Détail des projets'!G354)","v":""},{"$f":"IF(LEN('Détail des projets'!K354)=0,\"\",'Détail des projets'!K354)","v":""}]
[null,{"$f":"IF(LEN('Détail des projets'!B355)=0,\"\",'Détail des projets'!B355)","v":""},{"$f":"IF(LEN('Détail des projets'!C355)=0,\"\",'Détail des projets'!C355)","v":""},{"$f":"IF(LEN('Détail des projets'!G355)=0,\"\",'Détail des projets'!G355)","v":""},{"$f":"IF(LEN('Détail des projets'!K355)=0,\"\",'Détail des projets'!K355)","v":""}]
[null,{"$f":"IF(LEN('Détail des projets'!B356)=0,\"\",'Détail des projets'!B356)","v":""},{"$f":"IF(LEN('Détail des projets'!C356)=0,\"\",'Détail des projets'!C356)","v":""},{"$f":"IF(LEN('Détail des projets'!G356)=0,\"\",'Détail des projets'!G356)","v":""},{"$f":"IF(LEN('Détail des projets'!K356)=0,\"\",'Détail des projets'!K356)","v":""}]
[null,{"$f":"IF(LEN('Détail des projets'!B357)=0,\"\",'Détail des projets'!B357)","v":""},{"$f":"IF(LEN('Détail des projets'!C357)=0,\"\",'Détail des projets'!C357)","v":""},{"$f":"IF(LEN('Détail des projets'!G357)=0,\"\",'Détail des projets'!G357)","v":""},{"$f":"IF(LEN('Détail des projets'!K357)=0,\"\",'Détail des projets'!K357)","v":""}]
[null,{"$f":"IF(LEN('Détail des projets'!B358)=0,\"\",'Détail des projets'!B358)","v":""},{"$f":"IF(LEN('Détail des projets'!C358)=0,\"\",'Détail des projets'!C358)","v":""},{"$f":"IF(LEN('Détail des projets'!G358)=0,\"\",'Détail des projets'!G358)","v":""},{"$f":"IF(LEN('Détail des projets'!K358)=0,\"\",'Détail des projets'!K358)","v":""}]
[null,{"$f":"IF(LEN('Détail des projets'!B359)=0,\"\",'Détail des projets'!B359)","v":""},{"$f":"IF(LEN('Détail des projets'!C359)=0,\"\",'Détail des projets'!C359)","v":""},{"$f":"IF(LEN('Détail des projets'!G359)=0,\"\",'Détail des projets'!G359)","v":""},{"$f":"IF(LEN('Détail des projets'!K359)=0,\"\",'Détail des projets'!K359)","v":""}]
[null,{"$f":"IF(LEN('Détail des projets'!B360)=0,\"\",'Détail des projets'!B360)","v":""},{"$f":"IF(LEN('Détail des projets'!C360)=0,\"\",'Détail des projets'!C360)","v":""},{"$f":"IF(LEN('Détail des projets'!G360)=0,\"\",'Détail des projets'!G360)","v":""},{"$f":"IF(LEN('Détail des projets'!K360)=0,\"\",'Détail des projets'!K360)","v":""}]
[null,{"$f":"IF(LEN('Détail des projets'!B361)=0,\"\",'Détail des projets'!B361)","v":""},{"$f":"IF(LEN('Détail des projets'!C361)=0,\"\",'Détail des projets'!C361)","v":""},{"$f":"IF(LEN('Détail des projets'!G361)=0,\"\",'Détail des projets'!G361)","v":""},{"$f":"IF(LEN('Détail des projets'!K361)=0,\"\",'Détail des projets'!K361)","v":""}]
[null,{"$f":"IF(LEN('Détail des projets'!B362)=0,\"\",'Détail des projets'!B362)","v":""},{"$f":"IF(LEN('Détail des projets'!C362)=0,\"\",'Détail des projets'!C362)","v":""},{"$f":"IF(LEN('Détail des projets'!G362)=0,\"\",'Détail des projets'!G362)","v":""},{"$f":"IF(LEN('Détail des projets'!K362)=0,\"\",'Détail des projets'!K362)","v":""}]
[null,{"$f":"IF(LEN('Détail des projets'!B363)=0,\"\",'Détail des projets'!B363)","v":""},{"$f":"IF(LEN('Détail des projets'!C363)=0,\"\",'Détail des projets'!C363)","v":""},{"$f":"IF(LEN('Détail des projets'!G363)=0,\"\",'Détail des projets'!G363)","v":""},{"$f":"IF(LEN('Détail des projets'!K363)=0,\"\",'Détail des projets'!K363)","v":""}]
[null,{"$f":"IF(LEN('Détail des projets'!B364)=0,\"\",'Détail des projets'!B364)","v":""},{"$f":"IF(LEN('Détail des projets'!C364)=0,\"\",'Détail des projets'!C364)","v":""},{"$f":"IF(LEN('Détail des projets'!G364)=0,\"\",'Détail des projets'!G364)","v":""},{"$f":"IF(LEN('Détail des projets'!K364)=0,\"\",'Détail des projets'!K364)","v":""}]
[null,{"$f":"IF(LEN('Détail des projets'!B365)=0,\"\",'Détail des projets'!B365)","v":""},{"$f":"IF(LEN('Détail des projets'!C365)=0,\"\",'Détail des projets'!C365)","v":""},{"$f":"IF(LEN('Détail des projets'!G365)=0,\"\",'Détail des projets'!G365)","v":""},{"$f":"IF(LEN('Détail des projets'!K365)=0,\"\",'Détail des projets'!K365)","v":""}]
[null,{"$f":"IF(LEN('Détail des projets'!B366)=0,\"\",'Détail des projets'!B366)","v":""},{"$f":"IF(LEN('Détail des projets'!C366)=0,\"\",'Détail des projets'!C366)","v":""},{"$f":"IF(LEN('Détail des projets'!G366)=0,\"\",'Détail des projets'!G366)","v":""},{"$f":"IF(LEN('Détail des projets'!K366)=0,\"\",'Détail des projets'!K366)","v":""}]
[null,{"$f":"IF(LEN('Détail des projets'!B367)=0,\"\",'Détail des projets'!B367)","v":""},{"$f":"IF(LEN('Détail des projets'!C367)=0,\"\",'Détail des projets'!C367)","v":""},{"$f":"IF(LEN('Détail des projets'!G367)=0,\"\",'Détail des projets'!G367)","v":""},{"$f":"IF(LEN('Détail des projets'!K367)=0,\"\",'Détail des projets'!K367)","v":""}]
[null,{"$f":"IF(LEN('Détail des projets'!B368)=0,\"\",'Détail des projets'!B368)","v":""},{"$f":"IF(LEN('Détail des projets'!C368)=0,\"\",'Détail des projets'!C368)","v":""},{"$f":"IF(LEN('Détail des projets'!G368)=0,\"\",'Détail des projets'!G368)","v":""},{"$f":"IF(LEN('Détail des projets'!K368)=0,\"\",'Détail des projets'!K368)","v":""}]
[null,{"$f":"IF(LEN('Détail des projets'!B369)=0,\"\",'Détail des projets'!B369)","v":""},{"$f":"IF(LEN('Détail des projets'!C369)=0,\"\",'Détail des projets'!C369)","v":""},{"$f":"IF(LEN('Détail des projets'!G369)=0,\"\",'Détail des projets'!G369)","v":""},{"$f":"IF(LEN('Détail des projets'!K369)=0,\"\",'Détail des projets'!K369)","v":""}]
[null,{"$f":"IF(LEN('Détail des projets'!B370)=0,\"\",'Détail des projets'!B370)","v":""},{"$f":"IF(LEN('Détail des projets'!C370)=0,\"\",'Détail des projets'!C370)","v":""},{"$f":"IF(LEN('Détail des projets'!G370)=0,\"\",'Détail des projets'!G370)","v":""},{"$f":"IF(LEN('Détail des projets'!K370)=0,\"\",'Détail des projets'!K370)","v":""}]
[null,{"$f":"IF(LEN('Détail des projets'!B371)=0,\"\",'Détail des projets'!B371)","v":""},{"$f":"IF(LEN('Détail des projets'!C371)=0,\"\",'Détail des projets'!C371)","v":""},{"$f":"IF(LEN('Détail des projets'!G371)=0,\"\",'Détail des projets'!G371)","v":""},{"$f":"IF(LEN('Détail des projets'!K371)=0,\"\",'Détail des projets'!K371)","v":""}]
[null,{"$f":"IF(LEN('Détail des projets'!B372)=0,\"\",'Détail des projets'!B372)","v":""},{"$f":"IF(LEN('Détail des projets'!C372)=0,\"\",'Détail des projets'!C372)","v":""},{"$f":"IF(LEN('Détail des projets'!G372)=0,\"\",'Détail des projets'!G372)","v":""},{"$f":"IF(LEN('Détail des projets'!K372)=0,\"\",'Détail des projets'!K372)","v":""}]
[null,{"$f":"IF(LEN('Détail des projets'!B373)=0,\"\",'Détail des projets'!B373)","v":""},{"$f":"IF(LEN('Détail des projets'!C373)=0,\"\",'Détail des projets'!C373)","v":""},{"$f":"IF(LEN('Détail des projets'!G373)=0,\"\",'Détail des projets'!G373)","v":""},{"$f":"IF(LEN('Détail des projets'!K373)=0,\"\",'Détail des projets'!K373)","v":""}]
[null,{"$f":"IF(LEN('Détail des projets'!B374)=0,\"\",'Détail des projets'!B374)","v":""},{"$f":"IF(LEN('Détail des projets'!C374)=0,\"\",'Détail des projets'!C374)","v":""},{"$f":"IF(LEN('Détail des projets'!G374)=0,\"\",'Détail des projets'!G374)","v":""},{"$f":"IF(LEN('Détail des projets'!K374)=0,\"\",'Détail des projets'!K374)","v":""}]
[null,"TOTAL (tonnes CO2 éq.)",null,null,null,0,null,null,null,null,null,null,null,null,null,{"$f":"SUM(P25:P374)","v":0},0,0,0,0,0,0,0,0,0,0,0,0,0,0,0,0,0,{"$f":"SUM(AH25:AH49)","v":0},0,0,0,0,0]

{"sheet":"Indicateurs","index":5,"n_rows":292,"n_cols":43,"rows_kept":292,"cut":false,"hidden":false,"merged":[[1,1,1,5],[1,7,1,8],[2,7,5,20],[152,1,152,4],[68,1,68,4],[70,1,72,3],[73,1,75,3],[69,1,69,3],[68,5,68,20],[1,18,1,19],[22,21,23,21],[2,1,2,3],[5,1,5,5],[3,2,3,5],[4,2,4,5],[22,19,23,19],[21,1,21,5],[22,18,23,18],[22,3,23,3],[22,4,23,4],[22,1,23,1],[22,2,23,2],[22,5,23,5],[19,1,19,3],[19,4,19,5],[155,18,155,19],[155,9,155,10],[156,18,156,19],[156,9,156,10],[154,9,154,10],[153,9,153,10],[155,1,155,2],[155,7,155,8],[155,5,155,6],[154,5,154,6],[153,5,153,6],[154,7,154,8],[153,7,153,8],[156,5,156,6],[156,1,156,2],[156,7,156,8],[154,18,154,19],[155,11,155,13],[156,11,156,13],[153,11,154,15],[157,1,157,2],[157,5,157,6],[157,7,157,8],[157,9,157,10],[157,18,157,19],[172,1,172,2],[173,1,173,2],[174,1,174,2],[158,1,158,2],[159,1,159,2],[160,1,160,2],[161,1,161,2],[162,1,162,2],[163,1,163,2],[164,1,164,2],[165,1,165,2],[166,1,166,2],[167,1,167,2],[168,1,168,2],[169,1,169,2],[170,1,170,2],[171,1,171,2],[158,5,158,6],[159,5,159,6],[175,1,175,2],[176,1,176,2],[177,1,177,2],[178,1,178,2],[179,1,179,2],[274,18,274,19],[275,1,275,2],[275,5,275,6],[275,7,275,8],[275,9,275,10],[275,18,275,19],[274,1,274,2],[274,5,274,6],[274,7,274,8],[274,9,274,10],[181,1,181,2],[182,1,182,2],[183,1,183,2],[184,1,184,2],[185,1,185,2],[180,1,180,2],[191,1,191,2],[192,1,192,2],[193,1,193,2],[276,18,276,19],[277,1,277,2],[277,5,277,6],[277,7,277,8],[277,9,277,10],[277,18,277,19],[276,1,276,2],[276,5,276,6],[276,7,276,8],[276,9,276,10],[277,11,277,13],[278,18,278,19],[279,1,279,2],[279,5,279,6],[279,7,279,8],[279,9,279,10],[279,18,279,19],[278,1,278,2],[278,5,278,6],[278,7,278,8],[278,9,278,10],[278,11,278,13],[279,11,279,13],[280,18,280,19],[281,1,281,2],[281,5,281,6],[281,7,281,8],[281,9,281,10],[281,18,281,19],[280,1,280,2],[280,5,280,6],[280,7,280,8],[280,9,280,10],[280,11,280,13],[281,11,281,13],[282,18,282,19],[283,1,283,2],[283,5,283,6],[283,7,283,8],[283,9,283,10],[283,18,283,19],[282,1,282,2],[282,5,282,6],[282,7,282,8],[282,9,282,10],[283,11,283,13],[282,11,282,13],[284,18,284,19],[285,1,285,2],[285,5,285,6],[285,7,285,8],[285,9,285,10],[285,18,285,19],[284,1,284,2],[284,5,284,6],[284,7,284,8],[284,9,284,10],[284,11,284,13],[285,11,285,13],[286,18,286,19],[287,1,287,2],[287,5,287,6],[287,7,287,8],[287,9,287,10],[287,18,287,19],[286,1,286,2],[286,5,286,6],[286,7,286,8],[286,9,286,10],[286,11,286,13],[287,11,287,13],[290,18,290,19],[291,1,291,20],[290,1,290,2],[290,5,290,6],[290,7,290,8],[290,9,290,10],[288,18,288,19],[289,1,289,2],[289,5,289,6],[289,7,289,8],[289,9,289,10],[289,18,289,19],[288,1,288,2],[288,5,288,6],[288,7,288,8],[288,9,288,10],[288,11,288,13],[289,11,289,13],[290,11,290,13],[194,1,194,2],[195,1,195,2],[186,1,186,2],[187,1,187,2],[188,1,188,2],[189,1,189,2],[190,1,190,2],[201,1,201,2],[202,1,202,2],[203,1,203,2],[204,1,204,2],[205,1,205,2],[196,1,196,2],[197,1,197,2],[198,1,198,2],[199,1,199,2],[200,1,200,2],[211,1,211,2],[212,1,212,2],[213,1,213,2],[214,1,214,2],[215,1,215,2],[206,1,206,2],[207,1,207,2],[208,1,208,2],[209,1,209,2],[210,1,210,2],[221,1,221,2],[222,1,222,2],[223,1,223,2],[224,1,224,2],[225,1,225,2],[216,1,216,2],[217,1,217,2],[218,1,218,2],[219,1,219,2],[220,1,220,2],[231,1,231,2],[232,1,232,2],[233,1,233,2],[234,1,234,2],[235,1,235,2],[226,1,226,2],[227,1,227,2],[228,1,228,2],[229,1,229,2],[230,1,230,2],[241,1,241,2],[242,1,242,2],[243,1,243,2],[244,1,244,2],[245,1,245,2],[236,1,236,2],[237,1,237,2],[238,1,238,2],[239,1,239,2],[240,1,240,2],[252,1,252,2],[253,1,253,2],[254,1,254,2],[255,1,255,2],[246,1,246,2],[247,1,247,2],[248,1,248,2],[249,1,249,2],[250,1,250,2],[160,5,160,6],[161,5,161,6],[162,5,162,6],[272,1,272,2],[273,1,273,2],[267,1,267,2],[268,1,268,2],[269,1,269,2],[261,1,261,2],[262,1,262,2],[263,1,263,2],[270,1,270,2],[271,1,271,2],[266,1,266,2],[265,1,265,2],[264,1,264,2],[256,1,256,2],[257,1,257,2],[258,1,258,2],[259,1,259,2],[260,1,260,2],[251,1,251,2],[168,5,168,6],[169,5,169,6],[170,5,170,6],[171,5,171,6],[172,5,172,6],[163,5,163,6],[164,5,164,6],[165,5,165,6],[166,5,166,6],[167,5,167,6],[178,5,178,6],[179,5,179,6],[180,5,180,6],[181,5,181,6],[182,5,182,6],[173,5,173,6],[174,5,174,6],[175,5,175,6],[176,5,176,6],[177,5,177,6],[188,5,188,6],[189,5,189,6],[190,5,190,6],[191,5,191,6],[192,5,192,6],[183,5,183,6],[184,5,184,6],[185,5,185,6],[186,5,186,6],[187,5,187,6],[198,5,198,6],[199,5,199,6],[200,5,200,6],[201,5,201,6],[202,5,202,6],[193,5,193,6],[194,5,194,6],[195,5,195,6],[196,5,196,6],[197,5,197,6],[208,5,208,6],[209,5,209,6],[210,5,210,6],[211,5,211,6],[212,5,212,6],[203,5,203,6],[204,5,204,6],[205,5,205,6],[206,5,206,6],[207,5,207,6],[218,5,218,6],[219,5,219,6],[220,5,220,6],[221,5,221,6],[222,5,222,6],[213,5,213,6],[214,5,214,6],[215,5,215,6],[216,5,216,6],[217,5,217,6],[228,5,228,6],[229,5,229,6],[230,5,230,6],[231,5,231,6],[232,5,232,6],[223,5,223,6],[224,5,224,6],[225,5,225,6],[226,5,226,6],[227,5,227,6],[238,5,238,6],[239,5,239,6],[240,5,240,6],[241,5,241,6],[242,5,242,6],[233,5,233,6],[234,5,234,6],[235,5,235,6],[236,5,236,6],[237,5,237,6],[248,5,248,6],[249,5,249,6],[250,5,250,6],[251,5,251,6],[252,5,252,6],[243,5,243,6],[244,5,244,6],[245,5,245,6],[246,5,246,6],[247,5,247,6],[266,5,266,6],[267,5,267,6],[258,5,258,6],[259,5,259,6],[260,5,260,6],[261,5,261,6],[262,5,262,6],[253,5,253,6],[254,5,254,6],[255,5,255,6],[256,5,256,6],[257,5,257,6],[273,5,273,6],[229,7,229,8],[230,7,230,8],[231,7,231,8],[232,7,232,8],[233,7,233,8],[234,7,234,8],[235,7,235,8],[236,7,236,8],[237,7,237,8],[238,7,238,8],[239,7,239,8],[240,7,240,8],[241,7,241,8],[242,7,242,8],[243,7,243,8],[268,5,268,6],[269,5,269,6],[270,5,270,6],[271,5,271,6],[272,5,272,6],[263,5,263,6],[264,5,264,6],[265,5,265,6],[249,7,249,8],[250,7,250,8],[251,7,251,8],[252,7,252,8],[253,7,253,8],[244,7,244,8],[245,7,245,8],[246,7,246,8],[247,7,247,8],[248,7,248,8],[259,7,259,8],[260,7,260,8],[261,7,261,8],[262,7,262,8],[263,7,263,8],[254,7,254,8],[255,7,255,8],[256,7,256,8],[257,7,257,8],[258,7,258,8],[269,7,269,8],[270,7,270,8],[271,7,271,8],[272,7,272,8],[273,7,273,8],[264,7,264,8],[265,7,265,8],[266,7,266,8],[267,7,267,8],[268,7,268,8],[228,7,228,8],[208,7,208,8],[209,7,209,8],[210,7,210,8],[211,7,211,8],[212,7,212,8],[213,7,213,8],[214,7,214,8],[215,7,215,8],[216,7,216,8],[222,7,222,8],[223,7,223,8],[224,7,224,8],[225,7,225,8],[226,7,226,8],[217,7,217,8],[218,7,218,8],[219,7,219,8],[220,7,220,8],[221,7,221,8],[203,7,203,8],[204,7,204,8],[200,7,200,8],[201,7,201,8],[202,7,202,8],[205,7,205,8],[206,7,206,8],[207,7,207,8],[227,7,227,8],[170,7,170,8],[171,7,171,8],[172,7,172,8],[173,7,173,8],[174,7,174,8],[175,7,175,8],[176,7,176,8],[177,7,177,8],[178,7,178,8],[179,7,179,8],[180,7,180,8],[181,7,181,8],[182,7,182,8],[195,7,195,8],[196,7,196,8],[197,7,197,8],[198,7,198,8],[199,7,199,8],[190,7,190,8],[191,7,191,8],[192,7,192,8],[193,7,193,8],[194,7,194,8],[185,7,185,8],[186,7,186,8],[187,7,187,8],[188,7,188,8],[189,7,189,8],[158,9,158,10],[159,9,159,10],[160,9,160,10],[161,9,161,10],[162,9,162,10],[183,7,183,8],[184,7,184,8],[158,7,158,8],[159,7,159,8],[160,7,160,8],[161,7,161,8],[162,7,162,8],[163,7,163,8],[164,7,164,8],[165,7,165,8],[166,7,166,8],[167,7,167,8],[168,7,168,8],[169,7,169,8],[168,9,168,10],[169,9,169,10],[170,9,170,10],[171,9,171,10],[172,9,172,10],[163,9,163,10],[164,9,164,10],[165,9,165,10],[166,9,166,10],[167,9,167,10],[178,9,178,10],[179,9,179,10],[180,9,180,10],[181,9,181,10],[182,9,182,10],[173,9,173,10],[174,9,174,10],[175,9,175,10],[176,9,176,10],[177,9,177,10],[188,9,188,10],[189,9,189,10],[190,9,190,10],[208,9,208,10],[191,9,191,10],[192,9,192,10],[183,9,183,10],[184,9,184,10],[185,9,185,10],[186,9,186,10],[187,9,187,10],[198,9,198,10],[199,9,199,10],[203,9,203,10],[204,9,204,10],[205,9,205,10],[206,9,206,10],[207,9,207,10],[200,9,200,10],[201,9,201,10],[202,9,202,10],[193,9,193,10],[194,9,194,10],[195,9,195,10],[196,9,196,10],[197,9,197,10],[213,9,213,10],[214,9,214,10],[215,9,215,10],[216,9,216,10],[217,9,217,10],[209,9,209,10],[210,9,210,10],[211,9,211,10],[212,9,212,10],[223,9,223,10],[224,9,224,10],[225,9,225,10],[226,9,226,10],[227,9,227,10],[218,9,218,10],[219,9,219,10],[220,9,220,10],[221,9,221,10],[222,9,222,10],[233,9,233,10],[234,9,234,10],[235,9,235,10],[236,9,236,10],[237,9,237,10],[228,9,228,10],[229,9,229,10],[230,9,230,10],[231,9,231,10],[232,9,232,10],[243,9,243,10],[244,9,244,10],[245,9,245,10],[246,9,246,10],[247,9,247,10],[238,9,238,10],[239,9,239,10],[240,9,240,10],[241,9,241,10],[242,9,242,10],[253,9,253,10],[254,9,254,10],[255,9,255,10],[256,9,256,10],[257,9,257,10],[248,9,248,10],[249,9,249,10],[250,9,250,10],[251,9,251,10],[252,9,252,10],[175,11,175,13],[176,11,176,13],[177,11,177,13],[178,11,178,13],[179,11,179,13],[180,11,180,13],[181,11,181,13],[182,11,182,13],[273,9,273,10],[268,9,268,10],[269,9,269,10],[270,9,270,10],[271,9,271,10],[272,9,272,10],[263,9,263,10],[264,9,264,10],[265,9,265,10],[266,9,266,10],[267,9,267,10],[258,9,258,10],[259,9,259,10],[260,9,260,10],[261,9,261,10],[262,9,262,10],[221,11,221,13],[223,11,223,13],[224,11,224,13],[225,11,225,13],[202,11,202,13],[183,11,183,13],[184,11,184,13],[185,11,185,13],[186,11,186,13],[187,11,187,13],[188,11,188,13],[189,11,189,13],[190,11,190,13],[191,11,191,13],[192,11,192,13],[193,11,193,13],[194,11,194,13],[195,11,195,13],[196,11,196,13],[197,11,197,13],[198,11,198,13],[199,11,199,13],[200,11,200,13],[201,11,201,13],[212,11,212,13],[213,11,213,13],[214,11,214,13],[215,11,215,13],[216,11,216,13],[217,11,217,13],[218,11,218,13],[219,11,219,13],[220,11,220,13],[203,11,203,13],[204,11,204,13],[205,11,205,13],[206,11,206,13],[207,11,207,13],[208,11,208,13],[209,11,209,13],[210,11,210,13],[211,11,211,13],[261,11,261,13],[262,11,262,13],[248,11,248,13],[249,11,249,13],[250,11,250,13],[251,11,251,13],[252,11,252,13],[232,11,232,13],[222,11,222,13],[255,11,255,13],[167,18,167,19],[168,18,168,19],[169,18,169,19],[170,18,170,19],[171,18,171,19],[172,18,172,19],[263,11,263,13],[264,11,264,13],[238,11,238,13],[239,11,239,13],[240,11,240,13],[241,11,241,13],[242,11,242,13],[233,11,233,13],[234,11,234,13],[235,11,235,13],[236,11,236,13],[237,11,237,13],[256,11,256,13],[257,11,257,13],[258,11,258,13],[259,11,259,13],[253,11,253,13],[254,11,254,13],[158,18,158,19],[159,18,159,19],[160,18,160,19],[161,18,161,19],[162,18,162,19],[163,18,163,19],[164,18,164,19],[165,18,165,19],[166,18,166,19],[178,18,178,19],[179,18,179,19],[180,18,180,19],[181,18,181,19],[182,18,182,19],[173,18,173,19],[174,18,174,19],[175,18,175,19],[176,18,176,19],[177,18,177,19],[188,18,188,19],[189,18,189,19],[190,18,190,19],[191,18,191,19],[192,18,192,19],[183,18,183,19],[184,18,184,19],[185,18,185,19],[186,18,186,19],[187,18,187,19],[198,18,198,19],[199,18,199,19],[200,18,200,19],[201,18,201,19],[202,18,202,19],[193,18,193,19],[194,18,194,19],[195,18,195,19],[196,18,196,19],[197,18,197,19],[208,18,208,19],[209,18,209,19],[210,18,210,19],[211,18,211,19],[212,18,212,19],[203,18,203,19],[204,18,204,19],[205,18,205,19],[206,18,206,19],[207,18,207,19],[218,18,218,19],[219,18,219,19],[220,18,220,19],[221,18,221,19],[222,18,222,19],[213,18,213,19],[214,18,214,19],[215,18,215,19],[216,18,216,19],[217,18,217,19],[228,18,228,19],[229,18,229,19],[230,18,230,19],[231,18,231,19],[232,18,232,19],[223,18,223,19],[224,18,224,19],[225,18,225,19],[226,18,226,19],[227,18,227,19],[238,18,238,19],[239,18,239,19],[240,18,240,19],[241,18,241,19],[242,18,242,19],[233,18,233,19],[234,18,234,19],[235,18,235,19],[236,18,236,19],[237,18,237,19],[257,18,257,19],[248,18,248,19],[249,18,249,19],[250,18,250,19],[251,18,251,19],[252,18,252,19],[243,18,243,19],[244,18,244,19],[245,18,245,19],[246,18,246,19],[247,18,247,19],[273,18,273,19],[153,1,154,2],[153,3,154,3],[153,4,154,4],[153,18,153,19],[268,18,268,19],[269,18,269,19],[270,18,270,19],[271,18,271,19],[272,18,272,19],[263,18,263,19],[264,18,264,19],[265,18,265,19],[266,18,266,19],[267,18,267,19],[258,18,258,19],[259,18,259,19],[260,18,260,19],[261,18,261,19],[262,18,262,19],[253,18,253,19],[254,18,254,19],[255,18,255,19],[256,18,256,19],[166,11,166,13],[167,11,167,13],[168,11,168,13],[169,11,169,13],[170,11,170,13],[171,11,171,13],[172,11,172,13],[173,11,173,13],[174,11,174,13],[265,11,265,13],[266,11,266,13],[267,11,267,13],[268,11,268,13],[269,11,269,13],[270,11,270,13],[271,11,271,13],[272,11,272,13],[273,11,273,13],[157,11,157,13],[158,11,158,13],[159,11,159,13],[160,11,160,13],[161,11,161,13],[162,11,162,13],[274,11,274,13],[275,11,275,13],[276,11,276,13],[163,11,163,13],[164,11,164,13],[165,11,165,13],[243,11,243,13],[244,11,244,13],[245,11,245,13],[246,11,246,13],[247,11,247,13],[226,11,226,13],[227,11,227,13],[228,11,228,13],[229,11,229,13],[230,11,230,13],[231,11,231,13],[260,11,260,13]]}
[]
[null,{"$f":"Utilitaire!E8","v":"Plan d'action 2013-2020 sur les changements climatiques"}]
[null,{"$f":"\"Action \" & Accueil!D58","v":"Action en cours"}]
[null,{"$f":"Accueil!D55","v":"13.4"},{"$f":"Accueil!E55","v":"Programme d’aide financière au développement des transports actifs dans les périmètres urbains (TAPU) (FORT)"}]
[null,"Ministère porteur:",{"$f":"Accueil!$D$65","v":"MTQ"}]
[null,"Indicateurs"]
[]
[]
[]
[]
[]
[]
[]
[]
[]
[]
[]
[]
[]
[null,"Informations en date du :",null,null,"2022-03-31"]
[]
[null,"INDICATEURS DE PERFORMANCE",null,null,null,null,null,{"$f":"IF(OR(AND(MONTH(#REF!)>6,YEAR(#REF!)=VALUE(MID(G23,1,4))),YEAR(#REF!)>VALUE(MID(G23,1,4))),\"Réel\",\"Prévu\")","v":{"$error":"#REF!"}},{"$f":"IF(OR(AND(MONTH(#REF!)>6,YEAR(#REF!)=VALUE(MID(H23,1,4))),YEAR(#REF!)>VALUE(MID(H23,1,4))),\"Réel\",\"Prévu\")","v":{"$error":"#REF!"}},{"$f":"IF(OR(AND(MONTH(#REF!)>6,YEAR(#REF!)=VALUE(MID(I23,1,4))),YEAR(#REF!)>VALUE(MID(I23,1,4))),\"Réel\",\"Prévu\")","v":{"$error":"#REF!"}},{"$f":"IF(OR(AND(MONTH(#REF!)>6,YEAR(#REF!)=VALUE(MID(J23,1,4))),YEAR(#REF!)>VALUE(MID(J23,1,4))),\"Réel\",\"Prévu\")","v":{"$error":"#REF!"}},{"$f":"IF(OR(AND(MONTH(#REF!)>6,YEAR(#REF!)=VALUE(MID(K23,1,4))),YEAR(#REF!)>VALUE(MID(K23,1,4))),\"Réel\",\"Prévu\")","v":{"$error":"#REF!"}},{"$f":"IF(OR(AND(MONTH(#REF!)>6,YEAR(#REF!)=VALUE(MID(L23,1,4))),YEAR(#REF!)>VALUE(MID(L23,1,4))),\"Réel\",\"Prévu\")","v":{"$error":"#REF!"}},{"$f":"IF(OR(AND(MONTH(#REF!)>6,YEAR(#REF!)=VALUE(MID(M23,1,4))),YEAR(#REF!)>VALUE(MID(M23,1,4))),\"Réel\",\"Prévu\")","v":{"$error":"#REF!"}},{"$f":"IF(OR(AND(MONTH(#REF!)>6,YEAR(#REF!)=VALUE(MID(N23,1,4))),YEAR(#REF!)>VALUE(MID(N23,1,4))),\"Réel\",\"Prévu\")","v":{"$error":"#REF!"}},{"$f":"IF(OR(AND(MONTH(#REF!)>6,YEAR(#REF!)=VALUE(MID(O23,1,4))),YEAR(#REF!)>VALUE(MID(O23,1,4))),\"Réel\",\"Prévu\")","v":{"$error":"#REF!"}},{"$f":"IF(OR(AND(MONTH(#REF!)>6,YEAR(#REF!)=VALUE(MID(P23,1,4))),YEAR(#REF!)>VALUE(MID(P23,1,4))),\"Réel\",\"Prévu\")","v":{"$error":"#REF!"}},null,{"$f":"IF(OR(AND(MONTH(#REF!)>6,YEAR(#REF!)=VALUE(MID(Q23,1,4))),YEAR(#REF!)>VALUE(MID(Q23,1,4))),\"Réel\",\"Prévu\")","v":{"$error":"#REF!"}},{"$f":"MONTH(#REF!)","v":{"$error":"#REF!"}}]
[null,"Cible","Unité de mesure","Année prévue d'atteinte de la cible","Description de l'indicateur","Type d'indicateur","2013-2014","2014-2015","2015-2016","2016-2017","2017-2018","2018-2019","2019-2020","2020-2021","2021-2022","2022-2023","2023-2024","2024-2025","RÉSULTAT À COMPARER AVEC LA CIBLE","Pourcentage d'atteinte de la cible","Commentaires sur les résultats"]
[null,null,null,null,null,null,"Réel","Réel","Réel","Réel","Réel","Réel","Réel","Réel","Réel","Prévu","Prévu","Prévu",null,null,"(facultatif)"]
[1,null,null,null,null,null,{"$f":"PourcentageAvancementJbf(Utilitaire!C229,'Détail des projets'!O375,1000000*Accueil!$D$67)","v":1.7780842372881356E-2},{"$f":"PourcentageAvancementJbf(Utilitaire!D229,'Détail des projets'!P375,1000000*Accueil!$D$67)","v":5.0140236762711864E-2},{"$f":"PourcentageAvancementJbf(Utilitaire!E229,'Détail des projets'!Q375,1000000*Accueil!$D$67)","v":8.2778142644067798E-2},{"$f":"PourcentageAvancementJbf(Utilitaire!F229,'Détail des projets'!R375,1000000*Accueil!$D$67)","v":1.1676228864406781E-2},{"$f":"PourcentageAvancementJbf(Utilitaire!G229,'Détail des projets'!S375,1000000*Accueil!$D$67)","v":6.7886526779661019E-2},{"$f":"PourcentageAvancementJbf(Utilitaire!H229,'Détail des projets'!T375,1000000*Accueil!$D$67)","v":0.12020261281355932},{"$f":"PourcentageAvancementJbf(Utilitaire!I229,'Détail des projets'!U375,1000000*Accueil!$D$67)","v":0.17143334576271185},{"$f":"PourcentageAvancementJbf(Utilitaire!J229,'Détail des projets'!V375,1000000*Accueil!$D$67)","v":0.16492310788135595},{"$f":"PourcentageAvancementJbf(Utilitaire!K229,'Détail des projets'!W375,1000000*Accueil!$D$67)","v":-2.5193616949152543E-2},null,null,null,null,{"$f":"IF(COUNTA(B25)=1,IF(COUNTA(S25)=1,IF(F25=\"Minimum à atteindre\",IF(B25=0,IF(S25>0,1,0),S25/B25),IF(F25=\"Maximum à ne pas dépasser\",IF(B25=0,IF(S25<0,1,0),(B25-S25)/B25+1),IF(F25=\"Binaire\",IF(B25=S25,1,0),\"\"))),0),\"\")","v":""}]
[2,50,"km / an",null,"Nombre de km de voies cyclables (et piétonnes) réalisées par année","minimum à atteindre",9.3000000000000007,44,34.200000000000003,0,19.100000000000001,46.55,69.09,64.2,50,null,null,null,64.2,{"$f":"IF(COUNTA(B26)=1,IF(COUNTA(S26)=1,IF(F26=\"Minimum à atteindre\",IF(B26=0,IF(S26>0,1,0),S26/B26),IF(F26=\"Maximum à ne pas dépasser\",IF(B26=0,IF(S26<0,1,0),(B26-S26)/B26+1),IF(F26=\"Binaire\",IF(B26=S26,1,0),\"\"))),0),\"\")","v":1.284}]
[3,8,"projets / an",null,"Nombre de projets d'apaisement de la circulation dans les corridors scolaires","minimum à atteindre",3,11,8,0,4,11,29,25,33,null,null,null,25,3.125]
[4,10,"structures / an",null,"Nombre de structures (ajout d'une voie cyclable sur un pont existant ou construction d'une nouvelle structure cyclable)","minimum à atteindre",1,1,3,0,2,1,4,16,6,null,null,null,16,1.6]
[5,36,"%","2020","Pourcentage de la population adulte utilisant la bicyclette au moins une fois par semaine","minimum à atteindre",35,35,35,34,34,34,34,34,null,null,null,null,34,0.94444444444444442,"Reddition de comptes ponctuelle . Les données en 2021-2022 ne sont pas encore disponibles."]
[6,19,"%","2020","Pourcentage des cyclistes utilisant la bicyclette à des fins utilitaires","minimum à atteindre",37,37,40,40,40,40,40,40,null,null,null,null,40,2.1052631578947367,"Reddition de comptes ponctuelle . Les données en 2021-2022 ne sont pas encore disponibles."]
[7,null,null,null,null,null,null,null,null,null,null,null,null,null,null,null,null,null,null,""]
[8,null,null,null,null,null,null,null,null,null,null,null,null,null,null,null,null,null,null,""]
[9,null,null,null,null,null,null,null,null,null,null,null,null,null,null,null,null,null,null,""]
[10,null,null,null,null,null,null,null,null,null,null,null,null,null,null,null,null,null,null,""]
[11,null,null,null,null,null,null,null,null,null,null,null,null,null,null,null,null,null,null,{"$f":"IF(COUNTA(B35)=1,IF(COUNTA(S35)=1,IF(F35=\"Minimum à atteindre\",IF(B35=0,IF(S35>0,1,0),S35/B35),IF(F35=\"Maximum à ne pas dépasser\",IF(B35=0,IF(S35<0,1,0),(B35-S35)/B35+1),IF(F35=\"Binaire\",IF(B35=S35,1,0),\"\"))),0),\"\")","v":""}]
[12,null,null,null,null,null,null,null,null,null,null,null,null,null,null,null,null,null,null,{"$f":"IF(COUNTA(B36)=1,IF(COUNTA(S36)=1,IF(F36=\"Minimum à atteindre\",IF(B36=0,IF(S36>0,1,0),S36/B36),IF(F36=\"Maximum à ne pas dépasser\",IF(B36=0,IF(S36<0,1,0),(B36-S36)/B36+1),IF(F36=\"Binaire\",IF(B36=S36,1,0),\"\"))),0),\"\")","v":""}]
[13,null,null,null,null,null,null,null,null,null,null,null,null,null,null,null,null,null,null,{"$f":"IF(COUNTA(B37)=1,IF(COUNTA(S37)=1,IF(F37=\"Minimum à atteindre\",IF(B37=0,IF(S37>0,1,0),S37/B37),IF(F37=\"Maximum à ne pas dépasser\",IF(B37=0,IF(S37<0,1,0),(B37-S37)/B37+1),IF(F37=\"Binaire\",IF(B37=S37,1,0),\"\"))),0),\"\")","v":""}]
[14,null,null,null,null,null,null,null,null,null,null,null,null,null,null,null,null,null,null,""]
[15,null,null,null,null,null,null,null,null,null,null,null,null,null,null,null,null,null,null,{"$f":"IF(COUNTA(B39)=1,IF(COUNTA(S39)=1,IF(F39=\"Minimum à atteindre\",IF(B39=0,IF(S39>0,1,0),S39/B39),IF(F39=\"Maximum à ne pas dépasser\",IF(B39=0,IF(S39<0,1,0),(B39-S39)/B39+1),IF(F39=\"Binaire\",IF(B39=S39,1,0),\"\"))),0),\"\")","v":""}]
[16,null,null,null,null,null,null,null,null,null,null,null,null,null,null,null,null,null,null,{"$f":"IF(COUNTA(B40)=1,IF(COUNTA(S40)=1,IF(F40=\"Minimum à atteindre\",IF(B40=0,IF(S40>0,1,0),S40/B40),IF(F40=\"Maximum à ne pas dépasser\",IF(B40=0,IF(S40<0,1,0),(B40-S40)/B40+1),IF(F40=\"Binaire\",IF(B40=S40,1,0),\"\"))),0),\"\")","v":""}]
[17,null,null,null,null,null,null,null,null,null,null,null,null,null,null,null,null,null,null,""]
[18,null,null,null,null,null,null,null,null,null,null,null,null,null,null,null,null,null,null,""]
[19,null,null,null,null,null,null,null,null,null,null,null,null,null,null,null,null,null,null,""]
[20,null,null,null,null,null,null,null,null,null,null,null,null,null,null,null,null,null,null,""]
[21,null,null,null,null,null,null,null,null,null,null,null,null,null,null,null,null,null,null,"",null,null,null,null,null,null,null,null,null,null,null,null,null,null,null,null,null,null,null,null,null,null,false]
[]
[]
[]
[]
[]
[]
[]
[]
[]
[]
[]
[]
[]
[]
[]
[]
[]
[]
[]
[]
[]
[]
[]
[null,"PRÉVISIONS DES RETOMBÉES SUR LES RÉDUCTIONS DES ÉMISSIONS DE GES",null,null,null,"Ce tableau et les résultats par action qu'il contient ne seront pas publiés. L'objectif est de permettre une appréciation à l'échelle du PACC des résultats escomptés. Veuillez le compléter et vérifier l'information qui y est contenue, au meilleur de vos connaissances et avec l'information dont vous disposez."]
[null,"Niveau de certitude",null,null,"Lieu",2020,2021,2022,2023,2024,2025,2026,2030,2035,2027,2038,2029,2031,2040,2050,"Commentaires sur les résultats"]
[null,"Pérennité des réductions d'émissions de GES réalisées à ce jour \n(T éq. CO2)",null,null,"Au Québec"]
[null,null,null,null,"Hors Québec"]
[null,null,null,null,"Non distingué"]
[null,"Développement du potentiel de réduction des émissions de GES pour le futur \n(T éq. CO2)",null,null,"Au Québec"]
[null,null,null,null,"Hors Québec"]
[null,null,null,null,"Non distingué"]
[]
[]
[]
[]
[]
[]
[]
[]
[]
[]
[]
[]
[]
[]
[]
[]
[]
[]
[]
[]
[]
[]
[]
[]
[]
[]
[]
[]
[]
[]
[]
[]
[]
[]
[]
[]
[]
[]
[]
[]
[]
[]
[]
[]
[]
[]
[]
[]
[]
[]
[]
[]
[]
[]
[]
[]
[]
[]
[]
[]
[]
[]
[]
[]
[]
[]
[]
[]
[]
[]
[]
[]
[]
[]
[]
[]
[null,"ADAPTATION AUX EFFETS DES CHANGEMENTS CLIMATIQUES"]
[null,"Solutions d'adaptation proposées",null,"Lignes concernées de l'onglet Détail des projets","Étape","Ajustements",null,"Risques",null,"Effets des changements climatiques",null,"Région",null,null,null,null,null,null,"Échelle humaine",null,"Échelle environnementale"]
[null,null,null,null,null,"La solution agit sur : ",null,"afin de protéger : ",null,"de :",null,null,null,null,null,null,null,null,"(estimation du nombre de personnes desservies)",null,"(estimation du nombre d'espèces desservies)"]
[null,null,null,25]
[null,null,null,26]
[null,null,null,27]
[null,null,null,28]
[null,null,null,29]
[null,null,null,30]
[null,null,null,31]
[null,null,null,32]
[]
[]
[]
[]
[]
[]
[]
[]
[]
[]
[]
[]
[]
[]
[]
[]
[]
[]
[]
[]
[]
[]
[]
[]
[]
[]
[]
[]
[]
[]
[]
[]
[]
[]
[]
[]
[]
[]
[]
[]
[]
[]
[]
[]
[]
[]
[]
[]
[]
[]
[]
[]
[]
[]
[]
[]
[]
[]
[]
[]
[]
[]
[]
[]
[]
[]
[]
[]
[]
[]
[]
[]
[]
[]
[]
[]
[]
[]
[]
[]
[]
[]
[]
[]
[]
[]
[]
[]
[]
[]
[]
[]
[]
[]
[]
[]
[]
[]
[]
[]
[]
[]
[]
[]
[]
[]
[]
[]
[]
[]
[]
[]
[]
[]
[]
[]
[]
[]
[]
[]
[]
[]
[]
[]
[]
[]
[]
[]
[null,"Ajouter une ligne"]

{"sheet":"Évaluation","index":6,"n_rows":222,"n_cols":14,"rows_kept":222,"cut":false,"hidden":true,"merged":[[1,7,1,11],[1,1,1,5],[210,1,211,1],[210,2,211,2],[210,3,210,13],[211,3,211,13],[143,3,143,4],[143,5,143,7],[143,8,143,9],[143,10,143,11],[136,1,136,2],[136,3,136,4],[136,5,136,7],[136,8,136,9],[136,10,136,11],[142,1,142,2],[142,3,142,4],[142,5,142,7],[142,8,142,9],[142,10,142,11],[141,1,141,2],[141,3,141,4],[137,8,137,9],[137,10,137,11],[135,1,135,2],[135,3,135,4],[135,5,135,7],[135,8,135,9],[135,10,135,11],[6,1,6,2],[6,3,6,5],[134,1,134,2],[134,3,134,4],[134,5,134,7],[134,8,134,9],[134,10,134,11],[133,1,133,2],[133,3,133,4],[133,5,133,7],[133,8,133,9],[133,10,133,11],[132,1,132,2],[132,3,132,4],[132,5,132,7],[132,8,132,9],[132,10,132,11],[131,1,131,2],[131,3,131,4],[131,5,131,7],[131,8,131,9],[131,10,131,11],[130,1,130,2],[130,3,130,4],[130,5,130,7],[130,8,130,9],[130,10,130,11],[129,1,129,2],[129,3,129,4],[129,5,129,7],[129,8,129,9],[129,10,129,11],[128,1,128,2],[128,3,128,4],[128,5,128,7],[128,8,128,9],[128,10,128,11],[127,1,127,2],[127,3,127,4],[127,5,127,7],[127,8,127,9],[127,10,127,11],[126,1,126,2],[126,3,126,4],[126,5,126,7],[126,8,126,9],[126,10,126,11],[125,1,125,2],[125,3,125,4],[125,5,125,7],[125,8,125,9],[125,10,125,11],[124,1,124,2],[124,3,124,4],[124,5,124,7],[124,8,124,9],[124,10,124,11],[123,1,123,2],[123,3,123,4],[123,5,123,7],[123,8,123,9],[123,10,123,11],[122,1,122,2],[122,3,122,4],[122,5,122,7],[122,8,122,9],[122,10,122,11],[121,1,121,2],[121,3,121,4],[121,5,121,7],[121,8,121,9],[121,10,121,11],[120,1,120,2],[120,3,120,4],[120,5,120,7],[120,8,120,9],[120,10,120,11],[119,1,119,2],[119,3,119,4],[119,5,119,7],[119,8,119,9],[119,10,119,11],[118,1,118,2],[118,3,118,4],[118,5,118,7],[118,8,118,9],[118,10,118,11],[117,1,117,2],[117,3,117,4],[117,5,117,7],[117,8,117,9],[117,10,117,11],[116,1,116,2],[116,3,116,4],[116,5,116,7],[116,8,116,9],[116,10,116,11],[115,1,115,2],[115,3,115,4],[115,5,115,7],[115,8,115,9],[115,10,115,11],[114,1,114,2],[114,3,114,4],[114,5,114,7],[114,8,114,9],[114,10,114,11],[113,1,113,2],[113,3,113,4],[113,5,113,7],[113,8,113,9],[113,10,113,11],[112,1,112,2],[112,3,112,4],[112,5,112,7],[112,8,112,9],[112,10,112,11],[111,1,111,2],[111,3,111,4],[111,5,111,7],[111,8,111,9],[111,10,111,11],[110,1,110,2],[110,3,110,4],[110,5,110,7],[110,8,110,9],[110,10,110,11],[109,1,109,2],[109,3,109,4],[109,5,109,7],[109,8,109,9],[109,10,109,11],[108,1,108,2],[108,3,108,4],[108,5,108,7],[108,8,108,9],[108,10,108,11],[107,1,107,2],[107,3,107,4],[107,5,107,7],[107,8,107,9],[107,10,107,11],[106,1,106,2],[106,3,106,4],[106,5,106,7],[106,8,106,9],[106,10,106,11],[105,1,105,2],[105,3,105,4],[105,5,105,7],[105,8,105,9],[105,10,105,11],[104,1,104,2],[104,3,104,4],[104,5,104,7],[104,8,104,9],[104,10,104,11],[103,1,103,2],[103,3,103,4],[103,5,103,7],[103,8,103,9],[103,10,103,11],[102,1,102,2],[102,3,102,4],[102,5,102,7],[102,8,102,9],[102,10,102,11],[101,1,101,2],[101,3,101,4],[101,5,101,7],[101,8,101,9],[101,10,101,11],[100,1,100,2],[100,3,100,4],[100,5,100,7],[100,8,100,9],[100,10,100,11],[99,1,99,2],[99,3,99,4],[99,5,99,7],[99,8,99,9],[99,10,99,11],[98,1,98,2],[98,3,98,4],[98,5,98,7],[98,8,98,9],[98,10,98,11],[97,1,97,2],[97,3,97,4],[97,5,97,7],[97,8,97,9],[97,10,97,11],[96,1,96,2],[96,3,96,4],[96,5,96,7],[96,8,96,9],[96,10,96,11],[95,1,95,2],[95,3,95,4],[95,5,95,7],[95,8,95,9],[95,10,95,11],[94,1,94,2],[94,3,94,4],[94,5,94,7],[94,8,94,9],[94,10,94,11],[93,1,93,2],[93,3,93,4],[93,5,93,7],[93,8,93,9],[93,10,93,11],[92,1,92,2],[92,3,92,4],[92,5,92,7],[92,8,92,9],[92,10,92,11],[91,1,91,2],[91,3,91,4],[91,5,91,7],[91,8,91,9],[91,10,91,11],[90,1,90,2],[90,3,90,4],[90,5,90,7],[90,8,90,9],[90,10,90,11],[89,1,89,2],[89,3,89,4],[89,5,89,7],[89,8,89,9],[89,10,89,11],[88,1,88,2],[88,3,88,4],[88,5,88,7],[88,8,88,9],[88,10,88,11],[87,1,87,2],[87,3,87,4],[87,5,87,7],[87,8,87,9],[87,10,87,11],[86,1,86,2],[86,3,86,4],[86,5,86,7],[86,8,86,9],[86,10,86,11],[85,1,85,2],[85,3,85,4],[85,5,85,7],[85,8,85,9],[85,10,85,11],[84,1,84,2],[84,3,84,4],[84,5,84,7],[84,8,84,9],[84,10,84,11],[83,1,83,2],[83,3,83,4],[83,5,83,7],[83,8,83,9],[83,10,83,11],[82,1,82,2],[82,3,82,4],[82,5,82,7],[82,8,82,9],[82,10,82,11],[81,1,81,2],[81,3,81,4],[81,5,81,7],[81,8,81,9],[81,10,81,11],[80,1,80,2],[80,3,80,4],[80,5,80,7],[80,8,80,9],[80,10,80,11],[79,1,79,2],[79,3,79,4],[79,5,79,7],[79,8,79,9],[79,10,79,11],[78,1,78,2],[78,3,78,4],[78,5,78,7],[78,8,78,9],[78,10,78,11],[77,1,77,2],[77,3,77,4],[77,5,77,7],[77,8,77,9],[77,10,77,11],[76,1,76,2],[76,3,76,4],[76,5,76,7],[76,8,76,9],[76,10,76,11],[75,1,75,2],[75,3,75,4],[75,5,75,7],[75,8,75,9],[75,10,75,11],[74,1,74,2],[74,3,74,4],[74,5,74,7],[74,8,74,9],[74,10,74,11],[73,1,73,2],[73,3,73,4],[73,5,73,7],[73,8,73,9],[73,10,73,11],[72,1,72,2],[72,3,72,4],[72,5,72,7],[72,8,72,9],[72,10,72,11],[71,1,71,2],[71,3,71,4],[71,5,71,7],[71,8,71,9],[71,10,71,11],[70,1,70,2],[70,3,70,4],[70,5,70,7],[70,8,70,9],[70,10,70,11],[69,1,69,2],[69,3,69,4],[69,5,69,7],[69,8,69,9],[69,10,69,11],[68,1,68,2],[68,3,68,4],[68,5,68,7],[68,8,68,9],[68,10,68,11],[67,1,67,2],[67,3,67,4],[67,5,67,7],[67,8,67,9],[67,10,67,11],[66,1,66,2],[66,3,66,4],[66,5,66,7],[66,8,66,9],[66,10,66,11],[65,1,65,2],[65,3,65,4],[65,5,65,7],[65,8,65,9],[65,10,65,11],[64,1,64,2],[64,3,64,4],[64,5,64,7],[64,8,64,9],[64,10,64,11],[63,1,63,2],[63,3,63,4],[63,5,63,7],[63,8,63,9],[63,10,63,11],[62,1,62,2],[62,3,62,4],[62,5,62,7],[62,8,62,9],[62,10,62,11],[61,1,61,2],[61,3,61,4],[61,5,61,7],[61,8,61,9],[61,10,61,11],[60,1,60,2],[60,3,60,4],[60,5,60,7],[60,8,60,9],[60,10,60,11],[59,1,59,2],[59,3,59,4],[59,5,59,7],[59,8,59,9],[59,10,59,11],[58,1,58,2],[58,3,58,4],[58,5,58,7],[58,8,58,9],[58,10,58,11],[57,1,57,2],[57,3,57,4],[57,5,57,7],[57,8,57,9],[57,10,57,11],[56,1,56,2],[56,3,56,4],[56,5,56,7],[56,8,56,9],[56,10,56,11],[55,1,55,2],[55,3,55,4],[55,5,55,7],[55,8,55,9],[55,10,55,11],[54,1,54,2],[54,3,54,4],[54,5,54,7],[54,8,54,9],[54,10,54,11],[53,1,53,2],[53,3,53,4],[53,5,53,7],[53,8,53,9],[53,10,53,11],[139,10,139,11],[138,1,138,2],[138,3,138,4],[138,5,138,7],[138,8,138,9],[138,10,138,11],[203,1,203,14],[208,9,208,11],[208,3,208,5],[140,1,140,2],[140,3,140,4],[140,5,140,7],[140,8,140,9],[140,10,140,11],[144,1,144,2],[144,3,144,4],[141,5,141,7],[141,8,141,9],[144,5,144,7],[144,8,144,9],[144,10,144,11],[143,1,143,2],[141,10,141,11],[50,8,50,9],[50,10,50,11],[219,2,219,13],[221,2,221,13],[51,8,51,9],[217,3,217,13],[218,2,218,13],[220,2,220,13],[216,2,216,13],[145,1,145,14],[50,5,50,7],[52,1,52,2],[52,3,52,4],[52,5,52,7],[52,8,52,9],[52,10,52,11],[209,2,209,13],[139,5,139,7],[139,8,139,9],[39,1,39,14],[40,1,40,2],[40,3,40,4],[40,5,40,7],[40,8,40,9],[40,10,40,11],[40,13,40,14],[41,1,41,2],[41,3,41,4],[41,5,41,7],[41,8,41,9],[41,10,41,11],[42,1,42,2],[42,3,42,4],[42,5,42,7],[42,8,42,9],[42,10,42,11],[43,1,43,2],[43,3,43,4],[49,1,49,2],[44,3,44,4],[44,5,44,7],[44,8,44,9],[44,10,44,11],[45,1,45,2],[45,3,45,4],[45,5,45,7],[45,8,45,9],[45,10,45,11],[43,10,43,11],[48,8,48,9],[48,10,48,11],[49,8,49,9],[49,10,49,11],[46,1,46,2],[46,3,46,4],[2,1,2,3],[3,2,3,5],[4,2,4,5],[5,1,5,5],[139,1,139,2],[139,3,139,4],[48,1,48,2],[48,3,48,4],[48,5,48,7],[137,1,137,2],[137,3,137,4],[137,5,137,7],[49,3,49,4],[49,5,49,7],[51,1,51,2],[51,3,51,4],[51,5,51,7],[44,1,44,2],[2,7,5,14],[37,12,37,14],[37,1,37,11],[51,10,51,11],[50,1,50,2],[50,3,50,4],[46,5,46,7],[46,8,46,9],[46,10,46,11],[47,1,47,2],[47,3,47,4],[47,5,47,7],[47,8,47,9],[47,10,47,11],[43,5,43,7],[43,8,43,9]]}
[]
[null,{"$f":"Utilitaire!E8","v":"Plan d'action 2013-2020 sur les changements climatiques"},null,null,null,null,null,"Conseils de rédaction :",null,null,null,null,"Informations en date du :",{"$f":"Utilitaire!G6","v":"2022-03-31"}]
[null,{"$f":"\"Action \" & Accueil!D58","v":"Action en cours"},null,null,null,null,null,"- Veuillez compléter la section \"Évaluation de l'action\" (OBLIGATOIRE) - ligne 204 (Fin du PACC)\n\n- Cet onglet sera pour usage interne seulement, il ne sera pas publié.\n\n- Des bulles commentaires dans chacun des titres vous aideront à remplir adéquatement les différentes colonnes.\n\n- Les cases de la section « Évaluation de l'action » sont limitées à 3000 caractères. "]
[null,{"$f":"Accueil!D55","v":"13.4"},{"$f":"Accueil!E55","v":"Programme d’aide financière au développement des transports actifs dans les périmètres urbains (TAPU) (FORT)"}]
[null,"Ministère porteur:",{"$f":"Accueil!$D$65","v":"MTQ"}]
[null,"Évaluation"]
[null,"Informations en date du :",null,"2022-03-31"]
[]
[]
[]
[]
[]
[]
[]
[]
[]
[]
[]
[]
[]
[]
[]
[]
[]
[]
[]
[]
[]
[]
[]
[]
[]
[]
[]
[]
[]
[]
[null,"Est-ce qu'une production d'un rapport d'évaluation complet est prévue dans le cadre de cette action : "]
[]
[null,"Liste des livrables"]
[null,"Titre du document",null,"Date du document",null,"Type de document",null,null,"Date prévue de transmission au BECC",null,"Date réelle de transmission au BECC",null,"Référence","Commentaires"]
[]
[]
[]
[]
[]
[]
[]
[]
[]
[]
[]
[]
[]
[]
[]
[]
[]
[]
[]
[]
[]
[]
[]
[]
[]
[]
[]
[]
[]
[]
[]
[]
[]
[]
[]
[]
[]
[]
[]
[]
[]
[]
[]
[]
[]
[]
[]
[]
[]
[]
[]
[]
[]
[]
[]
[]
[]
[]
[]
[]
[]
[]
[]
[]
[]
[]
[]
[]
[]
[]
[]
[]
[]
[]
[]
[]
[]
[]
[]
[]
[]
[]
[]
[]
[]
[]
[]
[]
[]
[]
[]
[]
[]
[]
[]
[]
[]
[]
[]
[]
[]
[]
[]
[]
[null,"Ajouter une ligne"]
[]
[]
[]
[]
[]
[]
[]
[]
[]
[]
[]
[]
[]
[]
[]
[]
[]
[]
[]
[]
[]
[]
[]
[]
[]
[]
[]
[]
[]
[]
[]
[]
[]
[]
[]
[]
[]
[]
[]
[]
[]
[]
[]
[]
[]
[]
[]
[]
[]
[]
[]
[]
[]
[]
[]
[]
[]
[null,"Évaluation de l'action"]
[]
[]
[]
[]
[null,null,"Début : ",{"$f":"Accueil!$D$68","v":"2013-10-15"},null,null,null,null,"Fin : ",{"$f":"Accueil!$K$68","v":"2023-03-31"}]
[null,"Résultats attendus : ",{"$f":"IF(LEN(Description!C49)>0,Description!C49,\"\")","v":"Les résultats escomptés sont d'augmenter l'offre en transport actif, notamment en augmentant le nombre de kilomètres de voies cyclables et piétonnes reliant les principales destinations d'une municipalité et offrant des conditions de circulation agréables et sécuritaires pour les cyclistes. Pour chaque investissement en infrastructure de transport actif, les bénéfices sont directs puisque chaque déplacement actif est un déplacement n'émettant aucun gaz à effet de serre.\n\nLes résultats attendus sont la réalisation de 50 km de voies cyclables par année, de 10 projets d'apaisement de la circulation dans les corridors scolaires et de 8 aménagements cyclables ou polyvalent sur structures.\n"}]
[null,"Résultats obtenus \n(Cibles, indicateurs et description) : ",{"$f":"IF(COUNTA(Indicateurs!B25:B45)=0,0,AVERAGE(Indicateurs!$T$25:$T$45))","v":1.8117415204678362},{"$f":"IF(LEN(Description!C50)>0,Description!C50,\"\")","v":"2021-2022\n1. Longueur des voies cyclables et piétionnes financées: 50 KM\n2. Nombre de projets d'apaisement de la circulation dans les corridors scolaires financés: 33\n3. Nombre de structures financées: 6\n4. Pourcentage des adultes utilisant la bicyclette au moins une fois par semaine: non disponible pour le moment\n5. Pourcentage des cyclistes utilisant la bicyclette à des fins utilitaires:  non disponible pour le moment "}]
[null,null,null,{"$f":"IF(LEN(Description!C51)>0,Description!C51,\"\")","v":"Depuis 2013-2014\n1. Longueur des voies cyclables et piétionnes financées: 336,44 KM\n2. Nombre de projets d'apaisement de la circulation dans les corridors scolaires financés: 124\n3. Nombre de structures financées: 34\n4. Pourcentage des adultes utilisant la bicyclette au moins une fois par semaine: non disponible pour le moment \n5. Pourcentage des cyclistes utilisant la bicyclette à des fins utilitaires:  non disponible pour le moment"}]
[]
[]
[]
[]
[null,"Type d'évaluation : "]
[null,"Est-ce que les résultats obtenus dans le cadre de l'action sont satisfaisants?"]
[null,"Quelles sont les améliorations possibles pour le futur?"]
[null,"Quels sont les forces et les points positifs de l'action?"]
[null,"Quelle est votre recommandation quant à la poursuite de cette action? "]
[null,"Autres commentaires"]

{"sheet":"Commentaires","index":7,"n_rows":33,"n_cols":20,"rows_kept":33,"cut":false,"hidden":true,"merged":[[26,12,26,13],[27,12,27,13],[29,12,29,13],[26,1,26,11],[28,12,28,13],[28,1,28,11],[29,1,29,11],[27,1,27,11],[34,1,34,11],[34,12,34,13],[31,1,31,11],[32,1,32,11],[30,1,30,11],[30,12,30,13],[33,12,33,13],[33,1,33,11],[31,12,31,13],[32,12,32,13],[25,1,25,11],[1,7,1,11],[2,7,5,17],[23,1,23,11],[23,12,23,13],[1,1,1,5],[1,15,1,16],[24,1,24,11],[3,2,3,5],[5,1,5,5],[2,1,2,2],[4,2,4,5],[24,12,24,13],[25,12,25,13],[19,1,19,3],[19,4,19,5]]}
[]
[null,{"$f":"Utilitaire!E8","v":"Plan d'action 2013-2020 sur les changements climatiques"},null,null,null,null,null,null,null,null,null,null,null,null,null,null,null,null,null,"COF"]
[null,{"$f":"\"Action \" & Accueil!D58","v":"Action en cours"},null,null,null,null,null,null,null,null,null,null,null,null,null,null,null,null,null,"Frais"]
[null,{"$f":"Accueil!D55","v":"13.4"},{"$f":"Accueil!E55","v":"Programme d’aide financière au développement des transports actifs dans les périmètres urbains (TAPU) (FORT)"},null,null,null,null,null,null,null,null,null,null,null,null,null,null,null,null,"ETC"]
[null,"Ministère porteur:",{"$f":"Accueil!$D$65","v":"MTQ"},null,null,null,null,null,null,null,null,null,null,null,null,null,null,null,null,"Détail des projets"]
[null,"Commentaires",null,null,null,null,null,null,null,null,null,null,null,null,null,null,null,null,null,"Détail des projets (GES)"]
[null,null,null,null,null,null,null,null,null,null,null,null,null,null,null,null,null,null,null,"Bilan GES"]
[null,null,null,null,null,null,null,null,null,null,null,null,null,null,null,null,null,null,null,"Indicateurs"]
[null,null,null,null,null,null,null,null,null,null,null,null,null,null,null,null,null,null,null,"Toutes-Autre"]
[]
[]
[null,null,null,null,null,null,null,null,null,null,null,null,null,null,null,null,null,null,null,"2013-2014"]
[null,null,null,null,null,null,null,null,null,null,null,null,null,null,null,null,null,null,null,"2014-2015"]
[null,null,null,null,null,null,null,null,null,null,null,null,null,null,null,null,null,null,null,"2015-2016"]
[null,null,null,null,null,null,null,null,null,null,null,null,null,null,null,null,null,null,null,"2016-2017"]
[null,null,null,null,null,null,null,null,null,null,null,null,null,null,null,null,null,null,null,"2017-2018"]
[null,null,null,null,null,null,null,null,null,null,null,null,null,null,null,null,null,null,null,"2018-2019"]
[null,null,null,null,null,null,null,null,null,null,null,null,null,null,null,null,null,null,null,"2019-2020"]
[null,null,null,null,null,null,null,null,null,null,null,null,null,null,null,null,null,null,null,"2020-2021"]
[null,"Informations en date du :",null,null,"2022-03-31",null,null,null,null,null,null,null,null,null,null,null,null,null,null,"2021-2022"]
[null,null,null,null,null,null,null,null,null,null,null,null,null,null,null,null,null,null,null,"2022-2023"]
[null,null,null,null,null,null,null,null,null,null,null,null,null,null,null,null,null,null,null,"2023-2024"]
[]
[null,"Commentaires",null,null,null,null,null,null,null,null,null,null,"Section concernée",null,"Année","Exercice","nom Commentateur ","courriel Commentateur "]
[null,"",null,null,null,null,null,null,null,null,null,null,"",null,null,"","",""]
[]
[null,"",null,null,null,null,null,null,null,null,null,null,"",null,null,"","",""]
[null,"",null,null,null,null,null,null,null,null,null,null,"",null,null,"","",""]
[null,"",null,null,null,null,null,null,null,null,null,null,"",null,null,"","",""]
[null,"",null,null,null,null,null,null,null,null,null,null,"",null,null,"","",""]
[]
[null,"",null,null,null,null,null,null,null,null,null,null,"",null,null,"","","",null,"juin"]
[null,"",null,null,null,null,null,null,null,null,null,null,"",null,null,"","","",null,"décembre"]

{"sheet":"Validation","index":8,"n_rows":85,"n_cols":7,"rows_kept":85,"cut":false,"hidden":true,"merged":[[3,3,3,6],[3,1,3,2],[17,1,17,5],[18,1,18,4],[4,3,4,6],[7,1,7,3],[7,4,7,5],[21,5,22,5],[23,5,24,5],[25,5,26,5],[26,1,26,4],[22,1,22,4],[24,1,24,4],[1,1,1,6],[19,1,19,4],[31,1,31,4],[28,1,28,5],[47,1,47,5],[30,1,30,4],[16,1,16,6],[21,1,21,4],[23,1,23,4],[25,1,25,4],[20,1,20,5],[27,1,27,4],[29,1,29,4],[5,1,5,6],[2,1,2,2],[4,1,4,2],[49,1,49,4],[34,1,34,4],[48,1,48,4],[48,5,49,5],[32,1,32,4],[33,1,33,4],[35,1,35,4],[36,1,36,5],[41,1,41,4],[25,6,26,6],[48,6,49,6],[51,6,52,6],[57,1,57,4],[37,1,37,4],[43,1,43,4],[38,1,38,4],[39,1,39,4],[40,1,40,4],[50,1,50,4],[51,1,51,4],[52,1,52,4],[56,1,56,5],[51,5,52,5],[54,1,54,4],[55,1,55,4],[53,1,53,4],[59,1,59,5],[60,1,60,4],[61,1,61,4],[8,1,8,6],[13,1,13,6],[14,1,14,6],[46,1,46,4],[45,1,45,4],[44,1,44,4],[45,6,46,6],[45,5,46,5],[42,1,42,5],[58,1,58,4],[21,6,22,6],[23,6,24,6]]}
[]
[null,{"$f":"Utilitaire!E8","v":"Plan d'action 2013-2020 sur les changements climatiques"}]
[null,{"$f":"\"Action \" & Accueil!D58","v":"Action en cours"}]
[null,{"$f":"Accueil!D55","v":"13.4"}]
[null,"Ministère porteur:",null,{"$f":"Accueil!$D$65","v":"MTQ"},{"$f":"Accueil!$D$65","v":"MTQ"}]
[null,"Rapport de validation de la fiche de suivi"]
[]
[null,"Conseils de rédaction : ",null,null,"Informations en date du :",null,{"$f":"Utilitaire!G6","v":"2022-03-31"}]
[null,"\n\n'- Cet onglet ne sera pas diffusé.\n\n- Nous apprécierions vos commentaires constructifs par rapport aux nouvelles fiches de suivi. La case B15 est réservée à cet effet.\n\n- Complétez la grille de validation ci-dessous (ligne 19) en cochant chaque point. Vous pouvez inscrire des commentaires à l'endroit prévu à cet effet."]
[]
[]
[]
[]
[null,"Votre appréciation de la fiche de suivi et suggestions pour les prochains exercices"]
[]
[]
[null,"Grille de validation de la fiche de suivi"]
[null,"Fin du PACC",null,null,null,null,"Commentaires"]
[null,"Avez-vous complété le tableau de la ligne 204 de l'onglet Évaluation?"]
[null,"Avez-vous saisi tous vos engagements à SAGIR (vous avez jusqu'au 31 mai)?"]
[null,"Onglet Accueil",null,null,null,null,"Commentaires"]
[null,"Vérifier que toutes les cases sont remplies."]
[null,"Les cases non remplies s'affichent en orange\nLes lignes 69 à 73 seront masquées pour la publication."]
[null,"Vérifier que la part de financement est écrite sous forme de pourcentage (ex. : 60 %)."]
[null,"Inscrire un nombre entre 0 et 100 suivi du symbole \"%\". Si le pourcentage est variable, inscrire \"Variable\"."]
[null,"Vérifier que le statut de l'action est toujours conforme avec son évolution."]
[null,"Utiliser l'information des onglets \"Description\" et Détail des projets\" afin que le statut soit conforme avec\n l'évolution de l'action."]
[null,"Vérifier, s'il y a lieu, que le nom du programme est inscrit."]
[null,"Onglet Description",null,null,null,null,"Commentaires"]
[null,"Vérifier que toutes les cases obligatoires sont remplies."]
[null,"Vérifier que tous les éléments pertinents en lien avec le COVID-19 sont inscrits au tableau prévu à cet effet."]
[null,"Vérifier que les éléments de classification de l'action sont sélectionnés à partir du menu déroulant."]
[null,"Vérifier que l'entièreté du texte est lisible. "]
[null,"Vérifier que l'échéancier dans la section \"Mise en œuvre\" est inscrit."]
[null,"Vérifier que l'état d'avancement est sélectionné à partir du menu déroulant."]
[null,"Vérifier que le tableau \"Plans, stratégies, politiques incluant la mise en œuvre de cette action\" est rempli."]
[null,"Onglet Détail des projets",null,null,null,null,"Commentaires"]
[null,"Vérifier que les informations confidentielles sont inscrites en bleu."]
[null,"Transmettre au BECC le rapport des résultats, si un projet est terminé."]
[null,"Vérifier le total des dépenses réelles de tous les projets correspond à celui inscrit dans les COF pour chaque année financière complétée."]
[null,"Vérifier que le total des dépenses réelles et prévues pour un projet n'excède pas le montant engagé."]
[null,"Vérifier l'utilisation des nouveaux statuts de projets pour les projets affectés par le COVID-19"]
[null,"Onglet GES",null,null,null,null,"Commentaires"]
[null,"Vérifier que le total des réductions de GES correspond aux données de l'onglet \"Indicateurs\"."]
[null,"Vérifier que les deux cases de la ligne 20 sont bien remplies."]
[null,"Vérifier que le coût la tonne et la durée du projet sont bien indiqués pour tous les projets ayant soit un potentiel de réduction ou des réductions réelles (colonnes H et K)."]
[null,"La méthode de calcul du coût la tonne doit respecter les indications en commentaire dans la cellule H23."]
[null,"Onglet Indicateurs",null,null,null,null,"Commentaires"]
[null,"Vérifier la cohérence des cibles, des résultats et des résultats à comparer avec les cibles.\n (même unité de mesure, évolution des résultats annuels)"]
[null,"S'il y a lieu, utiliser la colonne \"Commentaires sur les résultats\" afin de fournir davantage d'informations."]
[null,"Vérifier que les commentaires à l'intention du BECC qui ne sont pas pour diffusion sont inscrits en bleu."]
[null,"Vérifier qu'il y a des résultats pour tous les indicateurs. Inscrire un 0 comme résultat pour les \n indicateurs ne présentant pas de résultats."]
[null,"Si les résultats ne sont pas disponibles, vous devez inscrire un commentaire dans la colonne prévue\n à cet effet indiquant à quel moment ils seront disponibles."]
[null," Transmettre au BECC pour approbation une annexe 4 (fiche-indicateur) si vous désirez qu'un indicateur soit ajouté."]
[null,"Vérifier que le tableau \"PRÉVISIONS DES RETOMBÉES SUR LES RÉDUCTIONS DES ÉMISSIONS DE GES\" est bien rempli si votre action vise la réduction des GES."]
[null,"Vérifier que le tableau \"ADAPTATION AUX EFFETS DES CHANGEMENTS CLIMATIQUES\" est bien rempli si votre action vise l'adaptation aux changements climatiques."]
[null,"Onglet Commentaires",null,null,null,null,"Commentaires"]
[null,"Vérifier que les commentaires de l'exercice précédent s'appliquent toujours. Retirer tous les\n commentaires qui ne s'appliquent plus."]
[null,"Inscrire en noir les commentaires nécessaires à afficher lors de la publication des fiches"]
[null,"Onglet Évaluation",null,null,null,null,"Commentaires"]
[null,"Remplir et mettre à jour la liste des livrables. Veuillez transmettre tout livrable attendu au BECC avec votre fiche de suivi."]
[null,"Veuillez remplir la section Évaluation de l'action. Obligatoire pour la fin du PACC."]
[]
[]
[]
[]
[]
[]
[]
[]
[]
[]
[]
[]
[]
[]
[]
[]
[]
[]
["Code de couleur","Onglet concerné","no ligne","Description de la problématique","No d'erreur",null,"Commentaires"]
[null,"Description",null,"Les informations \"Description, objectif, clientèle, critères d'admissibilité, processus de suivi de l'action, résultats attendus, résultats obtenus dans la dernière année, résultats obtenus, finalité, catégorie\" sont manquantes dans l'onglet Description.",18]
[null,"détail des projets",null,"Aucun projet n'est mentionné dans la fiche. Cette situation est acceptable seulement si l'action n'est pas encore lancée (statut non démarrée ou en élaboration).",12]
[null,"GES",null,"Les informations \"Potentiel de réduction des GES, réduction réelle des émissions de GES\" sont manquantes dans l'onglet GES.",18]
[null,"indicateurs",null,"Aucun indicateur n'est inscrit pour cette action. Acceptable seulement si l'action n'est pas démarrée.",20]

{"sheet":"Modalités de fin du PACC","index":9,"n_rows":23,"n_cols":5,"rows_kept":23,"cut":false,"hidden":true,"merged":[[14,2,14,13],[15,2,15,13],[16,2,16,13],[13,1,13,12],[1,1,1,13],[22,2,22,13],[3,2,3,3],[4,2,4,3],[5,2,5,3],[7,2,7,3],[6,2,6,3],[8,1,8,13],[17,2,17,13],[19,2,19,13],[20,2,20,13],[21,2,21,13],[18,3,18,13],[12,1,12,13]]}
[]
[null,"Échéancier de la fin du Plan d'action 2013-2020 sur les changements climatiques"]
[]
[null,"-","2021-03-31",null,"Fin du PACC. Vous ne pouvez plus prendre de nouveaux engagements en vertu des actions du PACC."]
[null,"-","2021-05-31",null,"Échéance pour saisir dans SAGIR les engagements (lettre d'octroi suffisante) pris avant le 31 mars."]
[null,"-","2021-12-31",null,"Échéance pour signer les conventions de subventions se rapportant aux engagements saisis à SAGIR."]
[null,"-","2022-12-31",null,"Fin des projets réalisés à l'interne des Partenaires"]
[null,"-","2025-12-31",null,"Fin des projets"]
[null,"Lorsque tous les projets liés à une action seront terminés et que tous les résultats liés à l'action seront colligés, l'action sera inscrite comme étant « terminée » et sera retirée du suivi semestriel."]
[]
[]
[]
[null,"Modalités détaillées de la fin du PACC"]
[null,"(Ces modalités sont annexées à l'entente administrative concernant la mise en œuvre du PACC et concordent avec l'échéancier ci-dessus)"]
[null,null,"1. Les enveloppes budgétaires 2013-2020 des actions et sous-actions (Annexe 2 de l’ENTENTE) doivent être respectées en tout temps."]
[null,null,"2. Tous les engagements (c.-à-d. une dépense jugée admissible et autorisée) doivent être pris avant le 31 mars 2021. Après cette date, les engagements pris ne peuvent plus être bonifiés."]
[null,null,"3. Tous les engagements pris avant le 31 mars 2021 (par exemple : lettre d’octroi de subvention signée par vos autorités, contrat, convention ou entente signés, décret ou CT approuvé) doivent être saisis dans SAGIR au plus tard le 31 mai 2021. Une nouvelle version de la « Procédure de comptabilisation des dépenses portées au débit du Fonds d’électrification et de changements climatiques par les ministères et organismes partenaires » sera transmise ultérieurement lors de la fermeture de la fin d’année financière 2020-2021 afin de tenir compte de la fin du PACC."]
[null,null,"4. Les conventions d’aide financière qui ne pourront être signées avant le 31 mars 2021 pourront être reconnues comme engagées seulement si le Partenaire transmet une lettre d’octroi de subvention au bénéficiaire avant cette date :"]
[null,null,null,"· La lettre d’octroi devra mentionner le montant total de la subvention avec le détail des versements estimés par année financière et devra préciser qu’elle est conditionnelle à une décision du Conseil des ministres ou du Conseil du trésor lorsqu’applicable. Enfin, la lettre devra préciser que la subvention est conditionnelle à la signature d’une convention de subvention au plus tard le 31 décembre 2021."]
[null,null,"5. Aucun engagement ne pourra s’échelonner au-delà du 31 décembre 2025."]
[null,null,"6. Les frais d’administration (dépenses de rémunération et de fonctionnement) nécessaires au suivi de conventions d’aide financière ou de contrats pourront être imputés au FECC jusqu’au terme des projets ou au plus tard au 31 décembre 2025."]
[null,null,"7. Les suivis se poursuivront tant que les actions ne seront pas terminées."]
[null,null,"8. Aucune dépense pour les projets réalisés à l’interne (projets majoritairement réalisés en régie interne par le personnel du Partenaire) ne pourra être effectuée au-delà du 31 mars 2022."]

{"sheet":"Prochain Exercice-Commentaire","index":10,"n_rows":11,"n_cols":6,"rows_kept":11,"cut":false,"hidden":true,"merged":[[6,1,6,5],[5,3,5,4],[1,1,2,5],[3,1,4,2],[3,4,3,5],[4,4,4,5],[5,1,5,2]]}
[]
[null,{"$f":"Utilitaire!E8","v":"Plan d'action 2013-2020 sur les changements climatiques"}]
[]
[null,"Commentaires",null,null,{"$f":"Accueil!D65 & \" - \" &Accueil!D53","v":"MTQ - 13.4"}]
[null,null,null,null,{"$f":"\"Action \" & Accueil!D58","v":"Action en cours"}]
[null,"Conseils de rédaction :",null,"Informations en date du :",null,{"$f":"Utilitaire!G6","v":"2022-03-31"}]
[null,"- Veuillez inscrire ici tout commentaire pour prochain exercice"]
[]
[]
[null,"Onglet de la fiche","Case","Commentaire"]
[null,"Évaluation","M38","Veuillez répondre si un rapport est prévu"]